Workbook

Sheet Table of Contents
A1: Table of Contents
A3: Instructions
A4: Inputs
A5: DFRG
A6: DFDE
A7: SULL
A8: DFG
A9: SULL2
A10: DFG2
A11: 5Q Trend
A12: Store Rank PTD
A13: Store Rank Count PTD
A14: Store Rank QTD YTD
A15: Store Rank Count QTD YTD
A16: Slide Items
A17: Chart list
A18: Slide list
A19: Ops Item list
A20: Brand Summary PTD
A21: Brand Summary PTD YTD
A22: Database PTD
A23: Brand Summary QTD YTD TTM
A24: Database QTD YTD TTM
A25: Stores
A26: Dates
A27: Store analysis

Sheet Instructions
A2: Notes
A3: This file contains fake data for example purposes only!
A6: Instructions for periodly updates
A7: 1 | B7: Update the yellow boxes on the Inputs sheet.
A8: =A7+1 -> 2 | B8: Run 1 Summary Report_TR report on the InMoment website. Select "last period" from the date list and select "Location" and in the box with all locations, click the top location and then while holding down the Ctrl key, click the last location (this will select all of the open locations). See screenshots to the right. Export to Excel, and save the file to the current period source data report (see link to the right).
A13: =A8+1 -> 3 | B13: In the InMoment report, remove any rows that contain test stores.
A14: =A13+1 -> 4 | B14: From the InMoment report, copy columns B:P (below the headers) to the Database PTD sheet (columns A:O) in this file.
A16: =A14+1 -> 5 | B16: In the Database PTD sheet, enter the period/year to columns R/S, and fill columns Q/T:AA with the formulas from the rows above.
A18: =A16+1 -> 6 | B18: For column X (traffic) in the Database PTD sheet, once traffic counts are available in the Sales & Traffic data source, copy the formula from cell AD1 into column X for all of the new period's rows. After the formulas calculate, copy and paste values over the formulas to cut down on recalculation time.
A22: =A18+1 -> 7 | B22: Note: the PivotCharts on all of the sheets are based on references to the range names used in the Brand Summary PTD and Database PTD sheets. These ranges should update automatically as you copy in the data in new rows.
A25: =A22+1 -> 8 | B25: Update the PivotCharts/PivotTables on each of the sheets below (right-click on the chart and select Refresh Data). Updating the data on any one of the sheets should refresh all of the PivotCharts in each of the four sheets.
C28: DFRG | D28: SULL
C29: DFDE | D29: DFG
B30: On the Store Rank PTD sheet, refresh the PivotTable on the left, then update the periods included in the columns to be the current period and the related prior year period.
A32: =A25+1 -> 9 | B32: To update the InMoment PowerPoint file, open the InMoment Store Rankings PowerPoint file for the current period, then run the Refresh_One_Slide macro (shortcut: Ctrl+Shift+P) for each row in the Slide Items sheet to refresh the InMoment Store Rankings PowerPoint file. Only the PTD slides need to be updated each period. The QTD slides (the bottom 20 or so slides in the Slide Items sheet) only need to be updated at quarter-end.
L38: Colors used in slides:
A39: Instructions for quarterly updates
A40: 1 | B40: Run 1 Summary Report_TR report on the InMoment website. Enter the beginning/end dates for the quarter and select "Location" and in the box with all locations, click the top location and then while holding down the Ctrl key, click the last location (this will select all of the open locations). See screenshots to the right. Export to Excel, and save the file to the current period source data report (see link to the right) using a YYYY-QQ at the end of the filename. Tip: use the dates on the Dates sheet to fill in the dates to run the report for.
A46: =A40+1 -> 2 | B46: In the InMoment report, remove any rows that contain test stores.
A47: =A46+1 -> 3 | B47: From the InMoment report, copy columns B:P (below the headers) to the Database QTD YTD TTM sheet (columns A:O) in this file.
A49: =A47+1 -> 4 | B49: In the Database QTD YTD TTM sheet, enter the quarter/year to columns T/U, and fill columns Q:S/V:AB with the formulas from the rows above.
A51: =A49+1 -> 5 | B51: Repeat steps 1-4 for the YTD and TTM periods such that there is an entry for every open store for the QTD, YTD, and TTM periods for the quarter.
A53: =A51+1 -> 6 | B53: For column Q (traffic) in the Database QTD YTD TTM sheet, copy the formula from cell AE1 into column Q for all of the QTD/YTD/TTM rows. After the formulas calculate, copy and paste values over the formulas to cut down on recalculation time.
A56: =A53+1 -> 7 | B56: Refresh the PivotCharts/PivotTables on the 5Q Trend sheet.
A57: =A56+1 -> 8 | B57: On the Store Rank QTD YTD sheet, refresh the PivotTable on the left, then update the quarters included in the columns to be the current quarter and the related prior year quarter.
A60: =A57+1 -> 9 | B60: To update the QTD slides in the InMoment PowerPoint file, open the InMoment Store Rankings PowerPoint file for the current period then run the Refresh_One_Slide macro (shortcut: Ctrl+Shift+P) for each row in the Slide Items sheet to refresh the InMoment Store Rankings PowerPoint file.

Sheet Inputs
B1: CY | C1: PY | F1: Year | G1: Label
A2: Period | B2: 11 | F2: =B3 -> 2017 | G2: CY
A3: Year | B3: 2017 | C3: =B3-1 -> 2016 | F3: =F2-1 -> 2016 | G3: PY
A4: Quarter | B4: =IF(B2>9,4,IF(B2>6,3,IF(B2>3,2,1))) -> 4 | F4: =F3-1 -> 2015 | G4: PY2
A5: EOP Date | B5: 2017-09-05 | C5: 2017-09-06
A7: Update: | B7: PTD
A8: 2-digit year | B8: =RIGHT(B3,2) -> 17 | C8: =RIGHT(C3,2) -> 16
A23: PowerPoint report file name:
A24: =IF(A26<>"",A26,"InMoment Store Rankings_"&B3&"-P"&IF(B2<10,"0","")&B2&".pptm") -> InMoment Store Rankings_2017-P11.pptm
A25: Overwrite PowerPoint report file path/name:
A27: Slide item update column: | D27: M
A28: Reports folder path:
A29: ="C:\Reports\InMoment\Q"&B4&"\PD "&B2&" "&B3&"\" -> C:\Reports\InMoment\Q4\PD 11 2017\

Sheet Store Rank PTD
A1: Type | B1: DFDE | H1: Min axis | I1: =IF(K1="",VLOOKUP(B1&"_"&A4,'Chart list'!$N:$P,2,FALSE),K1) -> 40
A2: Status | B2: Open | H2: Max axis | I2: =IF(K2="",VLOOKUP(B1&"_"&A4,'Chart list'!$N:$P,3,FALSE),K2) -> Auto
H3: Decimals | I3: =IF(K3="",VLOOKUP(B1&"_"&A4,'Chart list'!$N:$Q,4,FALSE),K3) -> 1
A4: Sum of Overall Sat. | B4: Column Labels
A5: Row Labels | B5: '17 P11 | C5: '16 P11
A6: Houston, TX | B6: 72.297 | C6: 41.34
A7: Charlotte, NC | B7: 69.105 | C7: 65.365
A8: Denver, CO | B8: 68.558 | C8: 54.48
A9: Las Vegas, NV | B9: 67.86 | C9: 72.625
A10: Plano, TX | B10: 62.665
A11: New York City, NY | B11: 60.24 | C11: 60.588
A12: Boston, MA | B12: 58.055 | C12: 41.6
A13: Dallas, TX | B13: 56.137 | C13: 51.996
A14: Washington, DC | B14: 51.984 | C14: 51.972
A15: Fort Worth, TX | B15: 50.967 | C15: 47.424
A16: Orlando, FL | B16: 50.475 | C16: 53.448
A17: Philadelphia, PA | B17: 44.87 | C17: 41.088
A18: Chicago, IL | B18: 42.84 | C18: 73.304

Sheet Store Rank QTD YTD
A1: Type | B1: DFG | H1: Min axis | I1: =IF(K1="",VLOOKUP(B1&"_"&A4,'Chart list'!$N:$P,2,FALSE),K1) -> Auto
A2: Status | B2: Open | H2: Max axis | I2: =IF(K2="",VLOOKUP(B1&"_"&A4,'Chart list'!$N:$P,3,FALSE),K2) -> Auto
H3: Decimals | I3: =IF(K3="",VLOOKUP(B1&"_"&A4,'Chart list'!$N:$Q,4,FALSE),K3) -> 0
A4: Sum of # of Surveys | B4: Column Labels
A5: Row Labels | B5: '17 Q3 QTD | C5: '16 Q3 QTD
A6: Brentwood, TN | B6: 193
A7: Fort Worth, TX | B7: 189 | C7: 136
A8: Southlake, TX | B8: 183 | C8: 200
A9: Woodlands, TX | B9: 181 | C9: 159
A10: Burlington, MA | B10: 159 | C10: 70
A11: Atlanta, GA | B11: 156 | C11: 91
A12: Cherry Creek, CO | B12: 148 | C12: 157
A13: Plano, TX | B13: 131 | C13: 201
A14: Irvine, CA | B14: 101 | C14: 90
A15: Huntington, NY | B15: 93 | C15: 174
A16: Little Rock, AR | B16: 89 | C16: 61
A17: Hoboken, NJ | B17: 80 | C17: 95
A18: Tampa, FL | B18: 75 | C18: 78
A19: New York City, NY | B19: 75 | C19: 93
A20: Pasadena, CA | B20: 73 | C20: 82
A21: N. Bethesda, MD | B21: 66 | C21: 29
A22: Houston, TX | B22: 60 | C22: 120
A23: Chestnut Hill, MA | B23: 53 | C23: 68
A24: Brookfield NYC, NY | B24: 44
A25: Nashville, TN | B25: 44
A26: Dallas, TX | B26: 42 | C26: 61
A27: Santa Monica, CA | B27: 33 | C27: 46
A28: Stamford, CT | B28: 31 | C28: 74
A29: Washington, DC | B29: 30 | C29: 49

Sheet DFRG
A1: InMoment - Overall Satisfaction
T3: Average of Overall Sat. | U3: Column Labels
T4: Row Labels | U4: DFDE | V4: DFG | W4: SULL | X4: DFRG | Y4: Grand Total
T5: '15 P11 | U5: 57.17995119 | V5: 45.56079814 | W5: 56.52698814 | X5: 54.14841484 | Y5: 53.35403808
T6: '15 P12 | U6: 55.37594314 | V6: 44.95186807 | W6: 48.10775888 | X6: 50.2140488 | Y6: 49.66240472
T7: '15 P13 | U7: 57.4766755 | V7: 44.79019623 | W7: 48.03877511 | X7: 51.38757476 | Y7: 50.4233054
T8: '16 P01 | U8: 55.86448266 | V8: 49.16943272 | W8: 51.74789517 | X8: 52.8008463 | Y8: 52.39566421
T9: '16 P02 | U9: 52.18904125 | V9: 49.91034416 | W9: 54.7901172 | X9: 52.32793283 | Y9: 52.30435886
T10: '16 P03 | U10: 59.11533541 | V10: 57.3204178 | W10: 55.50482296 | X10: 57.48708337 | Y10: 57.35691488
T11: '16 P04 | U11: 51.61094216 | V11: 51.38003441 | W11: 58.53057393 | X11: 53.76675582 | Y11: 53.82207658
T12: '16 P05 | U12: 55.01384503 | V12: 55.64670056 | W12: 50.91667532 | X12: 53.87602928 | Y12: 53.86331255
T13: '16 P06 | U13: 54.50057431 | V13: 55.31577057 | W13: 53.6758599 | X13: 54.50206742 | Y13: 54.49856805
T14: '16 P07 | U14: 50.90743885 | V14: 53.36576636 | W14: 57.46806338 | X14: 53.76027036 | Y14: 53.87538474
T15: '16 P08 | U15: 58.81120291 | V15: 55.11150365 | W15: 58.44414105 | X15: 57.66589855 | Y15: 57.50818654
T16: '16 P09 | U16: 55.44634218 | V16: 54.96517972 | W16: 57.60307392 | X16: 55.90559388 | Y16: 55.98004743
T17: '16 P10 | U17: 58.41226361 | V17: 56.00807821 | W17: 53.9992402 | X17: 56.52895827 | Y17: 56.23713507
T18: '16 P11 | U18: 54.46654923 | V18: 55.0809375 | W18: 54.27408742 | X18: 54.56769364 | Y18: 54.59731695
T19: '16 P12 | U19: 54.41687135 | V19: 52.18942453 | W19: 55.5602194 | X19: 54.10103981 | Y19: 54.06688877
T20: '16 P13 | U20: 53.08367895 | V20: 52.887782 | W20: 56.16763456 | X20: 53.94956507 | Y20: 54.02216515
T21: '17 P01 | U21: 53.32800221 | V21: 53.73999861 | W21: 52.65297923 | X21: 53.25961138 | Y21: 53.24514786
T22: '17 P02 | U22: 51.93974298 | V22: 49.86125849 | W22: 52.1688269 | X22: 51.41993319 | Y22: 51.34744039
T23: '17 P03 | U23: 57.37117537 | V23: 61.96887859 | W23: 59.91363323 | X23: 59.83608475 | Y23: 59.77244299
T24: '17 P04 | U24: 60.07294296 | V24: 65.83348413 | W24: 70.70395492 | X24: 65.83558519 | Y24: 65.6114918
T25: '17 P05 | U25: 57.89512761 | V25: 57.76140214 | W25: 53.8532447 | X25: 56.81516598 | Y25: 56.58123511
T26: '17 P06 | U26: 55.52372529 | V26: 57.84200504 | W26: 58.7380625 | X26: 57.11393262 | Y26: 57.30443136
T27: '17 P07 | U27: 59.21321552 | V27: 60.99715851 | W27: 56.91775431 | X27: 59.4313641 | Y27: 59.13987311
T28: '17 P08 | U28: 54.71730385 | V28: 58.97413731 | W28: 61.83539768 | X28: 57.87636232 | Y28: 58.35080029
T29: '17 P09 | U29: 53.87147065 | V29: 54.91174581 | W29: 57.06786497 | X29: 54.96188537 | Y29: 55.2032417
T30: '17 P10 | U30: 56.97691809 | V30: 58.92062848 | W30: 60.38099539 | X30: 58.36204106 | Y30: 58.66014575
T31: '17 P11 | U31: 59.72392994 | V31: 53.80418403 | W31: 58.43407963 | X31: 57.62618644 | Y31: 57.39709501
T32: Grand Total | U32: 55.72239601 | V32: 54.38033762 | W32: 56.07491556 | X32: 55.53807131 | Y32: 55.42893012
B33: Source: InMoment Scorecard Report

Sheet DFDE
A1: oSat | E1: Recommend | I1: Pace | M1: Food Quality | R1: InMoment Trends - Del Frisco's Double Eagle
A2: Brand | B2: DFDE | E2: Brand | F2: DFDE | I2: Brand | J2: DFDE | M2: Brand | N2: DFDE
A4: Average of Overall Sat. | B4: Column Labels | E4: Average of Recommend | F4: Column Labels | I4: Average of Pace of dining | J4: Column Labels | M4: Average of Quality of food | N4: Column Labels
A5: Row Labels | B5: 2015 | C5: 2016 | D5: 2017 | E5: Row Labels | F5: 2015 | G5: 2016 | H5: 2017 | I5: Row Labels | J5: 2015 | K5: 2016 | L5: 2017 | M5: Row Labels | N5: 2015 | O5: 2016 | P5: 2017
A6: 1 | C6: 55.86448266 | D6: 53.32800221 | E6: 1 | G6: 0 | H6: 0 | I6: 1 | K6: 57.4340253 | L6: 54.42447409 | M6: 1 | O6: 61.56994096 | P6: 57.69098677
A7: 2 | C7: 52.18904125 | D7: 51.93974298 | E7: 2 | G7: 0 | H7: 0 | I7: 2 | K7: 53.87890222 | L7: 52.74339825 | M7: 2 | O7: 58.07557601 | P7: 58.90267018 | R7: Overall Satisfaction | AA7: Pace of Dining
A8: 3 | C8: 59.11533541 | D8: 57.37117537 | E8: 3 | G8: 0 | H8: 0 | I8: 3 | K8: 59.87927414 | L8: 57.9454204 | M8: 3 | O8: 63.46334683 | P8: 60.88358955
A9: 4 | C9: 51.61094216 | D9: 60.07294296 | E9: 4 | G9: 0 | H9: 0 | I9: 4 | K9: 53.4395098 | L9: 60.53773422 | M9: 4 | O9: 56.63699216 | P9: 63.68877063
A10: 5 | C10: 55.01384503 | D10: 57.89512761 | E10: 5 | G10: 0 | H10: 0 | I10: 5 | K10: 55.38456628 | L10: 56.43814965 | M10: 5 | O10: 58.50078947 | P10: 61.12042111
A11: 6 | C11: 54.50057431 | D11: 55.52372529 | E11: 6 | G11: 0 | H11: 51.17239538 | I11: 6 | K11: 56.52934383 | L11: 56.65807702 | M11: 6 | O11: 57.80324181 | P11: 59.11685366
A12: 7 | C12: 50.90743885 | D12: 59.21321552 | E12: 7 | G12: 0 | H12: 56.67720197 | I12: 7 | K12: 53.78409113 | L12: 61.68842241 | M12: 7 | O12: 54.8222446 | P12: 62.50870936
A13: 8 | C13: 58.81120291 | D13: 54.71730385 | E13: 8 | G13: 0 | H13: 51.96028118 | I13: 8 | K13: 61.94950045 | L13: 56.30577324 | M13: 8 | O13: 63.81479436 | P13: 58.43735034
A14: 9 | C14: 55.44634218 | D14: 53.87147065 | E14: 9 | G14: 0 | H14: 48.27587841 | I14: 9 | K14: 57.55597346 | L14: 55.19251677 | M14: 9 | O14: 61.82458768 | P14: 58.23118449
A15: 10 | C15: 58.41226361 | D15: 56.97691809 | E15: 10 | G15: 0 | H15: 54.47648919 | I15: 10 | K15: 58.41330203 | L15: 56.88585666 | M15: 10 | O15: 62.20736179 | P15: 62.47517861
A16: 11 | B16: 57.17995119 | C16: 54.46654923 | D16: 59.72392994 | E16: 11 | F16: 0 | G16: 0 | H16: 56.53688701 | I16: 11 | J16: 57.75086148 | K16: 54.98076923 | L16: 59.31344633 | M16: 11 | N16: 63.05153166 | O16: 58.78668615 | P16: 63.41390508
A17: 12 | B17: 55.37594314 | C17: 54.41687135 | E17: 12 | F17: 0 | G17: 0 | I17: 12 | J17: 57.77971323 | K17: 54.1950756 | M17: 12 | N17: 59.54987515 | O17: 59.36533289
A18: 13 | B18: 57.4766755 | C18: 53.08367895 | E18: 13 | F18: 0 | G18: 0 | I18: 13 | J18: 58.66914759 | K18: 52.96702021 | M18: 13 | N18: 61.69118165 | O18: 58.30316171
A19: Grand Total | B19: 56.67752327 | C19: 54.91065907 | D19: 56.42123223 | E19: Grand Total | F19: 0 | G19: 0 | H19: 29.0090121 | I19: Grand Total | J19: 58.0665741 | K19: 56.18395028 | L19: 57.10302446 | M19: Grand Total | N19: 61.43086282 | O19: 59.62877357 | P19: 60.58814725
R26: Recommend (NPS) | AA26: Food Quality
R44: Source: InMoment Summary Report

Sheet SULL
A1: oSat | E1: Recommend | I1: Pace | M1: Food Quality | R1: InMoment Trends - Sullivan's
A2: Brand | B2: SULL | E2: Brand | F2: SULL | I2: Brand | J2: SULL | M2: Brand | N2: SULL
A4: Average of Overall Sat. | B4: Column Labels | E4: Average of Recommend | F4: Column Labels | I4: Average of Pace of dining | J4: Column Labels | M4: Average of Quality of food | N4: Column Labels
A5: Row Labels | B5: 2015 | C5: 2016 | D5: 2017 | E5: Row Labels | F5: 2015 | G5: 2016 | H5: 2017 | I5: Row Labels | J5: 2015 | K5: 2016 | L5: 2017 | M5: Row Labels | N5: 2015 | O5: 2016 | P5: 2017
A6: 1 | C6: 51.74789517 | D6: 52.65297923 | E6: 1 | G6: 0 | H6: 0 | I6: 1 | K6: 53.8804735 | L6: 54.83833828 | M6: 1 | O6: 55.4140636 | P6: 55.50709199
A7: 2 | C7: 54.7901172 | D7: 52.1688269 | E7: 2 | G7: 0 | H7: 0 | I7: 2 | K7: 56.17293084 | L7: 53.40595766 | M7: 2 | O7: 59.82163881 | P7: 55.29221295 | R7: Overall Satisfaction | AA7: Pace of Dining
A8: 3 | C8: 55.50482296 | D8: 59.91363323 | E8: 3 | G8: 0 | H8: 0 | I8: 3 | K8: 54.83186584 | L8: 62.43649216 | M8: 3 | O8: 56.5074343 | P8: 61.83337461
A9: 4 | C9: 58.53057393 | D9: 70.70395492 | E9: 4 | G9: 0 | H9: 0 | I9: 4 | K9: 59.61821906 | L9: 70.59622746 | M9: 4 | O9: 60.44071084 | P9: 72.77525102
A10: 5 | C10: 50.91667532 | D10: 53.8532447 | E10: 5 | G10: 0 | H10: 0 | I10: 5 | K10: 53.21180087 | L10: 56.62780098 | M10: 5 | O10: 53.55545779 | P10: 56.77572104
A11: 6 | C11: 53.6758599 | D11: 58.7380625 | E11: 6 | G11: 0 | H11: 53.81680444 | I11: 6 | K11: 54.4384219 | L11: 60.45629637 | M11: 6 | O11: 54.60821256 | P11: 59.58261492
A12: 7 | C12: 57.46806338 | D12: 56.91775431 | E12: 7 | G12: 0 | H12: 52.95765948 | I12: 7 | K12: 59.48572817 | L12: 58.46496552 | M12: 7 | O12: 60.6570338 | P12: 58.43000647
A13: 8 | C13: 58.44414105 | D13: 61.83539768 | E13: 8 | G13: 0 | H13: 58.13883784 | I13: 8 | K13: 60.71036609 | L13: 64.1585 | M13: 8 | O13: 58.74110301 | P13: 64.11218147
A14: 9 | C14: 57.60307392 | D14: 57.06786497 | E14: 9 | G14: 0 | H14: 55.05565558 | I14: 9 | K14: 59.56261646 | L14: 59.32370841 | M14: 9 | O14: 60.8591311 | P14: 58.90559687
A15: 10 | C15: 53.9992402 | D15: 60.38099539 | E15: 10 | G15: 0 | H15: 56.97611521 | I15: 10 | K15: 53.44194208 | L15: 60.09400922 | M15: 10 | O15: 56.63667632 | P15: 62.77300691
A16: 11 | B16: 56.52698814 | C16: 54.27408742 | D16: 58.43407963 | E16: 11 | F16: 0 | G16: 0 | H16: 54.59455269 | I16: 11 | J16: 59.09564068 | K16: 56.38517219 | L16: 59.46698829 | M16: 11 | N16: 59.14954576 | O16: 58.40706093 | P16: 61.10170492
A17: 12 | B17: 48.10775888 | C17: 55.5602194 | E17: 12 | F17: 0 | G17: 0 | I17: 12 | J17: 50.72164793 | K17: 58.99028806 | M17: 12 | N17: 50.54356361 | O17: 57.86127164
A18: 13 | B18: 48.03877511 | C18: 56.16763456 | E18: 13 | F18: 0 | G18: 0 | I18: 13 | J18: 50.54395802 | K18: 56.20184703 | M18: 13 | N18: 54.76911394 | O18: 58.66978045
A19: Grand Total | B19: 50.89117404 | C19: 55.28326188 | D19: 58.42425395 | E19: Grand Total | F19: 0 | G19: 0 | H19: 30.13996593 | I19: Grand Total | J19: 53.45374888 | K19: 56.6870517 | L19: 59.98811676 | M19: Grand Total | N19: 54.82074111 | O19: 57.85996732 | P19: 60.64443302
R26: Recommend (NPS) | AA26: Food Quality
R44: Source: InMoment Summary Report

Sheet DFG
A1: oSat | E1: Recommend | I1: Pace | M1: Food Quality | R1: InMoment Trends - Del Frisco's Grille
A2: Brand | B2: DFG | E2: Brand | F2: DFG | I2: Brand | J2: DFG | M2: Brand | N2: DFG
A4: Average of Overall Sat. | B4: Column Labels | E4: Average of Recommend | F4: Column Labels | I4: Average of Pace of dining | J4: Column Labels | M4: Average of Quality of food | N4: Column Labels
A5: Row Labels | B5: 2015 | C5: 2016 | D5: 2017 | E5: Row Labels | F5: 2015 | G5: 2016 | H5: 2017 | I5: Row Labels | J5: 2015 | K5: 2016 | L5: 2017 | M5: Row Labels | N5: 2015 | O5: 2016 | P5: 2017
A6: 1 | C6: 49.16943272 | D6: 53.73999861 | E6: 1 | G6: 0 | H6: 0 | I6: 1 | K6: 53.41769725 | L6: 55.51450416 | M6: 1 | O6: 51.43168807 | P6: 56.72735734
A7: 2 | C7: 49.91034416 | D7: 49.86125849 | E7: 2 | G7: 0 | H7: 0 | I7: 2 | K7: 54.83090254 | L7: 53.66386292 | M7: 2 | O7: 53.16273096 | P7: 51.7831671 | R7: Overall Satisfaction | AA7: Pace of Dining
A8: 3 | C8: 57.3204178 | D8: 61.96887859 | E8: 3 | G8: 0 | H8: 0 | I8: 3 | K8: 58.61437577 | L8: 62.96407285 | M8: 3 | O8: 58.69387886 | P8: 62.78787859
A9: 4 | C9: 51.38003441 | D9: 65.83348413 | E9: 4 | G9: 0 | H9: 0 | I9: 4 | K9: 53.35921754 | L9: 66.6978528 | M9: 4 | O9: 53.6554717 | P9: 65.40598042
A10: 5 | C10: 55.64670056 | D10: 57.76140214 | E10: 5 | G10: 0 | H10: 0 | I10: 5 | K10: 57.99553672 | L10: 58.6255369 | M10: 5 | O10: 58.21815367 | P10: 58.63259893
A11: 6 | C11: 55.31577057 | D11: 57.84200504 | E11: 6 | G11: 0 | H11: 53.3103563 | I11: 6 | K11: 56.76161867 | L11: 60.08720168 | M11: 6 | O11: 57.02460285 | P11: 60.3525916
A12: 7 | C12: 53.36576636 | D12: 60.99715851 | E12: 7 | G12: 0 | H12: 54.6444021 | I12: 7 | K12: 55.16600623 | L12: 62.7506958 | M12: 7 | O12: 53.91854206 | P12: 62.07418881
A13: 8 | C13: 55.11150365 | D13: 58.97413731 | E13: 8 | G13: 0 | H13: 55.56135373 | I13: 8 | K13: 55.42432701 | L13: 59.77279701 | M13: 8 | O13: 55.86399854 | P13: 59.4146194
A14: 9 | C14: 54.96517972 | D14: 54.91174581 | E14: 9 | G14: 0 | H14: 49.03554888 | I14: 9 | K14: 56.9348742 | L14: 57.43615363 | M14: 9 | O14: 58.57458151 | P14: 58.64676397
A15: 10 | C15: 56.00807821 | D15: 58.92062848 | E15: 10 | G15: 0 | H15: 53.55231097 | I15: 10 | K15: 58.58444693 | L15: 60.81885761 | M15: 10 | O15: 59.11872067 | P15: 60.36961211
A16: 11 | B16: 45.56079814 | C16: 55.0809375 | D16: 53.80418403 | E16: 11 | F16: 0 | G16: 0 | H16: 46.21722049 | I16: 11 | J16: 47.91103712 | K16: 55.44769821 | L16: 55.87271007 | M16: 11 | N16: 47.00854292 | O16: 56.13855536 | P16: 55.69334549
A17: 12 | B17: 44.95186807 | C17: 52.18942453 | E17: 12 | F17: 0 | G17: 0 | I17: 12 | J17: 49.97052772 | K17: 53.67541509 | M17: 12 | N17: 48.58298662 | O17: 54.55895755
A18: 13 | B18: 44.79019623 | C18: 52.887782 | E18: 13 | F18: 0 | G18: 0 | I18: 13 | J18: 48.23055416 | K18: 55.27294423 | M18: 13 | N18: 46.89562323 | O18: 57.7672256
A19: Grand Total | B19: 45.10095415 | C19: 53.71933632 | D19: 57.69226192 | E19: Grand Total | F19: 0 | G19: 0 | H19: 28.39283568 | I19: Grand Total | J19: 48.70403967 | K19: 55.80654311 | L19: 59.47311322 | M19: Grand Total | N19: 47.49571759 | O19: 56.00977749 | P19: 59.26255489
R26: Recommend (NPS) | AA26: Food Quality
R44: Source: InMoment Summary Report

Sheet SULL2 (hidden)
A1: oSat | E1: Recommend | I1: Pace | M1: Food Quality | R1: InMoment Trends - Sullivan's
A2: Brand | B2: SULL | E2: Brand | F2: SULL | I2: Brand | J2: SULL | M2: Brand | N2: SULL
A4: Average of Overall Sat. | B4: Column Labels | E4: Average of Recommend | F4: Column Labels | I4: Average of Pace of dining | J4: Column Labels | M4: Average of Quality of food | N4: Column Labels
A5: Row Labels | B5: 2015 | C5: 2016 | D5: 2017 | E5: Row Labels | F5: 2015 | G5: 2016 | H5: 2017 | I5: Row Labels | J5: 2015 | K5: 2016 | L5: 2017 | M5: Row Labels | N5: 2015 | O5: 2016 | P5: 2017
A6: 1 | C6: 51.74789517 | D6: 52.65297923 | E6: 1 | G6: 0 | H6: 0 | I6: 1 | K6: 53.8804735 | L6: 54.83833828 | M6: 1 | O6: 55.4140636 | P6: 55.50709199
A7: 2 | C7: 54.7901172 | D7: 52.1688269 | E7: 2 | G7: 0 | H7: 0 | I7: 2 | K7: 56.17293084 | L7: 53.40595766 | M7: 2 | O7: 59.82163881 | P7: 55.29221295
A8: 3 | C8: 55.50482296 | D8: 59.91363323 | E8: 3 | G8: 0 | H8: 0 | I8: 3 | K8: 54.83186584 | L8: 62.43649216 | M8: 3 | O8: 56.5074343 | P8: 61.83337461
A9: 4 | C9: 58.53057393 | D9: 70.70395492 | E9: 4 | G9: 0 | H9: 0 | I9: 4 | K9: 59.61821906 | L9: 70.59622746 | M9: 4 | O9: 60.44071084 | P9: 72.77525102
A10: 5 | C10: 50.91667532 | D10: 53.8532447 | E10: 5 | G10: 0 | H10: 0 | I10: 5 | K10: 53.21180087 | L10: 56.62780098 | M10: 5 | O10: 53.55545779 | P10: 56.77572104
A11: 6 | C11: 53.6758599 | D11: 58.7380625 | E11: 6 | G11: 0 | H11: 53.81680444 | I11: 6 | K11: 54.4384219 | L11: 60.45629637 | M11: 6 | O11: 54.60821256 | P11: 59.58261492
A12: 7 | C12: 57.46806338 | D12: 56.91775431 | E12: 7 | G12: 0 | H12: 52.95765948 | I12: 7 | K12: 59.48572817 | L12: 58.46496552 | M12: 7 | O12: 60.6570338 | P12: 58.43000647
A13: 8 | C13: 58.44414105 | D13: 61.83539768 | E13: 8 | G13: 0 | H13: 58.13883784 | I13: 8 | K13: 60.71036609 | L13: 64.1585 | M13: 8 | O13: 58.74110301 | P13: 64.11218147
A14: 9 | C14: 57.60307392 | D14: 57.06786497 | E14: 9 | G14: 0 | H14: 55.05565558 | I14: 9 | K14: 59.56261646 | L14: 59.32370841 | M14: 9 | O14: 60.8591311 | P14: 58.90559687
A15: 10 | C15: 53.9992402 | D15: 60.38099539 | E15: 10 | G15: 0 | H15: 56.97611521 | I15: 10 | K15: 53.44194208 | L15: 60.09400922 | M15: 10 | O15: 56.63667632 | P15: 62.77300691
A16: 11 | B16: 56.52698814 | C16: 54.27408742 | D16: 58.43407963 | E16: 11 | F16: 0 | G16: 0 | H16: 54.59455269 | I16: 11 | J16: 59.09564068 | K16: 56.38517219 | L16: 59.46698829 | M16: 11 | N16: 59.14954576 | O16: 58.40706093 | P16: 61.10170492
A17: 12 | B17: 48.10775888 | C17: 55.5602194 | E17: 12 | F17: 0 | G17: 0 | I17: 12 | J17: 50.72164793 | K17: 58.99028806 | M17: 12 | N17: 50.54356361 | O17: 57.86127164
A18: 13 | B18: 48.03877511 | C18: 56.16763456 | E18: 13 | F18: 0 | G18: 0 | I18: 13 | J18: 50.54395802 | K18: 56.20184703 | M18: 13 | N18: 54.76911394 | O18: 58.66978045
A19: Grand Total | B19: 50.89117404 | C19: 55.28326188 | D19: 58.42425395 | E19: Grand Total | F19: 0 | G19: 0 | H19: 30.13996593 | I19: Grand Total | J19: 53.45374888 | K19: 56.6870517 | L19: 59.98811676 | M19: Grand Total | N19: 54.82074111 | O19: 57.85996732 | P19: 60.64443302
S38: Source: InMoment Summary Report

Sheet DFG2 (hidden)
A1: oSat | E1: Recommend | I1: Pace | M1: Food Quality | R1: InMoment Trends - Del Frisco's Grille
A2: Brand | B2: DFG | E2: Brand | F2: DFG | I2: Brand | J2: DFG | M2: Brand | N2: DFG
A4: Average of Overall Sat. | B4: Column Labels | E4: Average of Recommend | F4: Column Labels | I4: Average of Pace of dining | J4: Column Labels | M4: Average of Quality of food | N4: Column Labels
A5: Row Labels | B5: 2015 | C5: 2016 | D5: 2017 | E5: Row Labels | F5: 2015 | G5: 2016 | H5: 2017 | I5: Row Labels | J5: 2015 | K5: 2016 | L5: 2017 | M5: Row Labels | N5: 2015 | O5: 2016 | P5: 2017
A6: 1 | C6: 49.16943272 | D6: 53.73999861 | E6: 1 | G6: 0 | H6: 0 | I6: 1 | K6: 53.41769725 | L6: 55.51450416 | M6: 1 | O6: 51.43168807 | P6: 56.72735734
A7: 2 | C7: 49.91034416 | D7: 49.86125849 | E7: 2 | G7: 0 | H7: 0 | I7: 2 | K7: 54.83090254 | L7: 53.66386292 | M7: 2 | O7: 53.16273096 | P7: 51.7831671
A8: 3 | C8: 57.3204178 | D8: 61.96887859 | E8: 3 | G8: 0 | H8: 0 | I8: 3 | K8: 58.61437577 | L8: 62.96407285 | M8: 3 | O8: 58.69387886 | P8: 62.78787859
A9: 4 | C9: 51.38003441 | D9: 65.83348413 | E9: 4 | G9: 0 | H9: 0 | I9: 4 | K9: 53.35921754 | L9: 66.6978528 | M9: 4 | O9: 53.6554717 | P9: 65.40598042
A10: 5 | C10: 55.64670056 | D10: 57.76140214 | E10: 5 | G10: 0 | H10: 0 | I10: 5 | K10: 57.99553672 | L10: 58.6255369 | M10: 5 | O10: 58.21815367 | P10: 58.63259893
A11: 6 | C11: 55.31577057 | D11: 57.84200504 | E11: 6 | G11: 0 | H11: 53.3103563 | I11: 6 | K11: 56.76161867 | L11: 60.08720168 | M11: 6 | O11: 57.02460285 | P11: 60.3525916
A12: 7 | C12: 53.36576636 | D12: 60.99715851 | E12: 7 | G12: 0 | H12: 54.6444021 | I12: 7 | K12: 55.16600623 | L12: 62.7506958 | M12: 7 | O12: 53.91854206 | P12: 62.07418881
A13: 8 | C13: 55.11150365 | D13: 58.97413731 | E13: 8 | G13: 0 | H13: 55.56135373 | I13: 8 | K13: 55.42432701 | L13: 59.77279701 | M13: 8 | O13: 55.86399854 | P13: 59.4146194
A14: 9 | C14: 54.96517972 | D14: 54.91174581 | E14: 9 | G14: 0 | H14: 49.03554888 | I14: 9 | K14: 56.9348742 | L14: 57.43615363 | M14: 9 | O14: 58.57458151 | P14: 58.64676397
A15: 10 | C15: 56.00807821 | D15: 58.92062848 | E15: 10 | G15: 0 | H15: 53.55231097 | I15: 10 | K15: 58.58444693 | L15: 60.81885761 | M15: 10 | O15: 59.11872067 | P15: 60.36961211
A16: 11 | B16: 45.56079814 | C16: 55.0809375 | D16: 53.80418403 | E16: 11 | F16: 0 | G16: 0 | H16: 46.21722049 | I16: 11 | J16: 47.91103712 | K16: 55.44769821 | L16: 55.87271007 | M16: 11 | N16: 47.00854292 | O16: 56.13855536 | P16: 55.69334549
A17: 12 | B17: 44.95186807 | C17: 52.18942453 | E17: 12 | F17: 0 | G17: 0 | I17: 12 | J17: 49.97052772 | K17: 53.67541509 | M17: 12 | N17: 48.58298662 | O17: 54.55895755
A18: 13 | B18: 44.79019623 | C18: 52.887782 | E18: 13 | F18: 0 | G18: 0 | I18: 13 | J18: 48.23055416 | K18: 55.27294423 | M18: 13 | N18: 46.89562323 | O18: 57.7672256
A19: Grand Total | B19: 45.10095415 | C19: 53.71933632 | D19: 57.69226192 | E19: Grand Total | F19: 0 | G19: 0 | H19: 28.39283568 | I19: Grand Total | J19: 48.70403967 | K19: 55.80654311 | L19: 59.47311322 | M19: Grand Total | N19: 47.49571759 | O19: 56.00977749 | P19: 59.26255489
S38: Source: InMoment Summary Report

Sheet 5Q Trend
A1: Period_Type | B1: QTD
A3: Sum of Quality of food | B3: Column Labels
A4: Row Labels | B4: DFDE | C4: DFG | D4: SULL | E4: DFRG
A5: '16 Q3 QTD | B5: 59.05494265 | C5: 56.95770853 | D5: 58.78529198 | E5: 58.34215066
A6: '16 Q4 QTD | B6: 55.39652019 | C6: 56.46173245 | D6: 58.1958757 | E6: 56.64763931
A7: '17 Q1 QTD | B7: 63.4087681 | C7: 56.01584821 | D7: 59.18978952 | E7: 59.92297742
A8: '17 Q2 QTD | B8: 58.06381508 | C8: 63.39418003 | D8: 61.36285895 | E8: 61.15102594
A9: '17 Q3 QTD | B9: 59.61421369 | C9: 62.91791584 | D9: 59.87325442 | E9: 60.86752926
A10: Grand Total | B10: 295.5382597 | C10: 295.7473851 | D10: 297.4070706 | E10: 296.9313226

Sheet Store Rank Count PTD (hidden)
A1: Type | B1: DFG
A2: Status | B2: Open
A4: Sum of # of Surveys | B4: Column Labels
A5: Row Labels | B5: '17 P06 | C5: '16 P06
A6: Woodlands, TX | B6: 42 | C6: 32
A7: Washington, DC | B7: 16 | C7: 13
A8: Tampa, FL | B8: 22 | C8: 25
A9: Stamford, CT | B9: 11 | C9: 21
A10: Southlake, TX | B10: 39 | C10: 67
A11: Santa Monica, CA | B11: 8 | C11: 14
A12: Plano, TX | B12: 43 | C12: 64
A13: Pasadena, CA | B13: 19 | C13: 18
A14: New York City, NY | B14: 35 | C14: 29
A15: Nashville, TN | B15: 25
A16: N. Bethesda, MD | B16: 26 | C16: 15
A17: Little Rock, AR | B17: 32 | C17: 32
A18: Irvine, CA | B18: 19 | C18: 34
A19: Huntington, NY | B19: 31
A20: Houston, TX | B20: 16 | C20: 33
A21: Hoboken, NJ | B21: 27 | C21: 69
A22: Fort Worth, TX | B22: 43 | C22: 38
A23: Dallas, TX | B23: 9 | C23: 21
A24: Chestnut Hill, MA | B24: 27 | C24: 20
A25: Cherry Creek, CO | B25: 16 | C25: 41
A26: Burlington, MA | B26: 38 | C26: 20
A27: Brentwood, TN | B27: 34
A28: Atlanta, GA | B28: 17 | C28: 26

Sheet Store Rank Count QTD YTD (hidden)
A1: Type | B1: DFDE
A2: Status | B2: Open
A4: Sum of # of Surveys | B4: Column Labels
A5: Row Labels | B5: '17 Q2 QTD | C5: '16 Q2 QTD
A6: New York City, NY | B6: 324 | C6: 542
A7: Fort Worth, TX | B7: 270 | C7: 422
A8: Philadelphia, PA | B8: 277 | C8: 388
A9: Boston, MA | B9: 190 | C9: 297
A10: Denver, CO | B10: 215 | C10: 234
A11: Charlotte, NC | B11: 203 | C11: 225
A12: Washington, DC | B12: 135 | C12: 196
A13: Las Vegas, NV | B13: 151 | C13: 132
A14: Houston, TX | B14: 127 | C14: 107
A15: Orlando, FL | B15: 113 | C15: 87
A16: Chicago, IL | B16: 73 | C16: 109
A17: Plano, TX | B17: 163
A18: Dallas, TX | B18: 106

Sheet Slide Items
A1: Slide # | B1: Source type | C1: Description | D1: Content type | E1: Source file | F1: Source sheet | G1: Source range name | H1: Paste method | I1: Height | J1: Width | K1: Left (Horz) | L1: Top (Vert) | M1: Update Y/N | N1: Slides | O1: Preliminary? | Q1: PivotTable | R1: Type | S1: Metric
A2: 1 | C2: Cover label | N2: 1
A3: =A2+N3 -> 2 | B3: Picture | C3: DFRG Overall Satisfaction Trend | D3: Picture | E3: InMoment Summary_2017-P09.xlsm | F3: DFRG | G3: DFRG_OSAT_T24M | H3: ppPastePNG | I3: 4.79 | J3: 9.09 | K3: 0.46 | L3: 1.36 | N3: 1
A4: =A3+N4 -> 3 | B4: Picture | C4: DFRG T5Q Food Quality Trend | D4: Picture | E4: InMoment Summary_2017-P09.xlsm | F4: 5Q Trend | G4: DFRG_Food_T5Q | H4: ppPastePNG | I4: 4.09 | J4: 8.63 | K4: 0.69 | L4: 1.86 | N4: 1
A5: =A4+N5 -> 4 | B5: Picture | C5: TTM DFDE Summary - OSAT | D5: Picture | E5: InMoment Summary_2017-P09.xlsm | F5: DFDE | G5: DFDE_InMoment_Quad_TTM_OSAT | H5: ppPastePNG | I5: 2.25 | J5: 4.09 | K5: 0.41 | L5: 1.55 | N5: 1
A6: =A5+N6 -> 4 | B6: Picture | C6: TTM DFDE Summary - Pace | D6: Picture | E6: InMoment Summary_2017-P09.xlsm | F6: DFDE | G6: DFDE_InMoment_Quad_TTM_Pace | H6: ppPastePNG | I6: 2.25 | J6: 4.09 | K6: 5.22 | L6: 1.55 | N6: 0
A7: =A6+N7 -> 4 | B7: Picture | C7: TTM DFDE Summary - Recommend | D7: Picture | E7: InMoment Summary_2017-P09.xlsm | F7: DFDE | G7: DFDE_InMoment_Quad_TTM_Recommend | H7: ppPastePNG | I7: 2.25 | J7: 4.09 | K7: 0.41 | L7: 4.25 | N7: 0
A8: 4 | B8: Picture | C8: TTM DFDE Summary - Food Quality | D8: Picture | E8: InMoment Summary_2017-P09.xlsm | F8: DFDE | G8: DFDE_InMoment_Quad_TTM_Food | H8: ppPastePNG | I8: 2.25 | J8: 4.09 | K8: 5.22 | L8: 4.25 | N8: 0
A9: 5 | B9: Picture | C9: PTD DFDE Unit Rankings - OSAT | D9: Picture | E9: InMoment Summary_2017-P09.xlsm | F9: =IF(Inputs!$B$7="PTD","Store Rank PTD","Store Rank QTD YTD") -> Store Rank PTD | G9: =IF(Inputs!$B$7="PTD","DFRG_InMoment_Rank_PTD","DFRG_InMoment_Rank_QTD_YTD") -> DFRG_InMoment_Rank_PTD | H9: ppPastePNG | I9: 4.79 | J9: 9.09 | K9: 0.46 | L9: 1.36 | N9: 1 | Q9: PivotTable3 | R9: DFDE | S9: Overall Sat.
A10: =A9+N10 -> 6 | B10: Picture | C10: PTD DFDE Unit Rankings - % Low Score | D10: Picture | E10: InMoment Summary_2017-P09.xlsm | F10: =IF(Inputs!$B$7="PTD","Store Rank PTD","Store Rank QTD YTD") -> Store Rank PTD | G10: =IF(Inputs!$B$7="PTD","DFRG_InMoment_Rank_PTD","DFRG_InMoment_Rank_QTD_YTD") -> DFRG_InMoment_Rank_PTD | H10: ppPastePNG | I10: 4.79 | J10: 9.09 | K10: 0.46 | L10: 1.36 | N10: 1 | Q10: PivotTable3 | R10: DFDE | S10: % of Low Scores
A11: 7 | B11: Picture | C11: PTD DFDE Unit Rankings - Pace of Dining | D11: Picture | E11: InMoment Summary_2017-P09.xlsm | F11: =IF(Inputs!$B$7="PTD","Store Rank PTD","Store Rank QTD YTD") -> Store Rank PTD | G11: =IF(Inputs!$B$7="PTD","DFRG_InMoment_Rank_PTD","DFRG_InMoment_Rank_QTD_YTD") -> DFRG_InMoment_Rank_PTD | H11: ppPastePNG | I11: 4.79 | J11: 9.09 | K11: 0.46 | L11: 1.36 | N11: 1 | Q11: PivotTable3 | R11: DFDE | S11: Pace of dining
A12: 8 | B12: Picture | C12: PTD DFDE Unit Rankings - Food Quality | D12: Picture | E12: InMoment Summary_2017-P09.xlsm | F12: =IF(Inputs!$B$7="PTD","Store Rank PTD","Store Rank QTD YTD") -> Store Rank PTD | G12: =IF(Inputs!$B$7="PTD","DFRG_InMoment_Rank_PTD","DFRG_InMoment_Rank_QTD_YTD") -> DFRG_InMoment_Rank_PTD | H12: ppPastePNG | I12: 4.79 | J12: 9.09 | K12: 0.46 | L12: 1.36 | N12: 1 | Q12: PivotTable3 | R12: DFDE | S12: Quality of food
A13: 9 | B13: Picture | C13: PTD DFDE Unit Rankings - Recommend (NPS) | D13: Picture | E13: InMoment Summary_2017-P09.xlsm | F13: =IF(Inputs!$B$7="PTD","Store Rank PTD","Store Rank QTD YTD") -> Store Rank PTD | G13: =IF(Inputs!$B$7="PTD","DFRG_InMoment_Rank_PTD","DFRG_InMoment_Rank_QTD_YTD") -> DFRG_InMoment_Rank_PTD | H13: ppPastePNG | I13: 4.79 | J13: 9.09 | K13: 0.46 | L13: 1.36 | N13: 1 | Q13: PivotTable3 | R13: DFDE | S13: Recommend (NPS)
A14: 10 | B14: Picture | C14: PTD DFDE Unit Rankings - Suveys per 100 Entrees | D14: Picture | E14: InMoment Summary_2017-P09.xlsm | F14: =IF(Inputs!$B$7="PTD","Store Rank PTD","Store Rank QTD YTD") -> Store Rank PTD | G14: =IF(Inputs!$B$7="PTD","DFRG_InMoment_Rank_PTD","DFRG_InMoment_Rank_QTD_YTD") -> DFRG_InMoment_Rank_PTD | H14: ppPastePNG | I14: 4.79 | J14: 9.09 | K14: 0.46 | L14: 1.36 | N14: 1 | Q14: PivotTable3 | R14: DFDE | S14: Surveys Per 100 Entrees
A15: 11 | B15: Picture | C15: PTD DFDE Unit Rankings - Survey Counts | D15: Picture | E15: InMoment Summary_2017-P09.xlsm | F15: =IF(Inputs!$B$7="PTD","Store Rank PTD","Store Rank QTD YTD") -> Store Rank PTD | G15: =IF(Inputs!$B$7="PTD","DFRG_InMoment_Rank_PTD","DFRG_InMoment_Rank_QTD_YTD") -> DFRG_InMoment_Rank_PTD | H15: ppPastePNG | I15: 4.79 | J15: 9.09 | K15: 0.46 | L15: 1.36 | N15: 1 | Q15: PivotTable3 | R15: DFDE | S15: # of Surveys
A16: =A15+N16 -> 12 | B16: Picture | C16: TTM SULL Summary - OSAT | D16: Picture | E16: InMoment Summary_2017-P09.xlsm | F16: SULL | G16: SULL_InMoment_Quad_TTM_OSAT | H16: ppPastePNG | I16: 2.25 | J16: 4.09 | K16: 0.41 | L16: 1.55 | N16: 1
A17: =A16+N17 -> 12 | B17: Picture | C17: TTM SULL Summary - Pace | D17: Picture | E17: InMoment Summary_2017-P09.xlsm | F17: SULL | G17: SULL_InMoment_Quad_TTM_Pace | H17: ppPastePNG | I17: 2.25 | J17: 4.09 | K17: 5.22 | L17: 1.55 | N17: 0
A18: =A17+N18 -> 12 | B18: Picture | C18: TTM SULL Summary - Recommend | D18: Picture | E18: InMoment Summary_2017-P09.xlsm | F18: SULL | G18: SULL_InMoment_Quad_TTM_Recommend | H18: ppPastePNG | I18: 2.25 | J18: 4.09 | K18: 0.41 | L18: 4.25 | N18: 0
A19: 12 | B19: Picture | C19: TTM SULL Summary - Food Quality | D19: Picture | E19: InMoment Summary_2017-P09.xlsm | F19: SULL | G19: SULL_InMoment_Quad_TTM_Food | H19: ppPastePNG | I19: 2.25 | J19: 4.09 | K19: 5.22 | L19: 4.25 | N19: 0
A20: 13 | B20: Picture | C20: PTD SULL Unit Rankings - OSAT | D20: Picture | E20: InMoment Summary_2017-P09.xlsm | F20: =IF(Inputs!$B$7="PTD","Store Rank PTD","Store Rank QTD YTD") -> Store Rank PTD | G20: =IF(Inputs!$B$7="PTD","DFRG_InMoment_Rank_PTD","DFRG_InMoment_Rank_QTD_YTD") -> DFRG_InMoment_Rank_PTD | H20: ppPastePNG | I20: 4.79 | J20: 9.09 | K20: 0.46 | L20: 1.36 | N20: 1 | Q20: PivotTable3 | R20: SULL | S20: Overall Sat.
A21: 14 | B21: Picture | C21: PTD SULL Unit Rankings - % Low Score | D21: Picture | E21: InMoment Summary_2017-P09.xlsm | F21: =IF(Inputs!$B$7="PTD","Store Rank PTD","Store Rank QTD YTD") -> Store Rank PTD | G21: =IF(Inputs!$B$7="PTD","DFRG_InMoment_Rank_PTD","DFRG_InMoment_Rank_QTD_YTD") -> DFRG_InMoment_Rank_PTD | H21: ppPastePNG | I21: 4.79 | J21: 9.09 | K21: 0.46 | L21: 1.36 | N21: 1 | Q21: PivotTable3 | R21: SULL | S21: % of Low Scores
A22: 15 | B22: Picture | C22: PTD SULL Unit Rankings - Pace of Dining | D22: Picture | E22: InMoment Summary_2017-P09.xlsm | F22: =IF(Inputs!$B$7="PTD","Store Rank PTD","Store Rank QTD YTD") -> Store Rank PTD | G22: =IF(Inputs!$B$7="PTD","DFRG_InMoment_Rank_PTD","DFRG_InMoment_Rank_QTD_YTD") -> DFRG_InMoment_Rank_PTD | H22: ppPastePNG | I22: 4.79 | J22: 9.09 | K22: 0.46 | L22: 1.36 | N22: 1 | Q22: PivotTable3 | R22: SULL | S22: Pace of dining
A23: 16 | B23: Picture | C23: PTD SULL Unit Rankings - Food Quality | D23: Picture | E23: InMoment Summary_2017-P09.xlsm | F23: =IF(Inputs!$B$7="PTD","Store Rank PTD","Store Rank QTD YTD") -> Store Rank PTD | G23: =IF(Inputs!$B$7="PTD","DFRG_InMoment_Rank_PTD","DFRG_InMoment_Rank_QTD_YTD") -> DFRG_InMoment_Rank_PTD | H23: ppPastePNG | I23: 4.79 | J23: 9.09 | K23: 0.46 | L23: 1.36 | N23: 1 | Q23: PivotTable3 | R23: SULL | S23: Quality of food
A24: 17 | B24: Picture | C24: PTD SULL Unit Rankings - Recommend (NPS) | D24: Picture | E24: InMoment Summary_2017-P09.xlsm | F24: =IF(Inputs!$B$7="PTD","Store Rank PTD","Store Rank QTD YTD") -> Store Rank PTD | G24: =IF(Inputs!$B$7="PTD","DFRG_InMoment_Rank_PTD","DFRG_InMoment_Rank_QTD_YTD") -> DFRG_InMoment_Rank_PTD | H24: ppPastePNG | I24: 4.79 | J24: 9.09 | K24: 0.46 | L24: 1.36 | N24: 1 | Q24: PivotTable3 | R24: SULL | S24: Recommend (NPS)
A25: 18 | B25: Picture | C25: PTD SULL Unit Rankings - Suveys per 100 Entrees | D25: Picture | E25: InMoment Summary_2017-P09.xlsm | F25: =IF(Inputs!$B$7="PTD","Store Rank PTD","Store Rank QTD YTD") -> Store Rank PTD | G25: =IF(Inputs!$B$7="PTD","DFRG_InMoment_Rank_PTD","DFRG_InMoment_Rank_QTD_YTD") -> DFRG_InMoment_Rank_PTD | H25: ppPastePNG | I25: 4.79 | J25: 9.09 | K25: 0.46 | L25: 1.36 | N25: 1 | Q25: PivotTable3 | R25: SULL | S25: Surveys Per 100 Entrees
A26: 19 | B26: Picture | C26: PTD SULL Unit Rankings - Survey Counts | D26: Picture | E26: InMoment Summary_2017-P09.xlsm | F26: =IF(Inputs!$B$7="PTD","Store Rank PTD","Store Rank QTD YTD") -> Store Rank PTD | G26: =IF(Inputs!$B$7="PTD","DFRG_InMoment_Rank_PTD","DFRG_InMoment_Rank_QTD_YTD") -> DFRG_InMoment_Rank_PTD | H26: ppPastePNG | I26: 4.79 | J26: 9.09 | K26: 0.46 | L26: 1.36 | N26: 1 | Q26: PivotTable3 | R26: SULL | S26: # of Surveys
A27: =A26+N27 -> 20 | B27: Picture | C27: TTM DFG Summary - OSAT | D27: Picture | E27: InMoment Summary_2017-P09.xlsm | F27: DFG | G27: DFG_InMoment_Quad_TTM_OSAT | H27: ppPastePNG | I27: 2.25 | J27: 4.09 | K27: 0.41 | L27: 1.55 | N27: 1
A28: =A27+N28 -> 20 | B28: Picture | C28: TTM DFG Summary - Pace | D28: Picture | E28: InMoment Summary_2017-P09.xlsm | F28: DFG | G28: DFG_InMoment_Quad_TTM_Pace | H28: ppPastePNG | I28: 2.25 | J28: 4.09 | K28: 5.22 | L28: 1.55 | N28: 0
A29: =A28+N29 -> 20 | B29: Picture | C29: TTM DFG Summary - Recommend | D29: Picture | E29: InMoment Summary_2017-P09.xlsm | F29: DFG | G29: DFG_InMoment_Quad_TTM_Recommend | H29: ppPastePNG | I29: 2.25 | J29: 4.09 | K29: 0.41 | L29: 4.25 | N29: 0
A30: 20 | B30: Picture | C30: TTM DFG Summary - Food Quality | D30: Picture | E30: InMoment Summary_2017-P09.xlsm | F30: DFG | G30: DFG_InMoment_Quad_TTM_Food | H30: ppPastePNG | I30: 2.25 | J30: 4.09 | K30: 5.22 | L30: 4.25 | N30: 0
A31: 21 | B31: Picture | C31: PTD DFG Unit Rankings - OSAT | D31: Picture | E31: InMoment Summary_2017-P09.xlsm | F31: =IF(Inputs!$B$7="PTD","Store Rank PTD","Store Rank QTD YTD") -> Store Rank PTD | G31: =IF(Inputs!$B$7="PTD","DFRG_InMoment_Rank_PTD","DFRG_InMoment_Rank_QTD_YTD") -> DFRG_InMoment_Rank_PTD | H31: ppPastePNG | I31: 4.79 | J31: 9.09 | K31: 0.46 | L31: 1.36 | N31: 1 | Q31: PivotTable3 | R31: DFG | S31: Overall Sat.
A32: 22 | B32: Picture | C32: PTD DFG Unit Rankings - % Low Score | D32: Picture | E32: InMoment Summary_2017-P09.xlsm | F32: =IF(Inputs!$B$7="PTD","Store Rank PTD","Store Rank QTD YTD") -> Store Rank PTD | G32: =IF(Inputs!$B$7="PTD","DFRG_InMoment_Rank_PTD","DFRG_InMoment_Rank_QTD_YTD") -> DFRG_InMoment_Rank_PTD | H32: ppPastePNG | I32: 4.79 | J32: 9.09 | K32: 0.46 | L32: 1.36 | N32: 1 | Q32: PivotTable3 | R32: DFG | S32: % of Low Scores
A33: 23 | B33: Picture | C33: PTD DFG Unit Rankings - Pace of Dining | D33: Picture | E33: InMoment Summary_2017-P09.xlsm | F33: =IF(Inputs!$B$7="PTD","Store Rank PTD","Store Rank QTD YTD") -> Store Rank PTD | G33: =IF(Inputs!$B$7="PTD","DFRG_InMoment_Rank_PTD","DFRG_InMoment_Rank_QTD_YTD") -> DFRG_InMoment_Rank_PTD | H33: ppPastePNG | I33: 4.79 | J33: 9.09 | K33: 0.46 | L33: 1.36 | N33: 1 | Q33: PivotTable3 | R33: DFG | S33: Pace of dining
A34: 24 | B34: Picture | C34: PTD DFG Unit Rankings - Food Quality | D34: Picture | E34: InMoment Summary_2017-P09.xlsm | F34: =IF(Inputs!$B$7="PTD","Store Rank PTD","Store Rank QTD YTD") -> Store Rank PTD | G34: =IF(Inputs!$B$7="PTD","DFRG_InMoment_Rank_PTD","DFRG_InMoment_Rank_QTD_YTD") -> DFRG_InMoment_Rank_PTD | H34: ppPastePNG | I34: 4.79 | J34: 9.09 | K34: 0.46 | L34: 1.36 | N34: 1 | Q34: PivotTable3 | R34: DFG | S34: Quality of food
A35: 25 | B35: Picture | C35: PTD DFG Unit Rankings - Recommend (NPS) | D35: Picture | E35: InMoment Summary_2017-P09.xlsm | F35: =IF(Inputs!$B$7="PTD","Store Rank PTD","Store Rank QTD YTD") -> Store Rank PTD | G35: =IF(Inputs!$B$7="PTD","DFRG_InMoment_Rank_PTD","DFRG_InMoment_Rank_QTD_YTD") -> DFRG_InMoment_Rank_PTD | H35: ppPastePNG | I35: 4.79 | J35: 9.09 | K35: 0.46 | L35: 1.36 | N35: 1 | Q35: PivotTable3 | R35: DFG | S35: Recommend (NPS)
A36: 26 | B36: Picture | C36: PTD DFG Unit Rankings - Suveys per 100 Entrees | D36: Picture | E36: InMoment Summary_2017-P09.xlsm | F36: =IF(Inputs!$B$7="PTD","Store Rank PTD","Store Rank QTD YTD") -> Store Rank PTD | G36: =IF(Inputs!$B$7="PTD","DFRG_InMoment_Rank_PTD","DFRG_InMoment_Rank_QTD_YTD") -> DFRG_InMoment_Rank_PTD | H36: ppPastePNG | I36: 4.79 | J36: 9.09 | K36: 0.46 | L36: 1.36 | N36: 1 | Q36: PivotTable3 | R36: DFG | S36: Surveys Per 100 Entrees
A37: 27 | B37: Picture | C37: PTD DFG Unit Rankings - Survey Counts | D37: Picture | E37: InMoment Summary_2017-P09.xlsm | F37: =IF(Inputs!$B$7="PTD","Store Rank PTD","Store Rank QTD YTD") -> Store Rank PTD | G37: =IF(Inputs!$B$7="PTD","DFRG_InMoment_Rank_PTD","DFRG_InMoment_Rank_QTD_YTD") -> DFRG_InMoment_Rank_PTD | H37: ppPastePNG | I37: 4.79 | J37: 9.09 | K37: 0.46 | L37: 1.36 | N37: 1 | Q37: PivotTable3 | R37: DFG | S37: # of Surveys
A38: 28 | C38: Cover label | N38: 1
A39: 29 | B39: Picture | C39: QTD DFDE Unit Rankings - OSAT | D39: Picture | E39: InMoment Summary_2017-P09.xlsm | F39: Store Rank QTD YTD | G39: DFRG_InMoment_Rank_QTD_YTD | H39: ppPastePNG | I39: 4.79 | J39: 9.09 | K39: 0.46 | L39: 1.36 | N39: 1 | Q39: PivotTable3 | R39: DFDE | S39: Overall Sat.
A40: 30 | B40: Picture | C40: QTD DFDE Unit Rankings - % Low Score | D40: Picture | E40: InMoment Summary_2017-P09.xlsm | F40: Store Rank QTD YTD | G40: DFRG_InMoment_Rank_QTD_YTD | H40: ppPastePNG | I40: 4.79 | J40: 9.09 | K40: 0.46 | L40: 1.36 | N40: 1 | Q40: PivotTable3 | R40: DFDE | S40: % of Low Scores
A41: 31 | B41: Picture | C41: QTD DFDE Unit Rankings - Pace of Dining | D41: Picture | E41: InMoment Summary_2017-P09.xlsm | F41: Store Rank QTD YTD | G41: DFRG_InMoment_Rank_QTD_YTD | H41: ppPastePNG | I41: 4.79 | J41: 9.09 | K41: 0.46 | L41: 1.36 | N41: 1 | Q41: PivotTable3 | R41: DFDE | S41: Pace of dining
A42: 32 | B42: Picture | C42: QTD DFDE Unit Rankings - Food Quality | D42: Picture | E42: InMoment Summary_2017-P09.xlsm | F42: Store Rank QTD YTD | G42: DFRG_InMoment_Rank_QTD_YTD | H42: ppPastePNG | I42: 4.79 | J42: 9.09 | K42: 0.46 | L42: 1.36 | N42: 1 | Q42: PivotTable3 | R42: DFDE | S42: Quality of food
A43: 33 | B43: Picture | C43: QTD DFDE Unit Rankings - Recommend (NPS) | D43: Picture | E43: InMoment Summary_2017-P09.xlsm | F43: Store Rank QTD YTD | G43: DFRG_InMoment_Rank_QTD_YTD | H43: ppPastePNG | I43: 4.79 | J43: 9.09 | K43: 0.46 | L43: 1.36 | N43: 1 | Q43: PivotTable3 | R43: DFDE | S43: Recommend (NPS)
A44: 34 | B44: Picture | C44: QTD DFDE Unit Rankings - Suveys per 100 Entrees | D44: Picture | E44: InMoment Summary_2017-P09.xlsm | F44: Store Rank QTD YTD | G44: DFRG_InMoment_Rank_QTD_YTD | H44: ppPastePNG | I44: 4.79 | J44: 9.09 | K44: 0.46 | L44: 1.36 | N44: 1 | Q44: PivotTable3 | R44: DFDE | S44: Surveys Per 100 Entrees
A45: 35 | B45: Picture | C45: QTD DFDE Unit Rankings - Survey Counts | D45: Picture | E45: InMoment Summary_2017-P09.xlsm | F45: Store Rank QTD YTD | G45: DFRG_InMoment_Rank_QTD_YTD | H45: ppPastePNG | I45: 4.79 | J45: 9.09 | K45: 0.46 | L45: 1.36 | N45: 1 | Q45: PivotTable3 | R45: DFDE | S45: # of Surveys
A46: 36 | B46: Picture | C46: QTD SULL Unit Rankings - OSAT | D46: Picture | E46: InMoment Summary_2017-P09.xlsm | F46: Store Rank QTD YTD | G46: DFRG_InMoment_Rank_QTD_YTD | H46: ppPastePNG | I46: 4.79 | J46: 9.09 | K46: 0.46 | L46: 1.36 | N46: 1 | Q46: PivotTable3 | R46: SULL | S46: Overall Sat.
A47: 37 | B47: Picture | C47: QTD SULL Unit Rankings - % Low Score | D47: Picture | E47: InMoment Summary_2017-P09.xlsm | F47: Store Rank QTD YTD | G47: DFRG_InMoment_Rank_QTD_YTD | H47: ppPastePNG | I47: 4.79 | J47: 9.09 | K47: 0.46 | L47: 1.36 | N47: 1 | Q47: PivotTable3 | R47: SULL | S47: % of Low Scores
A48: 38 | B48: Picture | C48: QTD SULL Unit Rankings - Pace of Dining | D48: Picture | E48: InMoment Summary_2017-P09.xlsm | F48: Store Rank QTD YTD | G48: DFRG_InMoment_Rank_QTD_YTD | H48: ppPastePNG | I48: 4.79 | J48: 9.09 | K48: 0.46 | L48: 1.36 | N48: 1 | Q48: PivotTable3 | R48: SULL | S48: Pace of dining
A49: 39 | B49: Picture | C49: QTD SULL Unit Rankings - Food Quality | D49: Picture | E49: InMoment Summary_2017-P09.xlsm | F49: Store Rank QTD YTD | G49: DFRG_InMoment_Rank_QTD_YTD | H49: ppPastePNG | I49: 4.79 | J49: 9.09 | K49: 0.46 | L49: 1.36 | N49: 1 | Q49: PivotTable3 | R49: SULL | S49: Quality of food
A50: 40 | B50: Picture | C50: QTD SULL Unit Rankings - Recommend (NPS) | D50: Picture | E50: InMoment Summary_2017-P09.xlsm | F50: Store Rank QTD YTD | G50: DFRG_InMoment_Rank_QTD_YTD | H50: ppPastePNG | I50: 4.79 | J50: 9.09 | K50: 0.46 | L50: 1.36 | N50: 1 | Q50: PivotTable3 | R50: SULL | S50: Recommend (NPS)
A51: 41 | B51: Picture | C51: QTD SULL Unit Rankings - Suveys per 100 Entrees | D51: Picture | E51: InMoment Summary_2017-P09.xlsm | F51: Store Rank QTD YTD | G51: DFRG_InMoment_Rank_QTD_YTD | H51: ppPastePNG | I51: 4.79 | J51: 9.09 | K51: 0.46 | L51: 1.36 | N51: 1 | Q51: PivotTable3 | R51: SULL | S51: Surveys Per 100 Entrees
A52: 42 | B52: Picture | C52: QTD SULL Unit Rankings - Survey Counts | D52: Picture | E52: InMoment Summary_2017-P09.xlsm | F52: Store Rank QTD YTD | G52: DFRG_InMoment_Rank_QTD_YTD | H52: ppPastePNG | I52: 4.79 | J52: 9.09 | K52: 0.46 | L52: 1.36 | N52: 1 | Q52: PivotTable3 | R52: SULL | S52: # of Surveys
A53: 43 | B53: Picture | C53: QTD DFG Unit Rankings - OSAT | D53: Picture | E53: InMoment Summary_2017-P09.xlsm | F53: Store Rank QTD YTD | G53: DFRG_InMoment_Rank_QTD_YTD | H53: ppPastePNG | I53: 4.79 | J53: 9.09 | K53: 0.46 | L53: 1.36 | N53: 1 | Q53: PivotTable3 | R53: DFG | S53: Overall Sat.
A54: 44 | B54: Picture | C54: QTD DFG Unit Rankings - % Low Score | D54: Picture | E54: InMoment Summary_2017-P09.xlsm | F54: Store Rank QTD YTD | G54: DFRG_InMoment_Rank_QTD_YTD | H54: ppPastePNG | I54: 4.79 | J54: 9.09 | K54: 0.46 | L54: 1.36 | N54: 1 | Q54: PivotTable3 | R54: DFG | S54: % of Low Scores
A55: 45 | B55: Picture | C55: QTD DFG Unit Rankings - Pace of Dining | D55: Picture | E55: InMoment Summary_2017-P09.xlsm | F55: Store Rank QTD YTD | G55: DFRG_InMoment_Rank_QTD_YTD | H55: ppPastePNG | I55: 4.79 | J55: 9.09 | K55: 0.46 | L55: 1.36 | N55: 1 | Q55: PivotTable3 | R55: DFG | S55: Pace of dining
A56: 46 | B56: Picture | C56: QTD DFG Unit Rankings - Food Quality | D56: Picture | E56: InMoment Summary_2017-P09.xlsm | F56: Store Rank QTD YTD | G56: DFRG_InMoment_Rank_QTD_YTD | H56: ppPastePNG | I56: 4.79 | J56: 9.09 | K56: 0.46 | L56: 1.36 | N56: 1 | Q56: PivotTable3 | R56: DFG | S56: Quality of food
A57: 47 | B57: Picture | C57: QTD DFG Unit Rankings - Recommend (NPS) | D57: Picture | E57: InMoment Summary_2017-P09.xlsm | F57: Store Rank QTD YTD | G57: DFRG_InMoment_Rank_QTD_YTD | H57: ppPastePNG | I57: 4.79 | J57: 9.09 | K57: 0.46 | L57: 1.36 | N57: 1 | Q57: PivotTable3 | R57: DFG | S57: Recommend (NPS)
A58: 48 | B58: Picture | C58: QTD DFG Unit Rankings - Suveys per 100 Entrees | D58: Picture | E58: InMoment Summary_2017-P09.xlsm | F58: Store Rank QTD YTD | G58: DFRG_InMoment_Rank_QTD_YTD | H58: ppPastePNG | I58: 4.79 | J58: 9.09 | K58: 0.46 | L58: 1.36 | N58: 1 | Q58: PivotTable3 | R58: DFG | S58: Surveys Per 100 Entrees
A59: 49 | B59: Picture | C59: QTD DFG Unit Rankings - Survey Counts | D59: Picture | E59: InMoment Summary_2017-P09.xlsm | F59: Store Rank QTD YTD | G59: DFRG_InMoment_Rank_QTD_YTD | H59: ppPastePNG | I59: 4.79 | J59: 9.09 | K59: 0.46 | L59: 1.36 | N59: 1 | Q59: PivotTable3 | R59: DFG | S59: # of Surveys

Sheet Chart list
A1: Slide # | B1: Content | C1: Brand | D1: Metric label | E1: Column # | F1: Column Label | G1: Order | H1: Low | I1: High | J1: Chart Sheet | K1: Notes | N1: Brand_Label | O1: Low | P1: High | Q1: Decimals
A2: 1 | B2: oSat | C2: DFDE | D2: ="OSAT - Q"&Inputs!$B$4&" '"&Inputs!$B$8&" vs. Q"&Inputs!$B$4&" '"&Inputs!$C$8 -> OSAT - Q4 '17 vs. Q4 '16 | E2: C | F2: Overall Sat. | G2: Descending | H2: 40 | I2: Auto | J2: Store Rank | N2: =C2&"_"&"Sum of "&F2 -> DFDE_Sum of Overall Sat. | O2: =H2 -> 40 | P2: =I2 -> Auto | Q2: 1 | T2: 45 | U2: 100
A3: =A2+1 -> 2 | B3: % Low | C3: DFDE | D3: ="% of Low Scores - Q"&Inputs!$B$4&" '"&Inputs!$B$8&" vs. Q"&Inputs!$B$4&" '"&Inputs!$C$8 -> % of Low Scores - Q4 '17 vs. Q4 '16 | E3: L | F3: % of Low Scores | G3: Ascending | H3: Auto | I3: Auto | J3: Store Rank | N3: =C3&"_"&"Sum of "&F3 -> DFDE_Sum of % of Low Scores | O3: =H3 -> Auto | P3: =I3 -> Auto | Q3: 1 | T3: 0 | U3: 30
A4: =A3+1 -> 3 | B4: Pace | C4: DFDE | D4: ="Pace of Dining - Q"&Inputs!$B$4&" '"&Inputs!$B$8&" vs. Q"&Inputs!$B$4&" '"&Inputs!$C$8 -> Pace of Dining - Q4 '17 vs. Q4 '16 | E4: G | F4: Pace of dining | G4: Descending | H4: 40 | I4: Auto | J4: Store Rank | N4: DFDE_Sum of Pace of dining | O4: 40 | P4: Auto | Q4: 1 | T4: 40 | U4: 90
A5: =A4+1 -> 4 | B5: Food | C5: DFDE | D5: ="Quality of Food - Q"&Inputs!$B$4&" '"&Inputs!$B$8&" vs. Q"&Inputs!$B$4&" '"&Inputs!$C$8 -> Quality of Food - Q4 '17 vs. Q4 '16 | E5: H | F5: Quality of food | G5: Descending | H5: 40 | I5: Auto | J5: Store Rank | N5: DFDE_Sum of Quality of food | O5: 40 | P5: Auto | Q5: 1 | T5: 40 | U5: 90
A6: =A5+1 -> 5 | B6: Recommend | C6: DFDE | D6: ="Recommend - Q"&Inputs!$B$4&" '"&Inputs!$B$8&" vs. Q"&Inputs!$B$4&" '"&Inputs!$C$8 -> Recommend - Q4 '17 vs. Q4 '16 | E6: D | F6: Recommend (NPS) | G6: Descending | H6: Auto | I6: Auto | J6: Store Rank | N6: DFDE_Sum of Recommend (NPS) | O6: Auto | P6: Auto | Q6: 1 | T6: 0 | U6: 100
A7: =A6+1 -> 6 | B7: oSat | C7: SULL | D7: ="OSAT - Q"&Inputs!$B$4&" '"&Inputs!$B$8&" vs. Q"&Inputs!$B$4&" '"&Inputs!$C$8 -> OSAT - Q4 '17 vs. Q4 '16 | E7: C | F7: Overall Sat. | G7: Descending | H7: 40 | I7: Auto | J7: Store Rank | N7: SULL_Sum of Overall Sat. | O7: 40 | P7: Auto | Q7: 1 | T7: 45 | U7: 100
A8: 7 | B8: % Low | C8: SULL | D8: ="% of Low Scores - Q"&Inputs!$B$4&" '"&Inputs!$B$8&" vs. Q"&Inputs!$B$4&" '"&Inputs!$C$8 -> % of Low Scores - Q4 '17 vs. Q4 '16 | E8: L | F8: % of Low Scores | G8: Ascending | H8: Auto | I8: Auto | J8: Store Rank | N8: SULL_Sum of % of Low Scores | O8: Auto | P8: Auto | Q8: 1 | T8: 0 | U8: 30
A9: 8 | B9: Pace | C9: SULL | D9: ="Pace of Dining - Q"&Inputs!$B$4&" '"&Inputs!$B$8&" vs. Q"&Inputs!$B$4&" '"&Inputs!$C$8 -> Pace of Dining - Q4 '17 vs. Q4 '16 | E9: G | F9: Pace of dining | G9: Descending | H9: 40 | I9: Auto | J9: Store Rank | N9: SULL_Sum of Pace of dining | O9: 40 | P9: Auto | Q9: 1 | T9: 40 | U9: 90
A10: 9 | B10: Food | C10: SULL | D10: ="Quality of Food - Q"&Inputs!$B$4&" '"&Inputs!$B$8&" vs. Q"&Inputs!$B$4&" '"&Inputs!$C$8 -> Quality of Food - Q4 '17 vs. Q4 '16 | E10: H | F10: Quality of food | G10: Descending | H10: 40 | I10: Auto | J10: Store Rank | N10: SULL_Sum of Quality of food | O10: 40 | P10: Auto | Q10: 1 | T10: 40 | U10: 90
A11: 10 | B11: Recommend | C11: SULL | D11: ="Recommend - Q"&Inputs!$B$4&" '"&Inputs!$B$8&" vs. Q"&Inputs!$B$4&" '"&Inputs!$C$8 -> Recommend - Q4 '17 vs. Q4 '16 | E11: D | F11: Recommend (NPS) | G11: Descending | H11: Auto | I11: Auto | J11: Store Rank | N11: SULL_Sum of Recommend (NPS) | O11: Auto | P11: Auto | Q11: 1 | T11: 0 | U11: 100
A12: 11 | B12: oSat | C12: DFG | D12: ="OSAT - Q"&Inputs!$B$4&" '"&Inputs!$B$8&" vs. Q"&Inputs!$B$4&" '"&Inputs!$C$8 -> OSAT - Q4 '17 vs. Q4 '16 | E12: C | F12: Overall Sat. | G12: Descending | H12: 40 | I12: Auto | J12: Store Rank | N12: DFG_Sum of Overall Sat. | O12: 40 | P12: Auto | Q12: 1 | T12: 45 | U12: 100
A13: 12 | B13: % Low | C13: DFG | D13: ="% of Low Scores - Q"&Inputs!$B$4&" '"&Inputs!$B$8&" vs. Q"&Inputs!$B$4&" '"&Inputs!$C$8 -> % of Low Scores - Q4 '17 vs. Q4 '16 | E13: L | F13: % of Low Scores | G13: Ascending | H13: Auto | I13: Auto | J13: Store Rank | N13: DFG_Sum of % of Low Scores | O13: Auto | P13: Auto | Q13: 1 | T13: 0 | U13: 30
A14: 13 | B14: Pace | C14: DFG | D14: ="Pace of Dining - Q"&Inputs!$B$4&" '"&Inputs!$B$8&" vs. Q"&Inputs!$B$4&" '"&Inputs!$C$8 -> Pace of Dining - Q4 '17 vs. Q4 '16 | E14: G | F14: Pace of dining | G14: Descending | H14: 40 | I14: Auto | J14: Store Rank | N14: DFG_Sum of Pace of dining | O14: 40 | P14: Auto | Q14: 1 | T14: 40 | U14: 90
A15: 14 | B15: Food | C15: DFG | D15: ="Quality of Food - Q"&Inputs!$B$4&" '"&Inputs!$B$8&" vs. Q"&Inputs!$B$4&" '"&Inputs!$C$8 -> Quality of Food - Q4 '17 vs. Q4 '16 | E15: H | F15: Quality of food | G15: Descending | H15: 40 | I15: Auto | J15: Store Rank | N15: DFG_Sum of Quality of food | O15: 40 | P15: Auto | Q15: 1 | T15: 40 | U15: 90
A16: 15 | B16: Recommend | C16: DFG | D16: ="Recommend - Q"&Inputs!$B$4&" '"&Inputs!$B$8&" vs. Q"&Inputs!$B$4&" '"&Inputs!$C$8 -> Recommend - Q4 '17 vs. Q4 '16 | E16: D | F16: Recommend (NPS) | G16: Descending | H16: Auto | I16: Auto | J16: Store Rank | N16: DFG_Sum of Recommend (NPS) | O16: Auto | P16: Auto | Q16: 1 | T16: 0 | U16: 100
A17: 16 | B17: Survey rate | C17: DFDE | D17: ="Surveys Per 100 Entrees - Q"&Inputs!$B$4&" '"&Inputs!$B$8&" vs. Q"&Inputs!$B$4&" '"&Inputs!$C$8 -> Surveys Per 100 Entrees - Q4 '17 vs. Q4 '16 | E17: Q | F17: # of Surveys | G17: Descending | H17: Auto | I17: Auto | J17: Store Rank | K17: Separate chart due to dual axis | N17: =C17&"_"&"Sum of "&F17 -> DFDE_Sum of # of Surveys | O17: =H17 -> Auto | P17: Auto | Q17: 0 | T17: Auto | U17: Auto
A18: 17 | B18: Survey rate | C18: SULL | D18: ="Surveys Per 100 Entrees - Q"&Inputs!$B$4&" '"&Inputs!$B$8&" vs. Q"&Inputs!$B$4&" '"&Inputs!$C$8 -> Surveys Per 100 Entrees - Q4 '17 vs. Q4 '16 | E18: Q | F18: # of Surveys | G18: Descending | H18: Auto | I18: Auto | J18: Store Rank | K18: Separate chart due to dual axis | N18: SULL_Sum of # of Surveys | O18: Auto | P18: Auto | Q18: 0 | T18: Auto | U18: Auto
A19: 18 | B19: Survey rate | C19: DFG | D19: ="Surveys Per 100 Entrees - Q"&Inputs!$B$4&" '"&Inputs!$B$8&" vs. Q"&Inputs!$B$4&" '"&Inputs!$C$8 -> Surveys Per 100 Entrees - Q4 '17 vs. Q4 '16 | E19: Q | F19: # of Surveys | G19: Descending | H19: Auto | I19: Auto | J19: Store Rank | K19: Separate chart due to dual axis | N19: DFG_Sum of # of Surveys | O19: Auto | P19: Auto | Q19: 0 | T19: Auto | U19: Auto
A20: 19 | B20: Count | C20: DFDE | D20: ="# of Surveys - Q"&Inputs!$B$4&" '"&Inputs!$B$8&" vs. Q"&Inputs!$B$4&" '"&Inputs!$C$8 -> # of Surveys - Q4 '17 vs. Q4 '16 | E20: O | F20: Surveys Per 100 Entrees | G20: Descending | H20: Auto | I20: Auto | J20: Store Rank | K20: Separate chart due to dual axis | N20: DFDE_Sum of Surveys Per 100 Entrees | O20: Auto | P20: Auto | Q20: 2 | T20: Auto | U20: Auto
A21: 20 | B21: Count | C21: SULL | D21: ="# of Surveys - Q"&Inputs!$B$4&" '"&Inputs!$B$8&" vs. Q"&Inputs!$B$4&" '"&Inputs!$C$8 -> # of Surveys - Q4 '17 vs. Q4 '16 | E21: O | F21: Surveys Per 100 Entrees | G21: Descending | H21: Auto | I21: Auto | J21: Store Rank | K21: Separate chart due to dual axis | N21: SULL_Sum of Surveys Per 100 Entrees | O21: Auto | P21: Auto | Q21: 2 | T21: Auto | U21: Auto
A22: 21 | B22: Count | C22: DFG | D22: ="# of Surveys - Q"&Inputs!$B$4&" '"&Inputs!$B$8&" vs. Q"&Inputs!$B$4&" '"&Inputs!$C$8 -> # of Surveys - Q4 '17 vs. Q4 '16 | E22: O | F22: Surveys Per 100 Entrees | G22: Descending | H22: Auto | I22: Auto | J22: Store Rank | K22: Separate chart due to dual axis | N22: DFG_Sum of Surveys Per 100 Entrees | O22: Auto | P22: Auto | Q22: 2 | T22: Auto | U22: Auto
D25: Surveys Per 100 Entrees

Sheet Slide list (hidden)
A1: Slide # | B1: Slide content | C1: Slide title | D1: Slide title dynamic
A2: 34 | B2: DFDE InMoment Trends (quad chart) | C2: InMoment Trends | D2: No

Sheet Ops Item list (hidden)
A1: Item # | B1: Slide # | C1: Item type | D1: Item content | E1: Text | F1: Dynamic | G1: Paste type | H1: Slide item ID | I1: Height | J1: Width | K1: Left | L1: Top
A2: 1 | B2: 34 | C2: Text box | D2: DFDE Overall Satisfaction | E2: Overall Satisfaction | F2: No | H2: Text Placeholder 1 | I2: 0.42 | J2: 5.93 | K2: 0.5 | L2: 1.19
A3: =A2+1 -> 2 | B3: 34 | C3: Chart | D3: DFDE Overall Satisfaction chart | F3: Yes | G3: ppPastePNG | H3: Content Placeholder 10 | I3: 2.25 | J3: 5.93 | K3: 0.5 | L3: 1.64
A4: 3 | B4: 34 | C4: Text box | D4: DFDE Pace of Dining | E4: Pace of Dining | F4: No | H4: Text Placeholder 2 | I4: 0.42 | J4: 5.93 | K4: 6.87 | L4: 1.19
A5: 4 | B5: 34 | C5: Chart | D5: DFDE Pace of Dining Chart | F5: Yes | G5: ppPastePNG | H5: Content Placeholder 11 | I5: 2.25 | J5: 5.93 | K5: 6.87 | L5: 1.64
A6: 5 | B6: 34 | C6: Text box | D6: DFDE Recommend | E6: Recommend | F6: No | H6: Text Placeholder 4 | I6: 0.42 | J6: 5.93 | K6: 0.51 | L6: 4.19
A7: 6 | B7: 34 | C7: Chart | D7: DFDE Recommend Chart | F7: Yes | G7: ppPastePNG | H7: Content Placeholder 13 | I7: 2.25 | J7: 5.93 | K7: 0.5 | L7: 4.64
A8: 7 | B8: 34 | C8: Text box | D8: DFDE Food Quality | E8: Food Quality | F8: No | H8: Text Placeholder 6 | I8: 0.42 | J8: 5.93 | K8: 6.87 | L8: 4.19
A9: 8 | B9: 34 | C9: Chart | D9: DFDE Food Quality Chart | F9: Yes | G9: ppPastePNG | H9: Content Placeholder 14 | I9: 2.25 | J9: 5.93 | K9: 6.87 | L9: 4.64
A10: =A9+1 -> 9 | B10: 42 | C10: Text box | D10: SULL Overall Satisfaction | E10: Overall Satisfaction | F10: No | H10: Text Placeholder 1 | I10: 0.42 | J10: 5.93 | K10: 0.5 | L10: 1.19
A11: 10 | B11: 42 | C11: Chart | D11: SULL Overall Satisfaction chart | F11: Yes | G11: ppPastePNG | H11: Content Placeholder 12 | I11: 2.25 | J11: 5.93 | K11: 0.5 | L11: 1.64
A12: 11 | B12: 42 | C12: Text box | D12: SULL Pace of Dining | E12: Pace of Dining | F12: No | H12: Text Placeholder 2 | I12: 0.42 | J12: 5.93 | K12: 6.87 | L12: 1.19
A13: 12 | B13: 42 | C13: Chart | D13: SULL Pace of Dining Chart | F13: Yes | G13: ppPastePNG | H13: Content Placeholder 15 | I13: 2.25 | J13: 5.93 | K13: 6.87 | L13: 1.64
A14: 13 | B14: 42 | C14: Text box | D14: SULL Recommend | E14: Recommend | F14: No | H14: Text Placeholder 4 | I14: 0.42 | J14: 5.93 | K14: 0.51 | L14: 4.19
A15: 14 | B15: 42 | C15: Chart | D15: SULL Recommend Chart | F15: Yes | G15: ppPastePNG | H15: Content Placeholder 16 | I15: 2.25 | J15: 5.93 | K15: 0.5 | L15: 4.64
A16: 15 | B16: 42 | C16: Text box | D16: SULL Food Quality | E16: Food Quality | F16: No | H16: Text Placeholder 6 | I16: 0.42 | J16: 5.93 | K16: 6.87 | L16: 4.19
A17: 16 | B17: 42 | C17: Chart | D17: SULL Food Quality Chart | F17: Yes | G17: ppPastePNG | H17: Content Placeholder 17 | I17: 2.25 | J17: 5.93 | K17: 6.87 | L17: 4.64
A18: 17 | B18: 50 | C18: Text box | D18: DFG Overall Satisfaction | E18: Overall Satisfaction | F18: No | H18: Text Placeholder 1 | I18: 0.42 | J18: 5.93 | K18: 0.5 | L18: 1.19
A19: 18 | B19: 50 | C19: Chart | D19: DFG Overall Satisfaction chart | F19: Yes | G19: ppPastePNG | H19: Content Placeholder 12 | I19: 2.25 | J19: 5.93 | K19: 0.5 | L19: 1.64
A20: 19 | B20: 50 | C20: Text box | D20: DFG Pace of Dining | E20: Pace of Dining | F20: No | H20: Text Placeholder 2 | I20: 0.42 | J20: 5.93 | K20: 6.87 | L20: 1.19
A21: 20 | B21: 50 | C21: Chart | D21: DFG Pace of Dining Chart | F21: Yes | G21: ppPastePNG | H21: Content Placeholder 15 | I21: 2.25 | J21: 5.93 | K21: 6.87 | L21: 1.64
A22: 21 | B22: 50 | C22: Text box | D22: DFG Recommend | E22: Recommend | F22: No | H22: Text Placeholder 4 | I22: 0.42 | J22: 5.93 | K22: 0.51 | L22: 4.19
A23: 22 | B23: 50 | C23: Chart | D23: DFG Recommend Chart | F23: Yes | G23: ppPastePNG | H23: Content Placeholder 16 | I23: 2.25 | J23: 5.93 | K23: 0.5 | L23: 4.64
A24: 23 | B24: 50 | C24: Text box | D24: DFG Food Quality | E24: Food Quality | F24: No | H24: Text Placeholder 6 | I24: 0.42 | J24: 5.93 | K24: 6.87 | L24: 4.19
A25: 24 | B25: 50 | C25: Chart | D25: DFG Food Quality Chart | F25: Yes | G25: ppPastePNG | H25: Content Placeholder 17 | I25: 2.25 | J25: 5.93 | K25: 6.87 | L25: 4.64

Sheet Brand Summary PTD
A1: Brand | B1: Overall Sat. | C1: Recommend | D1: Pace of dining | E1: Quality of food | F1: Period | G1: Year | H1: Year_Period
A2: DFDE | B2: =SUMPRODUCT((InMoment_Data_Type=$A2)*(InMoment_Data_Period=$F2)*(InMoment_Data_Year=$G2)*InMoment_Data_Overall*InMoment_Data_Count)/SUMIFS('Database PTD'!$P:$P,'Database PTD'!$T:$T,$A2,'Database PTD'!$R:$R,$F2,'Database PTD'!$S:$S,$G2) -> 57.17995119 | C2: =SUMPRODUCT((InMoment_Data_Type=$A2)*(InMoment_Data_Period=$F2)*(InMoment_Data_Year=$G2)*InMoment_Data_Recommend*InMoment_Data_Count)/SUMIFS('Database PTD'!$P:$P,'Database PTD'!$T:$T,$A2,'Database PTD'!$R:$R,$F2,'Database PTD'!$S:$S,$G2) -> 0 | D2: =SUMPRODUCT((InMoment_Data_Type=$A2)*(InMoment_Data_Period=$F2)*(InMoment_Data_Year=$G2)*InMoment_Data_Pace*InMoment_Data_Count)/SUMIFS('Database PTD'!$P:$P,'Database PTD'!$T:$T,$A2,'Database PTD'!$R:$R,$F2,'Database PTD'!$S:$S,$G2) -> 57.75086148 | E2: =SUMPRODUCT((InMoment_Data_Type=$A2)*(InMoment_Data_Period=$F2)*(InMoment_Data_Year=$G2)*InMoment_Data_Food*InMoment_Data_Count)/SUMIFS('Database PTD'!$P:$P,'Database PTD'!$T:$T,$A2,'Database PTD'!$R:$R,$F2,'Database PTD'!$S:$S,$G2) -> 63.05153166 | F2: =Inputs!$B$2 -> 11 | G2: 2015 | H2: ="'"&MID(G2,3,2)&" P"&IF(F2<10,"0","")&F2 -> '15 P11
A3: SULL | B3: =SUMPRODUCT((InMoment_Data_Type=$A3)*(InMoment_Data_Period=$F3)*(InMoment_Data_Year=$G3)*InMoment_Data_Overall*InMoment_Data_Count)/SUMIFS('Database PTD'!$P:$P,'Database PTD'!$T:$T,$A3,'Database PTD'!$R:$R,$F3,'Database PTD'!$S:$S,$G3) -> 56.52698814 | C3: =SUMPRODUCT((InMoment_Data_Type=$A3)*(InMoment_Data_Period=$F3)*(InMoment_Data_Year=$G3)*InMoment_Data_Recommend*InMoment_Data_Count)/SUMIFS('Database PTD'!$P:$P,'Database PTD'!$T:$T,$A3,'Database PTD'!$R:$R,$F3,'Database PTD'!$S:$S,$G3) -> 0 | D3: =SUMPRODUCT((InMoment_Data_Type=$A3)*(InMoment_Data_Period=$F3)*(InMoment_Data_Year=$G3)*InMoment_Data_Pace*InMoment_Data_Count)/SUMIFS('Database PTD'!$P:$P,'Database PTD'!$T:$T,$A3,'Database PTD'!$R:$R,$F3,'Database PTD'!$S:$S,$G3) -> 59.09564068 | E3: =SUMPRODUCT((InMoment_Data_Type=$A3)*(InMoment_Data_Period=$F3)*(InMoment_Data_Year=$G3)*InMoment_Data_Food*InMoment_Data_Count)/SUMIFS('Database PTD'!$P:$P,'Database PTD'!$T:$T,$A3,'Database PTD'!$R:$R,$F3,'Database PTD'!$S:$S,$G3) -> 59.14954576 | F3: =$F$2 -> 11 | G3: 2015 | H3: '15 P11
A4: DFG | B4: =SUMPRODUCT((InMoment_Data_Type=$A4)*(InMoment_Data_Period=$F4)*(InMoment_Data_Year=$G4)*InMoment_Data_Overall*InMoment_Data_Count)/SUMIFS('Database PTD'!$P:$P,'Database PTD'!$T:$T,$A4,'Database PTD'!$R:$R,$F4,'Database PTD'!$S:$S,$G4) -> 45.56079814 | C4: =SUMPRODUCT((InMoment_Data_Type=$A4)*(InMoment_Data_Period=$F4)*(InMoment_Data_Year=$G4)*InMoment_Data_Recommend*InMoment_Data_Count)/SUMIFS('Database PTD'!$P:$P,'Database PTD'!$T:$T,$A4,'Database PTD'!$R:$R,$F4,'Database PTD'!$S:$S,$G4) -> 0 | D4: =SUMPRODUCT((InMoment_Data_Type=$A4)*(InMoment_Data_Period=$F4)*(InMoment_Data_Year=$G4)*InMoment_Data_Pace*InMoment_Data_Count)/SUMIFS('Database PTD'!$P:$P,'Database PTD'!$T:$T,$A4,'Database PTD'!$R:$R,$F4,'Database PTD'!$S:$S,$G4) -> 47.91103712 | E4: =SUMPRODUCT((InMoment_Data_Type=$A4)*(InMoment_Data_Period=$F4)*(InMoment_Data_Year=$G4)*InMoment_Data_Food*InMoment_Data_Count)/SUMIFS('Database PTD'!$P:$P,'Database PTD'!$T:$T,$A4,'Database PTD'!$R:$R,$F4,'Database PTD'!$S:$S,$G4) -> 47.00854292 | F4: =$F$2 -> 11 | G4: 2015 | H4: '15 P11
A5: DFRG | B5: =SUMPRODUCT((InMoment_Data_Period=$F5)*(InMoment_Data_Year=$G5)*InMoment_Data_Overall*InMoment_Data_Count)/SUMIFS('Database PTD'!$P:$P,'Database PTD'!$R:$R,$F5,'Database PTD'!$S:$S,$G5) -> 54.14841484 | C5: =SUMPRODUCT((InMoment_Data_Period=$F5)*(InMoment_Data_Year=$G5)*InMoment_Data_Recommend*InMoment_Data_Count)/SUMIFS('Database PTD'!$P:$P,'Database PTD'!$R:$R,$F5,'Database PTD'!$S:$S,$G5) -> 0 | D5: =SUMPRODUCT((InMoment_Data_Period=$F5)*(InMoment_Data_Year=$G5)*InMoment_Data_Pace*InMoment_Data_Count)/SUMIFS('Database PTD'!$P:$P,'Database PTD'!$R:$R,$F5,'Database PTD'!$S:$S,$G5) -> 55.81294997 | E5: =SUMPRODUCT((InMoment_Data_Period=$F5)*(InMoment_Data_Year=$G5)*InMoment_Data_Food*InMoment_Data_Count)/SUMIFS('Database PTD'!$P:$P,'Database PTD'!$R:$R,$F5,'Database PTD'!$S:$S,$G5) -> 57.87069983 | F5: 11 | G5: 2015 | H5: '15 P11
A6: DFDE | B6: =SUMPRODUCT((InMoment_Data_Type=$A6)*(InMoment_Data_Period=$F6)*(InMoment_Data_Year=$G6)*InMoment_Data_Overall*InMoment_Data_Count)/SUMIFS('Database PTD'!$P:$P,'Database PTD'!$T:$T,$A6,'Database PTD'!$R:$R,$F6,'Database PTD'!$S:$S,$G6) -> 55.37594314 | C6: =SUMPRODUCT((InMoment_Data_Type=$A6)*(InMoment_Data_Period=$F6)*(InMoment_Data_Year=$G6)*InMoment_Data_Recommend*InMoment_Data_Count)/SUMIFS('Database PTD'!$P:$P,'Database PTD'!$T:$T,$A6,'Database PTD'!$R:$R,$F6,'Database PTD'!$S:$S,$G6) -> 0 | D6: =SUMPRODUCT((InMoment_Data_Type=$A6)*(InMoment_Data_Period=$F6)*(InMoment_Data_Year=$G6)*InMoment_Data_Pace*InMoment_Data_Count)/SUMIFS('Database PTD'!$P:$P,'Database PTD'!$T:$T,$A6,'Database PTD'!$R:$R,$F6,'Database PTD'!$S:$S,$G6) -> 57.77971323 | E6: =SUMPRODUCT((InMoment_Data_Type=$A6)*(InMoment_Data_Period=$F6)*(InMoment_Data_Year=$G6)*InMoment_Data_Food*InMoment_Data_Count)/SUMIFS('Database PTD'!$P:$P,'Database PTD'!$T:$T,$A6,'Database PTD'!$R:$R,$F6,'Database PTD'!$S:$S,$G6) -> 59.54987515 | F6: =IF(F2=13,1,F2+1) -> 12 | G6: =IF(F2=13,G2+1,G2) -> 2015 | H6: '15 P12
A7: SULL | B7: =SUMPRODUCT((InMoment_Data_Type=$A7)*(InMoment_Data_Period=$F7)*(InMoment_Data_Year=$G7)*InMoment_Data_Overall*InMoment_Data_Count)/SUMIFS('Database PTD'!$P:$P,'Database PTD'!$T:$T,$A7,'Database PTD'!$R:$R,$F7,'Database PTD'!$S:$S,$G7) -> 48.10775888 | C7: =SUMPRODUCT((InMoment_Data_Type=$A7)*(InMoment_Data_Period=$F7)*(InMoment_Data_Year=$G7)*InMoment_Data_Recommend*InMoment_Data_Count)/SUMIFS('Database PTD'!$P:$P,'Database PTD'!$T:$T,$A7,'Database PTD'!$R:$R,$F7,'Database PTD'!$S:$S,$G7) -> 0 | D7: =SUMPRODUCT((InMoment_Data_Type=$A7)*(InMoment_Data_Period=$F7)*(InMoment_Data_Year=$G7)*InMoment_Data_Pace*InMoment_Data_Count)/SUMIFS('Database PTD'!$P:$P,'Database PTD'!$T:$T,$A7,'Database PTD'!$R:$R,$F7,'Database PTD'!$S:$S,$G7) -> 50.72164793 | E7: =SUMPRODUCT((InMoment_Data_Type=$A7)*(InMoment_Data_Period=$F7)*(InMoment_Data_Year=$G7)*InMoment_Data_Food*InMoment_Data_Count)/SUMIFS('Database PTD'!$P:$P,'Database PTD'!$T:$T,$A7,'Database PTD'!$R:$R,$F7,'Database PTD'!$S:$S,$G7) -> 50.54356361 | F7: 12 | G7: 2015 | H7: '15 P12
A8: DFG | B8: =SUMPRODUCT((InMoment_Data_Type=$A8)*(InMoment_Data_Period=$F8)*(InMoment_Data_Year=$G8)*InMoment_Data_Overall*InMoment_Data_Count)/SUMIFS('Database PTD'!$P:$P,'Database PTD'!$T:$T,$A8,'Database PTD'!$R:$R,$F8,'Database PTD'!$S:$S,$G8) -> 44.95186807 | C8: =SUMPRODUCT((InMoment_Data_Type=$A8)*(InMoment_Data_Period=$F8)*(InMoment_Data_Year=$G8)*InMoment_Data_Recommend*InMoment_Data_Count)/SUMIFS('Database PTD'!$P:$P,'Database PTD'!$T:$T,$A8,'Database PTD'!$R:$R,$F8,'Database PTD'!$S:$S,$G8) -> 0 | D8: =SUMPRODUCT((InMoment_Data_Type=$A8)*(InMoment_Data_Period=$F8)*(InMoment_Data_Year=$G8)*InMoment_Data_Pace*InMoment_Data_Count)/SUMIFS('Database PTD'!$P:$P,'Database PTD'!$T:$T,$A8,'Database PTD'!$R:$R,$F8,'Database PTD'!$S:$S,$G8) -> 49.97052772 | E8: =SUMPRODUCT((InMoment_Data_Type=$A8)*(InMoment_Data_Period=$F8)*(InMoment_Data_Year=$G8)*InMoment_Data_Food*InMoment_Data_Count)/SUMIFS('Database PTD'!$P:$P,'Database PTD'!$T:$T,$A8,'Database PTD'!$R:$R,$F8,'Database PTD'!$S:$S,$G8) -> 48.58298662 | F8: 12 | G8: 2015 | H8: '15 P12
A9: DFRG | B9: =SUMPRODUCT((InMoment_Data_Period=$F9)*(InMoment_Data_Year=$G9)*InMoment_Data_Overall*InMoment_Data_Count)/SUMIFS('Database PTD'!$P:$P,'Database PTD'!$R:$R,$F9,'Database PTD'!$S:$S,$G9) -> 50.2140488 | C9: =SUMPRODUCT((InMoment_Data_Period=$F9)*(InMoment_Data_Year=$G9)*InMoment_Data_Recommend*InMoment_Data_Count)/SUMIFS('Database PTD'!$P:$P,'Database PTD'!$R:$R,$F9,'Database PTD'!$S:$S,$G9) -> 0 | D9: =SUMPRODUCT((InMoment_Data_Period=$F9)*(InMoment_Data_Year=$G9)*InMoment_Data_Pace*InMoment_Data_Count)/SUMIFS('Database PTD'!$P:$P,'Database PTD'!$R:$R,$F9,'Database PTD'!$S:$S,$G9) -> 53.3696255 | E9: =SUMPRODUCT((InMoment_Data_Period=$F9)*(InMoment_Data_Year=$G9)*InMoment_Data_Food*InMoment_Data_Count)/SUMIFS('Database PTD'!$P:$P,'Database PTD'!$R:$R,$F9,'Database PTD'!$S:$S,$G9) -> 53.66145418 | F9: 12 | G9: 2015 | H9: '15 P12
A10: DFDE | B10: =SUMPRODUCT((InMoment_Data_Type=$A10)*(InMoment_Data_Period=$F10)*(InMoment_Data_Year=$G10)*InMoment_Data_Overall*InMoment_Data_Count)/SUMIFS('Database PTD'!$P:$P,'Database PTD'!$T:$T,$A10,'Database PTD'!$R:$R,$F10,'Database PTD'!$S:$S,$G10) -> 57.4766755 | C10: =SUMPRODUCT((InMoment_Data_Type=$A10)*(InMoment_Data_Period=$F10)*(InMoment_Data_Year=$G10)*InMoment_Data_Recommend*InMoment_Data_Count)/SUMIFS('Database PTD'!$P:$P,'Database PTD'!$T:$T,$A10,'Database PTD'!$R:$R,$F10,'Database PTD'!$S:$S,$G10) -> 0 | D10: =SUMPRODUCT((InMoment_Data_Type=$A10)*(InMoment_Data_Period=$F10)*(InMoment_Data_Year=$G10)*InMoment_Data_Pace*InMoment_Data_Count)/SUMIFS('Database PTD'!$P:$P,'Database PTD'!$T:$T,$A10,'Database PTD'!$R:$R,$F10,'Database PTD'!$S:$S,$G10) -> 58.66914759 | E10: =SUMPRODUCT((InMoment_Data_Type=$A10)*(InMoment_Data_Period=$F10)*(InMoment_Data_Year=$G10)*InMoment_Data_Food*InMoment_Data_Count)/SUMIFS('Database PTD'!$P:$P,'Database PTD'!$T:$T,$A10,'Database PTD'!$R:$R,$F10,'Database PTD'!$S:$S,$G10) -> 61.69118165 | F10: 13 | G10: 2015 | H10: '15 P13
A11: SULL | B11: =SUMPRODUCT((InMoment_Data_Type=$A11)*(InMoment_Data_Period=$F11)*(InMoment_Data_Year=$G11)*InMoment_Data_Overall*InMoment_Data_Count)/SUMIFS('Database PTD'!$P:$P,'Database PTD'!$T:$T,$A11,'Database PTD'!$R:$R,$F11,'Database PTD'!$S:$S,$G11) -> 48.03877511 | C11: =SUMPRODUCT((InMoment_Data_Type=$A11)*(InMoment_Data_Period=$F11)*(InMoment_Data_Year=$G11)*InMoment_Data_Recommend*InMoment_Data_Count)/SUMIFS('Database PTD'!$P:$P,'Database PTD'!$T:$T,$A11,'Database PTD'!$R:$R,$F11,'Database PTD'!$S:$S,$G11) -> 0 | D11: =SUMPRODUCT((InMoment_Data_Type=$A11)*(InMoment_Data_Period=$F11)*(InMoment_Data_Year=$G11)*InMoment_Data_Pace*InMoment_Data_Count)/SUMIFS('Database PTD'!$P:$P,'Database PTD'!$T:$T,$A11,'Database PTD'!$R:$R,$F11,'Database PTD'!$S:$S,$G11) -> 50.54395802 | E11: =SUMPRODUCT((InMoment_Data_Type=$A11)*(InMoment_Data_Period=$F11)*(InMoment_Data_Year=$G11)*InMoment_Data_Food*InMoment_Data_Count)/SUMIFS('Database PTD'!$P:$P,'Database PTD'!$T:$T,$A11,'Database PTD'!$R:$R,$F11,'Database PTD'!$S:$S,$G11) -> 54.76911394 | F11: 13 | G11: 2015 | H11: '15 P13
A12: DFG | B12: =SUMPRODUCT((InMoment_Data_Type=$A12)*(InMoment_Data_Period=$F12)*(InMoment_Data_Year=$G12)*InMoment_Data_Overall*InMoment_Data_Count)/SUMIFS('Database PTD'!$P:$P,'Database PTD'!$T:$T,$A12,'Database PTD'!$R:$R,$F12,'Database PTD'!$S:$S,$G12) -> 44.79019623 | C12: =SUMPRODUCT((InMoment_Data_Type=$A12)*(InMoment_Data_Period=$F12)*(InMoment_Data_Year=$G12)*InMoment_Data_Recommend*InMoment_Data_Count)/SUMIFS('Database PTD'!$P:$P,'Database PTD'!$T:$T,$A12,'Database PTD'!$R:$R,$F12,'Database PTD'!$S:$S,$G12) -> 0 | D12: =SUMPRODUCT((InMoment_Data_Type=$A12)*(InMoment_Data_Period=$F12)*(InMoment_Data_Year=$G12)*InMoment_Data_Pace*InMoment_Data_Count)/SUMIFS('Database PTD'!$P:$P,'Database PTD'!$T:$T,$A12,'Database PTD'!$R:$R,$F12,'Database PTD'!$S:$S,$G12) -> 48.23055416 | E12: =SUMPRODUCT((InMoment_Data_Type=$A12)*(InMoment_Data_Period=$F12)*(InMoment_Data_Year=$G12)*InMoment_Data_Food*InMoment_Data_Count)/SUMIFS('Database PTD'!$P:$P,'Database PTD'!$T:$T,$A12,'Database PTD'!$R:$R,$F12,'Database PTD'!$S:$S,$G12) -> 46.89562323 | F12: 13 | G12: 2015 | H12: '15 P13
A13: DFRG | B13: =SUMPRODUCT((InMoment_Data_Period=$F13)*(InMoment_Data_Year=$G13)*InMoment_Data_Overall*InMoment_Data_Count)/SUMIFS('Database PTD'!$P:$P,'Database PTD'!$R:$R,$F13,'Database PTD'!$S:$S,$G13) -> 51.38757476 | C13: =SUMPRODUCT((InMoment_Data_Period=$F13)*(InMoment_Data_Year=$G13)*InMoment_Data_Recommend*InMoment_Data_Count)/SUMIFS('Database PTD'!$P:$P,'Database PTD'!$R:$R,$F13,'Database PTD'!$S:$S,$G13) -> 0 | D13: =SUMPRODUCT((InMoment_Data_Period=$F13)*(InMoment_Data_Year=$G13)*InMoment_Data_Pace*InMoment_Data_Count)/SUMIFS('Database PTD'!$P:$P,'Database PTD'!$R:$R,$F13,'Database PTD'!$S:$S,$G13) -> 53.55737908 | E13: =SUMPRODUCT((InMoment_Data_Period=$F13)*(InMoment_Data_Year=$G13)*InMoment_Data_Food*InMoment_Data_Count)/SUMIFS('Database PTD'!$P:$P,'Database PTD'!$R:$R,$F13,'Database PTD'!$S:$S,$G13) -> 55.74379077 | F13: 13 | G13: 2015 | H13: '15 P13
A14: DFDE | B14: =SUMPRODUCT((InMoment_Data_Type=$A14)*(InMoment_Data_Period=$F14)*(InMoment_Data_Year=$G14)*InMoment_Data_Overall*InMoment_Data_Count)/SUMIFS('Database PTD'!$P:$P,'Database PTD'!$T:$T,$A14,'Database PTD'!$R:$R,$F14,'Database PTD'!$S:$S,$G14) -> 55.86448266 | C14: =SUMPRODUCT((InMoment_Data_Type=$A14)*(InMoment_Data_Period=$F14)*(InMoment_Data_Year=$G14)*InMoment_Data_Recommend*InMoment_Data_Count)/SUMIFS('Database PTD'!$P:$P,'Database PTD'!$T:$T,$A14,'Database PTD'!$R:$R,$F14,'Database PTD'!$S:$S,$G14) -> 0 | D14: =SUMPRODUCT((InMoment_Data_Type=$A14)*(InMoment_Data_Period=$F14)*(InMoment_Data_Year=$G14)*InMoment_Data_Pace*InMoment_Data_Count)/SUMIFS('Database PTD'!$P:$P,'Database PTD'!$T:$T,$A14,'Database PTD'!$R:$R,$F14,'Database PTD'!$S:$S,$G14) -> 57.4340253 | E14: =SUMPRODUCT((InMoment_Data_Type=$A14)*(InMoment_Data_Period=$F14)*(InMoment_Data_Year=$G14)*InMoment_Data_Food*InMoment_Data_Count)/SUMIFS('Database PTD'!$P:$P,'Database PTD'!$T:$T,$A14,'Database PTD'!$R:$R,$F14,'Database PTD'!$S:$S,$G14) -> 61.56994096 | F14: 1 | G14: 2016 | H14: '16 P01
A15: SULL | B15: =SUMPRODUCT((InMoment_Data_Type=$A15)*(InMoment_Data_Period=$F15)*(InMoment_Data_Year=$G15)*InMoment_Data_Overall*InMoment_Data_Count)/SUMIFS('Database PTD'!$P:$P,'Database PTD'!$T:$T,$A15,'Database PTD'!$R:$R,$F15,'Database PTD'!$S:$S,$G15) -> 51.74789517 | C15: =SUMPRODUCT((InMoment_Data_Type=$A15)*(InMoment_Data_Period=$F15)*(InMoment_Data_Year=$G15)*InMoment_Data_Recommend*InMoment_Data_Count)/SUMIFS('Database PTD'!$P:$P,'Database PTD'!$T:$T,$A15,'Database PTD'!$R:$R,$F15,'Database PTD'!$S:$S,$G15) -> 0 | D15: =SUMPRODUCT((InMoment_Data_Type=$A15)*(InMoment_Data_Period=$F15)*(InMoment_Data_Year=$G15)*InMoment_Data_Pace*InMoment_Data_Count)/SUMIFS('Database PTD'!$P:$P,'Database PTD'!$T:$T,$A15,'Database PTD'!$R:$R,$F15,'Database PTD'!$S:$S,$G15) -> 53.8804735 | E15: =SUMPRODUCT((InMoment_Data_Type=$A15)*(InMoment_Data_Period=$F15)*(InMoment_Data_Year=$G15)*InMoment_Data_Food*InMoment_Data_Count)/SUMIFS('Database PTD'!$P:$P,'Database PTD'!$T:$T,$A15,'Database PTD'!$R:$R,$F15,'Database PTD'!$S:$S,$G15) -> 55.4140636 | F15: 1 | G15: 2016 | H15: '16 P01
A16: DFG | B16: =SUMPRODUCT((InMoment_Data_Type=$A16)*(InMoment_Data_Period=$F16)*(InMoment_Data_Year=$G16)*InMoment_Data_Overall*InMoment_Data_Count)/SUMIFS('Database PTD'!$P:$P,'Database PTD'!$T:$T,$A16,'Database PTD'!$R:$R,$F16,'Database PTD'!$S:$S,$G16) -> 49.16943272 | C16: =SUMPRODUCT((InMoment_Data_Type=$A16)*(InMoment_Data_Period=$F16)*(InMoment_Data_Year=$G16)*InMoment_Data_Recommend*InMoment_Data_Count)/SUMIFS('Database PTD'!$P:$P,'Database PTD'!$T:$T,$A16,'Database PTD'!$R:$R,$F16,'Database PTD'!$S:$S,$G16) -> 0 | D16: =SUMPRODUCT((InMoment_Data_Type=$A16)*(InMoment_Data_Period=$F16)*(InMoment_Data_Year=$G16)*InMoment_Data_Pace*InMoment_Data_Count)/SUMIFS('Database PTD'!$P:$P,'Database PTD'!$T:$T,$A16,'Database PTD'!$R:$R,$F16,'Database PTD'!$S:$S,$G16) -> 53.41769725 | E16: =SUMPRODUCT((InMoment_Data_Type=$A16)*(InMoment_Data_Period=$F16)*(InMoment_Data_Year=$G16)*InMoment_Data_Food*InMoment_Data_Count)/SUMIFS('Database PTD'!$P:$P,'Database PTD'!$T:$T,$A16,'Database PTD'!$R:$R,$F16,'Database PTD'!$S:$S,$G16) -> 51.43168807 | F16: 1 | G16: 2016 | H16: '16 P01
A17: DFRG | B17: =SUMPRODUCT((InMoment_Data_Period=$F17)*(InMoment_Data_Year=$G17)*InMoment_Data_Overall*InMoment_Data_Count)/SUMIFS('Database PTD'!$P:$P,'Database PTD'!$R:$R,$F17,'Database PTD'!$S:$S,$G17) -> 52.8008463 | C17: =SUMPRODUCT((InMoment_Data_Period=$F17)*(InMoment_Data_Year=$G17)*InMoment_Data_Recommend*InMoment_Data_Count)/SUMIFS('Database PTD'!$P:$P,'Database PTD'!$R:$R,$F17,'Database PTD'!$S:$S,$G17) -> 0 | D17: =SUMPRODUCT((InMoment_Data_Period=$F17)*(InMoment_Data_Year=$G17)*InMoment_Data_Pace*InMoment_Data_Count)/SUMIFS('Database PTD'!$P:$P,'Database PTD'!$R:$R,$F17,'Database PTD'!$S:$S,$G17) -> 55.23805486 | E17: =SUMPRODUCT((InMoment_Data_Period=$F17)*(InMoment_Data_Year=$G17)*InMoment_Data_Food*InMoment_Data_Count)/SUMIFS('Database PTD'!$P:$P,'Database PTD'!$R:$R,$F17,'Database PTD'!$S:$S,$G17) -> 56.95641673 | F17: 1 | G17: 2016 | H17: '16 P01
A18: DFDE | B18: =SUMPRODUCT((InMoment_Data_Type=$A18)*(InMoment_Data_Period=$F18)*(InMoment_Data_Year=$G18)*InMoment_Data_Overall*InMoment_Data_Count)/SUMIFS('Database PTD'!$P:$P,'Database PTD'!$T:$T,$A18,'Database PTD'!$R:$R,$F18,'Database PTD'!$S:$S,$G18) -> 52.18904125 | C18: =SUMPRODUCT((InMoment_Data_Type=$A18)*(InMoment_Data_Period=$F18)*(InMoment_Data_Year=$G18)*InMoment_Data_Recommend*InMoment_Data_Count)/SUMIFS('Database PTD'!$P:$P,'Database PTD'!$T:$T,$A18,'Database PTD'!$R:$R,$F18,'Database PTD'!$S:$S,$G18) -> 0 | D18: =SUMPRODUCT((InMoment_Data_Type=$A18)*(InMoment_Data_Period=$F18)*(InMoment_Data_Year=$G18)*InMoment_Data_Pace*InMoment_Data_Count)/SUMIFS('Database PTD'!$P:$P,'Database PTD'!$T:$T,$A18,'Database PTD'!$R:$R,$F18,'Database PTD'!$S:$S,$G18) -> 53.87890222 | E18: =SUMPRODUCT((InMoment_Data_Type=$A18)*(InMoment_Data_Period=$F18)*(InMoment_Data_Year=$G18)*InMoment_Data_Food*InMoment_Data_Count)/SUMIFS('Database PTD'!$P:$P,'Database PTD'!$T:$T,$A18,'Database PTD'!$R:$R,$F18,'Database PTD'!$S:$S,$G18) -> 58.07557601 | F18: 2 | G18: 2016 | H18: '16 P02
A19: SULL | B19: =SUMPRODUCT((InMoment_Data_Type=$A19)*(InMoment_Data_Period=$F19)*(InMoment_Data_Year=$G19)*InMoment_Data_Overall*InMoment_Data_Count)/SUMIFS('Database PTD'!$P:$P,'Database PTD'!$T:$T,$A19,'Database PTD'!$R:$R,$F19,'Database PTD'!$S:$S,$G19) -> 54.7901172 | C19: =SUMPRODUCT((InMoment_Data_Type=$A19)*(InMoment_Data_Period=$F19)*(InMoment_Data_Year=$G19)*InMoment_Data_Recommend*InMoment_Data_Count)/SUMIFS('Database PTD'!$P:$P,'Database PTD'!$T:$T,$A19,'Database PTD'!$R:$R,$F19,'Database PTD'!$S:$S,$G19) -> 0 | D19: =SUMPRODUCT((InMoment_Data_Type=$A19)*(InMoment_Data_Period=$F19)*(InMoment_Data_Year=$G19)*InMoment_Data_Pace*InMoment_Data_Count)/SUMIFS('Database PTD'!$P:$P,'Database PTD'!$T:$T,$A19,'Database PTD'!$R:$R,$F19,'Database PTD'!$S:$S,$G19) -> 56.17293084 | E19: =SUMPRODUCT((InMoment_Data_Type=$A19)*(InMoment_Data_Period=$F19)*(InMoment_Data_Year=$G19)*InMoment_Data_Food*InMoment_Data_Count)/SUMIFS('Database PTD'!$P:$P,'Database PTD'!$T:$T,$A19,'Database PTD'!$R:$R,$F19,'Database PTD'!$S:$S,$G19) -> 59.82163881 | F19: 2 | G19: 2016 | H19: '16 P02
A20: DFG | B20: =SUMPRODUCT((InMoment_Data_Type=$A20)*(InMoment_Data_Period=$F20)*(InMoment_Data_Year=$G20)*InMoment_Data_Overall*InMoment_Data_Count)/SUMIFS('Database PTD'!$P:$P,'Database PTD'!$T:$T,$A20,'Database PTD'!$R:$R,$F20,'Database PTD'!$S:$S,$G20) -> 49.91034416 | C20: =SUMPRODUCT((InMoment_Data_Type=$A20)*(InMoment_Data_Period=$F20)*(InMoment_Data_Year=$G20)*InMoment_Data_Recommend*InMoment_Data_Count)/SUMIFS('Database PTD'!$P:$P,'Database PTD'!$T:$T,$A20,'Database PTD'!$R:$R,$F20,'Database PTD'!$S:$S,$G20) -> 0 | D20: =SUMPRODUCT((InMoment_Data_Type=$A20)*(InMoment_Data_Period=$F20)*(InMoment_Data_Year=$G20)*InMoment_Data_Pace*InMoment_Data_Count)/SUMIFS('Database PTD'!$P:$P,'Database PTD'!$T:$T,$A20,'Database PTD'!$R:$R,$F20,'Database PTD'!$S:$S,$G20) -> 54.83090254 | E20: =SUMPRODUCT((InMoment_Data_Type=$A20)*(InMoment_Data_Period=$F20)*(InMoment_Data_Year=$G20)*InMoment_Data_Food*InMoment_Data_Count)/SUMIFS('Database PTD'!$P:$P,'Database PTD'!$T:$T,$A20,'Database PTD'!$R:$R,$F20,'Database PTD'!$S:$S,$G20) -> 53.16273096 | F20: 2 | G20: 2016 | H20: '16 P02
A21: DFRG | B21: =SUMPRODUCT((InMoment_Data_Period=$F21)*(InMoment_Data_Year=$G21)*InMoment_Data_Overall*InMoment_Data_Count)/SUMIFS('Database PTD'!$P:$P,'Database PTD'!$R:$R,$F21,'Database PTD'!$S:$S,$G21) -> 52.32793283 | C21: =SUMPRODUCT((InMoment_Data_Period=$F21)*(InMoment_Data_Year=$G21)*InMoment_Data_Recommend*InMoment_Data_Count)/SUMIFS('Database PTD'!$P:$P,'Database PTD'!$R:$R,$F21,'Database PTD'!$S:$S,$G21) -> 0 | D21: =SUMPRODUCT((InMoment_Data_Period=$F21)*(InMoment_Data_Year=$G21)*InMoment_Data_Pace*InMoment_Data_Count)/SUMIFS('Database PTD'!$P:$P,'Database PTD'!$R:$R,$F21,'Database PTD'!$S:$S,$G21) -> 54.87614483 | E21: =SUMPRODUCT((InMoment_Data_Period=$F21)*(InMoment_Data_Year=$G21)*InMoment_Data_Food*InMoment_Data_Count)/SUMIFS('Database PTD'!$P:$P,'Database PTD'!$R:$R,$F21,'Database PTD'!$S:$S,$G21) -> 57.16957871 | F21: 2 | G21: 2016 | H21: '16 P02
A22: DFDE | B22: =SUMPRODUCT((InMoment_Data_Type=$A22)*(InMoment_Data_Period=$F22)*(InMoment_Data_Year=$G22)*InMoment_Data_Overall*InMoment_Data_Count)/SUMIFS('Database PTD'!$P:$P,'Database PTD'!$T:$T,$A22,'Database PTD'!$R:$R,$F22,'Database PTD'!$S:$S,$G22) -> 59.11533541 | C22: =SUMPRODUCT((InMoment_Data_Type=$A22)*(InMoment_Data_Period=$F22)*(InMoment_Data_Year=$G22)*InMoment_Data_Recommend*InMoment_Data_Count)/SUMIFS('Database PTD'!$P:$P,'Database PTD'!$T:$T,$A22,'Database PTD'!$R:$R,$F22,'Database PTD'!$S:$S,$G22) -> 0 | D22: =SUMPRODUCT((InMoment_Data_Type=$A22)*(InMoment_Data_Period=$F22)*(InMoment_Data_Year=$G22)*InMoment_Data_Pace*InMoment_Data_Count)/SUMIFS('Database PTD'!$P:$P,'Database PTD'!$T:$T,$A22,'Database PTD'!$R:$R,$F22,'Database PTD'!$S:$S,$G22) -> 59.87927414 | E22: =SUMPRODUCT((InMoment_Data_Type=$A22)*(InMoment_Data_Period=$F22)*(InMoment_Data_Year=$G22)*InMoment_Data_Food*InMoment_Data_Count)/SUMIFS('Database PTD'!$P:$P,'Database PTD'!$T:$T,$A22,'Database PTD'!$R:$R,$F22,'Database PTD'!$S:$S,$G22) -> 63.46334683 | F22: 3 | G22: 2016 | H22: '16 P03
A23: SULL | B23: =SUMPRODUCT((InMoment_Data_Type=$A23)*(InMoment_Data_Period=$F23)*(InMoment_Data_Year=$G23)*InMoment_Data_Overall*InMoment_Data_Count)/SUMIFS('Database PTD'!$P:$P,'Database PTD'!$T:$T,$A23,'Database PTD'!$R:$R,$F23,'Database PTD'!$S:$S,$G23) -> 55.50482296 | C23: =SUMPRODUCT((InMoment_Data_Type=$A23)*(InMoment_Data_Period=$F23)*(InMoment_Data_Year=$G23)*InMoment_Data_Recommend*InMoment_Data_Count)/SUMIFS('Database PTD'!$P:$P,'Database PTD'!$T:$T,$A23,'Database PTD'!$R:$R,$F23,'Database PTD'!$S:$S,$G23) -> 0 | D23: =SUMPRODUCT((InMoment_Data_Type=$A23)*(InMoment_Data_Period=$F23)*(InMoment_Data_Year=$G23)*InMoment_Data_Pace*InMoment_Data_Count)/SUMIFS('Database PTD'!$P:$P,'Database PTD'!$T:$T,$A23,'Database PTD'!$R:$R,$F23,'Database PTD'!$S:$S,$G23) -> 54.83186584 | E23: =SUMPRODUCT((InMoment_Data_Type=$A23)*(InMoment_Data_Period=$F23)*(InMoment_Data_Year=$G23)*InMoment_Data_Food*InMoment_Data_Count)/SUMIFS('Database PTD'!$P:$P,'Database PTD'!$T:$T,$A23,'Database PTD'!$R:$R,$F23,'Database PTD'!$S:$S,$G23) -> 56.5074343 | F23: 3 | G23: 2016 | H23: '16 P03
A24: DFG | B24: =SUMPRODUCT((InMoment_Data_Type=$A24)*(InMoment_Data_Period=$F24)*(InMoment_Data_Year=$G24)*InMoment_Data_Overall*InMoment_Data_Count)/SUMIFS('Database PTD'!$P:$P,'Database PTD'!$T:$T,$A24,'Database PTD'!$R:$R,$F24,'Database PTD'!$S:$S,$G24) -> 57.3204178 | C24: =SUMPRODUCT((InMoment_Data_Type=$A24)*(InMoment_Data_Period=$F24)*(InMoment_Data_Year=$G24)*InMoment_Data_Recommend*InMoment_Data_Count)/SUMIFS('Database PTD'!$P:$P,'Database PTD'!$T:$T,$A24,'Database PTD'!$R:$R,$F24,'Database PTD'!$S:$S,$G24) -> 0 | D24: =SUMPRODUCT((InMoment_Data_Type=$A24)*(InMoment_Data_Period=$F24)*(InMoment_Data_Year=$G24)*InMoment_Data_Pace*InMoment_Data_Count)/SUMIFS('Database PTD'!$P:$P,'Database PTD'!$T:$T,$A24,'Database PTD'!$R:$R,$F24,'Database PTD'!$S:$S,$G24) -> 58.61437577 | E24: =SUMPRODUCT((InMoment_Data_Type=$A24)*(InMoment_Data_Period=$F24)*(InMoment_Data_Year=$G24)*InMoment_Data_Food*InMoment_Data_Count)/SUMIFS('Database PTD'!$P:$P,'Database PTD'!$T:$T,$A24,'Database PTD'!$R:$R,$F24,'Database PTD'!$S:$S,$G24) -> 58.69387886 | F24: 3 | G24: 2016 | H24: '16 P03
A25: DFRG | B25: =SUMPRODUCT((InMoment_Data_Period=$F25)*(InMoment_Data_Year=$G25)*InMoment_Data_Overall*InMoment_Data_Count)/SUMIFS('Database PTD'!$P:$P,'Database PTD'!$R:$R,$F25,'Database PTD'!$S:$S,$G25) -> 57.48708337 | C25: =SUMPRODUCT((InMoment_Data_Period=$F25)*(InMoment_Data_Year=$G25)*InMoment_Data_Recommend*InMoment_Data_Count)/SUMIFS('Database PTD'!$P:$P,'Database PTD'!$R:$R,$F25,'Database PTD'!$S:$S,$G25) -> 0 | D25: =SUMPRODUCT((InMoment_Data_Period=$F25)*(InMoment_Data_Year=$G25)*InMoment_Data_Pace*InMoment_Data_Count)/SUMIFS('Database PTD'!$P:$P,'Database PTD'!$R:$R,$F25,'Database PTD'!$S:$S,$G25) -> 58.00649699 | E25: =SUMPRODUCT((InMoment_Data_Period=$F25)*(InMoment_Data_Year=$G25)*InMoment_Data_Food*InMoment_Data_Count)/SUMIFS('Database PTD'!$P:$P,'Database PTD'!$R:$R,$F25,'Database PTD'!$S:$S,$G25) -> 59.90117275 | F25: 3 | G25: 2016 | H25: '16 P03
A26: DFDE | B26: =SUMPRODUCT((InMoment_Data_Type=$A26)*(InMoment_Data_Period=$F26)*(InMoment_Data_Year=$G26)*InMoment_Data_Overall*InMoment_Data_Count)/SUMIFS('Database PTD'!$P:$P,'Database PTD'!$T:$T,$A26,'Database PTD'!$R:$R,$F26,'Database PTD'!$S:$S,$G26) -> 51.61094216 | C26: =SUMPRODUCT((InMoment_Data_Type=$A26)*(InMoment_Data_Period=$F26)*(InMoment_Data_Year=$G26)*InMoment_Data_Recommend*InMoment_Data_Count)/SUMIFS('Database PTD'!$P:$P,'Database PTD'!$T:$T,$A26,'Database PTD'!$R:$R,$F26,'Database PTD'!$S:$S,$G26) -> 0 | D26: =SUMPRODUCT((InMoment_Data_Type=$A26)*(InMoment_Data_Period=$F26)*(InMoment_Data_Year=$G26)*InMoment_Data_Pace*InMoment_Data_Count)/SUMIFS('Database PTD'!$P:$P,'Database PTD'!$T:$T,$A26,'Database PTD'!$R:$R,$F26,'Database PTD'!$S:$S,$G26) -> 53.4395098 | E26: =SUMPRODUCT((InMoment_Data_Type=$A26)*(InMoment_Data_Period=$F26)*(InMoment_Data_Year=$G26)*InMoment_Data_Food*InMoment_Data_Count)/SUMIFS('Database PTD'!$P:$P,'Database PTD'!$T:$T,$A26,'Database PTD'!$R:$R,$F26,'Database PTD'!$S:$S,$G26) -> 56.63699216 | F26: 4 | G26: 2016 | H26: '16 P04
A27: SULL | B27: =SUMPRODUCT((InMoment_Data_Type=$A27)*(InMoment_Data_Period=$F27)*(InMoment_Data_Year=$G27)*InMoment_Data_Overall*InMoment_Data_Count)/SUMIFS('Database PTD'!$P:$P,'Database PTD'!$T:$T,$A27,'Database PTD'!$R:$R,$F27,'Database PTD'!$S:$S,$G27) -> 58.53057393 | C27: =SUMPRODUCT((InMoment_Data_Type=$A27)*(InMoment_Data_Period=$F27)*(InMoment_Data_Year=$G27)*InMoment_Data_Recommend*InMoment_Data_Count)/SUMIFS('Database PTD'!$P:$P,'Database PTD'!$T:$T,$A27,'Database PTD'!$R:$R,$F27,'Database PTD'!$S:$S,$G27) -> 0 | D27: =SUMPRODUCT((InMoment_Data_Type=$A27)*(InMoment_Data_Period=$F27)*(InMoment_Data_Year=$G27)*InMoment_Data_Pace*InMoment_Data_Count)/SUMIFS('Database PTD'!$P:$P,'Database PTD'!$T:$T,$A27,'Database PTD'!$R:$R,$F27,'Database PTD'!$S:$S,$G27) -> 59.61821906 | E27: =SUMPRODUCT((InMoment_Data_Type=$A27)*(InMoment_Data_Period=$F27)*(InMoment_Data_Year=$G27)*InMoment_Data_Food*InMoment_Data_Count)/SUMIFS('Database PTD'!$P:$P,'Database PTD'!$T:$T,$A27,'Database PTD'!$R:$R,$F27,'Database PTD'!$S:$S,$G27) -> 60.44071084 | F27: 4 | G27: 2016 | H27: '16 P04
A28: DFG | B28: =SUMPRODUCT((InMoment_Data_Type=$A28)*(InMoment_Data_Period=$F28)*(InMoment_Data_Year=$G28)*InMoment_Data_Overall*InMoment_Data_Count)/SUMIFS('Database PTD'!$P:$P,'Database PTD'!$T:$T,$A28,'Database PTD'!$R:$R,$F28,'Database PTD'!$S:$S,$G28) -> 51.38003441 | C28: =SUMPRODUCT((InMoment_Data_Type=$A28)*(InMoment_Data_Period=$F28)*(InMoment_Data_Year=$G28)*InMoment_Data_Recommend*InMoment_Data_Count)/SUMIFS('Database PTD'!$P:$P,'Database PTD'!$T:$T,$A28,'Database PTD'!$R:$R,$F28,'Database PTD'!$S:$S,$G28) -> 0 | D28: =SUMPRODUCT((InMoment_Data_Type=$A28)*(InMoment_Data_Period=$F28)*(InMoment_Data_Year=$G28)*InMoment_Data_Pace*InMoment_Data_Count)/SUMIFS('Database PTD'!$P:$P,'Database PTD'!$T:$T,$A28,'Database PTD'!$R:$R,$F28,'Database PTD'!$S:$S,$G28) -> 53.35921754 | E28: =SUMPRODUCT((InMoment_Data_Type=$A28)*(InMoment_Data_Period=$F28)*(InMoment_Data_Year=$G28)*InMoment_Data_Food*InMoment_Data_Count)/SUMIFS('Database PTD'!$P:$P,'Database PTD'!$T:$T,$A28,'Database PTD'!$R:$R,$F28,'Database PTD'!$S:$S,$G28) -> 53.6554717 | F28: 4 | G28: 2016 | H28: '16 P04
A29: DFRG | B29: =SUMPRODUCT((InMoment_Data_Period=$F29)*(InMoment_Data_Year=$G29)*InMoment_Data_Overall*InMoment_Data_Count)/SUMIFS('Database PTD'!$P:$P,'Database PTD'!$R:$R,$F29,'Database PTD'!$S:$S,$G29) -> 53.76675582 | C29: =SUMPRODUCT((InMoment_Data_Period=$F29)*(InMoment_Data_Year=$G29)*InMoment_Data_Recommend*InMoment_Data_Count)/SUMIFS('Database PTD'!$P:$P,'Database PTD'!$R:$R,$F29,'Database PTD'!$S:$S,$G29) -> 0 | D29: =SUMPRODUCT((InMoment_Data_Period=$F29)*(InMoment_Data_Year=$G29)*InMoment_Data_Pace*InMoment_Data_Count)/SUMIFS('Database PTD'!$P:$P,'Database PTD'!$R:$R,$F29,'Database PTD'!$S:$S,$G29) -> 55.4045127 | E29: =SUMPRODUCT((InMoment_Data_Period=$F29)*(InMoment_Data_Year=$G29)*InMoment_Data_Food*InMoment_Data_Count)/SUMIFS('Database PTD'!$P:$P,'Database PTD'!$R:$R,$F29,'Database PTD'!$S:$S,$G29) -> 56.91449577 | F29: 4 | G29: 2016 | H29: '16 P04
A30: DFDE | B30: =SUMPRODUCT((InMoment_Data_Type=$A30)*(InMoment_Data_Period=$F30)*(InMoment_Data_Year=$G30)*InMoment_Data_Overall*InMoment_Data_Count)/SUMIFS('Database PTD'!$P:$P,'Database PTD'!$T:$T,$A30,'Database PTD'!$R:$R,$F30,'Database PTD'!$S:$S,$G30) -> 55.01384503 | C30: =SUMPRODUCT((InMoment_Data_Type=$A30)*(InMoment_Data_Period=$F30)*(InMoment_Data_Year=$G30)*InMoment_Data_Recommend*InMoment_Data_Count)/SUMIFS('Database PTD'!$P:$P,'Database PTD'!$T:$T,$A30,'Database PTD'!$R:$R,$F30,'Database PTD'!$S:$S,$G30) -> 0 | D30: =SUMPRODUCT((InMoment_Data_Type=$A30)*(InMoment_Data_Period=$F30)*(InMoment_Data_Year=$G30)*InMoment_Data_Pace*InMoment_Data_Count)/SUMIFS('Database PTD'!$P:$P,'Database PTD'!$T:$T,$A30,'Database PTD'!$R:$R,$F30,'Database PTD'!$S:$S,$G30) -> 55.38456628 | E30: =SUMPRODUCT((InMoment_Data_Type=$A30)*(InMoment_Data_Period=$F30)*(InMoment_Data_Year=$G30)*InMoment_Data_Food*InMoment_Data_Count)/SUMIFS('Database PTD'!$P:$P,'Database PTD'!$T:$T,$A30,'Database PTD'!$R:$R,$F30,'Database PTD'!$S:$S,$G30) -> 58.50078947 | F30: 5 | G30: 2016 | H30: '16 P05
A31: SULL | B31: =SUMPRODUCT((InMoment_Data_Type=$A31)*(InMoment_Data_Period=$F31)*(InMoment_Data_Year=$G31)*InMoment_Data_Overall*InMoment_Data_Count)/SUMIFS('Database PTD'!$P:$P,'Database PTD'!$T:$T,$A31,'Database PTD'!$R:$R,$F31,'Database PTD'!$S:$S,$G31) -> 50.91667532 | C31: =SUMPRODUCT((InMoment_Data_Type=$A31)*(InMoment_Data_Period=$F31)*(InMoment_Data_Year=$G31)*InMoment_Data_Recommend*InMoment_Data_Count)/SUMIFS('Database PTD'!$P:$P,'Database PTD'!$T:$T,$A31,'Database PTD'!$R:$R,$F31,'Database PTD'!$S:$S,$G31) -> 0 | D31: =SUMPRODUCT((InMoment_Data_Type=$A31)*(InMoment_Data_Period=$F31)*(InMoment_Data_Year=$G31)*InMoment_Data_Pace*InMoment_Data_Count)/SUMIFS('Database PTD'!$P:$P,'Database PTD'!$T:$T,$A31,'Database PTD'!$R:$R,$F31,'Database PTD'!$S:$S,$G31) -> 53.21180087 | E31: =SUMPRODUCT((InMoment_Data_Type=$A31)*(InMoment_Data_Period=$F31)*(InMoment_Data_Year=$G31)*InMoment_Data_Food*InMoment_Data_Count)/SUMIFS('Database PTD'!$P:$P,'Database PTD'!$T:$T,$A31,'Database PTD'!$R:$R,$F31,'Database PTD'!$S:$S,$G31) -> 53.55545779 | F31: 5 | G31: 2016 | H31: '16 P05
A32: DFG | B32: =SUMPRODUCT((InMoment_Data_Type=$A32)*(InMoment_Data_Period=$F32)*(InMoment_Data_Year=$G32)*InMoment_Data_Overall*InMoment_Data_Count)/SUMIFS('Database PTD'!$P:$P,'Database PTD'!$T:$T,$A32,'Database PTD'!$R:$R,$F32,'Database PTD'!$S:$S,$G32) -> 55.64670056 | C32: =SUMPRODUCT((InMoment_Data_Type=$A32)*(InMoment_Data_Period=$F32)*(InMoment_Data_Year=$G32)*InMoment_Data_Recommend*InMoment_Data_Count)/SUMIFS('Database PTD'!$P:$P,'Database PTD'!$T:$T,$A32,'Database PTD'!$R:$R,$F32,'Database PTD'!$S:$S,$G32) -> 0 | D32: =SUMPRODUCT((InMoment_Data_Type=$A32)*(InMoment_Data_Period=$F32)*(InMoment_Data_Year=$G32)*InMoment_Data_Pace*InMoment_Data_Count)/SUMIFS('Database PTD'!$P:$P,'Database PTD'!$T:$T,$A32,'Database PTD'!$R:$R,$F32,'Database PTD'!$S:$S,$G32) -> 57.99553672 | E32: =SUMPRODUCT((InMoment_Data_Type=$A32)*(InMoment_Data_Period=$F32)*(InMoment_Data_Year=$G32)*InMoment_Data_Food*InMoment_Data_Count)/SUMIFS('Database PTD'!$P:$P,'Database PTD'!$T:$T,$A32,'Database PTD'!$R:$R,$F32,'Database PTD'!$S:$S,$G32) -> 58.21815367 | F32: 5 | G32: 2016 | H32: '16 P05
A33: DFRG | B33: =SUMPRODUCT((InMoment_Data_Period=$F33)*(InMoment_Data_Year=$G33)*InMoment_Data_Overall*InMoment_Data_Count)/SUMIFS('Database PTD'!$P:$P,'Database PTD'!$R:$R,$F33,'Database PTD'!$S:$S,$G33) -> 53.87602928 | C33: =SUMPRODUCT((InMoment_Data_Period=$F33)*(InMoment_Data_Year=$G33)*InMoment_Data_Recommend*InMoment_Data_Count)/SUMIFS('Database PTD'!$P:$P,'Database PTD'!$R:$R,$F33,'Database PTD'!$S:$S,$G33) -> 0 | D33: =SUMPRODUCT((InMoment_Data_Period=$F33)*(InMoment_Data_Year=$G33)*InMoment_Data_Pace*InMoment_Data_Count)/SUMIFS('Database PTD'!$P:$P,'Database PTD'!$R:$R,$F33,'Database PTD'!$S:$S,$G33) -> 55.49147055 | E33: =SUMPRODUCT((InMoment_Data_Period=$F33)*(InMoment_Data_Year=$G33)*InMoment_Data_Food*InMoment_Data_Count)/SUMIFS('Database PTD'!$P:$P,'Database PTD'!$R:$R,$F33,'Database PTD'!$S:$S,$G33) -> 56.80074744 | F33: 5 | G33: 2016 | H33: '16 P05
A34: DFDE | B34: =SUMPRODUCT((InMoment_Data_Type=$A34)*(InMoment_Data_Period=$F34)*(InMoment_Data_Year=$G34)*InMoment_Data_Overall*InMoment_Data_Count)/SUMIFS('Database PTD'!$P:$P,'Database PTD'!$T:$T,$A34,'Database PTD'!$R:$R,$F34,'Database PTD'!$S:$S,$G34) -> 54.50057431 | C34: =SUMPRODUCT((InMoment_Data_Type=$A34)*(InMoment_Data_Period=$F34)*(InMoment_Data_Year=$G34)*InMoment_Data_Recommend*InMoment_Data_Count)/SUMIFS('Database PTD'!$P:$P,'Database PTD'!$T:$T,$A34,'Database PTD'!$R:$R,$F34,'Database PTD'!$S:$S,$G34) -> 0 | D34: =SUMPRODUCT((InMoment_Data_Type=$A34)*(InMoment_Data_Period=$F34)*(InMoment_Data_Year=$G34)*InMoment_Data_Pace*InMoment_Data_Count)/SUMIFS('Database PTD'!$P:$P,'Database PTD'!$T:$T,$A34,'Database PTD'!$R:$R,$F34,'Database PTD'!$S:$S,$G34) -> 56.52934383 | E34: =SUMPRODUCT((InMoment_Data_Type=$A34)*(InMoment_Data_Period=$F34)*(InMoment_Data_Year=$G34)*InMoment_Data_Food*InMoment_Data_Count)/SUMIFS('Database PTD'!$P:$P,'Database PTD'!$T:$T,$A34,'Database PTD'!$R:$R,$F34,'Database PTD'!$S:$S,$G34) -> 57.80324181 | F34: 6 | G34: 2016 | H34: ="'"&MID(G34,3,2)&" P"&IF(F34<10,"0","")&F34 -> '16 P06
A35: SULL | B35: =SUMPRODUCT((InMoment_Data_Type=$A35)*(InMoment_Data_Period=$F35)*(InMoment_Data_Year=$G35)*InMoment_Data_Overall*InMoment_Data_Count)/SUMIFS('Database PTD'!$P:$P,'Database PTD'!$T:$T,$A35,'Database PTD'!$R:$R,$F35,'Database PTD'!$S:$S,$G35) -> 53.6758599 | C35: =SUMPRODUCT((InMoment_Data_Type=$A35)*(InMoment_Data_Period=$F35)*(InMoment_Data_Year=$G35)*InMoment_Data_Recommend*InMoment_Data_Count)/SUMIFS('Database PTD'!$P:$P,'Database PTD'!$T:$T,$A35,'Database PTD'!$R:$R,$F35,'Database PTD'!$S:$S,$G35) -> 0 | D35: =SUMPRODUCT((InMoment_Data_Type=$A35)*(InMoment_Data_Period=$F35)*(InMoment_Data_Year=$G35)*InMoment_Data_Pace*InMoment_Data_Count)/SUMIFS('Database PTD'!$P:$P,'Database PTD'!$T:$T,$A35,'Database PTD'!$R:$R,$F35,'Database PTD'!$S:$S,$G35) -> 54.4384219 | E35: =SUMPRODUCT((InMoment_Data_Type=$A35)*(InMoment_Data_Period=$F35)*(InMoment_Data_Year=$G35)*InMoment_Data_Food*InMoment_Data_Count)/SUMIFS('Database PTD'!$P:$P,'Database PTD'!$T:$T,$A35,'Database PTD'!$R:$R,$F35,'Database PTD'!$S:$S,$G35) -> 54.60821256 | F35: 6 | G35: 2016 | H35: '16 P06
A36: DFG | B36: =SUMPRODUCT((InMoment_Data_Type=$A36)*(InMoment_Data_Period=$F36)*(InMoment_Data_Year=$G36)*InMoment_Data_Overall*InMoment_Data_Count)/SUMIFS('Database PTD'!$P:$P,'Database PTD'!$T:$T,$A36,'Database PTD'!$R:$R,$F36,'Database PTD'!$S:$S,$G36) -> 55.31577057 | C36: =SUMPRODUCT((InMoment_Data_Type=$A36)*(InMoment_Data_Period=$F36)*(InMoment_Data_Year=$G36)*InMoment_Data_Recommend*InMoment_Data_Count)/SUMIFS('Database PTD'!$P:$P,'Database PTD'!$T:$T,$A36,'Database PTD'!$R:$R,$F36,'Database PTD'!$S:$S,$G36) -> 0 | D36: =SUMPRODUCT((InMoment_Data_Type=$A36)*(InMoment_Data_Period=$F36)*(InMoment_Data_Year=$G36)*InMoment_Data_Pace*InMoment_Data_Count)/SUMIFS('Database PTD'!$P:$P,'Database PTD'!$T:$T,$A36,'Database PTD'!$R:$R,$F36,'Database PTD'!$S:$S,$G36) -> 56.76161867 | E36: =SUMPRODUCT((InMoment_Data_Type=$A36)*(InMoment_Data_Period=$F36)*(InMoment_Data_Year=$G36)*InMoment_Data_Food*InMoment_Data_Count)/SUMIFS('Database PTD'!$P:$P,'Database PTD'!$T:$T,$A36,'Database PTD'!$R:$R,$F36,'Database PTD'!$S:$S,$G36) -> 57.02460285 | F36: 6 | G36: 2016 | H36: '16 P06
A37: DFRG | B37: =SUMPRODUCT((InMoment_Data_Period=$F37)*(InMoment_Data_Year=$G37)*InMoment_Data_Overall*InMoment_Data_Count)/SUMIFS('Database PTD'!$P:$P,'Database PTD'!$R:$R,$F37,'Database PTD'!$S:$S,$G37) -> 54.50206742 | C37: =SUMPRODUCT((InMoment_Data_Period=$F37)*(InMoment_Data_Year=$G37)*InMoment_Data_Recommend*InMoment_Data_Count)/SUMIFS('Database PTD'!$P:$P,'Database PTD'!$R:$R,$F37,'Database PTD'!$S:$S,$G37) -> 0 | D37: =SUMPRODUCT((InMoment_Data_Period=$F37)*(InMoment_Data_Year=$G37)*InMoment_Data_Pace*InMoment_Data_Count)/SUMIFS('Database PTD'!$P:$P,'Database PTD'!$R:$R,$F37,'Database PTD'!$S:$S,$G37) -> 55.96673278 | E37: =SUMPRODUCT((InMoment_Data_Period=$F37)*(InMoment_Data_Year=$G37)*InMoment_Data_Food*InMoment_Data_Count)/SUMIFS('Database PTD'!$P:$P,'Database PTD'!$R:$R,$F37,'Database PTD'!$S:$S,$G37) -> 56.59356277 | F37: 6 | G37: 2016 | H37: '16 P06
A38: DFDE | B38: =SUMPRODUCT((InMoment_Data_Type=$A38)*(InMoment_Data_Period=$F38)*(InMoment_Data_Year=$G38)*InMoment_Data_Overall*InMoment_Data_Count)/SUMIFS('Database PTD'!$P:$P,'Database PTD'!$T:$T,$A38,'Database PTD'!$R:$R,$F38,'Database PTD'!$S:$S,$G38) -> 50.90743885 | C38: =SUMPRODUCT((InMoment_Data_Type=$A38)*(InMoment_Data_Period=$F38)*(InMoment_Data_Year=$G38)*InMoment_Data_Recommend*InMoment_Data_Count)/SUMIFS('Database PTD'!$P:$P,'Database PTD'!$T:$T,$A38,'Database PTD'!$R:$R,$F38,'Database PTD'!$S:$S,$G38) -> 0 | D38: =SUMPRODUCT((InMoment_Data_Type=$A38)*(InMoment_Data_Period=$F38)*(InMoment_Data_Year=$G38)*InMoment_Data_Pace*InMoment_Data_Count)/SUMIFS('Database PTD'!$P:$P,'Database PTD'!$T:$T,$A38,'Database PTD'!$R:$R,$F38,'Database PTD'!$S:$S,$G38) -> 53.78409113 | E38: =SUMPRODUCT((InMoment_Data_Type=$A38)*(InMoment_Data_Period=$F38)*(InMoment_Data_Year=$G38)*InMoment_Data_Food*InMoment_Data_Count)/SUMIFS('Database PTD'!$P:$P,'Database PTD'!$T:$T,$A38,'Database PTD'!$R:$R,$F38,'Database PTD'!$S:$S,$G38) -> 54.8222446 | F38: =IF(F34=13,1,F34+1) -> 7 | G38: =IF(F34=13,G34+1,G34) -> 2016 | H38: '16 P07
A39: SULL | B39: =SUMPRODUCT((InMoment_Data_Type=$A39)*(InMoment_Data_Period=$F39)*(InMoment_Data_Year=$G39)*InMoment_Data_Overall*InMoment_Data_Count)/SUMIFS('Database PTD'!$P:$P,'Database PTD'!$T:$T,$A39,'Database PTD'!$R:$R,$F39,'Database PTD'!$S:$S,$G39) -> 57.46806338 | C39: =SUMPRODUCT((InMoment_Data_Type=$A39)*(InMoment_Data_Period=$F39)*(InMoment_Data_Year=$G39)*InMoment_Data_Recommend*InMoment_Data_Count)/SUMIFS('Database PTD'!$P:$P,'Database PTD'!$T:$T,$A39,'Database PTD'!$R:$R,$F39,'Database PTD'!$S:$S,$G39) -> 0 | D39: =SUMPRODUCT((InMoment_Data_Type=$A39)*(InMoment_Data_Period=$F39)*(InMoment_Data_Year=$G39)*InMoment_Data_Pace*InMoment_Data_Count)/SUMIFS('Database PTD'!$P:$P,'Database PTD'!$T:$T,$A39,'Database PTD'!$R:$R,$F39,'Database PTD'!$S:$S,$G39) -> 59.48572817 | E39: =SUMPRODUCT((InMoment_Data_Type=$A39)*(InMoment_Data_Period=$F39)*(InMoment_Data_Year=$G39)*InMoment_Data_Food*InMoment_Data_Count)/SUMIFS('Database PTD'!$P:$P,'Database PTD'!$T:$T,$A39,'Database PTD'!$R:$R,$F39,'Database PTD'!$S:$S,$G39) -> 60.6570338 | F39: 7 | G39: 2016 | H39: '16 P07
A40: DFG | B40: =SUMPRODUCT((InMoment_Data_Type=$A40)*(InMoment_Data_Period=$F40)*(InMoment_Data_Year=$G40)*InMoment_Data_Overall*InMoment_Data_Count)/SUMIFS('Database PTD'!$P:$P,'Database PTD'!$T:$T,$A40,'Database PTD'!$R:$R,$F40,'Database PTD'!$S:$S,$G40) -> 53.36576636 | C40: =SUMPRODUCT((InMoment_Data_Type=$A40)*(InMoment_Data_Period=$F40)*(InMoment_Data_Year=$G40)*InMoment_Data_Recommend*InMoment_Data_Count)/SUMIFS('Database PTD'!$P:$P,'Database PTD'!$T:$T,$A40,'Database PTD'!$R:$R,$F40,'Database PTD'!$S:$S,$G40) -> 0 | D40: =SUMPRODUCT((InMoment_Data_Type=$A40)*(InMoment_Data_Period=$F40)*(InMoment_Data_Year=$G40)*InMoment_Data_Pace*InMoment_Data_Count)/SUMIFS('Database PTD'!$P:$P,'Database PTD'!$T:$T,$A40,'Database PTD'!$R:$R,$F40,'Database PTD'!$S:$S,$G40) -> 55.16600623 | E40: =SUMPRODUCT((InMoment_Data_Type=$A40)*(InMoment_Data_Period=$F40)*(InMoment_Data_Year=$G40)*InMoment_Data_Food*InMoment_Data_Count)/SUMIFS('Database PTD'!$P:$P,'Database PTD'!$T:$T,$A40,'Database PTD'!$R:$R,$F40,'Database PTD'!$S:$S,$G40) -> 53.91854206 | F40: 7 | G40: 2016 | H40: '16 P07
A41: DFRG | B41: =SUMPRODUCT((InMoment_Data_Period=$F41)*(InMoment_Data_Year=$G41)*InMoment_Data_Overall*InMoment_Data_Count)/SUMIFS('Database PTD'!$P:$P,'Database PTD'!$R:$R,$F41,'Database PTD'!$S:$S,$G41) -> 53.76027036 | C41: =SUMPRODUCT((InMoment_Data_Period=$F41)*(InMoment_Data_Year=$G41)*InMoment_Data_Recommend*InMoment_Data_Count)/SUMIFS('Database PTD'!$P:$P,'Database PTD'!$R:$R,$F41,'Database PTD'!$S:$S,$G41) -> 0 | D41: =SUMPRODUCT((InMoment_Data_Period=$F41)*(InMoment_Data_Year=$G41)*InMoment_Data_Pace*InMoment_Data_Count)/SUMIFS('Database PTD'!$P:$P,'Database PTD'!$R:$R,$F41,'Database PTD'!$S:$S,$G41) -> 56.04180009 | E41: =SUMPRODUCT((InMoment_Data_Period=$F41)*(InMoment_Data_Year=$G41)*InMoment_Data_Food*InMoment_Data_Count)/SUMIFS('Database PTD'!$P:$P,'Database PTD'!$R:$R,$F41,'Database PTD'!$S:$S,$G41) -> 56.45194419 | F41: 7 | G41: 2016 | H41: '16 P07
A42: DFDE | B42: =SUMPRODUCT((InMoment_Data_Type=$A42)*(InMoment_Data_Period=$F42)*(InMoment_Data_Year=$G42)*InMoment_Data_Overall*InMoment_Data_Count)/SUMIFS('Database PTD'!$P:$P,'Database PTD'!$T:$T,$A42,'Database PTD'!$R:$R,$F42,'Database PTD'!$S:$S,$G42) -> 58.81120291 | C42: =SUMPRODUCT((InMoment_Data_Type=$A42)*(InMoment_Data_Period=$F42)*(InMoment_Data_Year=$G42)*InMoment_Data_Recommend*InMoment_Data_Count)/SUMIFS('Database PTD'!$P:$P,'Database PTD'!$T:$T,$A42,'Database PTD'!$R:$R,$F42,'Database PTD'!$S:$S,$G42) -> 0 | D42: =SUMPRODUCT((InMoment_Data_Type=$A42)*(InMoment_Data_Period=$F42)*(InMoment_Data_Year=$G42)*InMoment_Data_Pace*InMoment_Data_Count)/SUMIFS('Database PTD'!$P:$P,'Database PTD'!$T:$T,$A42,'Database PTD'!$R:$R,$F42,'Database PTD'!$S:$S,$G42) -> 61.94950045 | E42: =SUMPRODUCT((InMoment_Data_Type=$A42)*(InMoment_Data_Period=$F42)*(InMoment_Data_Year=$G42)*InMoment_Data_Food*InMoment_Data_Count)/SUMIFS('Database PTD'!$P:$P,'Database PTD'!$T:$T,$A42,'Database PTD'!$R:$R,$F42,'Database PTD'!$S:$S,$G42) -> 63.81479436 | F42: 8 | G42: 2016 | H42: '16 P08
A43: SULL | B43: =SUMPRODUCT((InMoment_Data_Type=$A43)*(InMoment_Data_Period=$F43)*(InMoment_Data_Year=$G43)*InMoment_Data_Overall*InMoment_Data_Count)/SUMIFS('Database PTD'!$P:$P,'Database PTD'!$T:$T,$A43,'Database PTD'!$R:$R,$F43,'Database PTD'!$S:$S,$G43) -> 58.44414105 | C43: =SUMPRODUCT((InMoment_Data_Type=$A43)*(InMoment_Data_Period=$F43)*(InMoment_Data_Year=$G43)*InMoment_Data_Recommend*InMoment_Data_Count)/SUMIFS('Database PTD'!$P:$P,'Database PTD'!$T:$T,$A43,'Database PTD'!$R:$R,$F43,'Database PTD'!$S:$S,$G43) -> 0 | D43: =SUMPRODUCT((InMoment_Data_Type=$A43)*(InMoment_Data_Period=$F43)*(InMoment_Data_Year=$G43)*InMoment_Data_Pace*InMoment_Data_Count)/SUMIFS('Database PTD'!$P:$P,'Database PTD'!$T:$T,$A43,'Database PTD'!$R:$R,$F43,'Database PTD'!$S:$S,$G43) -> 60.71036609 | E43: =SUMPRODUCT((InMoment_Data_Type=$A43)*(InMoment_Data_Period=$F43)*(InMoment_Data_Year=$G43)*InMoment_Data_Food*InMoment_Data_Count)/SUMIFS('Database PTD'!$P:$P,'Database PTD'!$T:$T,$A43,'Database PTD'!$R:$R,$F43,'Database PTD'!$S:$S,$G43) -> 58.74110301 | F43: 8 | G43: 2016 | H43: '16 P08
A44: DFG | B44: =SUMPRODUCT((InMoment_Data_Type=$A44)*(InMoment_Data_Period=$F44)*(InMoment_Data_Year=$G44)*InMoment_Data_Overall*InMoment_Data_Count)/SUMIFS('Database PTD'!$P:$P,'Database PTD'!$T:$T,$A44,'Database PTD'!$R:$R,$F44,'Database PTD'!$S:$S,$G44) -> 55.11150365 | C44: =SUMPRODUCT((InMoment_Data_Type=$A44)*(InMoment_Data_Period=$F44)*(InMoment_Data_Year=$G44)*InMoment_Data_Recommend*InMoment_Data_Count)/SUMIFS('Database PTD'!$P:$P,'Database PTD'!$T:$T,$A44,'Database PTD'!$R:$R,$F44,'Database PTD'!$S:$S,$G44) -> 0 | D44: =SUMPRODUCT((InMoment_Data_Type=$A44)*(InMoment_Data_Period=$F44)*(InMoment_Data_Year=$G44)*InMoment_Data_Pace*InMoment_Data_Count)/SUMIFS('Database PTD'!$P:$P,'Database PTD'!$T:$T,$A44,'Database PTD'!$R:$R,$F44,'Database PTD'!$S:$S,$G44) -> 55.42432701 | E44: =SUMPRODUCT((InMoment_Data_Type=$A44)*(InMoment_Data_Period=$F44)*(InMoment_Data_Year=$G44)*InMoment_Data_Food*InMoment_Data_Count)/SUMIFS('Database PTD'!$P:$P,'Database PTD'!$T:$T,$A44,'Database PTD'!$R:$R,$F44,'Database PTD'!$S:$S,$G44) -> 55.86399854 | F44: 8 | G44: 2016 | H44: '16 P08
A45: DFRG | B45: =SUMPRODUCT((InMoment_Data_Period=$F45)*(InMoment_Data_Year=$G45)*InMoment_Data_Overall*InMoment_Data_Count)/SUMIFS('Database PTD'!$P:$P,'Database PTD'!$R:$R,$F45,'Database PTD'!$S:$S,$G45) -> 57.66589855 | C45: =SUMPRODUCT((InMoment_Data_Period=$F45)*(InMoment_Data_Year=$G45)*InMoment_Data_Recommend*InMoment_Data_Count)/SUMIFS('Database PTD'!$P:$P,'Database PTD'!$R:$R,$F45,'Database PTD'!$S:$S,$G45) -> 0 | D45: =SUMPRODUCT((InMoment_Data_Period=$F45)*(InMoment_Data_Year=$G45)*InMoment_Data_Pace*InMoment_Data_Count)/SUMIFS('Database PTD'!$P:$P,'Database PTD'!$R:$R,$F45,'Database PTD'!$S:$S,$G45) -> 59.77490932 | E45: =SUMPRODUCT((InMoment_Data_Period=$F45)*(InMoment_Data_Year=$G45)*InMoment_Data_Food*InMoment_Data_Count)/SUMIFS('Database PTD'!$P:$P,'Database PTD'!$R:$R,$F45,'Database PTD'!$S:$S,$G45) -> 60.23392712 | F45: 8 | G45: 2016 | H45: '16 P08
A46: DFDE | B46: =SUMPRODUCT((InMoment_Data_Type=$A46)*(InMoment_Data_Period=$F46)*(InMoment_Data_Year=$G46)*InMoment_Data_Overall*InMoment_Data_Count)/SUMIFS('Database PTD'!$P:$P,'Database PTD'!$T:$T,$A46,'Database PTD'!$R:$R,$F46,'Database PTD'!$S:$S,$G46) -> 55.44634218 | C46: =SUMPRODUCT((InMoment_Data_Type=$A46)*(InMoment_Data_Period=$F46)*(InMoment_Data_Year=$G46)*InMoment_Data_Recommend*InMoment_Data_Count)/SUMIFS('Database PTD'!$P:$P,'Database PTD'!$T:$T,$A46,'Database PTD'!$R:$R,$F46,'Database PTD'!$S:$S,$G46) -> 0 | D46: =SUMPRODUCT((InMoment_Data_Type=$A46)*(InMoment_Data_Period=$F46)*(InMoment_Data_Year=$G46)*InMoment_Data_Pace*InMoment_Data_Count)/SUMIFS('Database PTD'!$P:$P,'Database PTD'!$T:$T,$A46,'Database PTD'!$R:$R,$F46,'Database PTD'!$S:$S,$G46) -> 57.55597346 | E46: =SUMPRODUCT((InMoment_Data_Type=$A46)*(InMoment_Data_Period=$F46)*(InMoment_Data_Year=$G46)*InMoment_Data_Food*InMoment_Data_Count)/SUMIFS('Database PTD'!$P:$P,'Database PTD'!$T:$T,$A46,'Database PTD'!$R:$R,$F46,'Database PTD'!$S:$S,$G46) -> 61.82458768 | F46: 9 | G46: 2016 | H46: '16 P09
A47: SULL | B47: =SUMPRODUCT((InMoment_Data_Type=$A47)*(InMoment_Data_Period=$F47)*(InMoment_Data_Year=$G47)*InMoment_Data_Overall*InMoment_Data_Count)/SUMIFS('Database PTD'!$P:$P,'Database PTD'!$T:$T,$A47,'Database PTD'!$R:$R,$F47,'Database PTD'!$S:$S,$G47) -> 57.60307392 | C47: =SUMPRODUCT((InMoment_Data_Type=$A47)*(InMoment_Data_Period=$F47)*(InMoment_Data_Year=$G47)*InMoment_Data_Recommend*InMoment_Data_Count)/SUMIFS('Database PTD'!$P:$P,'Database PTD'!$T:$T,$A47,'Database PTD'!$R:$R,$F47,'Database PTD'!$S:$S,$G47) -> 0 | D47: =SUMPRODUCT((InMoment_Data_Type=$A47)*(InMoment_Data_Period=$F47)*(InMoment_Data_Year=$G47)*InMoment_Data_Pace*InMoment_Data_Count)/SUMIFS('Database PTD'!$P:$P,'Database PTD'!$T:$T,$A47,'Database PTD'!$R:$R,$F47,'Database PTD'!$S:$S,$G47) -> 59.56261646 | E47: =SUMPRODUCT((InMoment_Data_Type=$A47)*(InMoment_Data_Period=$F47)*(InMoment_Data_Year=$G47)*InMoment_Data_Food*InMoment_Data_Count)/SUMIFS('Database PTD'!$P:$P,'Database PTD'!$T:$T,$A47,'Database PTD'!$R:$R,$F47,'Database PTD'!$S:$S,$G47) -> 60.8591311 | F47: 9 | G47: 2016 | H47: '16 P09
A48: DFG | B48: =SUMPRODUCT((InMoment_Data_Type=$A48)*(InMoment_Data_Period=$F48)*(InMoment_Data_Year=$G48)*InMoment_Data_Overall*InMoment_Data_Count)/SUMIFS('Database PTD'!$P:$P,'Database PTD'!$T:$T,$A48,'Database PTD'!$R:$R,$F48,'Database PTD'!$S:$S,$G48) -> 54.96517972 | C48: =SUMPRODUCT((InMoment_Data_Type=$A48)*(InMoment_Data_Period=$F48)*(InMoment_Data_Year=$G48)*InMoment_Data_Recommend*InMoment_Data_Count)/SUMIFS('Database PTD'!$P:$P,'Database PTD'!$T:$T,$A48,'Database PTD'!$R:$R,$F48,'Database PTD'!$S:$S,$G48) -> 0 | D48: =SUMPRODUCT((InMoment_Data_Type=$A48)*(InMoment_Data_Period=$F48)*(InMoment_Data_Year=$G48)*InMoment_Data_Pace*InMoment_Data_Count)/SUMIFS('Database PTD'!$P:$P,'Database PTD'!$T:$T,$A48,'Database PTD'!$R:$R,$F48,'Database PTD'!$S:$S,$G48) -> 56.9348742 | E48: =SUMPRODUCT((InMoment_Data_Type=$A48)*(InMoment_Data_Period=$F48)*(InMoment_Data_Year=$G48)*InMoment_Data_Food*InMoment_Data_Count)/SUMIFS('Database PTD'!$P:$P,'Database PTD'!$T:$T,$A48,'Database PTD'!$R:$R,$F48,'Database PTD'!$S:$S,$G48) -> 58.57458151 | F48: 9 | G48: 2016 | H48: '16 P09
A49: DFRG | B49: =SUMPRODUCT((InMoment_Data_Period=$F49)*(InMoment_Data_Year=$G49)*InMoment_Data_Overall*InMoment_Data_Count)/SUMIFS('Database PTD'!$P:$P,'Database PTD'!$R:$R,$F49,'Database PTD'!$S:$S,$G49) -> 55.90559388 | C49: =SUMPRODUCT((InMoment_Data_Period=$F49)*(InMoment_Data_Year=$G49)*InMoment_Data_Recommend*InMoment_Data_Count)/SUMIFS('Database PTD'!$P:$P,'Database PTD'!$R:$R,$F49,'Database PTD'!$S:$S,$G49) -> 0 | D49: =SUMPRODUCT((InMoment_Data_Period=$F49)*(InMoment_Data_Year=$G49)*InMoment_Data_Pace*InMoment_Data_Count)/SUMIFS('Database PTD'!$P:$P,'Database PTD'!$R:$R,$F49,'Database PTD'!$S:$S,$G49) -> 57.93030772 | E49: =SUMPRODUCT((InMoment_Data_Period=$F49)*(InMoment_Data_Year=$G49)*InMoment_Data_Food*InMoment_Data_Count)/SUMIFS('Database PTD'!$P:$P,'Database PTD'!$R:$R,$F49,'Database PTD'!$S:$S,$G49) -> 60.5607746 | F49: 9 | G49: 2016 | H49: '16 P09
A50: DFDE | B50: =SUMPRODUCT((InMoment_Data_Type=$A50)*(InMoment_Data_Period=$F50)*(InMoment_Data_Year=$G50)*InMoment_Data_Overall*InMoment_Data_Count)/SUMIFS('Database PTD'!$P:$P,'Database PTD'!$T:$T,$A50,'Database PTD'!$R:$R,$F50,'Database PTD'!$S:$S,$G50) -> 58.41226361 | C50: =SUMPRODUCT((InMoment_Data_Type=$A50)*(InMoment_Data_Period=$F50)*(InMoment_Data_Year=$G50)*InMoment_Data_Recommend*InMoment_Data_Count)/SUMIFS('Database PTD'!$P:$P,'Database PTD'!$T:$T,$A50,'Database PTD'!$R:$R,$F50,'Database PTD'!$S:$S,$G50) -> 0 | D50: =SUMPRODUCT((InMoment_Data_Type=$A50)*(InMoment_Data_Period=$F50)*(InMoment_Data_Year=$G50)*InMoment_Data_Pace*InMoment_Data_Count)/SUMIFS('Database PTD'!$P:$P,'Database PTD'!$T:$T,$A50,'Database PTD'!$R:$R,$F50,'Database PTD'!$S:$S,$G50) -> 58.41330203 | E50: =SUMPRODUCT((InMoment_Data_Type=$A50)*(InMoment_Data_Period=$F50)*(InMoment_Data_Year=$G50)*InMoment_Data_Food*InMoment_Data_Count)/SUMIFS('Database PTD'!$P:$P,'Database PTD'!$T:$T,$A50,'Database PTD'!$R:$R,$F50,'Database PTD'!$S:$S,$G50) -> 62.20736179 | F50: 10 | G50: 2016 | H50: '16 P10
A51: SULL | B51: =SUMPRODUCT((InMoment_Data_Type=$A51)*(InMoment_Data_Period=$F51)*(InMoment_Data_Year=$G51)*InMoment_Data_Overall*InMoment_Data_Count)/SUMIFS('Database PTD'!$P:$P,'Database PTD'!$T:$T,$A51,'Database PTD'!$R:$R,$F51,'Database PTD'!$S:$S,$G51) -> 53.9992402 | C51: =SUMPRODUCT((InMoment_Data_Type=$A51)*(InMoment_Data_Period=$F51)*(InMoment_Data_Year=$G51)*InMoment_Data_Recommend*InMoment_Data_Count)/SUMIFS('Database PTD'!$P:$P,'Database PTD'!$T:$T,$A51,'Database PTD'!$R:$R,$F51,'Database PTD'!$S:$S,$G51) -> 0 | D51: =SUMPRODUCT((InMoment_Data_Type=$A51)*(InMoment_Data_Period=$F51)*(InMoment_Data_Year=$G51)*InMoment_Data_Pace*InMoment_Data_Count)/SUMIFS('Database PTD'!$P:$P,'Database PTD'!$T:$T,$A51,'Database PTD'!$R:$R,$F51,'Database PTD'!$S:$S,$G51) -> 53.44194208 | E51: =SUMPRODUCT((InMoment_Data_Type=$A51)*(InMoment_Data_Period=$F51)*(InMoment_Data_Year=$G51)*InMoment_Data_Food*InMoment_Data_Count)/SUMIFS('Database PTD'!$P:$P,'Database PTD'!$T:$T,$A51,'Database PTD'!$R:$R,$F51,'Database PTD'!$S:$S,$G51) -> 56.63667632 | F51: 10 | G51: 2016 | H51: '16 P10
A52: DFG | B52: =SUMPRODUCT((InMoment_Data_Type=$A52)*(InMoment_Data_Period=$F52)*(InMoment_Data_Year=$G52)*InMoment_Data_Overall*InMoment_Data_Count)/SUMIFS('Database PTD'!$P:$P,'Database PTD'!$T:$T,$A52,'Database PTD'!$R:$R,$F52,'Database PTD'!$S:$S,$G52) -> 56.00807821 | C52: =SUMPRODUCT((InMoment_Data_Type=$A52)*(InMoment_Data_Period=$F52)*(InMoment_Data_Year=$G52)*InMoment_Data_Recommend*InMoment_Data_Count)/SUMIFS('Database PTD'!$P:$P,'Database PTD'!$T:$T,$A52,'Database PTD'!$R:$R,$F52,'Database PTD'!$S:$S,$G52) -> 0 | D52: =SUMPRODUCT((InMoment_Data_Type=$A52)*(InMoment_Data_Period=$F52)*(InMoment_Data_Year=$G52)*InMoment_Data_Pace*InMoment_Data_Count)/SUMIFS('Database PTD'!$P:$P,'Database PTD'!$T:$T,$A52,'Database PTD'!$R:$R,$F52,'Database PTD'!$S:$S,$G52) -> 58.58444693 | E52: =SUMPRODUCT((InMoment_Data_Type=$A52)*(InMoment_Data_Period=$F52)*(InMoment_Data_Year=$G52)*InMoment_Data_Food*InMoment_Data_Count)/SUMIFS('Database PTD'!$P:$P,'Database PTD'!$T:$T,$A52,'Database PTD'!$R:$R,$F52,'Database PTD'!$S:$S,$G52) -> 59.11872067 | F52: 10 | G52: 2016 | H52: '16 P10
A53: DFRG | B53: =SUMPRODUCT((InMoment_Data_Period=$F53)*(InMoment_Data_Year=$G53)*InMoment_Data_Overall*InMoment_Data_Count)/SUMIFS('Database PTD'!$P:$P,'Database PTD'!$R:$R,$F53,'Database PTD'!$S:$S,$G53) -> 56.52895827 | C53: =SUMPRODUCT((InMoment_Data_Period=$F53)*(InMoment_Data_Year=$G53)*InMoment_Data_Recommend*InMoment_Data_Count)/SUMIFS('Database PTD'!$P:$P,'Database PTD'!$R:$R,$F53,'Database PTD'!$S:$S,$G53) -> 0 | D53: =SUMPRODUCT((InMoment_Data_Period=$F53)*(InMoment_Data_Year=$G53)*InMoment_Data_Pace*InMoment_Data_Count)/SUMIFS('Database PTD'!$P:$P,'Database PTD'!$R:$R,$F53,'Database PTD'!$S:$S,$G53) -> 57.04198544 | E53: =SUMPRODUCT((InMoment_Data_Period=$F53)*(InMoment_Data_Year=$G53)*InMoment_Data_Food*InMoment_Data_Count)/SUMIFS('Database PTD'!$P:$P,'Database PTD'!$R:$R,$F53,'Database PTD'!$S:$S,$G53) -> 59.81600194 | F53: 10 | G53: 2016 | H53: '16 P10
A54: DFDE | B54: =SUMPRODUCT((InMoment_Data_Type=$A54)*(InMoment_Data_Period=$F54)*(InMoment_Data_Year=$G54)*InMoment_Data_Overall*InMoment_Data_Count)/SUMIFS('Database PTD'!$P:$P,'Database PTD'!$T:$T,$A54,'Database PTD'!$R:$R,$F54,'Database PTD'!$S:$S,$G54) -> 54.46654923 | C54: =SUMPRODUCT((InMoment_Data_Type=$A54)*(InMoment_Data_Period=$F54)*(InMoment_Data_Year=$G54)*InMoment_Data_Recommend*InMoment_Data_Count)/SUMIFS('Database PTD'!$P:$P,'Database PTD'!$T:$T,$A54,'Database PTD'!$R:$R,$F54,'Database PTD'!$S:$S,$G54) -> 0 | D54: =SUMPRODUCT((InMoment_Data_Type=$A54)*(InMoment_Data_Period=$F54)*(InMoment_Data_Year=$G54)*InMoment_Data_Pace*InMoment_Data_Count)/SUMIFS('Database PTD'!$P:$P,'Database PTD'!$T:$T,$A54,'Database PTD'!$R:$R,$F54,'Database PTD'!$S:$S,$G54) -> 54.98076923 | E54: =SUMPRODUCT((InMoment_Data_Type=$A54)*(InMoment_Data_Period=$F54)*(InMoment_Data_Year=$G54)*InMoment_Data_Food*InMoment_Data_Count)/SUMIFS('Database PTD'!$P:$P,'Database PTD'!$T:$T,$A54,'Database PTD'!$R:$R,$F54,'Database PTD'!$S:$S,$G54) -> 58.78668615 | F54: 11 | G54: 2016 | H54: '16 P11
A55: SULL | B55: =SUMPRODUCT((InMoment_Data_Type=$A55)*(InMoment_Data_Period=$F55)*(InMoment_Data_Year=$G55)*InMoment_Data_Overall*InMoment_Data_Count)/SUMIFS('Database PTD'!$P:$P,'Database PTD'!$T:$T,$A55,'Database PTD'!$R:$R,$F55,'Database PTD'!$S:$S,$G55) -> 54.27408742 | C55: =SUMPRODUCT((InMoment_Data_Type=$A55)*(InMoment_Data_Period=$F55)*(InMoment_Data_Year=$G55)*InMoment_Data_Recommend*InMoment_Data_Count)/SUMIFS('Database PTD'!$P:$P,'Database PTD'!$T:$T,$A55,'Database PTD'!$R:$R,$F55,'Database PTD'!$S:$S,$G55) -> 0 | D55: =SUMPRODUCT((InMoment_Data_Type=$A55)*(InMoment_Data_Period=$F55)*(InMoment_Data_Year=$G55)*InMoment_Data_Pace*InMoment_Data_Count)/SUMIFS('Database PTD'!$P:$P,'Database PTD'!$T:$T,$A55,'Database PTD'!$R:$R,$F55,'Database PTD'!$S:$S,$G55) -> 56.38517219 | E55: =SUMPRODUCT((InMoment_Data_Type=$A55)*(InMoment_Data_Period=$F55)*(InMoment_Data_Year=$G55)*InMoment_Data_Food*InMoment_Data_Count)/SUMIFS('Database PTD'!$P:$P,'Database PTD'!$T:$T,$A55,'Database PTD'!$R:$R,$F55,'Database PTD'!$S:$S,$G55) -> 58.40706093 | F55: 11 | G55: 2016 | H55: '16 P11
A56: DFG | B56: =SUMPRODUCT((InMoment_Data_Type=$A56)*(InMoment_Data_Period=$F56)*(InMoment_Data_Year=$G56)*InMoment_Data_Overall*InMoment_Data_Count)/SUMIFS('Database PTD'!$P:$P,'Database PTD'!$T:$T,$A56,'Database PTD'!$R:$R,$F56,'Database PTD'!$S:$S,$G56) -> 55.0809375 | C56: =SUMPRODUCT((InMoment_Data_Type=$A56)*(InMoment_Data_Period=$F56)*(InMoment_Data_Year=$G56)*InMoment_Data_Recommend*InMoment_Data_Count)/SUMIFS('Database PTD'!$P:$P,'Database PTD'!$T:$T,$A56,'Database PTD'!$R:$R,$F56,'Database PTD'!$S:$S,$G56) -> 0 | D56: =SUMPRODUCT((InMoment_Data_Type=$A56)*(InMoment_Data_Period=$F56)*(InMoment_Data_Year=$G56)*InMoment_Data_Pace*InMoment_Data_Count)/SUMIFS('Database PTD'!$P:$P,'Database PTD'!$T:$T,$A56,'Database PTD'!$R:$R,$F56,'Database PTD'!$S:$S,$G56) -> 55.44769821 | E56: =SUMPRODUCT((InMoment_Data_Type=$A56)*(InMoment_Data_Period=$F56)*(InMoment_Data_Year=$G56)*InMoment_Data_Food*InMoment_Data_Count)/SUMIFS('Database PTD'!$P:$P,'Database PTD'!$T:$T,$A56,'Database PTD'!$R:$R,$F56,'Database PTD'!$S:$S,$G56) -> 56.13855536 | F56: 11 | G56: 2016 | H56: '16 P11
A57: DFRG | B57: =SUMPRODUCT((InMoment_Data_Period=$F57)*(InMoment_Data_Year=$G57)*InMoment_Data_Overall*InMoment_Data_Count)/SUMIFS('Database PTD'!$P:$P,'Database PTD'!$R:$R,$F57,'Database PTD'!$S:$S,$G57) -> 54.56769364 | C57: =SUMPRODUCT((InMoment_Data_Period=$F57)*(InMoment_Data_Year=$G57)*InMoment_Data_Recommend*InMoment_Data_Count)/SUMIFS('Database PTD'!$P:$P,'Database PTD'!$R:$R,$F57,'Database PTD'!$S:$S,$G57) -> 0 | D57: =SUMPRODUCT((InMoment_Data_Period=$F57)*(InMoment_Data_Year=$G57)*InMoment_Data_Pace*InMoment_Data_Count)/SUMIFS('Database PTD'!$P:$P,'Database PTD'!$R:$R,$F57,'Database PTD'!$S:$S,$G57) -> 55.65344326 | E57: =SUMPRODUCT((InMoment_Data_Period=$F57)*(InMoment_Data_Year=$G57)*InMoment_Data_Food*InMoment_Data_Count)/SUMIFS('Database PTD'!$P:$P,'Database PTD'!$R:$R,$F57,'Database PTD'!$S:$S,$G57) -> 57.88614148 | F57: 11 | G57: 2016 | H57: '16 P11
A58: DFDE | B58: =SUMPRODUCT((InMoment_Data_Type=$A58)*(InMoment_Data_Period=$F58)*(InMoment_Data_Year=$G58)*InMoment_Data_Overall*InMoment_Data_Count)/SUMIFS('Database PTD'!$P:$P,'Database PTD'!$T:$T,$A58,'Database PTD'!$R:$R,$F58,'Database PTD'!$S:$S,$G58) -> 54.41687135 | C58: =SUMPRODUCT((InMoment_Data_Type=$A58)*(InMoment_Data_Period=$F58)*(InMoment_Data_Year=$G58)*InMoment_Data_Recommend*InMoment_Data_Count)/SUMIFS('Database PTD'!$P:$P,'Database PTD'!$T:$T,$A58,'Database PTD'!$R:$R,$F58,'Database PTD'!$S:$S,$G58) -> 0 | D58: =SUMPRODUCT((InMoment_Data_Type=$A58)*(InMoment_Data_Period=$F58)*(InMoment_Data_Year=$G58)*InMoment_Data_Pace*InMoment_Data_Count)/SUMIFS('Database PTD'!$P:$P,'Database PTD'!$T:$T,$A58,'Database PTD'!$R:$R,$F58,'Database PTD'!$S:$S,$G58) -> 54.1950756 | E58: =SUMPRODUCT((InMoment_Data_Type=$A58)*(InMoment_Data_Period=$F58)*(InMoment_Data_Year=$G58)*InMoment_Data_Food*InMoment_Data_Count)/SUMIFS('Database PTD'!$P:$P,'Database PTD'!$T:$T,$A58,'Database PTD'!$R:$R,$F58,'Database PTD'!$S:$S,$G58) -> 59.36533289 | F58: 12 | G58: 2016 | H58: '16 P12
A59: SULL | B59: =SUMPRODUCT((InMoment_Data_Type=$A59)*(InMoment_Data_Period=$F59)*(InMoment_Data_Year=$G59)*InMoment_Data_Overall*InMoment_Data_Count)/SUMIFS('Database PTD'!$P:$P,'Database PTD'!$T:$T,$A59,'Database PTD'!$R:$R,$F59,'Database PTD'!$S:$S,$G59) -> 55.5602194 | C59: =SUMPRODUCT((InMoment_Data_Type=$A59)*(InMoment_Data_Period=$F59)*(InMoment_Data_Year=$G59)*InMoment_Data_Recommend*InMoment_Data_Count)/SUMIFS('Database PTD'!$P:$P,'Database PTD'!$T:$T,$A59,'Database PTD'!$R:$R,$F59,'Database PTD'!$S:$S,$G59) -> 0 | D59: =SUMPRODUCT((InMoment_Data_Type=$A59)*(InMoment_Data_Period=$F59)*(InMoment_Data_Year=$G59)*InMoment_Data_Pace*InMoment_Data_Count)/SUMIFS('Database PTD'!$P:$P,'Database PTD'!$T:$T,$A59,'Database PTD'!$R:$R,$F59,'Database PTD'!$S:$S,$G59) -> 58.99028806 | E59: =SUMPRODUCT((InMoment_Data_Type=$A59)*(InMoment_Data_Period=$F59)*(InMoment_Data_Year=$G59)*InMoment_Data_Food*InMoment_Data_Count)/SUMIFS('Database PTD'!$P:$P,'Database PTD'!$T:$T,$A59,'Database PTD'!$R:$R,$F59,'Database PTD'!$S:$S,$G59) -> 57.86127164 | F59: 12 | G59: 2016 | H59: '16 P12
A60: DFG | B60: =SUMPRODUCT((InMoment_Data_Type=$A60)*(InMoment_Data_Period=$F60)*(InMoment_Data_Year=$G60)*InMoment_Data_Overall*InMoment_Data_Count)/SUMIFS('Database PTD'!$P:$P,'Database PTD'!$T:$T,$A60,'Database PTD'!$R:$R,$F60,'Database PTD'!$S:$S,$G60) -> 52.18942453 | C60: =SUMPRODUCT((InMoment_Data_Type=$A60)*(InMoment_Data_Period=$F60)*(InMoment_Data_Year=$G60)*InMoment_Data_Recommend*InMoment_Data_Count)/SUMIFS('Database PTD'!$P:$P,'Database PTD'!$T:$T,$A60,'Database PTD'!$R:$R,$F60,'Database PTD'!$S:$S,$G60) -> 0 | D60: =SUMPRODUCT((InMoment_Data_Type=$A60)*(InMoment_Data_Period=$F60)*(InMoment_Data_Year=$G60)*InMoment_Data_Pace*InMoment_Data_Count)/SUMIFS('Database PTD'!$P:$P,'Database PTD'!$T:$T,$A60,'Database PTD'!$R:$R,$F60,'Database PTD'!$S:$S,$G60) -> 53.67541509 | E60: =SUMPRODUCT((InMoment_Data_Type=$A60)*(InMoment_Data_Period=$F60)*(InMoment_Data_Year=$G60)*InMoment_Data_Food*InMoment_Data_Count)/SUMIFS('Database PTD'!$P:$P,'Database PTD'!$T:$T,$A60,'Database PTD'!$R:$R,$F60,'Database PTD'!$S:$S,$G60) -> 54.55895755 | F60: 12 | G60: 2016 | H60: '16 P12
A61: DFRG | B61: =SUMPRODUCT((InMoment_Data_Period=$F61)*(InMoment_Data_Year=$G61)*InMoment_Data_Overall*InMoment_Data_Count)/SUMIFS('Database PTD'!$P:$P,'Database PTD'!$R:$R,$F61,'Database PTD'!$S:$S,$G61) -> 54.10103981 | C61: =SUMPRODUCT((InMoment_Data_Period=$F61)*(InMoment_Data_Year=$G61)*InMoment_Data_Recommend*InMoment_Data_Count)/SUMIFS('Database PTD'!$P:$P,'Database PTD'!$R:$R,$F61,'Database PTD'!$S:$S,$G61) -> 0 | D61: =SUMPRODUCT((InMoment_Data_Period=$F61)*(InMoment_Data_Year=$G61)*InMoment_Data_Pace*InMoment_Data_Count)/SUMIFS('Database PTD'!$P:$P,'Database PTD'!$R:$R,$F61,'Database PTD'!$S:$S,$G61) -> 55.59424466 | E61: =SUMPRODUCT((InMoment_Data_Period=$F61)*(InMoment_Data_Year=$G61)*InMoment_Data_Food*InMoment_Data_Count)/SUMIFS('Database PTD'!$P:$P,'Database PTD'!$R:$R,$F61,'Database PTD'!$S:$S,$G61) -> 57.39223786 | F61: 12 | G61: 2016 | H61: '16 P12
A62: DFDE | B62: =SUMPRODUCT((InMoment_Data_Type=$A62)*(InMoment_Data_Period=$F62)*(InMoment_Data_Year=$G62)*InMoment_Data_Overall*InMoment_Data_Count)/SUMIFS('Database PTD'!$P:$P,'Database PTD'!$T:$T,$A62,'Database PTD'!$R:$R,$F62,'Database PTD'!$S:$S,$G62) -> 53.08367895 | C62: =SUMPRODUCT((InMoment_Data_Type=$A62)*(InMoment_Data_Period=$F62)*(InMoment_Data_Year=$G62)*InMoment_Data_Recommend*InMoment_Data_Count)/SUMIFS('Database PTD'!$P:$P,'Database PTD'!$T:$T,$A62,'Database PTD'!$R:$R,$F62,'Database PTD'!$S:$S,$G62) -> 0 | D62: =SUMPRODUCT((InMoment_Data_Type=$A62)*(InMoment_Data_Period=$F62)*(InMoment_Data_Year=$G62)*InMoment_Data_Pace*InMoment_Data_Count)/SUMIFS('Database PTD'!$P:$P,'Database PTD'!$T:$T,$A62,'Database PTD'!$R:$R,$F62,'Database PTD'!$S:$S,$G62) -> 52.96702021 | E62: =SUMPRODUCT((InMoment_Data_Type=$A62)*(InMoment_Data_Period=$F62)*(InMoment_Data_Year=$G62)*InMoment_Data_Food*InMoment_Data_Count)/SUMIFS('Database PTD'!$P:$P,'Database PTD'!$T:$T,$A62,'Database PTD'!$R:$R,$F62,'Database PTD'!$S:$S,$G62) -> 58.30316171 | F62: 13 | G62: 2016 | H62: '16 P13
A63: SULL | B63: =SUMPRODUCT((InMoment_Data_Type=$A63)*(InMoment_Data_Period=$F63)*(InMoment_Data_Year=$G63)*InMoment_Data_Overall*InMoment_Data_Count)/SUMIFS('Database PTD'!$P:$P,'Database PTD'!$T:$T,$A63,'Database PTD'!$R:$R,$F63,'Database PTD'!$S:$S,$G63) -> 56.16763456 | C63: =SUMPRODUCT((InMoment_Data_Type=$A63)*(InMoment_Data_Period=$F63)*(InMoment_Data_Year=$G63)*InMoment_Data_Recommend*InMoment_Data_Count)/SUMIFS('Database PTD'!$P:$P,'Database PTD'!$T:$T,$A63,'Database PTD'!$R:$R,$F63,'Database PTD'!$S:$S,$G63) -> 0 | D63: =SUMPRODUCT((InMoment_Data_Type=$A63)*(InMoment_Data_Period=$F63)*(InMoment_Data_Year=$G63)*InMoment_Data_Pace*InMoment_Data_Count)/SUMIFS('Database PTD'!$P:$P,'Database PTD'!$T:$T,$A63,'Database PTD'!$R:$R,$F63,'Database PTD'!$S:$S,$G63) -> 56.20184703 | E63: =SUMPRODUCT((InMoment_Data_Type=$A63)*(InMoment_Data_Period=$F63)*(InMoment_Data_Year=$G63)*InMoment_Data_Food*InMoment_Data_Count)/SUMIFS('Database PTD'!$P:$P,'Database PTD'!$T:$T,$A63,'Database PTD'!$R:$R,$F63,'Database PTD'!$S:$S,$G63) -> 58.66978045 | F63: 13 | G63: 2016 | H63: '16 P13
A64: DFG | B64: =SUMPRODUCT((InMoment_Data_Type=$A64)*(InMoment_Data_Period=$F64)*(InMoment_Data_Year=$G64)*InMoment_Data_Overall*InMoment_Data_Count)/SUMIFS('Database PTD'!$P:$P,'Database PTD'!$T:$T,$A64,'Database PTD'!$R:$R,$F64,'Database PTD'!$S:$S,$G64) -> 52.887782 | C64: =SUMPRODUCT((InMoment_Data_Type=$A64)*(InMoment_Data_Period=$F64)*(InMoment_Data_Year=$G64)*InMoment_Data_Recommend*InMoment_Data_Count)/SUMIFS('Database PTD'!$P:$P,'Database PTD'!$T:$T,$A64,'Database PTD'!$R:$R,$F64,'Database PTD'!$S:$S,$G64) -> 0 | D64: =SUMPRODUCT((InMoment_Data_Type=$A64)*(InMoment_Data_Period=$F64)*(InMoment_Data_Year=$G64)*InMoment_Data_Pace*InMoment_Data_Count)/SUMIFS('Database PTD'!$P:$P,'Database PTD'!$T:$T,$A64,'Database PTD'!$R:$R,$F64,'Database PTD'!$S:$S,$G64) -> 55.27294423 | E64: =SUMPRODUCT((InMoment_Data_Type=$A64)*(InMoment_Data_Period=$F64)*(InMoment_Data_Year=$G64)*InMoment_Data_Food*InMoment_Data_Count)/SUMIFS('Database PTD'!$P:$P,'Database PTD'!$T:$T,$A64,'Database PTD'!$R:$R,$F64,'Database PTD'!$S:$S,$G64) -> 57.7672256 | F64: 13 | G64: 2016 | H64: '16 P13
A65: DFRG | B65: =SUMPRODUCT((InMoment_Data_Period=$F65)*(InMoment_Data_Year=$G65)*InMoment_Data_Overall*InMoment_Data_Count)/SUMIFS('Database PTD'!$P:$P,'Database PTD'!$R:$R,$F65,'Database PTD'!$S:$S,$G65) -> 53.94956507 | C65: =SUMPRODUCT((InMoment_Data_Period=$F65)*(InMoment_Data_Year=$G65)*InMoment_Data_Recommend*InMoment_Data_Count)/SUMIFS('Database PTD'!$P:$P,'Database PTD'!$R:$R,$F65,'Database PTD'!$S:$S,$G65) -> 0 | D65: =SUMPRODUCT((InMoment_Data_Period=$F65)*(InMoment_Data_Year=$G65)*InMoment_Data_Pace*InMoment_Data_Count)/SUMIFS('Database PTD'!$P:$P,'Database PTD'!$R:$R,$F65,'Database PTD'!$S:$S,$G65) -> 54.7235107 | E65: =SUMPRODUCT((InMoment_Data_Period=$F65)*(InMoment_Data_Year=$G65)*InMoment_Data_Food*InMoment_Data_Count)/SUMIFS('Database PTD'!$P:$P,'Database PTD'!$R:$R,$F65,'Database PTD'!$S:$S,$G65) -> 58.23294735 | F65: 13 | G65: 2016 | H65: '16 P13
A66: DFDE | B66: =SUMPRODUCT((InMoment_Data_Type=$A66)*(InMoment_Data_Period=$F66)*(InMoment_Data_Year=$G66)*InMoment_Data_Overall*InMoment_Data_Count)/SUMIFS('Database PTD'!$P:$P,'Database PTD'!$T:$T,$A66,'Database PTD'!$R:$R,$F66,'Database PTD'!$S:$S,$G66) -> 53.32800221 | C66: =SUMPRODUCT((InMoment_Data_Type=$A66)*(InMoment_Data_Period=$F66)*(InMoment_Data_Year=$G66)*InMoment_Data_Recommend*InMoment_Data_Count)/SUMIFS('Database PTD'!$P:$P,'Database PTD'!$T:$T,$A66,'Database PTD'!$R:$R,$F66,'Database PTD'!$S:$S,$G66) -> 0 | D66: =SUMPRODUCT((InMoment_Data_Type=$A66)*(InMoment_Data_Period=$F66)*(InMoment_Data_Year=$G66)*InMoment_Data_Pace*InMoment_Data_Count)/SUMIFS('Database PTD'!$P:$P,'Database PTD'!$T:$T,$A66,'Database PTD'!$R:$R,$F66,'Database PTD'!$S:$S,$G66) -> 54.42447409 | E66: =SUMPRODUCT((InMoment_Data_Type=$A66)*(InMoment_Data_Period=$F66)*(InMoment_Data_Year=$G66)*InMoment_Data_Food*InMoment_Data_Count)/SUMIFS('Database PTD'!$P:$P,'Database PTD'!$T:$T,$A66,'Database PTD'!$R:$R,$F66,'Database PTD'!$S:$S,$G66) -> 57.69098677 | F66: 1 | G66: 2017 | H66: ="'"&MID(G66,3,2)&" P"&IF(F66<10,"0","")&F66 -> '17 P01
A67: SULL | B67: =SUMPRODUCT((InMoment_Data_Type=$A67)*(InMoment_Data_Period=$F67)*(InMoment_Data_Year=$G67)*InMoment_Data_Overall*InMoment_Data_Count)/SUMIFS('Database PTD'!$P:$P,'Database PTD'!$T:$T,$A67,'Database PTD'!$R:$R,$F67,'Database PTD'!$S:$S,$G67) -> 52.65297923 | C67: =SUMPRODUCT((InMoment_Data_Type=$A67)*(InMoment_Data_Period=$F67)*(InMoment_Data_Year=$G67)*InMoment_Data_Recommend*InMoment_Data_Count)/SUMIFS('Database PTD'!$P:$P,'Database PTD'!$T:$T,$A67,'Database PTD'!$R:$R,$F67,'Database PTD'!$S:$S,$G67) -> 0 | D67: =SUMPRODUCT((InMoment_Data_Type=$A67)*(InMoment_Data_Period=$F67)*(InMoment_Data_Year=$G67)*InMoment_Data_Pace*InMoment_Data_Count)/SUMIFS('Database PTD'!$P:$P,'Database PTD'!$T:$T,$A67,'Database PTD'!$R:$R,$F67,'Database PTD'!$S:$S,$G67) -> 54.83833828 | E67: =SUMPRODUCT((InMoment_Data_Type=$A67)*(InMoment_Data_Period=$F67)*(InMoment_Data_Year=$G67)*InMoment_Data_Food*InMoment_Data_Count)/SUMIFS('Database PTD'!$P:$P,'Database PTD'!$T:$T,$A67,'Database PTD'!$R:$R,$F67,'Database PTD'!$S:$S,$G67) -> 55.50709199 | F67: 1 | G67: 2017 | H67: '17 P01
A68: DFG | B68: =SUMPRODUCT((InMoment_Data_Type=$A68)*(InMoment_Data_Period=$F68)*(InMoment_Data_Year=$G68)*InMoment_Data_Overall*InMoment_Data_Count)/SUMIFS('Database PTD'!$P:$P,'Database PTD'!$T:$T,$A68,'Database PTD'!$R:$R,$F68,'Database PTD'!$S:$S,$G68) -> 53.73999861 | C68: =SUMPRODUCT((InMoment_Data_Type=$A68)*(InMoment_Data_Period=$F68)*(InMoment_Data_Year=$G68)*InMoment_Data_Recommend*InMoment_Data_Count)/SUMIFS('Database PTD'!$P:$P,'Database PTD'!$T:$T,$A68,'Database PTD'!$R:$R,$F68,'Database PTD'!$S:$S,$G68) -> 0 | D68: =SUMPRODUCT((InMoment_Data_Type=$A68)*(InMoment_Data_Period=$F68)*(InMoment_Data_Year=$G68)*InMoment_Data_Pace*InMoment_Data_Count)/SUMIFS('Database PTD'!$P:$P,'Database PTD'!$T:$T,$A68,'Database PTD'!$R:$R,$F68,'Database PTD'!$S:$S,$G68) -> 55.51450416 | E68: =SUMPRODUCT((InMoment_Data_Type=$A68)*(InMoment_Data_Period=$F68)*(InMoment_Data_Year=$G68)*InMoment_Data_Food*InMoment_Data_Count)/SUMIFS('Database PTD'!$P:$P,'Database PTD'!$T:$T,$A68,'Database PTD'!$R:$R,$F68,'Database PTD'!$S:$S,$G68) -> 56.72735734 | F68: 1 | G68: 2017 | H68: '17 P01
A69: DFRG | B69: =SUMPRODUCT((InMoment_Data_Period=$F69)*(InMoment_Data_Year=$G69)*InMoment_Data_Overall*InMoment_Data_Count)/SUMIFS('Database PTD'!$P:$P,'Database PTD'!$R:$R,$F69,'Database PTD'!$S:$S,$G69) -> 53.25961138 | C69: =SUMPRODUCT((InMoment_Data_Period=$F69)*(InMoment_Data_Year=$G69)*InMoment_Data_Recommend*InMoment_Data_Count)/SUMIFS('Database PTD'!$P:$P,'Database PTD'!$R:$R,$F69,'Database PTD'!$S:$S,$G69) -> 0 | D69: =SUMPRODUCT((InMoment_Data_Period=$F69)*(InMoment_Data_Year=$G69)*InMoment_Data_Pace*InMoment_Data_Count)/SUMIFS('Database PTD'!$P:$P,'Database PTD'!$R:$R,$F69,'Database PTD'!$S:$S,$G69) -> 54.88732523 | E69: =SUMPRODUCT((InMoment_Data_Period=$F69)*(InMoment_Data_Year=$G69)*InMoment_Data_Food*InMoment_Data_Count)/SUMIFS('Database PTD'!$P:$P,'Database PTD'!$R:$R,$F69,'Database PTD'!$S:$S,$G69) -> 56.74974251 | F69: 1 | G69: 2017 | H69: '17 P01
A70: DFDE | B70: =SUMPRODUCT((InMoment_Data_Type=$A70)*(InMoment_Data_Period=$F70)*(InMoment_Data_Year=$G70)*InMoment_Data_Overall*InMoment_Data_Count)/SUMIFS('Database PTD'!$P:$P,'Database PTD'!$T:$T,$A70,'Database PTD'!$R:$R,$F70,'Database PTD'!$S:$S,$G70) -> 51.93974298 | C70: =SUMPRODUCT((InMoment_Data_Type=$A70)*(InMoment_Data_Period=$F70)*(InMoment_Data_Year=$G70)*InMoment_Data_Recommend*InMoment_Data_Count)/SUMIFS('Database PTD'!$P:$P,'Database PTD'!$T:$T,$A70,'Database PTD'!$R:$R,$F70,'Database PTD'!$S:$S,$G70) -> 0 | D70: =SUMPRODUCT((InMoment_Data_Type=$A70)*(InMoment_Data_Period=$F70)*(InMoment_Data_Year=$G70)*InMoment_Data_Pace*InMoment_Data_Count)/SUMIFS('Database PTD'!$P:$P,'Database PTD'!$T:$T,$A70,'Database PTD'!$R:$R,$F70,'Database PTD'!$S:$S,$G70) -> 52.74339825 | E70: =SUMPRODUCT((InMoment_Data_Type=$A70)*(InMoment_Data_Period=$F70)*(InMoment_Data_Year=$G70)*InMoment_Data_Food*InMoment_Data_Count)/SUMIFS('Database PTD'!$P:$P,'Database PTD'!$T:$T,$A70,'Database PTD'!$R:$R,$F70,'Database PTD'!$S:$S,$G70) -> 58.90267018 | F70: =IF(F66=13,1,F66+1) -> 2 | G70: =IF(F66=13,G66+1,G66) -> 2017 | H70: '17 P02
A71: SULL | B71: =SUMPRODUCT((InMoment_Data_Type=$A71)*(InMoment_Data_Period=$F71)*(InMoment_Data_Year=$G71)*InMoment_Data_Overall*InMoment_Data_Count)/SUMIFS('Database PTD'!$P:$P,'Database PTD'!$T:$T,$A71,'Database PTD'!$R:$R,$F71,'Database PTD'!$S:$S,$G71) -> 52.1688269 | C71: =SUMPRODUCT((InMoment_Data_Type=$A71)*(InMoment_Data_Period=$F71)*(InMoment_Data_Year=$G71)*InMoment_Data_Recommend*InMoment_Data_Count)/SUMIFS('Database PTD'!$P:$P,'Database PTD'!$T:$T,$A71,'Database PTD'!$R:$R,$F71,'Database PTD'!$S:$S,$G71) -> 0 | D71: =SUMPRODUCT((InMoment_Data_Type=$A71)*(InMoment_Data_Period=$F71)*(InMoment_Data_Year=$G71)*InMoment_Data_Pace*InMoment_Data_Count)/SUMIFS('Database PTD'!$P:$P,'Database PTD'!$T:$T,$A71,'Database PTD'!$R:$R,$F71,'Database PTD'!$S:$S,$G71) -> 53.40595766 | E71: =SUMPRODUCT((InMoment_Data_Type=$A71)*(InMoment_Data_Period=$F71)*(InMoment_Data_Year=$G71)*InMoment_Data_Food*InMoment_Data_Count)/SUMIFS('Database PTD'!$P:$P,'Database PTD'!$T:$T,$A71,'Database PTD'!$R:$R,$F71,'Database PTD'!$S:$S,$G71) -> 55.29221295 | F71: 2 | G71: 2017 | H71: '17 P02
A72: DFG | B72: =SUMPRODUCT((InMoment_Data_Type=$A72)*(InMoment_Data_Period=$F72)*(InMoment_Data_Year=$G72)*InMoment_Data_Overall*InMoment_Data_Count)/SUMIFS('Database PTD'!$P:$P,'Database PTD'!$T:$T,$A72,'Database PTD'!$R:$R,$F72,'Database PTD'!$S:$S,$G72) -> 49.86125849 | C72: =SUMPRODUCT((InMoment_Data_Type=$A72)*(InMoment_Data_Period=$F72)*(InMoment_Data_Year=$G72)*InMoment_Data_Recommend*InMoment_Data_Count)/SUMIFS('Database PTD'!$P:$P,'Database PTD'!$T:$T,$A72,'Database PTD'!$R:$R,$F72,'Database PTD'!$S:$S,$G72) -> 0 | D72: =SUMPRODUCT((InMoment_Data_Type=$A72)*(InMoment_Data_Period=$F72)*(InMoment_Data_Year=$G72)*InMoment_Data_Pace*InMoment_Data_Count)/SUMIFS('Database PTD'!$P:$P,'Database PTD'!$T:$T,$A72,'Database PTD'!$R:$R,$F72,'Database PTD'!$S:$S,$G72) -> 53.66386292 | E72: =SUMPRODUCT((InMoment_Data_Type=$A72)*(InMoment_Data_Period=$F72)*(InMoment_Data_Year=$G72)*InMoment_Data_Food*InMoment_Data_Count)/SUMIFS('Database PTD'!$P:$P,'Database PTD'!$T:$T,$A72,'Database PTD'!$R:$R,$F72,'Database PTD'!$S:$S,$G72) -> 51.7831671 | F72: 2 | G72: 2017 | H72: '17 P02
A73: DFRG | B73: =SUMPRODUCT((InMoment_Data_Period=$F73)*(InMoment_Data_Year=$G73)*InMoment_Data_Overall*InMoment_Data_Count)/SUMIFS('Database PTD'!$P:$P,'Database PTD'!$R:$R,$F73,'Database PTD'!$S:$S,$G73) -> 51.41993319 | C73: =SUMPRODUCT((InMoment_Data_Period=$F73)*(InMoment_Data_Year=$G73)*InMoment_Data_Recommend*InMoment_Data_Count)/SUMIFS('Database PTD'!$P:$P,'Database PTD'!$R:$R,$F73,'Database PTD'!$S:$S,$G73) -> 0 | D73: =SUMPRODUCT((InMoment_Data_Period=$F73)*(InMoment_Data_Year=$G73)*InMoment_Data_Pace*InMoment_Data_Count)/SUMIFS('Database PTD'!$P:$P,'Database PTD'!$R:$R,$F73,'Database PTD'!$S:$S,$G73) -> 53.20006534 | E73: =SUMPRODUCT((InMoment_Data_Period=$F73)*(InMoment_Data_Year=$G73)*InMoment_Data_Food*InMoment_Data_Count)/SUMIFS('Database PTD'!$P:$P,'Database PTD'!$R:$R,$F73,'Database PTD'!$S:$S,$G73) -> 55.81934182 | F73: 2 | G73: 2017 | H73: '17 P02
A74: DFDE | B74: =SUMPRODUCT((InMoment_Data_Type=$A74)*(InMoment_Data_Period=$F74)*(InMoment_Data_Year=$G74)*InMoment_Data_Overall*InMoment_Data_Count)/SUMIFS('Database PTD'!$P:$P,'Database PTD'!$T:$T,$A74,'Database PTD'!$R:$R,$F74,'Database PTD'!$S:$S,$G74) -> 57.37117537 | C74: =SUMPRODUCT((InMoment_Data_Type=$A74)*(InMoment_Data_Period=$F74)*(InMoment_Data_Year=$G74)*InMoment_Data_Recommend*InMoment_Data_Count)/SUMIFS('Database PTD'!$P:$P,'Database PTD'!$T:$T,$A74,'Database PTD'!$R:$R,$F74,'Database PTD'!$S:$S,$G74) -> 0 | D74: =SUMPRODUCT((InMoment_Data_Type=$A74)*(InMoment_Data_Period=$F74)*(InMoment_Data_Year=$G74)*InMoment_Data_Pace*InMoment_Data_Count)/SUMIFS('Database PTD'!$P:$P,'Database PTD'!$T:$T,$A74,'Database PTD'!$R:$R,$F74,'Database PTD'!$S:$S,$G74) -> 57.9454204 | E74: =SUMPRODUCT((InMoment_Data_Type=$A74)*(InMoment_Data_Period=$F74)*(InMoment_Data_Year=$G74)*InMoment_Data_Food*InMoment_Data_Count)/SUMIFS('Database PTD'!$P:$P,'Database PTD'!$T:$T,$A74,'Database PTD'!$R:$R,$F74,'Database PTD'!$S:$S,$G74) -> 60.88358955 | F74: 3 | G74: 2017 | H74: '17 P03
A75: SULL | B75: =SUMPRODUCT((InMoment_Data_Type=$A75)*(InMoment_Data_Period=$F75)*(InMoment_Data_Year=$G75)*InMoment_Data_Overall*InMoment_Data_Count)/SUMIFS('Database PTD'!$P:$P,'Database PTD'!$T:$T,$A75,'Database PTD'!$R:$R,$F75,'Database PTD'!$S:$S,$G75) -> 59.91363323 | C75: =SUMPRODUCT((InMoment_Data_Type=$A75)*(InMoment_Data_Period=$F75)*(InMoment_Data_Year=$G75)*InMoment_Data_Recommend*InMoment_Data_Count)/SUMIFS('Database PTD'!$P:$P,'Database PTD'!$T:$T,$A75,'Database PTD'!$R:$R,$F75,'Database PTD'!$S:$S,$G75) -> 0 | D75: =SUMPRODUCT((InMoment_Data_Type=$A75)*(InMoment_Data_Period=$F75)*(InMoment_Data_Year=$G75)*InMoment_Data_Pace*InMoment_Data_Count)/SUMIFS('Database PTD'!$P:$P,'Database PTD'!$T:$T,$A75,'Database PTD'!$R:$R,$F75,'Database PTD'!$S:$S,$G75) -> 62.43649216 | E75: =SUMPRODUCT((InMoment_Data_Type=$A75)*(InMoment_Data_Period=$F75)*(InMoment_Data_Year=$G75)*InMoment_Data_Food*InMoment_Data_Count)/SUMIFS('Database PTD'!$P:$P,'Database PTD'!$T:$T,$A75,'Database PTD'!$R:$R,$F75,'Database PTD'!$S:$S,$G75) -> 61.83337461 | F75: 3 | G75: 2017 | H75: '17 P03
A76: DFG | B76: =SUMPRODUCT((InMoment_Data_Type=$A76)*(InMoment_Data_Period=$F76)*(InMoment_Data_Year=$G76)*InMoment_Data_Overall*InMoment_Data_Count)/SUMIFS('Database PTD'!$P:$P,'Database PTD'!$T:$T,$A76,'Database PTD'!$R:$R,$F76,'Database PTD'!$S:$S,$G76) -> 61.96887859 | C76: =SUMPRODUCT((InMoment_Data_Type=$A76)*(InMoment_Data_Period=$F76)*(InMoment_Data_Year=$G76)*InMoment_Data_Recommend*InMoment_Data_Count)/SUMIFS('Database PTD'!$P:$P,'Database PTD'!$T:$T,$A76,'Database PTD'!$R:$R,$F76,'Database PTD'!$S:$S,$G76) -> 0 | D76: =SUMPRODUCT((InMoment_Data_Type=$A76)*(InMoment_Data_Period=$F76)*(InMoment_Data_Year=$G76)*InMoment_Data_Pace*InMoment_Data_Count)/SUMIFS('Database PTD'!$P:$P,'Database PTD'!$T:$T,$A76,'Database PTD'!$R:$R,$F76,'Database PTD'!$S:$S,$G76) -> 62.96407285 | E76: =SUMPRODUCT((InMoment_Data_Type=$A76)*(InMoment_Data_Period=$F76)*(InMoment_Data_Year=$G76)*InMoment_Data_Food*InMoment_Data_Count)/SUMIFS('Database PTD'!$P:$P,'Database PTD'!$T:$T,$A76,'Database PTD'!$R:$R,$F76,'Database PTD'!$S:$S,$G76) -> 62.78787859 | F76: 3 | G76: 2017 | H76: '17 P03
A77: DFRG | B77: =SUMPRODUCT((InMoment_Data_Period=$F77)*(InMoment_Data_Year=$G77)*InMoment_Data_Overall*InMoment_Data_Count)/SUMIFS('Database PTD'!$P:$P,'Database PTD'!$R:$R,$F77,'Database PTD'!$S:$S,$G77) -> 59.83608475 | C77: =SUMPRODUCT((InMoment_Data_Period=$F77)*(InMoment_Data_Year=$G77)*InMoment_Data_Recommend*InMoment_Data_Count)/SUMIFS('Database PTD'!$P:$P,'Database PTD'!$R:$R,$F77,'Database PTD'!$S:$S,$G77) -> 0 | D77: =SUMPRODUCT((InMoment_Data_Period=$F77)*(InMoment_Data_Year=$G77)*InMoment_Data_Pace*InMoment_Data_Count)/SUMIFS('Database PTD'!$P:$P,'Database PTD'!$R:$R,$F77,'Database PTD'!$S:$S,$G77) -> 61.10223595 | E77: =SUMPRODUCT((InMoment_Data_Period=$F77)*(InMoment_Data_Year=$G77)*InMoment_Data_Food*InMoment_Data_Count)/SUMIFS('Database PTD'!$P:$P,'Database PTD'!$R:$R,$F77,'Database PTD'!$S:$S,$G77) -> 61.87645528 | F77: 3 | G77: 2017 | H77: '17 P03
A78: DFDE | B78: =SUMPRODUCT((InMoment_Data_Type=$A78)*(InMoment_Data_Period=$F78)*(InMoment_Data_Year=$G78)*InMoment_Data_Overall*InMoment_Data_Count)/SUMIFS('Database PTD'!$P:$P,'Database PTD'!$T:$T,$A78,'Database PTD'!$R:$R,$F78,'Database PTD'!$S:$S,$G78) -> 60.07294296 | C78: =SUMPRODUCT((InMoment_Data_Type=$A78)*(InMoment_Data_Period=$F78)*(InMoment_Data_Year=$G78)*InMoment_Data_Recommend*InMoment_Data_Count)/SUMIFS('Database PTD'!$P:$P,'Database PTD'!$T:$T,$A78,'Database PTD'!$R:$R,$F78,'Database PTD'!$S:$S,$G78) -> 0 | D78: =SUMPRODUCT((InMoment_Data_Type=$A78)*(InMoment_Data_Period=$F78)*(InMoment_Data_Year=$G78)*InMoment_Data_Pace*InMoment_Data_Count)/SUMIFS('Database PTD'!$P:$P,'Database PTD'!$T:$T,$A78,'Database PTD'!$R:$R,$F78,'Database PTD'!$S:$S,$G78) -> 60.53773422 | E78: =SUMPRODUCT((InMoment_Data_Type=$A78)*(InMoment_Data_Period=$F78)*(InMoment_Data_Year=$G78)*InMoment_Data_Food*InMoment_Data_Count)/SUMIFS('Database PTD'!$P:$P,'Database PTD'!$T:$T,$A78,'Database PTD'!$R:$R,$F78,'Database PTD'!$S:$S,$G78) -> 63.68877063 | F78: 4 | G78: 2017 | H78: '17 P04
A79: SULL | B79: =SUMPRODUCT((InMoment_Data_Type=$A79)*(InMoment_Data_Period=$F79)*(InMoment_Data_Year=$G79)*InMoment_Data_Overall*InMoment_Data_Count)/SUMIFS('Database PTD'!$P:$P,'Database PTD'!$T:$T,$A79,'Database PTD'!$R:$R,$F79,'Database PTD'!$S:$S,$G79) -> 70.70395492 | C79: =SUMPRODUCT((InMoment_Data_Type=$A79)*(InMoment_Data_Period=$F79)*(InMoment_Data_Year=$G79)*InMoment_Data_Recommend*InMoment_Data_Count)/SUMIFS('Database PTD'!$P:$P,'Database PTD'!$T:$T,$A79,'Database PTD'!$R:$R,$F79,'Database PTD'!$S:$S,$G79) -> 0 | D79: =SUMPRODUCT((InMoment_Data_Type=$A79)*(InMoment_Data_Period=$F79)*(InMoment_Data_Year=$G79)*InMoment_Data_Pace*InMoment_Data_Count)/SUMIFS('Database PTD'!$P:$P,'Database PTD'!$T:$T,$A79,'Database PTD'!$R:$R,$F79,'Database PTD'!$S:$S,$G79) -> 70.59622746 | E79: =SUMPRODUCT((InMoment_Data_Type=$A79)*(InMoment_Data_Period=$F79)*(InMoment_Data_Year=$G79)*InMoment_Data_Food*InMoment_Data_Count)/SUMIFS('Database PTD'!$P:$P,'Database PTD'!$T:$T,$A79,'Database PTD'!$R:$R,$F79,'Database PTD'!$S:$S,$G79) -> 72.77525102 | F79: 4 | G79: 2017 | H79: '17 P04
A80: DFG | B80: =SUMPRODUCT((InMoment_Data_Type=$A80)*(InMoment_Data_Period=$F80)*(InMoment_Data_Year=$G80)*InMoment_Data_Overall*InMoment_Data_Count)/SUMIFS('Database PTD'!$P:$P,'Database PTD'!$T:$T,$A80,'Database PTD'!$R:$R,$F80,'Database PTD'!$S:$S,$G80) -> 65.83348413 | C80: =SUMPRODUCT((InMoment_Data_Type=$A80)*(InMoment_Data_Period=$F80)*(InMoment_Data_Year=$G80)*InMoment_Data_Recommend*InMoment_Data_Count)/SUMIFS('Database PTD'!$P:$P,'Database PTD'!$T:$T,$A80,'Database PTD'!$R:$R,$F80,'Database PTD'!$S:$S,$G80) -> 0 | D80: =SUMPRODUCT((InMoment_Data_Type=$A80)*(InMoment_Data_Period=$F80)*(InMoment_Data_Year=$G80)*InMoment_Data_Pace*InMoment_Data_Count)/SUMIFS('Database PTD'!$P:$P,'Database PTD'!$T:$T,$A80,'Database PTD'!$R:$R,$F80,'Database PTD'!$S:$S,$G80) -> 66.6978528 | E80: =SUMPRODUCT((InMoment_Data_Type=$A80)*(InMoment_Data_Period=$F80)*(InMoment_Data_Year=$G80)*InMoment_Data_Food*InMoment_Data_Count)/SUMIFS('Database PTD'!$P:$P,'Database PTD'!$T:$T,$A80,'Database PTD'!$R:$R,$F80,'Database PTD'!$S:$S,$G80) -> 65.40598042 | F80: 4 | G80: 2017 | H80: '17 P04
A81: DFRG | B81: =SUMPRODUCT((InMoment_Data_Period=$F81)*(InMoment_Data_Year=$G81)*InMoment_Data_Overall*InMoment_Data_Count)/SUMIFS('Database PTD'!$P:$P,'Database PTD'!$R:$R,$F81,'Database PTD'!$S:$S,$G81) -> 65.83558519 | C81: =SUMPRODUCT((InMoment_Data_Period=$F81)*(InMoment_Data_Year=$G81)*InMoment_Data_Recommend*InMoment_Data_Count)/SUMIFS('Database PTD'!$P:$P,'Database PTD'!$R:$R,$F81,'Database PTD'!$S:$S,$G81) -> 0 | D81: =SUMPRODUCT((InMoment_Data_Period=$F81)*(InMoment_Data_Year=$G81)*InMoment_Data_Pace*InMoment_Data_Count)/SUMIFS('Database PTD'!$P:$P,'Database PTD'!$R:$R,$F81,'Database PTD'!$S:$S,$G81) -> 66.3104331 | E81: =SUMPRODUCT((InMoment_Data_Period=$F81)*(InMoment_Data_Year=$G81)*InMoment_Data_Food*InMoment_Data_Count)/SUMIFS('Database PTD'!$P:$P,'Database PTD'!$R:$R,$F81,'Database PTD'!$S:$S,$G81) -> 67.16685431 | F81: 4 | G81: 2017 | H81: '17 P04
A82: DFDE | B82: =SUMPRODUCT((InMoment_Data_Type=$A82)*(InMoment_Data_Period=$F82)*(InMoment_Data_Year=$G82)*InMoment_Data_Overall*InMoment_Data_Count)/SUMIFS('Database PTD'!$P:$P,'Database PTD'!$T:$T,$A82,'Database PTD'!$R:$R,$F82,'Database PTD'!$S:$S,$G82) -> 57.89512761 | C82: =SUMPRODUCT((InMoment_Data_Type=$A82)*(InMoment_Data_Period=$F82)*(InMoment_Data_Year=$G82)*InMoment_Data_Recommend*InMoment_Data_Count)/SUMIFS('Database PTD'!$P:$P,'Database PTD'!$T:$T,$A82,'Database PTD'!$R:$R,$F82,'Database PTD'!$S:$S,$G82) -> 0 | D82: =SUMPRODUCT((InMoment_Data_Type=$A82)*(InMoment_Data_Period=$F82)*(InMoment_Data_Year=$G82)*InMoment_Data_Pace*InMoment_Data_Count)/SUMIFS('Database PTD'!$P:$P,'Database PTD'!$T:$T,$A82,'Database PTD'!$R:$R,$F82,'Database PTD'!$S:$S,$G82) -> 56.43814965 | E82: =SUMPRODUCT((InMoment_Data_Type=$A82)*(InMoment_Data_Period=$F82)*(InMoment_Data_Year=$G82)*InMoment_Data_Food*InMoment_Data_Count)/SUMIFS('Database PTD'!$P:$P,'Database PTD'!$T:$T,$A82,'Database PTD'!$R:$R,$F82,'Database PTD'!$S:$S,$G82) -> 61.12042111 | F82: 5 | G82: 2017 | H82: '17 P05
A83: SULL | B83: =SUMPRODUCT((InMoment_Data_Type=$A83)*(InMoment_Data_Period=$F83)*(InMoment_Data_Year=$G83)*InMoment_Data_Overall*InMoment_Data_Count)/SUMIFS('Database PTD'!$P:$P,'Database PTD'!$T:$T,$A83,'Database PTD'!$R:$R,$F83,'Database PTD'!$S:$S,$G83) -> 53.8532447 | C83: =SUMPRODUCT((InMoment_Data_Type=$A83)*(InMoment_Data_Period=$F83)*(InMoment_Data_Year=$G83)*InMoment_Data_Recommend*InMoment_Data_Count)/SUMIFS('Database PTD'!$P:$P,'Database PTD'!$T:$T,$A83,'Database PTD'!$R:$R,$F83,'Database PTD'!$S:$S,$G83) -> 0 | D83: =SUMPRODUCT((InMoment_Data_Type=$A83)*(InMoment_Data_Period=$F83)*(InMoment_Data_Year=$G83)*InMoment_Data_Pace*InMoment_Data_Count)/SUMIFS('Database PTD'!$P:$P,'Database PTD'!$T:$T,$A83,'Database PTD'!$R:$R,$F83,'Database PTD'!$S:$S,$G83) -> 56.62780098 | E83: =SUMPRODUCT((InMoment_Data_Type=$A83)*(InMoment_Data_Period=$F83)*(InMoment_Data_Year=$G83)*InMoment_Data_Food*InMoment_Data_Count)/SUMIFS('Database PTD'!$P:$P,'Database PTD'!$T:$T,$A83,'Database PTD'!$R:$R,$F83,'Database PTD'!$S:$S,$G83) -> 56.77572104 | F83: 5 | G83: 2017 | H83: '17 P05
A84: DFG | B84: =SUMPRODUCT((InMoment_Data_Type=$A84)*(InMoment_Data_Period=$F84)*(InMoment_Data_Year=$G84)*InMoment_Data_Overall*InMoment_Data_Count)/SUMIFS('Database PTD'!$P:$P,'Database PTD'!$T:$T,$A84,'Database PTD'!$R:$R,$F84,'Database PTD'!$S:$S,$G84) -> 57.76140214 | C84: =SUMPRODUCT((InMoment_Data_Type=$A84)*(InMoment_Data_Period=$F84)*(InMoment_Data_Year=$G84)*InMoment_Data_Recommend*InMoment_Data_Count)/SUMIFS('Database PTD'!$P:$P,'Database PTD'!$T:$T,$A84,'Database PTD'!$R:$R,$F84,'Database PTD'!$S:$S,$G84) -> 0 | D84: =SUMPRODUCT((InMoment_Data_Type=$A84)*(InMoment_Data_Period=$F84)*(InMoment_Data_Year=$G84)*InMoment_Data_Pace*InMoment_Data_Count)/SUMIFS('Database PTD'!$P:$P,'Database PTD'!$T:$T,$A84,'Database PTD'!$R:$R,$F84,'Database PTD'!$S:$S,$G84) -> 58.6255369 | E84: =SUMPRODUCT((InMoment_Data_Type=$A84)*(InMoment_Data_Period=$F84)*(InMoment_Data_Year=$G84)*InMoment_Data_Food*InMoment_Data_Count)/SUMIFS('Database PTD'!$P:$P,'Database PTD'!$T:$T,$A84,'Database PTD'!$R:$R,$F84,'Database PTD'!$S:$S,$G84) -> 58.63259893 | F84: 5 | G84: 2017 | H84: '17 P05
A85: DFRG | B85: =SUMPRODUCT((InMoment_Data_Period=$F85)*(InMoment_Data_Year=$G85)*InMoment_Data_Overall*InMoment_Data_Count)/SUMIFS('Database PTD'!$P:$P,'Database PTD'!$R:$R,$F85,'Database PTD'!$S:$S,$G85) -> 56.81516598 | C85: =SUMPRODUCT((InMoment_Data_Period=$F85)*(InMoment_Data_Year=$G85)*InMoment_Data_Recommend*InMoment_Data_Count)/SUMIFS('Database PTD'!$P:$P,'Database PTD'!$R:$R,$F85,'Database PTD'!$S:$S,$G85) -> 0 | D85: =SUMPRODUCT((InMoment_Data_Period=$F85)*(InMoment_Data_Year=$G85)*InMoment_Data_Pace*InMoment_Data_Count)/SUMIFS('Database PTD'!$P:$P,'Database PTD'!$R:$R,$F85,'Database PTD'!$S:$S,$G85) -> 57.33502241 | E85: =SUMPRODUCT((InMoment_Data_Period=$F85)*(InMoment_Data_Year=$G85)*InMoment_Data_Food*InMoment_Data_Count)/SUMIFS('Database PTD'!$P:$P,'Database PTD'!$R:$R,$F85,'Database PTD'!$S:$S,$G85) -> 59.05012448 | F85: 5 | G85: 2017 | H85: '17 P05
A86: DFDE | B86: =SUMPRODUCT((InMoment_Data_Type=$A86)*(InMoment_Data_Period=$F86)*(InMoment_Data_Year=$G86)*InMoment_Data_Overall*InMoment_Data_Count)/SUMIFS('Database PTD'!$P:$P,'Database PTD'!$T:$T,$A86,'Database PTD'!$R:$R,$F86,'Database PTD'!$S:$S,$G86) -> 55.52372529 | C86: =SUMPRODUCT((InMoment_Data_Type=$A86)*(InMoment_Data_Period=$F86)*(InMoment_Data_Year=$G86)*InMoment_Data_Recommend*InMoment_Data_Count)/SUMIFS('Database PTD'!$P:$P,'Database PTD'!$T:$T,$A86,'Database PTD'!$R:$R,$F86,'Database PTD'!$S:$S,$G86) -> 51.17239538 | D86: =SUMPRODUCT((InMoment_Data_Type=$A86)*(InMoment_Data_Period=$F86)*(InMoment_Data_Year=$G86)*InMoment_Data_Pace*InMoment_Data_Count)/SUMIFS('Database PTD'!$P:$P,'Database PTD'!$T:$T,$A86,'Database PTD'!$R:$R,$F86,'Database PTD'!$S:$S,$G86) -> 56.65807702 | E86: =SUMPRODUCT((InMoment_Data_Type=$A86)*(InMoment_Data_Period=$F86)*(InMoment_Data_Year=$G86)*InMoment_Data_Food*InMoment_Data_Count)/SUMIFS('Database PTD'!$P:$P,'Database PTD'!$T:$T,$A86,'Database PTD'!$R:$R,$F86,'Database PTD'!$S:$S,$G86) -> 59.11685366 | F86: 6 | G86: 2017 | H86: '17 P06
A87: SULL | B87: =SUMPRODUCT((InMoment_Data_Type=$A87)*(InMoment_Data_Period=$F87)*(InMoment_Data_Year=$G87)*InMoment_Data_Overall*InMoment_Data_Count)/SUMIFS('Database PTD'!$P:$P,'Database PTD'!$T:$T,$A87,'Database PTD'!$R:$R,$F87,'Database PTD'!$S:$S,$G87) -> 58.7380625 | C87: =SUMPRODUCT((InMoment_Data_Type=$A87)*(InMoment_Data_Period=$F87)*(InMoment_Data_Year=$G87)*InMoment_Data_Recommend*InMoment_Data_Count)/SUMIFS('Database PTD'!$P:$P,'Database PTD'!$T:$T,$A87,'Database PTD'!$R:$R,$F87,'Database PTD'!$S:$S,$G87) -> 53.81680444 | D87: =SUMPRODUCT((InMoment_Data_Type=$A87)*(InMoment_Data_Period=$F87)*(InMoment_Data_Year=$G87)*InMoment_Data_Pace*InMoment_Data_Count)/SUMIFS('Database PTD'!$P:$P,'Database PTD'!$T:$T,$A87,'Database PTD'!$R:$R,$F87,'Database PTD'!$S:$S,$G87) -> 60.45629637 | E87: =SUMPRODUCT((InMoment_Data_Type=$A87)*(InMoment_Data_Period=$F87)*(InMoment_Data_Year=$G87)*InMoment_Data_Food*InMoment_Data_Count)/SUMIFS('Database PTD'!$P:$P,'Database PTD'!$T:$T,$A87,'Database PTD'!$R:$R,$F87,'Database PTD'!$S:$S,$G87) -> 59.58261492 | F87: 6 | G87: 2017 | H87: '17 P06
A88: DFG | B88: =SUMPRODUCT((InMoment_Data_Type=$A88)*(InMoment_Data_Period=$F88)*(InMoment_Data_Year=$G88)*InMoment_Data_Overall*InMoment_Data_Count)/SUMIFS('Database PTD'!$P:$P,'Database PTD'!$T:$T,$A88,'Database PTD'!$R:$R,$F88,'Database PTD'!$S:$S,$G88) -> 57.84200504 | C88: =SUMPRODUCT((InMoment_Data_Type=$A88)*(InMoment_Data_Period=$F88)*(InMoment_Data_Year=$G88)*InMoment_Data_Recommend*InMoment_Data_Count)/SUMIFS('Database PTD'!$P:$P,'Database PTD'!$T:$T,$A88,'Database PTD'!$R:$R,$F88,'Database PTD'!$S:$S,$G88) -> 53.3103563 | D88: =SUMPRODUCT((InMoment_Data_Type=$A88)*(InMoment_Data_Period=$F88)*(InMoment_Data_Year=$G88)*InMoment_Data_Pace*InMoment_Data_Count)/SUMIFS('Database PTD'!$P:$P,'Database PTD'!$T:$T,$A88,'Database PTD'!$R:$R,$F88,'Database PTD'!$S:$S,$G88) -> 60.08720168 | E88: =SUMPRODUCT((InMoment_Data_Type=$A88)*(InMoment_Data_Period=$F88)*(InMoment_Data_Year=$G88)*InMoment_Data_Food*InMoment_Data_Count)/SUMIFS('Database PTD'!$P:$P,'Database PTD'!$T:$T,$A88,'Database PTD'!$R:$R,$F88,'Database PTD'!$S:$S,$G88) -> 60.3525916 | F88: 6 | G88: 2017 | H88: '17 P06
A89: DFRG | B89: =SUMPRODUCT((InMoment_Data_Period=$F89)*(InMoment_Data_Year=$G89)*InMoment_Data_Overall*InMoment_Data_Count)/SUMIFS('Database PTD'!$P:$P,'Database PTD'!$R:$R,$F89,'Database PTD'!$S:$S,$G89) -> 57.11393262 | C89: =SUMPRODUCT((InMoment_Data_Period=$F89)*(InMoment_Data_Year=$G89)*InMoment_Data_Recommend*InMoment_Data_Count)/SUMIFS('Database PTD'!$P:$P,'Database PTD'!$R:$R,$F89,'Database PTD'!$S:$S,$G89) -> 52.55406043 | D89: =SUMPRODUCT((InMoment_Data_Period=$F89)*(InMoment_Data_Year=$G89)*InMoment_Data_Pace*InMoment_Data_Count)/SUMIFS('Database PTD'!$P:$P,'Database PTD'!$R:$R,$F89,'Database PTD'!$S:$S,$G89) -> 58.75660428 | E89: =SUMPRODUCT((InMoment_Data_Period=$F89)*(InMoment_Data_Year=$G89)*InMoment_Data_Food*InMoment_Data_Count)/SUMIFS('Database PTD'!$P:$P,'Database PTD'!$R:$R,$F89,'Database PTD'!$S:$S,$G89) -> 59.63358182 | F89: 6 | G89: 2017 | H89: '17 P06
A90: DFDE | B90: =SUMPRODUCT((InMoment_Data_Type=$A90)*(InMoment_Data_Period=$F90)*(InMoment_Data_Year=$G90)*InMoment_Data_Overall*InMoment_Data_Count)/SUMIFS('Database PTD'!$P:$P,'Database PTD'!$T:$T,$A90,'Database PTD'!$R:$R,$F90,'Database PTD'!$S:$S,$G90) -> 59.21321552 | C90: =SUMPRODUCT((InMoment_Data_Type=$A90)*(InMoment_Data_Period=$F90)*(InMoment_Data_Year=$G90)*InMoment_Data_Recommend*InMoment_Data_Count)/SUMIFS('Database PTD'!$P:$P,'Database PTD'!$T:$T,$A90,'Database PTD'!$R:$R,$F90,'Database PTD'!$S:$S,$G90) -> 56.67720197 | D90: =SUMPRODUCT((InMoment_Data_Type=$A90)*(InMoment_Data_Period=$F90)*(InMoment_Data_Year=$G90)*InMoment_Data_Pace*InMoment_Data_Count)/SUMIFS('Database PTD'!$P:$P,'Database PTD'!$T:$T,$A90,'Database PTD'!$R:$R,$F90,'Database PTD'!$S:$S,$G90) -> 61.68842241 | E90: =SUMPRODUCT((InMoment_Data_Type=$A90)*(InMoment_Data_Period=$F90)*(InMoment_Data_Year=$G90)*InMoment_Data_Food*InMoment_Data_Count)/SUMIFS('Database PTD'!$P:$P,'Database PTD'!$T:$T,$A90,'Database PTD'!$R:$R,$F90,'Database PTD'!$S:$S,$G90) -> 62.50870936 | F90: 7 | G90: 2017 | H90: '17 P07
A91: SULL | B91: =SUMPRODUCT((InMoment_Data_Type=$A91)*(InMoment_Data_Period=$F91)*(InMoment_Data_Year=$G91)*InMoment_Data_Overall*InMoment_Data_Count)/SUMIFS('Database PTD'!$P:$P,'Database PTD'!$T:$T,$A91,'Database PTD'!$R:$R,$F91,'Database PTD'!$S:$S,$G91) -> 56.91775431 | C91: =SUMPRODUCT((InMoment_Data_Type=$A91)*(InMoment_Data_Period=$F91)*(InMoment_Data_Year=$G91)*InMoment_Data_Recommend*InMoment_Data_Count)/SUMIFS('Database PTD'!$P:$P,'Database PTD'!$T:$T,$A91,'Database PTD'!$R:$R,$F91,'Database PTD'!$S:$S,$G91) -> 52.95765948 | D91: =SUMPRODUCT((InMoment_Data_Type=$A91)*(InMoment_Data_Period=$F91)*(InMoment_Data_Year=$G91)*InMoment_Data_Pace*InMoment_Data_Count)/SUMIFS('Database PTD'!$P:$P,'Database PTD'!$T:$T,$A91,'Database PTD'!$R:$R,$F91,'Database PTD'!$S:$S,$G91) -> 58.46496552 | E91: =SUMPRODUCT((InMoment_Data_Type=$A91)*(InMoment_Data_Period=$F91)*(InMoment_Data_Year=$G91)*InMoment_Data_Food*InMoment_Data_Count)/SUMIFS('Database PTD'!$P:$P,'Database PTD'!$T:$T,$A91,'Database PTD'!$R:$R,$F91,'Database PTD'!$S:$S,$G91) -> 58.43000647 | F91: 7 | G91: 2017 | H91: '17 P07
A92: DFG | B92: =SUMPRODUCT((InMoment_Data_Type=$A92)*(InMoment_Data_Period=$F92)*(InMoment_Data_Year=$G92)*InMoment_Data_Overall*InMoment_Data_Count)/SUMIFS('Database PTD'!$P:$P,'Database PTD'!$T:$T,$A92,'Database PTD'!$R:$R,$F92,'Database PTD'!$S:$S,$G92) -> 60.99715851 | C92: =SUMPRODUCT((InMoment_Data_Type=$A92)*(InMoment_Data_Period=$F92)*(InMoment_Data_Year=$G92)*InMoment_Data_Recommend*InMoment_Data_Count)/SUMIFS('Database PTD'!$P:$P,'Database PTD'!$T:$T,$A92,'Database PTD'!$R:$R,$F92,'Database PTD'!$S:$S,$G92) -> 54.6444021 | D92: =SUMPRODUCT((InMoment_Data_Type=$A92)*(InMoment_Data_Period=$F92)*(InMoment_Data_Year=$G92)*InMoment_Data_Pace*InMoment_Data_Count)/SUMIFS('Database PTD'!$P:$P,'Database PTD'!$T:$T,$A92,'Database PTD'!$R:$R,$F92,'Database PTD'!$S:$S,$G92) -> 62.7506958 | E92: =SUMPRODUCT((InMoment_Data_Type=$A92)*(InMoment_Data_Period=$F92)*(InMoment_Data_Year=$G92)*InMoment_Data_Food*InMoment_Data_Count)/SUMIFS('Database PTD'!$P:$P,'Database PTD'!$T:$T,$A92,'Database PTD'!$R:$R,$F92,'Database PTD'!$S:$S,$G92) -> 62.07418881 | F92: 7 | G92: 2017 | H92: '17 P07
A93: DFRG | B93: =SUMPRODUCT((InMoment_Data_Period=$F93)*(InMoment_Data_Year=$G93)*InMoment_Data_Overall*InMoment_Data_Count)/SUMIFS('Database PTD'!$P:$P,'Database PTD'!$R:$R,$F93,'Database PTD'!$S:$S,$G93) -> 59.4313641 | C93: =SUMPRODUCT((InMoment_Data_Period=$F93)*(InMoment_Data_Year=$G93)*InMoment_Data_Recommend*InMoment_Data_Count)/SUMIFS('Database PTD'!$P:$P,'Database PTD'!$R:$R,$F93,'Database PTD'!$S:$S,$G93) -> 55.05114292 | D93: =SUMPRODUCT((InMoment_Data_Period=$F93)*(InMoment_Data_Year=$G93)*InMoment_Data_Pace*InMoment_Data_Count)/SUMIFS('Database PTD'!$P:$P,'Database PTD'!$R:$R,$F93,'Database PTD'!$S:$S,$G93) -> 61.41463918 | E93: =SUMPRODUCT((InMoment_Data_Period=$F93)*(InMoment_Data_Year=$G93)*InMoment_Data_Food*InMoment_Data_Count)/SUMIFS('Database PTD'!$P:$P,'Database PTD'!$R:$R,$F93,'Database PTD'!$S:$S,$G93) -> 61.44716448 | F93: 7 | G93: 2017 | H93: '17 P07
A94: DFDE | B94: =SUMPRODUCT((InMoment_Data_Type=$A94)*(InMoment_Data_Period=$F94)*(InMoment_Data_Year=$G94)*InMoment_Data_Overall*InMoment_Data_Count)/SUMIFS('Database PTD'!$P:$P,'Database PTD'!$T:$T,$A94,'Database PTD'!$R:$R,$F94,'Database PTD'!$S:$S,$G94) -> 54.71730385 | C94: =SUMPRODUCT((InMoment_Data_Type=$A94)*(InMoment_Data_Period=$F94)*(InMoment_Data_Year=$G94)*InMoment_Data_Recommend*InMoment_Data_Count)/SUMIFS('Database PTD'!$P:$P,'Database PTD'!$T:$T,$A94,'Database PTD'!$R:$R,$F94,'Database PTD'!$S:$S,$G94) -> 51.96028118 | D94: =SUMPRODUCT((InMoment_Data_Type=$A94)*(InMoment_Data_Period=$F94)*(InMoment_Data_Year=$G94)*InMoment_Data_Pace*InMoment_Data_Count)/SUMIFS('Database PTD'!$P:$P,'Database PTD'!$T:$T,$A94,'Database PTD'!$R:$R,$F94,'Database PTD'!$S:$S,$G94) -> 56.30577324 | E94: =SUMPRODUCT((InMoment_Data_Type=$A94)*(InMoment_Data_Period=$F94)*(InMoment_Data_Year=$G94)*InMoment_Data_Food*InMoment_Data_Count)/SUMIFS('Database PTD'!$P:$P,'Database PTD'!$T:$T,$A94,'Database PTD'!$R:$R,$F94,'Database PTD'!$S:$S,$G94) -> 58.43735034 | F94: 8 | G94: 2017 | H94: '17 P08
A95: SULL | B95: =SUMPRODUCT((InMoment_Data_Type=$A95)*(InMoment_Data_Period=$F95)*(InMoment_Data_Year=$G95)*InMoment_Data_Overall*InMoment_Data_Count)/SUMIFS('Database PTD'!$P:$P,'Database PTD'!$T:$T,$A95,'Database PTD'!$R:$R,$F95,'Database PTD'!$S:$S,$G95) -> 61.83539768 | C95: =SUMPRODUCT((InMoment_Data_Type=$A95)*(InMoment_Data_Period=$F95)*(InMoment_Data_Year=$G95)*InMoment_Data_Recommend*InMoment_Data_Count)/SUMIFS('Database PTD'!$P:$P,'Database PTD'!$T:$T,$A95,'Database PTD'!$R:$R,$F95,'Database PTD'!$S:$S,$G95) -> 58.13883784 | D95: =SUMPRODUCT((InMoment_Data_Type=$A95)*(InMoment_Data_Period=$F95)*(InMoment_Data_Year=$G95)*InMoment_Data_Pace*InMoment_Data_Count)/SUMIFS('Database PTD'!$P:$P,'Database PTD'!$T:$T,$A95,'Database PTD'!$R:$R,$F95,'Database PTD'!$S:$S,$G95) -> 64.1585 | E95: =SUMPRODUCT((InMoment_Data_Type=$A95)*(InMoment_Data_Period=$F95)*(InMoment_Data_Year=$G95)*InMoment_Data_Food*InMoment_Data_Count)/SUMIFS('Database PTD'!$P:$P,'Database PTD'!$T:$T,$A95,'Database PTD'!$R:$R,$F95,'Database PTD'!$S:$S,$G95) -> 64.11218147 | F95: 8 | G95: 2017 | H95: '17 P08
A96: DFG | B96: =SUMPRODUCT((InMoment_Data_Type=$A96)*(InMoment_Data_Period=$F96)*(InMoment_Data_Year=$G96)*InMoment_Data_Overall*InMoment_Data_Count)/SUMIFS('Database PTD'!$P:$P,'Database PTD'!$T:$T,$A96,'Database PTD'!$R:$R,$F96,'Database PTD'!$S:$S,$G96) -> 58.97413731 | C96: =SUMPRODUCT((InMoment_Data_Type=$A96)*(InMoment_Data_Period=$F96)*(InMoment_Data_Year=$G96)*InMoment_Data_Recommend*InMoment_Data_Count)/SUMIFS('Database PTD'!$P:$P,'Database PTD'!$T:$T,$A96,'Database PTD'!$R:$R,$F96,'Database PTD'!$S:$S,$G96) -> 55.56135373 | D96: =SUMPRODUCT((InMoment_Data_Type=$A96)*(InMoment_Data_Period=$F96)*(InMoment_Data_Year=$G96)*InMoment_Data_Pace*InMoment_Data_Count)/SUMIFS('Database PTD'!$P:$P,'Database PTD'!$T:$T,$A96,'Database PTD'!$R:$R,$F96,'Database PTD'!$S:$S,$G96) -> 59.77279701 | E96: =SUMPRODUCT((InMoment_Data_Type=$A96)*(InMoment_Data_Period=$F96)*(InMoment_Data_Year=$G96)*InMoment_Data_Food*InMoment_Data_Count)/SUMIFS('Database PTD'!$P:$P,'Database PTD'!$T:$T,$A96,'Database PTD'!$R:$R,$F96,'Database PTD'!$S:$S,$G96) -> 59.4146194 | F96: 8 | G96: 2017 | H96: '17 P08
A97: DFRG | B97: =SUMPRODUCT((InMoment_Data_Period=$F97)*(InMoment_Data_Year=$G97)*InMoment_Data_Overall*InMoment_Data_Count)/SUMIFS('Database PTD'!$P:$P,'Database PTD'!$R:$R,$F97,'Database PTD'!$S:$S,$G97) -> 57.87636232 | C97: =SUMPRODUCT((InMoment_Data_Period=$F97)*(InMoment_Data_Year=$G97)*InMoment_Data_Recommend*InMoment_Data_Count)/SUMIFS('Database PTD'!$P:$P,'Database PTD'!$R:$R,$F97,'Database PTD'!$S:$S,$G97) -> 54.67197729 | D97: =SUMPRODUCT((InMoment_Data_Period=$F97)*(InMoment_Data_Year=$G97)*InMoment_Data_Pace*InMoment_Data_Count)/SUMIFS('Database PTD'!$P:$P,'Database PTD'!$R:$R,$F97,'Database PTD'!$S:$S,$G97) -> 59.3930285 | E97: =SUMPRODUCT((InMoment_Data_Period=$F97)*(InMoment_Data_Year=$G97)*InMoment_Data_Food*InMoment_Data_Count)/SUMIFS('Database PTD'!$P:$P,'Database PTD'!$R:$R,$F97,'Database PTD'!$S:$S,$G97) -> 60.173743 | F97: 8 | G97: 2017 | H97: '17 P08
A98: DFDE | B98: =SUMPRODUCT((InMoment_Data_Type=$A98)*(InMoment_Data_Period=$F98)*(InMoment_Data_Year=$G98)*InMoment_Data_Overall*InMoment_Data_Count)/SUMIFS('Database PTD'!$P:$P,'Database PTD'!$T:$T,$A98,'Database PTD'!$R:$R,$F98,'Database PTD'!$S:$S,$G98) -> 53.87147065 | C98: =SUMPRODUCT((InMoment_Data_Type=$A98)*(InMoment_Data_Period=$F98)*(InMoment_Data_Year=$G98)*InMoment_Data_Recommend*InMoment_Data_Count)/SUMIFS('Database PTD'!$P:$P,'Database PTD'!$T:$T,$A98,'Database PTD'!$R:$R,$F98,'Database PTD'!$S:$S,$G98) -> 48.27587841 | D98: =SUMPRODUCT((InMoment_Data_Type=$A98)*(InMoment_Data_Period=$F98)*(InMoment_Data_Year=$G98)*InMoment_Data_Pace*InMoment_Data_Count)/SUMIFS('Database PTD'!$P:$P,'Database PTD'!$T:$T,$A98,'Database PTD'!$R:$R,$F98,'Database PTD'!$S:$S,$G98) -> 55.19251677 | E98: =SUMPRODUCT((InMoment_Data_Type=$A98)*(InMoment_Data_Period=$F98)*(InMoment_Data_Year=$G98)*InMoment_Data_Food*InMoment_Data_Count)/SUMIFS('Database PTD'!$P:$P,'Database PTD'!$T:$T,$A98,'Database PTD'!$R:$R,$F98,'Database PTD'!$S:$S,$G98) -> 58.23118449 | F98: 9 | G98: 2017 | H98: ="'"&MID(G98,3,2)&" P"&IF(F98<10,"0","")&F98 -> '17 P09
A99: SULL | B99: =SUMPRODUCT((InMoment_Data_Type=$A99)*(InMoment_Data_Period=$F99)*(InMoment_Data_Year=$G99)*InMoment_Data_Overall*InMoment_Data_Count)/SUMIFS('Database PTD'!$P:$P,'Database PTD'!$T:$T,$A99,'Database PTD'!$R:$R,$F99,'Database PTD'!$S:$S,$G99) -> 57.06786497 | C99: =SUMPRODUCT((InMoment_Data_Type=$A99)*(InMoment_Data_Period=$F99)*(InMoment_Data_Year=$G99)*InMoment_Data_Recommend*InMoment_Data_Count)/SUMIFS('Database PTD'!$P:$P,'Database PTD'!$T:$T,$A99,'Database PTD'!$R:$R,$F99,'Database PTD'!$S:$S,$G99) -> 55.05565558 | D99: =SUMPRODUCT((InMoment_Data_Type=$A99)*(InMoment_Data_Period=$F99)*(InMoment_Data_Year=$G99)*InMoment_Data_Pace*InMoment_Data_Count)/SUMIFS('Database PTD'!$P:$P,'Database PTD'!$T:$T,$A99,'Database PTD'!$R:$R,$F99,'Database PTD'!$S:$S,$G99) -> 59.32370841 | E99: =SUMPRODUCT((InMoment_Data_Type=$A99)*(InMoment_Data_Period=$F99)*(InMoment_Data_Year=$G99)*InMoment_Data_Food*InMoment_Data_Count)/SUMIFS('Database PTD'!$P:$P,'Database PTD'!$T:$T,$A99,'Database PTD'!$R:$R,$F99,'Database PTD'!$S:$S,$G99) -> 58.90559687 | F99: 9 | G99: 2017 | H99: '17 P09
A100: DFG | B100: =SUMPRODUCT((InMoment_Data_Type=$A100)*(InMoment_Data_Period=$F100)*(InMoment_Data_Year=$G100)*InMoment_Data_Overall*InMoment_Data_Count)/SUMIFS('Database PTD'!$P:$P,'Database PTD'!$T:$T,$A100,'Database PTD'!$R:$R,$F100,'Database PTD'!$S:$S,$G100) -> 54.91174581 | C100: =SUMPRODUCT((InMoment_Data_Type=$A100)*(InMoment_Data_Period=$F100)*(InMoment_Data_Year=$G100)*InMoment_Data_Recommend*InMoment_Data_Count)/SUMIFS('Database PTD'!$P:$P,'Database PTD'!$T:$T,$A100,'Database PTD'!$R:$R,$F100,'Database PTD'!$S:$S,$G100) -> 49.03554888 | D100: =SUMPRODUCT((InMoment_Data_Type=$A100)*(InMoment_Data_Period=$F100)*(InMoment_Data_Year=$G100)*InMoment_Data_Pace*InMoment_Data_Count)/SUMIFS('Database PTD'!$P:$P,'Database PTD'!$T:$T,$A100,'Database PTD'!$R:$R,$F100,'Database PTD'!$S:$S,$G100) -> 57.43615363 | E100: =SUMPRODUCT((InMoment_Data_Type=$A100)*(InMoment_Data_Period=$F100)*(InMoment_Data_Year=$G100)*InMoment_Data_Food*InMoment_Data_Count)/SUMIFS('Database PTD'!$P:$P,'Database PTD'!$T:$T,$A100,'Database PTD'!$R:$R,$F100,'Database PTD'!$S:$S,$G100) -> 58.64676397 | F100: 9 | G100: 2017 | H100: '17 P09
A101: DFRG | B101: =SUMPRODUCT((InMoment_Data_Period=$F101)*(InMoment_Data_Year=$G101)*InMoment_Data_Overall*InMoment_Data_Count)/SUMIFS('Database PTD'!$P:$P,'Database PTD'!$R:$R,$F101,'Database PTD'!$S:$S,$G101) -> 54.96188537 | C101: =SUMPRODUCT((InMoment_Data_Period=$F101)*(InMoment_Data_Year=$G101)*InMoment_Data_Recommend*InMoment_Data_Count)/SUMIFS('Database PTD'!$P:$P,'Database PTD'!$R:$R,$F101,'Database PTD'!$S:$S,$G101) -> 50.11374645 | D101: =SUMPRODUCT((InMoment_Data_Period=$F101)*(InMoment_Data_Year=$G101)*InMoment_Data_Pace*InMoment_Data_Count)/SUMIFS('Database PTD'!$P:$P,'Database PTD'!$R:$R,$F101,'Database PTD'!$S:$S,$G101) -> 56.89700229 | E101: =SUMPRODUCT((InMoment_Data_Period=$F101)*(InMoment_Data_Year=$G101)*InMoment_Data_Food*InMoment_Data_Count)/SUMIFS('Database PTD'!$P:$P,'Database PTD'!$R:$R,$F101,'Database PTD'!$S:$S,$G101) -> 58.52562724 | F101: 9 | G101: 2017 | H101: '17 P09
A102: DFDE | B102: =SUMPRODUCT((InMoment_Data_Type=$A102)*(InMoment_Data_Period=$F102)*(InMoment_Data_Year=$G102)*InMoment_Data_Overall*InMoment_Data_Count)/SUMIFS('Database PTD'!$P:$P,'Database PTD'!$T:$T,$A102,'Database PTD'!$R:$R,$F102,'Database PTD'!$S:$S,$G102) -> 56.97691809 | C102: =SUMPRODUCT((InMoment_Data_Type=$A102)*(InMoment_Data_Period=$F102)*(InMoment_Data_Year=$G102)*InMoment_Data_Recommend*InMoment_Data_Count)/SUMIFS('Database PTD'!$P:$P,'Database PTD'!$T:$T,$A102,'Database PTD'!$R:$R,$F102,'Database PTD'!$S:$S,$G102) -> 54.47648919 | D102: =SUMPRODUCT((InMoment_Data_Type=$A102)*(InMoment_Data_Period=$F102)*(InMoment_Data_Year=$G102)*InMoment_Data_Pace*InMoment_Data_Count)/SUMIFS('Database PTD'!$P:$P,'Database PTD'!$T:$T,$A102,'Database PTD'!$R:$R,$F102,'Database PTD'!$S:$S,$G102) -> 56.88585666 | E102: =SUMPRODUCT((InMoment_Data_Type=$A102)*(InMoment_Data_Period=$F102)*(InMoment_Data_Year=$G102)*InMoment_Data_Food*InMoment_Data_Count)/SUMIFS('Database PTD'!$P:$P,'Database PTD'!$T:$T,$A102,'Database PTD'!$R:$R,$F102,'Database PTD'!$S:$S,$G102) -> 62.47517861 | F102: =IF(F98=13,1,F98+1) -> 10 | G102: =IF(F98=13,G98+1,G98) -> 2017 | H102: '17 P10
A103: SULL | B103: =SUMPRODUCT((InMoment_Data_Type=$A103)*(InMoment_Data_Period=$F103)*(InMoment_Data_Year=$G103)*InMoment_Data_Overall*InMoment_Data_Count)/SUMIFS('Database PTD'!$P:$P,'Database PTD'!$T:$T,$A103,'Database PTD'!$R:$R,$F103,'Database PTD'!$S:$S,$G103) -> 60.38099539 | C103: =SUMPRODUCT((InMoment_Data_Type=$A103)*(InMoment_Data_Period=$F103)*(InMoment_Data_Year=$G103)*InMoment_Data_Recommend*InMoment_Data_Count)/SUMIFS('Database PTD'!$P:$P,'Database PTD'!$T:$T,$A103,'Database PTD'!$R:$R,$F103,'Database PTD'!$S:$S,$G103) -> 56.97611521 | D103: =SUMPRODUCT((InMoment_Data_Type=$A103)*(InMoment_Data_Period=$F103)*(InMoment_Data_Year=$G103)*InMoment_Data_Pace*InMoment_Data_Count)/SUMIFS('Database PTD'!$P:$P,'Database PTD'!$T:$T,$A103,'Database PTD'!$R:$R,$F103,'Database PTD'!$S:$S,$G103) -> 60.09400922 | E103: =SUMPRODUCT((InMoment_Data_Type=$A103)*(InMoment_Data_Period=$F103)*(InMoment_Data_Year=$G103)*InMoment_Data_Food*InMoment_Data_Count)/SUMIFS('Database PTD'!$P:$P,'Database PTD'!$T:$T,$A103,'Database PTD'!$R:$R,$F103,'Database PTD'!$S:$S,$G103) -> 62.77300691 | F103: 10 | G103: 2017 | H103: '17 P10
A104: DFG | B104: =SUMPRODUCT((InMoment_Data_Type=$A104)*(InMoment_Data_Period=$F104)*(InMoment_Data_Year=$G104)*InMoment_Data_Overall*InMoment_Data_Count)/SUMIFS('Database PTD'!$P:$P,'Database PTD'!$T:$T,$A104,'Database PTD'!$R:$R,$F104,'Database PTD'!$S:$S,$G104) -> 58.92062848 | C104: =SUMPRODUCT((InMoment_Data_Type=$A104)*(InMoment_Data_Period=$F104)*(InMoment_Data_Year=$G104)*InMoment_Data_Recommend*InMoment_Data_Count)/SUMIFS('Database PTD'!$P:$P,'Database PTD'!$T:$T,$A104,'Database PTD'!$R:$R,$F104,'Database PTD'!$S:$S,$G104) -> 53.55231097 | D104: =SUMPRODUCT((InMoment_Data_Type=$A104)*(InMoment_Data_Period=$F104)*(InMoment_Data_Year=$G104)*InMoment_Data_Pace*InMoment_Data_Count)/SUMIFS('Database PTD'!$P:$P,'Database PTD'!$T:$T,$A104,'Database PTD'!$R:$R,$F104,'Database PTD'!$S:$S,$G104) -> 60.81885761 | E104: =SUMPRODUCT((InMoment_Data_Type=$A104)*(InMoment_Data_Period=$F104)*(InMoment_Data_Year=$G104)*InMoment_Data_Food*InMoment_Data_Count)/SUMIFS('Database PTD'!$P:$P,'Database PTD'!$T:$T,$A104,'Database PTD'!$R:$R,$F104,'Database PTD'!$S:$S,$G104) -> 60.36961211 | F104: 10 | G104: 2017 | H104: '17 P10
A105: DFRG | B105: =SUMPRODUCT((InMoment_Data_Period=$F105)*(InMoment_Data_Year=$G105)*InMoment_Data_Overall*InMoment_Data_Count)/SUMIFS('Database PTD'!$P:$P,'Database PTD'!$R:$R,$F105,'Database PTD'!$S:$S,$G105) -> 58.36204106 | C105: =SUMPRODUCT((InMoment_Data_Period=$F105)*(InMoment_Data_Year=$G105)*InMoment_Data_Recommend*InMoment_Data_Count)/SUMIFS('Database PTD'!$P:$P,'Database PTD'!$R:$R,$F105,'Database PTD'!$S:$S,$G105) -> 54.74684511 | D105: =SUMPRODUCT((InMoment_Data_Period=$F105)*(InMoment_Data_Year=$G105)*InMoment_Data_Pace*InMoment_Data_Count)/SUMIFS('Database PTD'!$P:$P,'Database PTD'!$R:$R,$F105,'Database PTD'!$S:$S,$G105) -> 58.85851871 | E105: =SUMPRODUCT((InMoment_Data_Period=$F105)*(InMoment_Data_Year=$G105)*InMoment_Data_Food*InMoment_Data_Count)/SUMIFS('Database PTD'!$P:$P,'Database PTD'!$R:$R,$F105,'Database PTD'!$S:$S,$G105) -> 61.87370062 | F105: 10 | G105: 2017 | H105: '17 P10
A106: DFDE | B106: =SUMPRODUCT((InMoment_Data_Type=$A106)*(InMoment_Data_Period=$F106)*(InMoment_Data_Year=$G106)*InMoment_Data_Overall*InMoment_Data_Count)/SUMIFS('Database PTD'!$P:$P,'Database PTD'!$T:$T,$A106,'Database PTD'!$R:$R,$F106,'Database PTD'!$S:$S,$G106) -> 59.72392994 | C106: =SUMPRODUCT((InMoment_Data_Type=$A106)*(InMoment_Data_Period=$F106)*(InMoment_Data_Year=$G106)*InMoment_Data_Recommend*InMoment_Data_Count)/SUMIFS('Database PTD'!$P:$P,'Database PTD'!$T:$T,$A106,'Database PTD'!$R:$R,$F106,'Database PTD'!$S:$S,$G106) -> 56.53688701 | D106: =SUMPRODUCT((InMoment_Data_Type=$A106)*(InMoment_Data_Period=$F106)*(InMoment_Data_Year=$G106)*InMoment_Data_Pace*InMoment_Data_Count)/SUMIFS('Database PTD'!$P:$P,'Database PTD'!$T:$T,$A106,'Database PTD'!$R:$R,$F106,'Database PTD'!$S:$S,$G106) -> 59.31344633 | E106: =SUMPRODUCT((InMoment_Data_Type=$A106)*(InMoment_Data_Period=$F106)*(InMoment_Data_Year=$G106)*InMoment_Data_Food*InMoment_Data_Count)/SUMIFS('Database PTD'!$P:$P,'Database PTD'!$T:$T,$A106,'Database PTD'!$R:$R,$F106,'Database PTD'!$S:$S,$G106) -> 63.41390508 | F106: 11 | G106: 2017 | H106: '17 P11
A107: SULL | B107: =SUMPRODUCT((InMoment_Data_Type=$A107)*(InMoment_Data_Period=$F107)*(InMoment_Data_Year=$G107)*InMoment_Data_Overall*InMoment_Data_Count)/SUMIFS('Database PTD'!$P:$P,'Database PTD'!$T:$T,$A107,'Database PTD'!$R:$R,$F107,'Database PTD'!$S:$S,$G107) -> 58.43407963 | C107: =SUMPRODUCT((InMoment_Data_Type=$A107)*(InMoment_Data_Period=$F107)*(InMoment_Data_Year=$G107)*InMoment_Data_Recommend*InMoment_Data_Count)/SUMIFS('Database PTD'!$P:$P,'Database PTD'!$T:$T,$A107,'Database PTD'!$R:$R,$F107,'Database PTD'!$S:$S,$G107) -> 54.59455269 | D107: =SUMPRODUCT((InMoment_Data_Type=$A107)*(InMoment_Data_Period=$F107)*(InMoment_Data_Year=$G107)*InMoment_Data_Pace*InMoment_Data_Count)/SUMIFS('Database PTD'!$P:$P,'Database PTD'!$T:$T,$A107,'Database PTD'!$R:$R,$F107,'Database PTD'!$S:$S,$G107) -> 59.46698829 | E107: =SUMPRODUCT((InMoment_Data_Type=$A107)*(InMoment_Data_Period=$F107)*(InMoment_Data_Year=$G107)*InMoment_Data_Food*InMoment_Data_Count)/SUMIFS('Database PTD'!$P:$P,'Database PTD'!$T:$T,$A107,'Database PTD'!$R:$R,$F107,'Database PTD'!$S:$S,$G107) -> 61.10170492 | F107: 11 | G107: 2017 | H107: '17 P11
A108: DFG | B108: =SUMPRODUCT((InMoment_Data_Type=$A108)*(InMoment_Data_Period=$F108)*(InMoment_Data_Year=$G108)*InMoment_Data_Overall*InMoment_Data_Count)/SUMIFS('Database PTD'!$P:$P,'Database PTD'!$T:$T,$A108,'Database PTD'!$R:$R,$F108,'Database PTD'!$S:$S,$G108) -> 53.80418403 | C108: =SUMPRODUCT((InMoment_Data_Type=$A108)*(InMoment_Data_Period=$F108)*(InMoment_Data_Year=$G108)*InMoment_Data_Recommend*InMoment_Data_Count)/SUMIFS('Database PTD'!$P:$P,'Database PTD'!$T:$T,$A108,'Database PTD'!$R:$R,$F108,'Database PTD'!$S:$S,$G108) -> 46.21722049 | D108: =SUMPRODUCT((InMoment_Data_Type=$A108)*(InMoment_Data_Period=$F108)*(InMoment_Data_Year=$G108)*InMoment_Data_Pace*InMoment_Data_Count)/SUMIFS('Database PTD'!$P:$P,'Database PTD'!$T:$T,$A108,'Database PTD'!$R:$R,$F108,'Database PTD'!$S:$S,$G108) -> 55.87271007 | E108: =SUMPRODUCT((InMoment_Data_Type=$A108)*(InMoment_Data_Period=$F108)*(InMoment_Data_Year=$G108)*InMoment_Data_Food*InMoment_Data_Count)/SUMIFS('Database PTD'!$P:$P,'Database PTD'!$T:$T,$A108,'Database PTD'!$R:$R,$F108,'Database PTD'!$S:$S,$G108) -> 55.69334549 | F108: 11 | G108: 2017 | H108: '17 P11
A109: DFRG | B109: =SUMPRODUCT((InMoment_Data_Period=$F109)*(InMoment_Data_Year=$G109)*InMoment_Data_Overall*InMoment_Data_Count)/SUMIFS('Database PTD'!$P:$P,'Database PTD'!$R:$R,$F109,'Database PTD'!$S:$S,$G109) -> 57.62618644 | C109: =SUMPRODUCT((InMoment_Data_Period=$F109)*(InMoment_Data_Year=$G109)*InMoment_Data_Recommend*InMoment_Data_Count)/SUMIFS('Database PTD'!$P:$P,'Database PTD'!$R:$R,$F109,'Database PTD'!$S:$S,$G109) -> 52.94922564 | D109: =SUMPRODUCT((InMoment_Data_Period=$F109)*(InMoment_Data_Year=$G109)*InMoment_Data_Pace*InMoment_Data_Count)/SUMIFS('Database PTD'!$P:$P,'Database PTD'!$R:$R,$F109,'Database PTD'!$S:$S,$G109) -> 58.29845604 | E109: =SUMPRODUCT((InMoment_Data_Period=$F109)*(InMoment_Data_Year=$G109)*InMoment_Data_Food*InMoment_Data_Count)/SUMIFS('Database PTD'!$P:$P,'Database PTD'!$R:$R,$F109,'Database PTD'!$S:$S,$G109) -> 60.53554078 | F109: 11 | G109: 2017 | H109: '17 P11

Sheet Brand Summary PTD YTD
A1: Brand | B1: Overall Sat. | C1: Recommend | D1: Pace of dining | E1: Quality of food | F1: Period | G1: Year | H1: Year_Period
A2: DFDE | B2: =SUMPRODUCT((InMoment_Data_Type=$A2)*(InMoment_Data_Period>=1)*(InMoment_Data_Period<=$F2)*(InMoment_Data_Year=$G2)*InMoment_Data_Overall*InMoment_Data_Count)/SUMIFS('Database PTD'!$P:$P,'Database PTD'!$T:$T,$A2,'Database PTD'!$R:$R,">=1",'Database PTD'!$R:$R,"<="&$F2,'Database PTD'!$S:$S,$G2) -> 55.9605841 | C2: =SUMPRODUCT((InMoment_Data_Type=$A2)*(InMoment_Data_Period>=1)*(InMoment_Data_Period<=$F2)*(InMoment_Data_Year=$G2)*InMoment_Data_Recommend*InMoment_Data_Count)/SUMIFS('Database PTD'!$P:$P,'Database PTD'!$T:$T,$A2,'Database PTD'!$R:$R,">=1",'Database PTD'!$R:$R,"<="&$F2,'Database PTD'!$S:$S,$G2) -> 0 | D2: =SUMPRODUCT((InMoment_Data_Type=$A2)*(InMoment_Data_Period>=1)*(InMoment_Data_Period<=$F2)*(InMoment_Data_Year=$G2)*InMoment_Data_Pace*InMoment_Data_Count)/SUMIFS('Database PTD'!$P:$P,'Database PTD'!$T:$T,$A2,'Database PTD'!$R:$R,">=1",'Database PTD'!$R:$R,"<="&$F2,'Database PTD'!$S:$S,$G2) -> 56.86099573 | E2: =SUMPRODUCT((InMoment_Data_Type=$A2)*(InMoment_Data_Period>=1)*(InMoment_Data_Period<=$F2)*(InMoment_Data_Year=$G2)*InMoment_Data_Food*InMoment_Data_Count)/SUMIFS('Database PTD'!$P:$P,'Database PTD'!$T:$T,$A2,'Database PTD'!$R:$R,">=1",'Database PTD'!$R:$R,"<="&$F2,'Database PTD'!$S:$S,$G2) -> 60.76978526 | F2: =Inputs!$B$2 -> 11 | G2: 2015 | H2: ="'"&MID(G2,3,2)&" P"&IF(F2<10,"0","")&F2 -> '15 P11
A3: SULL | B3: =SUMPRODUCT((InMoment_Data_Type=$A3)*(InMoment_Data_Period>=1)*(InMoment_Data_Period<=$F3)*(InMoment_Data_Year=$G3)*InMoment_Data_Overall*InMoment_Data_Count)/SUMIFS('Database PTD'!$P:$P,'Database PTD'!$T:$T,$A3,'Database PTD'!$R:$R,">=1",'Database PTD'!$R:$R,"<="&$F3,'Database PTD'!$S:$S,$G3) -> 55.69501657 | C3: =SUMPRODUCT((InMoment_Data_Type=$A3)*(InMoment_Data_Period>=1)*(InMoment_Data_Period<=$F3)*(InMoment_Data_Year=$G3)*InMoment_Data_Recommend*InMoment_Data_Count)/SUMIFS('Database PTD'!$P:$P,'Database PTD'!$T:$T,$A3,'Database PTD'!$R:$R,">=1",'Database PTD'!$R:$R,"<="&$F3,'Database PTD'!$S:$S,$G3) -> 0 | D3: =SUMPRODUCT((InMoment_Data_Type=$A3)*(InMoment_Data_Period>=1)*(InMoment_Data_Period<=$F3)*(InMoment_Data_Year=$G3)*InMoment_Data_Pace*InMoment_Data_Count)/SUMIFS('Database PTD'!$P:$P,'Database PTD'!$T:$T,$A3,'Database PTD'!$R:$R,">=1",'Database PTD'!$R:$R,"<="&$F3,'Database PTD'!$S:$S,$G3) -> 57.95489689 | E3: =SUMPRODUCT((InMoment_Data_Type=$A3)*(InMoment_Data_Period>=1)*(InMoment_Data_Period<=$F3)*(InMoment_Data_Year=$G3)*InMoment_Data_Food*InMoment_Data_Count)/SUMIFS('Database PTD'!$P:$P,'Database PTD'!$T:$T,$A3,'Database PTD'!$R:$R,">=1",'Database PTD'!$R:$R,"<="&$F3,'Database PTD'!$S:$S,$G3) -> 58.37309897 | F3: =F2 -> 11 | G3: 2015 | H3: '15 P11
A4: DFG | B4: =SUMPRODUCT((InMoment_Data_Type=$A4)*(InMoment_Data_Period>=1)*(InMoment_Data_Period<=$F4)*(InMoment_Data_Year=$G4)*InMoment_Data_Overall*InMoment_Data_Count)/SUMIFS('Database PTD'!$P:$P,'Database PTD'!$T:$T,$A4,'Database PTD'!$R:$R,">=1",'Database PTD'!$R:$R,"<="&$F4,'Database PTD'!$S:$S,$G4) -> 48.99326415 | C4: =SUMPRODUCT((InMoment_Data_Type=$A4)*(InMoment_Data_Period>=1)*(InMoment_Data_Period<=$F4)*(InMoment_Data_Year=$G4)*InMoment_Data_Recommend*InMoment_Data_Count)/SUMIFS('Database PTD'!$P:$P,'Database PTD'!$T:$T,$A4,'Database PTD'!$R:$R,">=1",'Database PTD'!$R:$R,"<="&$F4,'Database PTD'!$S:$S,$G4) -> 0 | D4: =SUMPRODUCT((InMoment_Data_Type=$A4)*(InMoment_Data_Period>=1)*(InMoment_Data_Period<=$F4)*(InMoment_Data_Year=$G4)*InMoment_Data_Pace*InMoment_Data_Count)/SUMIFS('Database PTD'!$P:$P,'Database PTD'!$T:$T,$A4,'Database PTD'!$R:$R,">=1",'Database PTD'!$R:$R,"<="&$F4,'Database PTD'!$S:$S,$G4) -> 52.09318795 | E4: =SUMPRODUCT((InMoment_Data_Type=$A4)*(InMoment_Data_Period>=1)*(InMoment_Data_Period<=$F4)*(InMoment_Data_Year=$G4)*InMoment_Data_Food*InMoment_Data_Count)/SUMIFS('Database PTD'!$P:$P,'Database PTD'!$T:$T,$A4,'Database PTD'!$R:$R,">=1",'Database PTD'!$R:$R,"<="&$F4,'Database PTD'!$S:$S,$G4) -> 51.92658509 | F4: =F2 -> 11 | G4: 2015 | H4: '15 P11
A5: DFRG | B5: =SUMPRODUCT((InMoment_Data_Period>=1)*(InMoment_Data_Period<=$F5)*(InMoment_Data_Year=$G5)*InMoment_Data_Overall*InMoment_Data_Count)/SUMIFS('Database PTD'!$P:$P,'Database PTD'!$R:$R,">=1",'Database PTD'!$R:$R,"<="&$F5,'Database PTD'!$S:$S,$G5) -> 54.25034895 | C5: =SUMPRODUCT((InMoment_Data_Period>=1)*(InMoment_Data_Period<=$F5)*(InMoment_Data_Year=$G5)*InMoment_Data_Recommend*InMoment_Data_Count)/SUMIFS('Database PTD'!$P:$P,'Database PTD'!$R:$R,">=1",'Database PTD'!$R:$R,"<="&$F5,'Database PTD'!$S:$S,$G5) -> 0 | D5: =SUMPRODUCT((InMoment_Data_Period>=1)*(InMoment_Data_Period<=$F5)*(InMoment_Data_Year=$G5)*InMoment_Data_Pace*InMoment_Data_Count)/SUMIFS('Database PTD'!$P:$P,'Database PTD'!$R:$R,">=1",'Database PTD'!$R:$R,"<="&$F5,'Database PTD'!$S:$S,$G5) -> 56.11540996 | E5: =SUMPRODUCT((InMoment_Data_Period>=1)*(InMoment_Data_Period<=$F5)*(InMoment_Data_Year=$G5)*InMoment_Data_Food*InMoment_Data_Count)/SUMIFS('Database PTD'!$P:$P,'Database PTD'!$R:$R,">=1",'Database PTD'!$R:$R,"<="&$F5,'Database PTD'!$S:$S,$G5) -> 57.9132984 | F5: =F2 -> 11 | G5: 2015 | H5: '15 P11
A6: DFDE | B6: =SUMPRODUCT((InMoment_Data_Type=$A6)*(InMoment_Data_Period>=1)*(InMoment_Data_Period<=$F6)*(InMoment_Data_Year=$G6)*InMoment_Data_Overall*InMoment_Data_Count)/SUMIFS('Database PTD'!$P:$P,'Database PTD'!$T:$T,$A6,'Database PTD'!$R:$R,">=1",'Database PTD'!$R:$R,"<="&$F6,'Database PTD'!$S:$S,$G6) -> 55.91300594 | C6: =SUMPRODUCT((InMoment_Data_Type=$A6)*(InMoment_Data_Period>=1)*(InMoment_Data_Period<=$F6)*(InMoment_Data_Year=$G6)*InMoment_Data_Recommend*InMoment_Data_Count)/SUMIFS('Database PTD'!$P:$P,'Database PTD'!$T:$T,$A6,'Database PTD'!$R:$R,">=1",'Database PTD'!$R:$R,"<="&$F6,'Database PTD'!$S:$S,$G6) -> 0 | D6: =SUMPRODUCT((InMoment_Data_Type=$A6)*(InMoment_Data_Period>=1)*(InMoment_Data_Period<=$F6)*(InMoment_Data_Year=$G6)*InMoment_Data_Pace*InMoment_Data_Count)/SUMIFS('Database PTD'!$P:$P,'Database PTD'!$T:$T,$A6,'Database PTD'!$R:$R,">=1",'Database PTD'!$R:$R,"<="&$F6,'Database PTD'!$S:$S,$G6) -> 56.93576109 | E6: =SUMPRODUCT((InMoment_Data_Type=$A6)*(InMoment_Data_Period>=1)*(InMoment_Data_Period<=$F6)*(InMoment_Data_Year=$G6)*InMoment_Data_Food*InMoment_Data_Count)/SUMIFS('Database PTD'!$P:$P,'Database PTD'!$T:$T,$A6,'Database PTD'!$R:$R,">=1",'Database PTD'!$R:$R,"<="&$F6,'Database PTD'!$S:$S,$G6) -> 60.6705088 | F6: =IF(F2=13,1,F2+1) -> 12 | G6: =IF(F2=13,G2+1,G2) -> 2015 | H6: '15 P12
A7: SULL | B7: =SUMPRODUCT((InMoment_Data_Type=$A7)*(InMoment_Data_Period>=1)*(InMoment_Data_Period<=$F7)*(InMoment_Data_Year=$G7)*InMoment_Data_Overall*InMoment_Data_Count)/SUMIFS('Database PTD'!$P:$P,'Database PTD'!$T:$T,$A7,'Database PTD'!$R:$R,">=1",'Database PTD'!$R:$R,"<="&$F7,'Database PTD'!$S:$S,$G7) -> 55.02700586 | C7: =SUMPRODUCT((InMoment_Data_Type=$A7)*(InMoment_Data_Period>=1)*(InMoment_Data_Period<=$F7)*(InMoment_Data_Year=$G7)*InMoment_Data_Recommend*InMoment_Data_Count)/SUMIFS('Database PTD'!$P:$P,'Database PTD'!$T:$T,$A7,'Database PTD'!$R:$R,">=1",'Database PTD'!$R:$R,"<="&$F7,'Database PTD'!$S:$S,$G7) -> 0 | D7: =SUMPRODUCT((InMoment_Data_Type=$A7)*(InMoment_Data_Period>=1)*(InMoment_Data_Period<=$F7)*(InMoment_Data_Year=$G7)*InMoment_Data_Pace*InMoment_Data_Count)/SUMIFS('Database PTD'!$P:$P,'Database PTD'!$T:$T,$A7,'Database PTD'!$R:$R,">=1",'Database PTD'!$R:$R,"<="&$F7,'Database PTD'!$S:$S,$G7) -> 57.31805444 | E7: =SUMPRODUCT((InMoment_Data_Type=$A7)*(InMoment_Data_Period>=1)*(InMoment_Data_Period<=$F7)*(InMoment_Data_Year=$G7)*InMoment_Data_Food*InMoment_Data_Count)/SUMIFS('Database PTD'!$P:$P,'Database PTD'!$T:$T,$A7,'Database PTD'!$R:$R,">=1",'Database PTD'!$R:$R,"<="&$F7,'Database PTD'!$S:$S,$G7) -> 57.68375723 | F7: 12 | G7: 2015 | H7: '15 P12
A8: DFG | B8: =SUMPRODUCT((InMoment_Data_Type=$A8)*(InMoment_Data_Period>=1)*(InMoment_Data_Period<=$F8)*(InMoment_Data_Year=$G8)*InMoment_Data_Overall*InMoment_Data_Count)/SUMIFS('Database PTD'!$P:$P,'Database PTD'!$T:$T,$A8,'Database PTD'!$R:$R,">=1",'Database PTD'!$R:$R,"<="&$F8,'Database PTD'!$S:$S,$G8) -> 48.60314784 | C8: =SUMPRODUCT((InMoment_Data_Type=$A8)*(InMoment_Data_Period>=1)*(InMoment_Data_Period<=$F8)*(InMoment_Data_Year=$G8)*InMoment_Data_Recommend*InMoment_Data_Count)/SUMIFS('Database PTD'!$P:$P,'Database PTD'!$T:$T,$A8,'Database PTD'!$R:$R,">=1",'Database PTD'!$R:$R,"<="&$F8,'Database PTD'!$S:$S,$G8) -> 0 | D8: =SUMPRODUCT((InMoment_Data_Type=$A8)*(InMoment_Data_Period>=1)*(InMoment_Data_Period<=$F8)*(InMoment_Data_Year=$G8)*InMoment_Data_Pace*InMoment_Data_Count)/SUMIFS('Database PTD'!$P:$P,'Database PTD'!$T:$T,$A8,'Database PTD'!$R:$R,">=1",'Database PTD'!$R:$R,"<="&$F8,'Database PTD'!$S:$S,$G8) -> 51.88828738 | E8: =SUMPRODUCT((InMoment_Data_Type=$A8)*(InMoment_Data_Period>=1)*(InMoment_Data_Period<=$F8)*(InMoment_Data_Year=$G8)*InMoment_Data_Food*InMoment_Data_Count)/SUMIFS('Database PTD'!$P:$P,'Database PTD'!$T:$T,$A8,'Database PTD'!$R:$R,">=1",'Database PTD'!$R:$R,"<="&$F8,'Database PTD'!$S:$S,$G8) -> 51.60382724 | F8: 12 | G8: 2015 | H8: '15 P12
A9: DFRG | B9: =SUMPRODUCT((InMoment_Data_Period>=1)*(InMoment_Data_Period<=$F9)*(InMoment_Data_Year=$G9)*InMoment_Data_Overall*InMoment_Data_Count)/SUMIFS('Database PTD'!$P:$P,'Database PTD'!$R:$R,">=1",'Database PTD'!$R:$R,"<="&$F9,'Database PTD'!$S:$S,$G9) -> 53.89852837 | C9: =SUMPRODUCT((InMoment_Data_Period>=1)*(InMoment_Data_Period<=$F9)*(InMoment_Data_Year=$G9)*InMoment_Data_Recommend*InMoment_Data_Count)/SUMIFS('Database PTD'!$P:$P,'Database PTD'!$R:$R,">=1",'Database PTD'!$R:$R,"<="&$F9,'Database PTD'!$S:$S,$G9) -> 0 | D9: =SUMPRODUCT((InMoment_Data_Period>=1)*(InMoment_Data_Period<=$F9)*(InMoment_Data_Year=$G9)*InMoment_Data_Pace*InMoment_Data_Count)/SUMIFS('Database PTD'!$P:$P,'Database PTD'!$R:$R,">=1",'Database PTD'!$R:$R,"<="&$F9,'Database PTD'!$S:$S,$G9) -> 55.87607605 | E9: =SUMPRODUCT((InMoment_Data_Period>=1)*(InMoment_Data_Period<=$F9)*(InMoment_Data_Year=$G9)*InMoment_Data_Food*InMoment_Data_Count)/SUMIFS('Database PTD'!$P:$P,'Database PTD'!$R:$R,">=1",'Database PTD'!$R:$R,"<="&$F9,'Database PTD'!$S:$S,$G9) -> 57.54269011 | F9: 12 | G9: 2015 | H9: '15 P12
A10: DFDE | B10: =SUMPRODUCT((InMoment_Data_Type=$A10)*(InMoment_Data_Period>=1)*(InMoment_Data_Period<=$F10)*(InMoment_Data_Year=$G10)*InMoment_Data_Overall*InMoment_Data_Count)/SUMIFS('Database PTD'!$P:$P,'Database PTD'!$T:$T,$A10,'Database PTD'!$R:$R,">=1",'Database PTD'!$R:$R,"<="&$F10,'Database PTD'!$S:$S,$G10) -> 56.06328769 | C10: =SUMPRODUCT((InMoment_Data_Type=$A10)*(InMoment_Data_Period>=1)*(InMoment_Data_Period<=$F10)*(InMoment_Data_Year=$G10)*InMoment_Data_Recommend*InMoment_Data_Count)/SUMIFS('Database PTD'!$P:$P,'Database PTD'!$T:$T,$A10,'Database PTD'!$R:$R,">=1",'Database PTD'!$R:$R,"<="&$F10,'Database PTD'!$S:$S,$G10) -> 0 | D10: =SUMPRODUCT((InMoment_Data_Type=$A10)*(InMoment_Data_Period>=1)*(InMoment_Data_Period<=$F10)*(InMoment_Data_Year=$G10)*InMoment_Data_Pace*InMoment_Data_Count)/SUMIFS('Database PTD'!$P:$P,'Database PTD'!$T:$T,$A10,'Database PTD'!$R:$R,">=1",'Database PTD'!$R:$R,"<="&$F10,'Database PTD'!$S:$S,$G10) -> 57.10235406 | E10: =SUMPRODUCT((InMoment_Data_Type=$A10)*(InMoment_Data_Period>=1)*(InMoment_Data_Period<=$F10)*(InMoment_Data_Year=$G10)*InMoment_Data_Food*InMoment_Data_Count)/SUMIFS('Database PTD'!$P:$P,'Database PTD'!$T:$T,$A10,'Database PTD'!$R:$R,">=1",'Database PTD'!$R:$R,"<="&$F10,'Database PTD'!$S:$S,$G10) -> 60.76860402 | F10: 13 | G10: 2015 | H10: '15 P13
A11: SULL | B11: =SUMPRODUCT((InMoment_Data_Type=$A11)*(InMoment_Data_Period>=1)*(InMoment_Data_Period<=$F11)*(InMoment_Data_Year=$G11)*InMoment_Data_Overall*InMoment_Data_Count)/SUMIFS('Database PTD'!$P:$P,'Database PTD'!$T:$T,$A11,'Database PTD'!$R:$R,">=1",'Database PTD'!$R:$R,"<="&$F11,'Database PTD'!$S:$S,$G11) -> 54.46844985 | C11: =SUMPRODUCT((InMoment_Data_Type=$A11)*(InMoment_Data_Period>=1)*(InMoment_Data_Period<=$F11)*(InMoment_Data_Year=$G11)*InMoment_Data_Recommend*InMoment_Data_Count)/SUMIFS('Database PTD'!$P:$P,'Database PTD'!$T:$T,$A11,'Database PTD'!$R:$R,">=1",'Database PTD'!$R:$R,"<="&$F11,'Database PTD'!$S:$S,$G11) -> 0 | D11: =SUMPRODUCT((InMoment_Data_Type=$A11)*(InMoment_Data_Period>=1)*(InMoment_Data_Period<=$F11)*(InMoment_Data_Year=$G11)*InMoment_Data_Pace*InMoment_Data_Count)/SUMIFS('Database PTD'!$P:$P,'Database PTD'!$T:$T,$A11,'Database PTD'!$R:$R,">=1",'Database PTD'!$R:$R,"<="&$F11,'Database PTD'!$S:$S,$G11) -> 56.77661378 | E11: =SUMPRODUCT((InMoment_Data_Type=$A11)*(InMoment_Data_Period>=1)*(InMoment_Data_Period<=$F11)*(InMoment_Data_Year=$G11)*InMoment_Data_Food*InMoment_Data_Count)/SUMIFS('Database PTD'!$P:$P,'Database PTD'!$T:$T,$A11,'Database PTD'!$R:$R,">=1",'Database PTD'!$R:$R,"<="&$F11,'Database PTD'!$S:$S,$G11) -> 57.45079533 | F11: 13 | G11: 2015 | H11: '15 P13
A12: DFG | B12: =SUMPRODUCT((InMoment_Data_Type=$A12)*(InMoment_Data_Period>=1)*(InMoment_Data_Period<=$F12)*(InMoment_Data_Year=$G12)*InMoment_Data_Overall*InMoment_Data_Count)/SUMIFS('Database PTD'!$P:$P,'Database PTD'!$T:$T,$A12,'Database PTD'!$R:$R,">=1",'Database PTD'!$R:$R,"<="&$F12,'Database PTD'!$S:$S,$G12) -> 48.20201652 | C12: =SUMPRODUCT((InMoment_Data_Type=$A12)*(InMoment_Data_Period>=1)*(InMoment_Data_Period<=$F12)*(InMoment_Data_Year=$G12)*InMoment_Data_Recommend*InMoment_Data_Count)/SUMIFS('Database PTD'!$P:$P,'Database PTD'!$T:$T,$A12,'Database PTD'!$R:$R,">=1",'Database PTD'!$R:$R,"<="&$F12,'Database PTD'!$S:$S,$G12) -> 0 | D12: =SUMPRODUCT((InMoment_Data_Type=$A12)*(InMoment_Data_Period>=1)*(InMoment_Data_Period<=$F12)*(InMoment_Data_Year=$G12)*InMoment_Data_Pace*InMoment_Data_Count)/SUMIFS('Database PTD'!$P:$P,'Database PTD'!$T:$T,$A12,'Database PTD'!$R:$R,">=1",'Database PTD'!$R:$R,"<="&$F12,'Database PTD'!$S:$S,$G12) -> 51.50348538 | E12: =SUMPRODUCT((InMoment_Data_Type=$A12)*(InMoment_Data_Period>=1)*(InMoment_Data_Period<=$F12)*(InMoment_Data_Year=$G12)*InMoment_Data_Food*InMoment_Data_Count)/SUMIFS('Database PTD'!$P:$P,'Database PTD'!$T:$T,$A12,'Database PTD'!$R:$R,">=1",'Database PTD'!$R:$R,"<="&$F12,'Database PTD'!$S:$S,$G12) -> 51.10851329 | F12: 13 | G12: 2015 | H12: '15 P13
A13: DFRG | B13: =SUMPRODUCT((InMoment_Data_Period>=1)*(InMoment_Data_Period<=$F13)*(InMoment_Data_Year=$G13)*InMoment_Data_Overall*InMoment_Data_Count)/SUMIFS('Database PTD'!$P:$P,'Database PTD'!$R:$R,">=1",'Database PTD'!$R:$R,"<="&$F13,'Database PTD'!$S:$S,$G13) -> 53.66510993 | C13: =SUMPRODUCT((InMoment_Data_Period>=1)*(InMoment_Data_Period<=$F13)*(InMoment_Data_Year=$G13)*InMoment_Data_Recommend*InMoment_Data_Count)/SUMIFS('Database PTD'!$P:$P,'Database PTD'!$R:$R,">=1",'Database PTD'!$R:$R,"<="&$F13,'Database PTD'!$S:$S,$G13) -> 0 | D13: =SUMPRODUCT((InMoment_Data_Period>=1)*(InMoment_Data_Period<=$F13)*(InMoment_Data_Year=$G13)*InMoment_Data_Pace*InMoment_Data_Count)/SUMIFS('Database PTD'!$P:$P,'Database PTD'!$R:$R,">=1",'Database PTD'!$R:$R,"<="&$F13,'Database PTD'!$S:$S,$G13) -> 55.66052981 | E13: =SUMPRODUCT((InMoment_Data_Period>=1)*(InMoment_Data_Period<=$F13)*(InMoment_Data_Year=$G13)*InMoment_Data_Food*InMoment_Data_Count)/SUMIFS('Database PTD'!$P:$P,'Database PTD'!$R:$R,">=1",'Database PTD'!$R:$R,"<="&$F13,'Database PTD'!$S:$S,$G13) -> 57.37546429 | F13: 13 | G13: 2015 | H13: '15 P13
A14: DFDE | B14: =SUMPRODUCT((InMoment_Data_Type=$A14)*(InMoment_Data_Period>=1)*(InMoment_Data_Period<=$F14)*(InMoment_Data_Year=$G14)*InMoment_Data_Overall*InMoment_Data_Count)/SUMIFS('Database PTD'!$P:$P,'Database PTD'!$T:$T,$A14,'Database PTD'!$R:$R,">=1",'Database PTD'!$R:$R,"<="&$F14,'Database PTD'!$S:$S,$G14) -> 55.86448266 | C14: =SUMPRODUCT((InMoment_Data_Type=$A14)*(InMoment_Data_Period>=1)*(InMoment_Data_Period<=$F14)*(InMoment_Data_Year=$G14)*InMoment_Data_Recommend*InMoment_Data_Count)/SUMIFS('Database PTD'!$P:$P,'Database PTD'!$T:$T,$A14,'Database PTD'!$R:$R,">=1",'Database PTD'!$R:$R,"<="&$F14,'Database PTD'!$S:$S,$G14) -> 0 | D14: =SUMPRODUCT((InMoment_Data_Type=$A14)*(InMoment_Data_Period>=1)*(InMoment_Data_Period<=$F14)*(InMoment_Data_Year=$G14)*InMoment_Data_Pace*InMoment_Data_Count)/SUMIFS('Database PTD'!$P:$P,'Database PTD'!$T:$T,$A14,'Database PTD'!$R:$R,">=1",'Database PTD'!$R:$R,"<="&$F14,'Database PTD'!$S:$S,$G14) -> 57.4340253 | E14: =SUMPRODUCT((InMoment_Data_Type=$A14)*(InMoment_Data_Period>=1)*(InMoment_Data_Period<=$F14)*(InMoment_Data_Year=$G14)*InMoment_Data_Food*InMoment_Data_Count)/SUMIFS('Database PTD'!$P:$P,'Database PTD'!$T:$T,$A14,'Database PTD'!$R:$R,">=1",'Database PTD'!$R:$R,"<="&$F14,'Database PTD'!$S:$S,$G14) -> 61.56994096 | F14: 1 | G14: 2016 | H14: '16 P01
A15: SULL | B15: =SUMPRODUCT((InMoment_Data_Type=$A15)*(InMoment_Data_Period>=1)*(InMoment_Data_Period<=$F15)*(InMoment_Data_Year=$G15)*InMoment_Data_Overall*InMoment_Data_Count)/SUMIFS('Database PTD'!$P:$P,'Database PTD'!$T:$T,$A15,'Database PTD'!$R:$R,">=1",'Database PTD'!$R:$R,"<="&$F15,'Database PTD'!$S:$S,$G15) -> 51.74789517 | C15: =SUMPRODUCT((InMoment_Data_Type=$A15)*(InMoment_Data_Period>=1)*(InMoment_Data_Period<=$F15)*(InMoment_Data_Year=$G15)*InMoment_Data_Recommend*InMoment_Data_Count)/SUMIFS('Database PTD'!$P:$P,'Database PTD'!$T:$T,$A15,'Database PTD'!$R:$R,">=1",'Database PTD'!$R:$R,"<="&$F15,'Database PTD'!$S:$S,$G15) -> 0 | D15: =SUMPRODUCT((InMoment_Data_Type=$A15)*(InMoment_Data_Period>=1)*(InMoment_Data_Period<=$F15)*(InMoment_Data_Year=$G15)*InMoment_Data_Pace*InMoment_Data_Count)/SUMIFS('Database PTD'!$P:$P,'Database PTD'!$T:$T,$A15,'Database PTD'!$R:$R,">=1",'Database PTD'!$R:$R,"<="&$F15,'Database PTD'!$S:$S,$G15) -> 53.8804735 | E15: =SUMPRODUCT((InMoment_Data_Type=$A15)*(InMoment_Data_Period>=1)*(InMoment_Data_Period<=$F15)*(InMoment_Data_Year=$G15)*InMoment_Data_Food*InMoment_Data_Count)/SUMIFS('Database PTD'!$P:$P,'Database PTD'!$T:$T,$A15,'Database PTD'!$R:$R,">=1",'Database PTD'!$R:$R,"<="&$F15,'Database PTD'!$S:$S,$G15) -> 55.4140636 | F15: 1 | G15: 2016 | H15: '16 P01
A16: DFG | B16: =SUMPRODUCT((InMoment_Data_Type=$A16)*(InMoment_Data_Period>=1)*(InMoment_Data_Period<=$F16)*(InMoment_Data_Year=$G16)*InMoment_Data_Overall*InMoment_Data_Count)/SUMIFS('Database PTD'!$P:$P,'Database PTD'!$T:$T,$A16,'Database PTD'!$R:$R,">=1",'Database PTD'!$R:$R,"<="&$F16,'Database PTD'!$S:$S,$G16) -> 49.16943272 | C16: =SUMPRODUCT((InMoment_Data_Type=$A16)*(InMoment_Data_Period>=1)*(InMoment_Data_Period<=$F16)*(InMoment_Data_Year=$G16)*InMoment_Data_Recommend*InMoment_Data_Count)/SUMIFS('Database PTD'!$P:$P,'Database PTD'!$T:$T,$A16,'Database PTD'!$R:$R,">=1",'Database PTD'!$R:$R,"<="&$F16,'Database PTD'!$S:$S,$G16) -> 0 | D16: =SUMPRODUCT((InMoment_Data_Type=$A16)*(InMoment_Data_Period>=1)*(InMoment_Data_Period<=$F16)*(InMoment_Data_Year=$G16)*InMoment_Data_Pace*InMoment_Data_Count)/SUMIFS('Database PTD'!$P:$P,'Database PTD'!$T:$T,$A16,'Database PTD'!$R:$R,">=1",'Database PTD'!$R:$R,"<="&$F16,'Database PTD'!$S:$S,$G16) -> 53.41769725 | E16: =SUMPRODUCT((InMoment_Data_Type=$A16)*(InMoment_Data_Period>=1)*(InMoment_Data_Period<=$F16)*(InMoment_Data_Year=$G16)*InMoment_Data_Food*InMoment_Data_Count)/SUMIFS('Database PTD'!$P:$P,'Database PTD'!$T:$T,$A16,'Database PTD'!$R:$R,">=1",'Database PTD'!$R:$R,"<="&$F16,'Database PTD'!$S:$S,$G16) -> 51.43168807 | F16: 1 | G16: 2016 | H16: '16 P01
A17: DFRG | B17: =SUMPRODUCT((InMoment_Data_Period>=1)*(InMoment_Data_Period<=$F17)*(InMoment_Data_Year=$G17)*InMoment_Data_Overall*InMoment_Data_Count)/SUMIFS('Database PTD'!$P:$P,'Database PTD'!$R:$R,">=1",'Database PTD'!$R:$R,"<="&$F17,'Database PTD'!$S:$S,$G17) -> 52.8008463 | C17: =SUMPRODUCT((InMoment_Data_Period>=1)*(InMoment_Data_Period<=$F17)*(InMoment_Data_Year=$G17)*InMoment_Data_Recommend*InMoment_Data_Count)/SUMIFS('Database PTD'!$P:$P,'Database PTD'!$R:$R,">=1",'Database PTD'!$R:$R,"<="&$F17,'Database PTD'!$S:$S,$G17) -> 0 | D17: =SUMPRODUCT((InMoment_Data_Period>=1)*(InMoment_Data_Period<=$F17)*(InMoment_Data_Year=$G17)*InMoment_Data_Pace*InMoment_Data_Count)/SUMIFS('Database PTD'!$P:$P,'Database PTD'!$R:$R,">=1",'Database PTD'!$R:$R,"<="&$F17,'Database PTD'!$S:$S,$G17) -> 55.23805486 | E17: =SUMPRODUCT((InMoment_Data_Period>=1)*(InMoment_Data_Period<=$F17)*(InMoment_Data_Year=$G17)*InMoment_Data_Food*InMoment_Data_Count)/SUMIFS('Database PTD'!$P:$P,'Database PTD'!$R:$R,">=1",'Database PTD'!$R:$R,"<="&$F17,'Database PTD'!$S:$S,$G17) -> 56.95641673 | F17: 1 | G17: 2016 | H17: '16 P01
A18: DFDE | B18: =SUMPRODUCT((InMoment_Data_Type=$A18)*(InMoment_Data_Period>=1)*(InMoment_Data_Period<=$F18)*(InMoment_Data_Year=$G18)*InMoment_Data_Overall*InMoment_Data_Count)/SUMIFS('Database PTD'!$P:$P,'Database PTD'!$T:$T,$A18,'Database PTD'!$R:$R,">=1",'Database PTD'!$R:$R,"<="&$F18,'Database PTD'!$S:$S,$G18) -> 53.8395867 | C18: =SUMPRODUCT((InMoment_Data_Type=$A18)*(InMoment_Data_Period>=1)*(InMoment_Data_Period<=$F18)*(InMoment_Data_Year=$G18)*InMoment_Data_Recommend*InMoment_Data_Count)/SUMIFS('Database PTD'!$P:$P,'Database PTD'!$T:$T,$A18,'Database PTD'!$R:$R,">=1",'Database PTD'!$R:$R,"<="&$F18,'Database PTD'!$S:$S,$G18) -> 0 | D18: =SUMPRODUCT((InMoment_Data_Type=$A18)*(InMoment_Data_Period>=1)*(InMoment_Data_Period<=$F18)*(InMoment_Data_Year=$G18)*InMoment_Data_Pace*InMoment_Data_Count)/SUMIFS('Database PTD'!$P:$P,'Database PTD'!$T:$T,$A18,'Database PTD'!$R:$R,">=1",'Database PTD'!$R:$R,"<="&$F18,'Database PTD'!$S:$S,$G18) -> 55.47541582 | E18: =SUMPRODUCT((InMoment_Data_Type=$A18)*(InMoment_Data_Period>=1)*(InMoment_Data_Period<=$F18)*(InMoment_Data_Year=$G18)*InMoment_Data_Food*InMoment_Data_Count)/SUMIFS('Database PTD'!$P:$P,'Database PTD'!$T:$T,$A18,'Database PTD'!$R:$R,">=1",'Database PTD'!$R:$R,"<="&$F18,'Database PTD'!$S:$S,$G18) -> 59.64480471 | F18: 2 | G18: 2016 | H18: '16 P02
A19: SULL | B19: =SUMPRODUCT((InMoment_Data_Type=$A19)*(InMoment_Data_Period>=1)*(InMoment_Data_Period<=$F19)*(InMoment_Data_Year=$G19)*InMoment_Data_Overall*InMoment_Data_Count)/SUMIFS('Database PTD'!$P:$P,'Database PTD'!$T:$T,$A19,'Database PTD'!$R:$R,">=1",'Database PTD'!$R:$R,"<="&$F19,'Database PTD'!$S:$S,$G19) -> 53.42353175 | C19: =SUMPRODUCT((InMoment_Data_Type=$A19)*(InMoment_Data_Period>=1)*(InMoment_Data_Period<=$F19)*(InMoment_Data_Year=$G19)*InMoment_Data_Recommend*InMoment_Data_Count)/SUMIFS('Database PTD'!$P:$P,'Database PTD'!$T:$T,$A19,'Database PTD'!$R:$R,">=1",'Database PTD'!$R:$R,"<="&$F19,'Database PTD'!$S:$S,$G19) -> 0 | D19: =SUMPRODUCT((InMoment_Data_Type=$A19)*(InMoment_Data_Period>=1)*(InMoment_Data_Period<=$F19)*(InMoment_Data_Year=$G19)*InMoment_Data_Pace*InMoment_Data_Count)/SUMIFS('Database PTD'!$P:$P,'Database PTD'!$T:$T,$A19,'Database PTD'!$R:$R,">=1",'Database PTD'!$R:$R,"<="&$F19,'Database PTD'!$S:$S,$G19) -> 55.14314444 | E19: =SUMPRODUCT((InMoment_Data_Type=$A19)*(InMoment_Data_Period>=1)*(InMoment_Data_Period<=$F19)*(InMoment_Data_Year=$G19)*InMoment_Data_Food*InMoment_Data_Count)/SUMIFS('Database PTD'!$P:$P,'Database PTD'!$T:$T,$A19,'Database PTD'!$R:$R,">=1",'Database PTD'!$R:$R,"<="&$F19,'Database PTD'!$S:$S,$G19) -> 57.84172804 | F19: 2 | G19: 2016 | H19: '16 P02
A20: DFG | B20: =SUMPRODUCT((InMoment_Data_Type=$A20)*(InMoment_Data_Period>=1)*(InMoment_Data_Period<=$F20)*(InMoment_Data_Year=$G20)*InMoment_Data_Overall*InMoment_Data_Count)/SUMIFS('Database PTD'!$P:$P,'Database PTD'!$T:$T,$A20,'Database PTD'!$R:$R,">=1",'Database PTD'!$R:$R,"<="&$F20,'Database PTD'!$S:$S,$G20) -> 49.61470287 | C20: =SUMPRODUCT((InMoment_Data_Type=$A20)*(InMoment_Data_Period>=1)*(InMoment_Data_Period<=$F20)*(InMoment_Data_Year=$G20)*InMoment_Data_Recommend*InMoment_Data_Count)/SUMIFS('Database PTD'!$P:$P,'Database PTD'!$T:$T,$A20,'Database PTD'!$R:$R,">=1",'Database PTD'!$R:$R,"<="&$F20,'Database PTD'!$S:$S,$G20) -> 0 | D20: =SUMPRODUCT((InMoment_Data_Type=$A20)*(InMoment_Data_Period>=1)*(InMoment_Data_Period<=$F20)*(InMoment_Data_Year=$G20)*InMoment_Data_Pace*InMoment_Data_Count)/SUMIFS('Database PTD'!$P:$P,'Database PTD'!$T:$T,$A20,'Database PTD'!$R:$R,">=1",'Database PTD'!$R:$R,"<="&$F20,'Database PTD'!$S:$S,$G20) -> 54.267 | E20: =SUMPRODUCT((InMoment_Data_Type=$A20)*(InMoment_Data_Period>=1)*(InMoment_Data_Period<=$F20)*(InMoment_Data_Year=$G20)*InMoment_Data_Food*InMoment_Data_Count)/SUMIFS('Database PTD'!$P:$P,'Database PTD'!$T:$T,$A20,'Database PTD'!$R:$R,">=1",'Database PTD'!$R:$R,"<="&$F20,'Database PTD'!$S:$S,$G20) -> 52.47200366 | F20: 2 | G20: 2016 | H20: '16 P02
A21: DFRG | B21: =SUMPRODUCT((InMoment_Data_Period>=1)*(InMoment_Data_Period<=$F21)*(InMoment_Data_Year=$G21)*InMoment_Data_Overall*InMoment_Data_Count)/SUMIFS('Database PTD'!$P:$P,'Database PTD'!$R:$R,">=1",'Database PTD'!$R:$R,"<="&$F21,'Database PTD'!$S:$S,$G21) -> 52.53375631 | C21: =SUMPRODUCT((InMoment_Data_Period>=1)*(InMoment_Data_Period<=$F21)*(InMoment_Data_Year=$G21)*InMoment_Data_Recommend*InMoment_Data_Count)/SUMIFS('Database PTD'!$P:$P,'Database PTD'!$R:$R,">=1",'Database PTD'!$R:$R,"<="&$F21,'Database PTD'!$S:$S,$G21) -> 0 | D21: =SUMPRODUCT((InMoment_Data_Period>=1)*(InMoment_Data_Period<=$F21)*(InMoment_Data_Year=$G21)*InMoment_Data_Pace*InMoment_Data_Count)/SUMIFS('Database PTD'!$P:$P,'Database PTD'!$R:$R,">=1",'Database PTD'!$R:$R,"<="&$F21,'Database PTD'!$S:$S,$G21) -> 55.0336569 | E21: =SUMPRODUCT((InMoment_Data_Period>=1)*(InMoment_Data_Period<=$F21)*(InMoment_Data_Year=$G21)*InMoment_Data_Food*InMoment_Data_Count)/SUMIFS('Database PTD'!$P:$P,'Database PTD'!$R:$R,">=1",'Database PTD'!$R:$R,"<="&$F21,'Database PTD'!$S:$S,$G21) -> 57.07680542 | F21: 2 | G21: 2016 | H21: '16 P02
A22: DFDE | B22: =SUMPRODUCT((InMoment_Data_Type=$A22)*(InMoment_Data_Period>=1)*(InMoment_Data_Period<=$F22)*(InMoment_Data_Year=$G22)*InMoment_Data_Overall*InMoment_Data_Count)/SUMIFS('Database PTD'!$P:$P,'Database PTD'!$T:$T,$A22,'Database PTD'!$R:$R,">=1",'Database PTD'!$R:$R,"<="&$F22,'Database PTD'!$S:$S,$G22) -> 55.36116382 | C22: =SUMPRODUCT((InMoment_Data_Type=$A22)*(InMoment_Data_Period>=1)*(InMoment_Data_Period<=$F22)*(InMoment_Data_Year=$G22)*InMoment_Data_Recommend*InMoment_Data_Count)/SUMIFS('Database PTD'!$P:$P,'Database PTD'!$T:$T,$A22,'Database PTD'!$R:$R,">=1",'Database PTD'!$R:$R,"<="&$F22,'Database PTD'!$S:$S,$G22) -> 0 | D22: =SUMPRODUCT((InMoment_Data_Type=$A22)*(InMoment_Data_Period>=1)*(InMoment_Data_Period<=$F22)*(InMoment_Data_Year=$G22)*InMoment_Data_Pace*InMoment_Data_Count)/SUMIFS('Database PTD'!$P:$P,'Database PTD'!$T:$T,$A22,'Database PTD'!$R:$R,">=1",'Database PTD'!$R:$R,"<="&$F22,'Database PTD'!$S:$S,$G22) -> 56.7455313 | E22: =SUMPRODUCT((InMoment_Data_Type=$A22)*(InMoment_Data_Period>=1)*(InMoment_Data_Period<=$F22)*(InMoment_Data_Year=$G22)*InMoment_Data_Food*InMoment_Data_Count)/SUMIFS('Database PTD'!$P:$P,'Database PTD'!$T:$T,$A22,'Database PTD'!$R:$R,">=1",'Database PTD'!$R:$R,"<="&$F22,'Database PTD'!$S:$S,$G22) -> 60.74610931 | F22: 3 | G22: 2016 | H22: '16 P03
A23: SULL | B23: =SUMPRODUCT((InMoment_Data_Type=$A23)*(InMoment_Data_Period>=1)*(InMoment_Data_Period<=$F23)*(InMoment_Data_Year=$G23)*InMoment_Data_Overall*InMoment_Data_Count)/SUMIFS('Database PTD'!$P:$P,'Database PTD'!$T:$T,$A23,'Database PTD'!$R:$R,">=1",'Database PTD'!$R:$R,"<="&$F23,'Database PTD'!$S:$S,$G23) -> 53.9994114 | C23: =SUMPRODUCT((InMoment_Data_Type=$A23)*(InMoment_Data_Period>=1)*(InMoment_Data_Period<=$F23)*(InMoment_Data_Year=$G23)*InMoment_Data_Recommend*InMoment_Data_Count)/SUMIFS('Database PTD'!$P:$P,'Database PTD'!$T:$T,$A23,'Database PTD'!$R:$R,">=1",'Database PTD'!$R:$R,"<="&$F23,'Database PTD'!$S:$S,$G23) -> 0 | D23: =SUMPRODUCT((InMoment_Data_Type=$A23)*(InMoment_Data_Period>=1)*(InMoment_Data_Period<=$F23)*(InMoment_Data_Year=$G23)*InMoment_Data_Pace*InMoment_Data_Count)/SUMIFS('Database PTD'!$P:$P,'Database PTD'!$T:$T,$A23,'Database PTD'!$R:$R,">=1",'Database PTD'!$R:$R,"<="&$F23,'Database PTD'!$S:$S,$G23) -> 55.05701569 | E23: =SUMPRODUCT((InMoment_Data_Type=$A23)*(InMoment_Data_Period>=1)*(InMoment_Data_Period<=$F23)*(InMoment_Data_Year=$G23)*InMoment_Data_Food*InMoment_Data_Count)/SUMIFS('Database PTD'!$P:$P,'Database PTD'!$T:$T,$A23,'Database PTD'!$R:$R,">=1",'Database PTD'!$R:$R,"<="&$F23,'Database PTD'!$S:$S,$G23) -> 57.4725377 | F23: 3 | G23: 2016 | H23: '16 P03
A24: DFG | B24: =SUMPRODUCT((InMoment_Data_Type=$A24)*(InMoment_Data_Period>=1)*(InMoment_Data_Period<=$F24)*(InMoment_Data_Year=$G24)*InMoment_Data_Overall*InMoment_Data_Count)/SUMIFS('Database PTD'!$P:$P,'Database PTD'!$T:$T,$A24,'Database PTD'!$R:$R,">=1",'Database PTD'!$R:$R,"<="&$F24,'Database PTD'!$S:$S,$G24) -> 52.1612402 | C24: =SUMPRODUCT((InMoment_Data_Type=$A24)*(InMoment_Data_Period>=1)*(InMoment_Data_Period<=$F24)*(InMoment_Data_Year=$G24)*InMoment_Data_Recommend*InMoment_Data_Count)/SUMIFS('Database PTD'!$P:$P,'Database PTD'!$T:$T,$A24,'Database PTD'!$R:$R,">=1",'Database PTD'!$R:$R,"<="&$F24,'Database PTD'!$S:$S,$G24) -> 0 | D24: =SUMPRODUCT((InMoment_Data_Type=$A24)*(InMoment_Data_Period>=1)*(InMoment_Data_Period<=$F24)*(InMoment_Data_Year=$G24)*InMoment_Data_Pace*InMoment_Data_Count)/SUMIFS('Database PTD'!$P:$P,'Database PTD'!$T:$T,$A24,'Database PTD'!$R:$R,">=1",'Database PTD'!$R:$R,"<="&$F24,'Database PTD'!$S:$S,$G24) -> 55.70369404 | E24: =SUMPRODUCT((InMoment_Data_Type=$A24)*(InMoment_Data_Period>=1)*(InMoment_Data_Period<=$F24)*(InMoment_Data_Year=$G24)*InMoment_Data_Food*InMoment_Data_Count)/SUMIFS('Database PTD'!$P:$P,'Database PTD'!$T:$T,$A24,'Database PTD'!$R:$R,">=1",'Database PTD'!$R:$R,"<="&$F24,'Database PTD'!$S:$S,$G24) -> 54.52817075 | F24: 3 | G24: 2016 | H24: '16 P03
A25: DFRG | B25: =SUMPRODUCT((InMoment_Data_Period>=1)*(InMoment_Data_Period<=$F25)*(InMoment_Data_Year=$G25)*InMoment_Data_Overall*InMoment_Data_Count)/SUMIFS('Database PTD'!$P:$P,'Database PTD'!$R:$R,">=1",'Database PTD'!$R:$R,"<="&$F25,'Database PTD'!$S:$S,$G25) -> 54.00501238 | C25: =SUMPRODUCT((InMoment_Data_Period>=1)*(InMoment_Data_Period<=$F25)*(InMoment_Data_Year=$G25)*InMoment_Data_Recommend*InMoment_Data_Count)/SUMIFS('Database PTD'!$P:$P,'Database PTD'!$R:$R,">=1",'Database PTD'!$R:$R,"<="&$F25,'Database PTD'!$S:$S,$G25) -> 0 | D25: =SUMPRODUCT((InMoment_Data_Period>=1)*(InMoment_Data_Period<=$F25)*(InMoment_Data_Year=$G25)*InMoment_Data_Pace*InMoment_Data_Count)/SUMIFS('Database PTD'!$P:$P,'Database PTD'!$R:$R,">=1",'Database PTD'!$R:$R,"<="&$F25,'Database PTD'!$S:$S,$G25) -> 55.91666119 | E25: =SUMPRODUCT((InMoment_Data_Period>=1)*(InMoment_Data_Period<=$F25)*(InMoment_Data_Year=$G25)*InMoment_Data_Food*InMoment_Data_Count)/SUMIFS('Database PTD'!$P:$P,'Database PTD'!$R:$R,">=1",'Database PTD'!$R:$R,"<="&$F25,'Database PTD'!$S:$S,$G25) -> 57.91570976 | F25: 3 | G25: 2016 | H25: '16 P03
A26: DFDE | B26: =SUMPRODUCT((InMoment_Data_Type=$A26)*(InMoment_Data_Period>=1)*(InMoment_Data_Period<=$F26)*(InMoment_Data_Year=$G26)*InMoment_Data_Overall*InMoment_Data_Count)/SUMIFS('Database PTD'!$P:$P,'Database PTD'!$T:$T,$A26,'Database PTD'!$R:$R,">=1",'Database PTD'!$R:$R,"<="&$F26,'Database PTD'!$S:$S,$G26) -> 54.48361711 | C26: =SUMPRODUCT((InMoment_Data_Type=$A26)*(InMoment_Data_Period>=1)*(InMoment_Data_Period<=$F26)*(InMoment_Data_Year=$G26)*InMoment_Data_Recommend*InMoment_Data_Count)/SUMIFS('Database PTD'!$P:$P,'Database PTD'!$T:$T,$A26,'Database PTD'!$R:$R,">=1",'Database PTD'!$R:$R,"<="&$F26,'Database PTD'!$S:$S,$G26) -> 0 | D26: =SUMPRODUCT((InMoment_Data_Type=$A26)*(InMoment_Data_Period>=1)*(InMoment_Data_Period<=$F26)*(InMoment_Data_Year=$G26)*InMoment_Data_Pace*InMoment_Data_Count)/SUMIFS('Database PTD'!$P:$P,'Database PTD'!$T:$T,$A26,'Database PTD'!$R:$R,">=1",'Database PTD'!$R:$R,"<="&$F26,'Database PTD'!$S:$S,$G26) -> 55.97192682 | E26: =SUMPRODUCT((InMoment_Data_Type=$A26)*(InMoment_Data_Period>=1)*(InMoment_Data_Period<=$F26)*(InMoment_Data_Year=$G26)*InMoment_Data_Food*InMoment_Data_Count)/SUMIFS('Database PTD'!$P:$P,'Database PTD'!$T:$T,$A26,'Database PTD'!$R:$R,">=1",'Database PTD'!$R:$R,"<="&$F26,'Database PTD'!$S:$S,$G26) -> 59.78458156 | F26: 4 | G26: 2016 | H26: '16 P04
A27: SULL | B27: =SUMPRODUCT((InMoment_Data_Type=$A27)*(InMoment_Data_Period>=1)*(InMoment_Data_Period<=$F27)*(InMoment_Data_Year=$G27)*InMoment_Data_Overall*InMoment_Data_Count)/SUMIFS('Database PTD'!$P:$P,'Database PTD'!$T:$T,$A27,'Database PTD'!$R:$R,">=1",'Database PTD'!$R:$R,"<="&$F27,'Database PTD'!$S:$S,$G27) -> 55.17268179 | C27: =SUMPRODUCT((InMoment_Data_Type=$A27)*(InMoment_Data_Period>=1)*(InMoment_Data_Period<=$F27)*(InMoment_Data_Year=$G27)*InMoment_Data_Recommend*InMoment_Data_Count)/SUMIFS('Database PTD'!$P:$P,'Database PTD'!$T:$T,$A27,'Database PTD'!$R:$R,">=1",'Database PTD'!$R:$R,"<="&$F27,'Database PTD'!$S:$S,$G27) -> 0 | D27: =SUMPRODUCT((InMoment_Data_Type=$A27)*(InMoment_Data_Period>=1)*(InMoment_Data_Period<=$F27)*(InMoment_Data_Year=$G27)*InMoment_Data_Pace*InMoment_Data_Count)/SUMIFS('Database PTD'!$P:$P,'Database PTD'!$T:$T,$A27,'Database PTD'!$R:$R,">=1",'Database PTD'!$R:$R,"<="&$F27,'Database PTD'!$S:$S,$G27) -> 56.23806466 | E27: =SUMPRODUCT((InMoment_Data_Type=$A27)*(InMoment_Data_Period>=1)*(InMoment_Data_Period<=$F27)*(InMoment_Data_Year=$G27)*InMoment_Data_Food*InMoment_Data_Count)/SUMIFS('Database PTD'!$P:$P,'Database PTD'!$T:$T,$A27,'Database PTD'!$R:$R,">=1",'Database PTD'!$R:$R,"<="&$F27,'Database PTD'!$S:$S,$G27) -> 58.24109756 | F27: 4 | G27: 2016 | H27: '16 P04
A28: DFG | B28: =SUMPRODUCT((InMoment_Data_Type=$A28)*(InMoment_Data_Period>=1)*(InMoment_Data_Period<=$F28)*(InMoment_Data_Year=$G28)*InMoment_Data_Overall*InMoment_Data_Count)/SUMIFS('Database PTD'!$P:$P,'Database PTD'!$T:$T,$A28,'Database PTD'!$R:$R,">=1",'Database PTD'!$R:$R,"<="&$F28,'Database PTD'!$S:$S,$G28) -> 51.95106808 | C28: =SUMPRODUCT((InMoment_Data_Type=$A28)*(InMoment_Data_Period>=1)*(InMoment_Data_Period<=$F28)*(InMoment_Data_Year=$G28)*InMoment_Data_Recommend*InMoment_Data_Count)/SUMIFS('Database PTD'!$P:$P,'Database PTD'!$T:$T,$A28,'Database PTD'!$R:$R,">=1",'Database PTD'!$R:$R,"<="&$F28,'Database PTD'!$S:$S,$G28) -> 0 | D28: =SUMPRODUCT((InMoment_Data_Type=$A28)*(InMoment_Data_Period>=1)*(InMoment_Data_Period<=$F28)*(InMoment_Data_Year=$G28)*InMoment_Data_Pace*InMoment_Data_Count)/SUMIFS('Database PTD'!$P:$P,'Database PTD'!$T:$T,$A28,'Database PTD'!$R:$R,">=1",'Database PTD'!$R:$R,"<="&$F28,'Database PTD'!$S:$S,$G28) -> 55.07294655 | E28: =SUMPRODUCT((InMoment_Data_Type=$A28)*(InMoment_Data_Period>=1)*(InMoment_Data_Period<=$F28)*(InMoment_Data_Year=$G28)*InMoment_Data_Food*InMoment_Data_Count)/SUMIFS('Database PTD'!$P:$P,'Database PTD'!$T:$T,$A28,'Database PTD'!$R:$R,">=1",'Database PTD'!$R:$R,"<="&$F28,'Database PTD'!$S:$S,$G28) -> 54.2933837 | F28: 4 | G28: 2016 | H28: '16 P04
A29: DFRG | B29: =SUMPRODUCT((InMoment_Data_Period>=1)*(InMoment_Data_Period<=$F29)*(InMoment_Data_Year=$G29)*InMoment_Data_Overall*InMoment_Data_Count)/SUMIFS('Database PTD'!$P:$P,'Database PTD'!$R:$R,">=1",'Database PTD'!$R:$R,"<="&$F29,'Database PTD'!$S:$S,$G29) -> 53.94490742 | C29: =SUMPRODUCT((InMoment_Data_Period>=1)*(InMoment_Data_Period<=$F29)*(InMoment_Data_Year=$G29)*InMoment_Data_Recommend*InMoment_Data_Count)/SUMIFS('Database PTD'!$P:$P,'Database PTD'!$R:$R,">=1",'Database PTD'!$R:$R,"<="&$F29,'Database PTD'!$S:$S,$G29) -> 0 | D29: =SUMPRODUCT((InMoment_Data_Period>=1)*(InMoment_Data_Period<=$F29)*(InMoment_Data_Year=$G29)*InMoment_Data_Pace*InMoment_Data_Count)/SUMIFS('Database PTD'!$P:$P,'Database PTD'!$R:$R,">=1",'Database PTD'!$R:$R,"<="&$F29,'Database PTD'!$S:$S,$G29) -> 55.78746155 | E29: =SUMPRODUCT((InMoment_Data_Period>=1)*(InMoment_Data_Period<=$F29)*(InMoment_Data_Year=$G29)*InMoment_Data_Food*InMoment_Data_Count)/SUMIFS('Database PTD'!$P:$P,'Database PTD'!$R:$R,">=1",'Database PTD'!$R:$R,"<="&$F29,'Database PTD'!$S:$S,$G29) -> 57.66313361 | F29: 4 | G29: 2016 | H29: '16 P04
A30: DFDE | B30: =SUMPRODUCT((InMoment_Data_Type=$A30)*(InMoment_Data_Period>=1)*(InMoment_Data_Period<=$F30)*(InMoment_Data_Year=$G30)*InMoment_Data_Overall*InMoment_Data_Count)/SUMIFS('Database PTD'!$P:$P,'Database PTD'!$T:$T,$A30,'Database PTD'!$R:$R,">=1",'Database PTD'!$R:$R,"<="&$F30,'Database PTD'!$S:$S,$G30) -> 54.58464104 | C30: =SUMPRODUCT((InMoment_Data_Type=$A30)*(InMoment_Data_Period>=1)*(InMoment_Data_Period<=$F30)*(InMoment_Data_Year=$G30)*InMoment_Data_Recommend*InMoment_Data_Count)/SUMIFS('Database PTD'!$P:$P,'Database PTD'!$T:$T,$A30,'Database PTD'!$R:$R,">=1",'Database PTD'!$R:$R,"<="&$F30,'Database PTD'!$S:$S,$G30) -> 0 | D30: =SUMPRODUCT((InMoment_Data_Type=$A30)*(InMoment_Data_Period>=1)*(InMoment_Data_Period<=$F30)*(InMoment_Data_Year=$G30)*InMoment_Data_Pace*InMoment_Data_Count)/SUMIFS('Database PTD'!$P:$P,'Database PTD'!$T:$T,$A30,'Database PTD'!$R:$R,">=1",'Database PTD'!$R:$R,"<="&$F30,'Database PTD'!$S:$S,$G30) -> 55.86001746 | E30: =SUMPRODUCT((InMoment_Data_Type=$A30)*(InMoment_Data_Period>=1)*(InMoment_Data_Period<=$F30)*(InMoment_Data_Year=$G30)*InMoment_Data_Food*InMoment_Data_Count)/SUMIFS('Database PTD'!$P:$P,'Database PTD'!$T:$T,$A30,'Database PTD'!$R:$R,">=1",'Database PTD'!$R:$R,"<="&$F30,'Database PTD'!$S:$S,$G30) -> 59.53998162 | F30: 5 | G30: 2016 | H30: '16 P05
A31: SULL | B31: =SUMPRODUCT((InMoment_Data_Type=$A31)*(InMoment_Data_Period>=1)*(InMoment_Data_Period<=$F31)*(InMoment_Data_Year=$G31)*InMoment_Data_Overall*InMoment_Data_Count)/SUMIFS('Database PTD'!$P:$P,'Database PTD'!$T:$T,$A31,'Database PTD'!$R:$R,">=1",'Database PTD'!$R:$R,"<="&$F31,'Database PTD'!$S:$S,$G31) -> 54.2889627 | C31: =SUMPRODUCT((InMoment_Data_Type=$A31)*(InMoment_Data_Period>=1)*(InMoment_Data_Period<=$F31)*(InMoment_Data_Year=$G31)*InMoment_Data_Recommend*InMoment_Data_Count)/SUMIFS('Database PTD'!$P:$P,'Database PTD'!$T:$T,$A31,'Database PTD'!$R:$R,">=1",'Database PTD'!$R:$R,"<="&$F31,'Database PTD'!$S:$S,$G31) -> 0 | D31: =SUMPRODUCT((InMoment_Data_Type=$A31)*(InMoment_Data_Period>=1)*(InMoment_Data_Period<=$F31)*(InMoment_Data_Year=$G31)*InMoment_Data_Pace*InMoment_Data_Count)/SUMIFS('Database PTD'!$P:$P,'Database PTD'!$T:$T,$A31,'Database PTD'!$R:$R,">=1",'Database PTD'!$R:$R,"<="&$F31,'Database PTD'!$S:$S,$G31) -> 55.60968989 | E31: =SUMPRODUCT((InMoment_Data_Type=$A31)*(InMoment_Data_Period>=1)*(InMoment_Data_Period<=$F31)*(InMoment_Data_Year=$G31)*InMoment_Data_Food*InMoment_Data_Count)/SUMIFS('Database PTD'!$P:$P,'Database PTD'!$T:$T,$A31,'Database PTD'!$R:$R,">=1",'Database PTD'!$R:$R,"<="&$F31,'Database PTD'!$S:$S,$G31) -> 57.26816921 | F31: 5 | G31: 2016 | H31: '16 P05
A32: DFG | B32: =SUMPRODUCT((InMoment_Data_Type=$A32)*(InMoment_Data_Period>=1)*(InMoment_Data_Period<=$F32)*(InMoment_Data_Year=$G32)*InMoment_Data_Overall*InMoment_Data_Count)/SUMIFS('Database PTD'!$P:$P,'Database PTD'!$T:$T,$A32,'Database PTD'!$R:$R,">=1",'Database PTD'!$R:$R,"<="&$F32,'Database PTD'!$S:$S,$G32) -> 52.72353732 | C32: =SUMPRODUCT((InMoment_Data_Type=$A32)*(InMoment_Data_Period>=1)*(InMoment_Data_Period<=$F32)*(InMoment_Data_Year=$G32)*InMoment_Data_Recommend*InMoment_Data_Count)/SUMIFS('Database PTD'!$P:$P,'Database PTD'!$T:$T,$A32,'Database PTD'!$R:$R,">=1",'Database PTD'!$R:$R,"<="&$F32,'Database PTD'!$S:$S,$G32) -> 0 | D32: =SUMPRODUCT((InMoment_Data_Type=$A32)*(InMoment_Data_Period>=1)*(InMoment_Data_Period<=$F32)*(InMoment_Data_Year=$G32)*InMoment_Data_Pace*InMoment_Data_Count)/SUMIFS('Database PTD'!$P:$P,'Database PTD'!$T:$T,$A32,'Database PTD'!$R:$R,">=1",'Database PTD'!$R:$R,"<="&$F32,'Database PTD'!$S:$S,$G32) -> 55.68383278 | E32: =SUMPRODUCT((InMoment_Data_Type=$A32)*(InMoment_Data_Period>=1)*(InMoment_Data_Period<=$F32)*(InMoment_Data_Year=$G32)*InMoment_Data_Food*InMoment_Data_Count)/SUMIFS('Database PTD'!$P:$P,'Database PTD'!$T:$T,$A32,'Database PTD'!$R:$R,">=1",'Database PTD'!$R:$R,"<="&$F32,'Database PTD'!$S:$S,$G32) -> 55.11374776 | F32: 5 | G32: 2016 | H32: '16 P05
A33: DFRG | B33: =SUMPRODUCT((InMoment_Data_Period>=1)*(InMoment_Data_Period<=$F33)*(InMoment_Data_Year=$G33)*InMoment_Data_Overall*InMoment_Data_Count)/SUMIFS('Database PTD'!$P:$P,'Database PTD'!$R:$R,">=1",'Database PTD'!$R:$R,"<="&$F33,'Database PTD'!$S:$S,$G33) -> 53.931028 | C33: =SUMPRODUCT((InMoment_Data_Period>=1)*(InMoment_Data_Period<=$F33)*(InMoment_Data_Year=$G33)*InMoment_Data_Recommend*InMoment_Data_Count)/SUMIFS('Database PTD'!$P:$P,'Database PTD'!$R:$R,">=1",'Database PTD'!$R:$R,"<="&$F33,'Database PTD'!$S:$S,$G33) -> 0 | D33: =SUMPRODUCT((InMoment_Data_Period>=1)*(InMoment_Data_Period<=$F33)*(InMoment_Data_Year=$G33)*InMoment_Data_Pace*InMoment_Data_Count)/SUMIFS('Database PTD'!$P:$P,'Database PTD'!$R:$R,">=1",'Database PTD'!$R:$R,"<="&$F33,'Database PTD'!$S:$S,$G33) -> 55.72781733 | E33: =SUMPRODUCT((InMoment_Data_Period>=1)*(InMoment_Data_Period<=$F33)*(InMoment_Data_Year=$G33)*InMoment_Data_Food*InMoment_Data_Count)/SUMIFS('Database PTD'!$P:$P,'Database PTD'!$R:$R,">=1",'Database PTD'!$R:$R,"<="&$F33,'Database PTD'!$S:$S,$G33) -> 57.48935688 | F33: 5 | G33: 2016 | H33: '16 P05
A34: DFDE | B34: =SUMPRODUCT((InMoment_Data_Type=$A34)*(InMoment_Data_Period>=1)*(InMoment_Data_Period<=$F34)*(InMoment_Data_Year=$G34)*InMoment_Data_Overall*InMoment_Data_Count)/SUMIFS('Database PTD'!$P:$P,'Database PTD'!$T:$T,$A34,'Database PTD'!$R:$R,">=1",'Database PTD'!$R:$R,"<="&$F34,'Database PTD'!$S:$S,$G34) -> 54.57383849 | C34: =SUMPRODUCT((InMoment_Data_Type=$A34)*(InMoment_Data_Period>=1)*(InMoment_Data_Period<=$F34)*(InMoment_Data_Year=$G34)*InMoment_Data_Recommend*InMoment_Data_Count)/SUMIFS('Database PTD'!$P:$P,'Database PTD'!$T:$T,$A34,'Database PTD'!$R:$R,">=1",'Database PTD'!$R:$R,"<="&$F34,'Database PTD'!$S:$S,$G34) -> 0 | D34: =SUMPRODUCT((InMoment_Data_Type=$A34)*(InMoment_Data_Period>=1)*(InMoment_Data_Period<=$F34)*(InMoment_Data_Year=$G34)*InMoment_Data_Pace*InMoment_Data_Count)/SUMIFS('Database PTD'!$P:$P,'Database PTD'!$T:$T,$A34,'Database PTD'!$R:$R,">=1",'Database PTD'!$R:$R,"<="&$F34,'Database PTD'!$S:$S,$G34) -> 55.94602573 | E34: =SUMPRODUCT((InMoment_Data_Type=$A34)*(InMoment_Data_Period>=1)*(InMoment_Data_Period<=$F34)*(InMoment_Data_Year=$G34)*InMoment_Data_Food*InMoment_Data_Count)/SUMIFS('Database PTD'!$P:$P,'Database PTD'!$T:$T,$A34,'Database PTD'!$R:$R,">=1",'Database PTD'!$R:$R,"<="&$F34,'Database PTD'!$S:$S,$G34) -> 59.31681097 | F34: 6 | G34: 2016 | H34: ="'"&MID(G34,3,2)&" P"&IF(F34<10,"0","")&F34 -> '16 P06
A35: SULL | B35: =SUMPRODUCT((InMoment_Data_Type=$A35)*(InMoment_Data_Period>=1)*(InMoment_Data_Period<=$F35)*(InMoment_Data_Year=$G35)*InMoment_Data_Overall*InMoment_Data_Count)/SUMIFS('Database PTD'!$P:$P,'Database PTD'!$T:$T,$A35,'Database PTD'!$R:$R,">=1",'Database PTD'!$R:$R,"<="&$F35,'Database PTD'!$S:$S,$G35) -> 54.21388148 | C35: =SUMPRODUCT((InMoment_Data_Type=$A35)*(InMoment_Data_Period>=1)*(InMoment_Data_Period<=$F35)*(InMoment_Data_Year=$G35)*InMoment_Data_Recommend*InMoment_Data_Count)/SUMIFS('Database PTD'!$P:$P,'Database PTD'!$T:$T,$A35,'Database PTD'!$R:$R,">=1",'Database PTD'!$R:$R,"<="&$F35,'Database PTD'!$S:$S,$G35) -> 0 | D35: =SUMPRODUCT((InMoment_Data_Type=$A35)*(InMoment_Data_Period>=1)*(InMoment_Data_Period<=$F35)*(InMoment_Data_Year=$G35)*InMoment_Data_Pace*InMoment_Data_Count)/SUMIFS('Database PTD'!$P:$P,'Database PTD'!$T:$T,$A35,'Database PTD'!$R:$R,">=1",'Database PTD'!$R:$R,"<="&$F35,'Database PTD'!$S:$S,$G35) -> 55.46625518 | E35: =SUMPRODUCT((InMoment_Data_Type=$A35)*(InMoment_Data_Period>=1)*(InMoment_Data_Period<=$F35)*(InMoment_Data_Year=$G35)*InMoment_Data_Food*InMoment_Data_Count)/SUMIFS('Database PTD'!$P:$P,'Database PTD'!$T:$T,$A35,'Database PTD'!$R:$R,">=1",'Database PTD'!$R:$R,"<="&$F35,'Database PTD'!$S:$S,$G35) -> 56.94242812 | F35: 6 | G35: 2016 | H35: '16 P06
A36: DFG | B36: =SUMPRODUCT((InMoment_Data_Type=$A36)*(InMoment_Data_Period>=1)*(InMoment_Data_Period<=$F36)*(InMoment_Data_Year=$G36)*InMoment_Data_Overall*InMoment_Data_Count)/SUMIFS('Database PTD'!$P:$P,'Database PTD'!$T:$T,$A36,'Database PTD'!$R:$R,">=1",'Database PTD'!$R:$R,"<="&$F36,'Database PTD'!$S:$S,$G36) -> 53.06021866 | C36: =SUMPRODUCT((InMoment_Data_Type=$A36)*(InMoment_Data_Period>=1)*(InMoment_Data_Period<=$F36)*(InMoment_Data_Year=$G36)*InMoment_Data_Recommend*InMoment_Data_Count)/SUMIFS('Database PTD'!$P:$P,'Database PTD'!$T:$T,$A36,'Database PTD'!$R:$R,">=1",'Database PTD'!$R:$R,"<="&$F36,'Database PTD'!$S:$S,$G36) -> 0 | D36: =SUMPRODUCT((InMoment_Data_Type=$A36)*(InMoment_Data_Period>=1)*(InMoment_Data_Period<=$F36)*(InMoment_Data_Year=$G36)*InMoment_Data_Pace*InMoment_Data_Count)/SUMIFS('Database PTD'!$P:$P,'Database PTD'!$T:$T,$A36,'Database PTD'!$R:$R,">=1",'Database PTD'!$R:$R,"<="&$F36,'Database PTD'!$S:$S,$G36) -> 55.82381648 | E36: =SUMPRODUCT((InMoment_Data_Type=$A36)*(InMoment_Data_Period>=1)*(InMoment_Data_Period<=$F36)*(InMoment_Data_Year=$G36)*InMoment_Data_Food*InMoment_Data_Count)/SUMIFS('Database PTD'!$P:$P,'Database PTD'!$T:$T,$A36,'Database PTD'!$R:$R,">=1",'Database PTD'!$R:$R,"<="&$F36,'Database PTD'!$S:$S,$G36) -> 55.36193115 | F36: 6 | G36: 2016 | H36: '16 P06
A37: DFRG | B37: =SUMPRODUCT((InMoment_Data_Period>=1)*(InMoment_Data_Period<=$F37)*(InMoment_Data_Year=$G37)*InMoment_Data_Overall*InMoment_Data_Count)/SUMIFS('Database PTD'!$P:$P,'Database PTD'!$R:$R,">=1",'Database PTD'!$R:$R,"<="&$F37,'Database PTD'!$S:$S,$G37) -> 54.00355951 | C37: =SUMPRODUCT((InMoment_Data_Period>=1)*(InMoment_Data_Period<=$F37)*(InMoment_Data_Year=$G37)*InMoment_Data_Recommend*InMoment_Data_Count)/SUMIFS('Database PTD'!$P:$P,'Database PTD'!$R:$R,">=1",'Database PTD'!$R:$R,"<="&$F37,'Database PTD'!$S:$S,$G37) -> 0 | D37: =SUMPRODUCT((InMoment_Data_Period>=1)*(InMoment_Data_Period<=$F37)*(InMoment_Data_Year=$G37)*InMoment_Data_Pace*InMoment_Data_Count)/SUMIFS('Database PTD'!$P:$P,'Database PTD'!$R:$R,">=1",'Database PTD'!$R:$R,"<="&$F37,'Database PTD'!$S:$S,$G37) -> 55.75816356 | E37: =SUMPRODUCT((InMoment_Data_Period>=1)*(InMoment_Data_Period<=$F37)*(InMoment_Data_Year=$G37)*InMoment_Data_Food*InMoment_Data_Count)/SUMIFS('Database PTD'!$P:$P,'Database PTD'!$R:$R,">=1",'Database PTD'!$R:$R,"<="&$F37,'Database PTD'!$S:$S,$G37) -> 57.37557614 | F37: 6 | G37: 2016 | H37: '16 P06
A38: DFDE | B38: =SUMPRODUCT((InMoment_Data_Type=$A38)*(InMoment_Data_Period>=1)*(InMoment_Data_Period<=$F38)*(InMoment_Data_Year=$G38)*InMoment_Data_Overall*InMoment_Data_Count)/SUMIFS('Database PTD'!$P:$P,'Database PTD'!$T:$T,$A38,'Database PTD'!$R:$R,">=1",'Database PTD'!$R:$R,"<="&$F38,'Database PTD'!$S:$S,$G38) -> 54.1378229 | C38: =SUMPRODUCT((InMoment_Data_Type=$A38)*(InMoment_Data_Period>=1)*(InMoment_Data_Period<=$F38)*(InMoment_Data_Year=$G38)*InMoment_Data_Recommend*InMoment_Data_Count)/SUMIFS('Database PTD'!$P:$P,'Database PTD'!$T:$T,$A38,'Database PTD'!$R:$R,">=1",'Database PTD'!$R:$R,"<="&$F38,'Database PTD'!$S:$S,$G38) -> 0 | D38: =SUMPRODUCT((InMoment_Data_Type=$A38)*(InMoment_Data_Period>=1)*(InMoment_Data_Period<=$F38)*(InMoment_Data_Year=$G38)*InMoment_Data_Pace*InMoment_Data_Count)/SUMIFS('Database PTD'!$P:$P,'Database PTD'!$T:$T,$A38,'Database PTD'!$R:$R,">=1",'Database PTD'!$R:$R,"<="&$F38,'Database PTD'!$S:$S,$G38) -> 55.68892414 | E38: =SUMPRODUCT((InMoment_Data_Type=$A38)*(InMoment_Data_Period>=1)*(InMoment_Data_Period<=$F38)*(InMoment_Data_Year=$G38)*InMoment_Data_Food*InMoment_Data_Count)/SUMIFS('Database PTD'!$P:$P,'Database PTD'!$T:$T,$A38,'Database PTD'!$R:$R,">=1",'Database PTD'!$R:$R,"<="&$F38,'Database PTD'!$S:$S,$G38) -> 58.78230814 | F38: =IF(F34=13,1,F34+1) -> 7 | G38: =IF(F34=13,G34+1,G34) -> 2016 | H38: '16 P07
A39: SULL | B39: =SUMPRODUCT((InMoment_Data_Type=$A39)*(InMoment_Data_Period>=1)*(InMoment_Data_Period<=$F39)*(InMoment_Data_Year=$G39)*InMoment_Data_Overall*InMoment_Data_Count)/SUMIFS('Database PTD'!$P:$P,'Database PTD'!$T:$T,$A39,'Database PTD'!$R:$R,">=1",'Database PTD'!$R:$R,"<="&$F39,'Database PTD'!$S:$S,$G39) -> 54.61354748 | C39: =SUMPRODUCT((InMoment_Data_Type=$A39)*(InMoment_Data_Period>=1)*(InMoment_Data_Period<=$F39)*(InMoment_Data_Year=$G39)*InMoment_Data_Recommend*InMoment_Data_Count)/SUMIFS('Database PTD'!$P:$P,'Database PTD'!$T:$T,$A39,'Database PTD'!$R:$R,">=1",'Database PTD'!$R:$R,"<="&$F39,'Database PTD'!$S:$S,$G39) -> 0 | D39: =SUMPRODUCT((InMoment_Data_Type=$A39)*(InMoment_Data_Period>=1)*(InMoment_Data_Period<=$F39)*(InMoment_Data_Year=$G39)*InMoment_Data_Pace*InMoment_Data_Count)/SUMIFS('Database PTD'!$P:$P,'Database PTD'!$T:$T,$A39,'Database PTD'!$R:$R,">=1",'Database PTD'!$R:$R,"<="&$F39,'Database PTD'!$S:$S,$G39) -> 55.95991126 | E39: =SUMPRODUCT((InMoment_Data_Type=$A39)*(InMoment_Data_Period>=1)*(InMoment_Data_Period<=$F39)*(InMoment_Data_Year=$G39)*InMoment_Data_Food*InMoment_Data_Count)/SUMIFS('Database PTD'!$P:$P,'Database PTD'!$T:$T,$A39,'Database PTD'!$R:$R,">=1",'Database PTD'!$R:$R,"<="&$F39,'Database PTD'!$S:$S,$G39) -> 57.39864158 | F39: 7 | G39: 2016 | H39: '16 P07
A40: DFG | B40: =SUMPRODUCT((InMoment_Data_Type=$A40)*(InMoment_Data_Period>=1)*(InMoment_Data_Period<=$F40)*(InMoment_Data_Year=$G40)*InMoment_Data_Overall*InMoment_Data_Count)/SUMIFS('Database PTD'!$P:$P,'Database PTD'!$T:$T,$A40,'Database PTD'!$R:$R,">=1",'Database PTD'!$R:$R,"<="&$F40,'Database PTD'!$S:$S,$G40) -> 53.09583261 | C40: =SUMPRODUCT((InMoment_Data_Type=$A40)*(InMoment_Data_Period>=1)*(InMoment_Data_Period<=$F40)*(InMoment_Data_Year=$G40)*InMoment_Data_Recommend*InMoment_Data_Count)/SUMIFS('Database PTD'!$P:$P,'Database PTD'!$T:$T,$A40,'Database PTD'!$R:$R,">=1",'Database PTD'!$R:$R,"<="&$F40,'Database PTD'!$S:$S,$G40) -> 0 | D40: =SUMPRODUCT((InMoment_Data_Type=$A40)*(InMoment_Data_Period>=1)*(InMoment_Data_Period<=$F40)*(InMoment_Data_Year=$G40)*InMoment_Data_Pace*InMoment_Data_Count)/SUMIFS('Database PTD'!$P:$P,'Database PTD'!$T:$T,$A40,'Database PTD'!$R:$R,">=1",'Database PTD'!$R:$R,"<="&$F40,'Database PTD'!$S:$S,$G40) -> 55.74714361 | E40: =SUMPRODUCT((InMoment_Data_Type=$A40)*(InMoment_Data_Period>=1)*(InMoment_Data_Period<=$F40)*(InMoment_Data_Year=$G40)*InMoment_Data_Food*InMoment_Data_Count)/SUMIFS('Database PTD'!$P:$P,'Database PTD'!$T:$T,$A40,'Database PTD'!$R:$R,">=1",'Database PTD'!$R:$R,"<="&$F40,'Database PTD'!$S:$S,$G40) -> 55.19369299 | F40: 7 | G40: 2016 | H40: '16 P07
A41: DFRG | B41: =SUMPRODUCT((InMoment_Data_Period>=1)*(InMoment_Data_Period<=$F41)*(InMoment_Data_Year=$G41)*InMoment_Data_Overall*InMoment_Data_Count)/SUMIFS('Database PTD'!$P:$P,'Database PTD'!$R:$R,">=1",'Database PTD'!$R:$R,"<="&$F41,'Database PTD'!$S:$S,$G41) -> 53.97450093 | C41: =SUMPRODUCT((InMoment_Data_Period>=1)*(InMoment_Data_Period<=$F41)*(InMoment_Data_Year=$G41)*InMoment_Data_Recommend*InMoment_Data_Count)/SUMIFS('Database PTD'!$P:$P,'Database PTD'!$R:$R,">=1",'Database PTD'!$R:$R,"<="&$F41,'Database PTD'!$S:$S,$G41) -> 0 | D41: =SUMPRODUCT((InMoment_Data_Period>=1)*(InMoment_Data_Period<=$F41)*(InMoment_Data_Year=$G41)*InMoment_Data_Pace*InMoment_Data_Count)/SUMIFS('Database PTD'!$P:$P,'Database PTD'!$R:$R,">=1",'Database PTD'!$R:$R,"<="&$F41,'Database PTD'!$S:$S,$G41) -> 55.79204125 | E41: =SUMPRODUCT((InMoment_Data_Period>=1)*(InMoment_Data_Period<=$F41)*(InMoment_Data_Year=$G41)*InMoment_Data_Food*InMoment_Data_Count)/SUMIFS('Database PTD'!$P:$P,'Database PTD'!$R:$R,">=1",'Database PTD'!$R:$R,"<="&$F41,'Database PTD'!$S:$S,$G41) -> 57.26525708 | F41: 7 | G41: 2016 | H41: '16 P07
A42: DFDE | B42: =SUMPRODUCT((InMoment_Data_Type=$A42)*(InMoment_Data_Period>=1)*(InMoment_Data_Period<=$F42)*(InMoment_Data_Year=$G42)*InMoment_Data_Overall*InMoment_Data_Count)/SUMIFS('Database PTD'!$P:$P,'Database PTD'!$T:$T,$A42,'Database PTD'!$R:$R,">=1",'Database PTD'!$R:$R,"<="&$F42,'Database PTD'!$S:$S,$G42) -> 54.7709645 | C42: =SUMPRODUCT((InMoment_Data_Type=$A42)*(InMoment_Data_Period>=1)*(InMoment_Data_Period<=$F42)*(InMoment_Data_Year=$G42)*InMoment_Data_Recommend*InMoment_Data_Count)/SUMIFS('Database PTD'!$P:$P,'Database PTD'!$T:$T,$A42,'Database PTD'!$R:$R,">=1",'Database PTD'!$R:$R,"<="&$F42,'Database PTD'!$S:$S,$G42) -> 0 | D42: =SUMPRODUCT((InMoment_Data_Type=$A42)*(InMoment_Data_Period>=1)*(InMoment_Data_Period<=$F42)*(InMoment_Data_Year=$G42)*InMoment_Data_Pace*InMoment_Data_Count)/SUMIFS('Database PTD'!$P:$P,'Database PTD'!$T:$T,$A42,'Database PTD'!$R:$R,">=1",'Database PTD'!$R:$R,"<="&$F42,'Database PTD'!$S:$S,$G42) -> 56.5370964 | E42: =SUMPRODUCT((InMoment_Data_Type=$A42)*(InMoment_Data_Period>=1)*(InMoment_Data_Period<=$F42)*(InMoment_Data_Year=$G42)*InMoment_Data_Food*InMoment_Data_Count)/SUMIFS('Database PTD'!$P:$P,'Database PTD'!$T:$T,$A42,'Database PTD'!$R:$R,">=1",'Database PTD'!$R:$R,"<="&$F42,'Database PTD'!$S:$S,$G42) -> 59.46410084 | F42: 8 | G42: 2016 | H42: '16 P08
A43: SULL | B43: =SUMPRODUCT((InMoment_Data_Type=$A43)*(InMoment_Data_Period>=1)*(InMoment_Data_Period<=$F43)*(InMoment_Data_Year=$G43)*InMoment_Data_Overall*InMoment_Data_Count)/SUMIFS('Database PTD'!$P:$P,'Database PTD'!$T:$T,$A43,'Database PTD'!$R:$R,">=1",'Database PTD'!$R:$R,"<="&$F43,'Database PTD'!$S:$S,$G43) -> 54.99051326 | C43: =SUMPRODUCT((InMoment_Data_Type=$A43)*(InMoment_Data_Period>=1)*(InMoment_Data_Period<=$F43)*(InMoment_Data_Year=$G43)*InMoment_Data_Recommend*InMoment_Data_Count)/SUMIFS('Database PTD'!$P:$P,'Database PTD'!$T:$T,$A43,'Database PTD'!$R:$R,">=1",'Database PTD'!$R:$R,"<="&$F43,'Database PTD'!$S:$S,$G43) -> 0 | D43: =SUMPRODUCT((InMoment_Data_Type=$A43)*(InMoment_Data_Period>=1)*(InMoment_Data_Period<=$F43)*(InMoment_Data_Year=$G43)*InMoment_Data_Pace*InMoment_Data_Count)/SUMIFS('Database PTD'!$P:$P,'Database PTD'!$T:$T,$A43,'Database PTD'!$R:$R,">=1",'Database PTD'!$R:$R,"<="&$F43,'Database PTD'!$S:$S,$G43) -> 56.42739988 | E43: =SUMPRODUCT((InMoment_Data_Type=$A43)*(InMoment_Data_Period>=1)*(InMoment_Data_Period<=$F43)*(InMoment_Data_Year=$G43)*InMoment_Data_Food*InMoment_Data_Count)/SUMIFS('Database PTD'!$P:$P,'Database PTD'!$T:$T,$A43,'Database PTD'!$R:$R,">=1",'Database PTD'!$R:$R,"<="&$F43,'Database PTD'!$S:$S,$G43) -> 57.53075218 | F43: 8 | G43: 2016 | H43: '16 P08
A44: DFG | B44: =SUMPRODUCT((InMoment_Data_Type=$A44)*(InMoment_Data_Period>=1)*(InMoment_Data_Period<=$F44)*(InMoment_Data_Year=$G44)*InMoment_Data_Overall*InMoment_Data_Count)/SUMIFS('Database PTD'!$P:$P,'Database PTD'!$T:$T,$A44,'Database PTD'!$R:$R,">=1",'Database PTD'!$R:$R,"<="&$F44,'Database PTD'!$S:$S,$G44) -> 53.31878347 | C44: =SUMPRODUCT((InMoment_Data_Type=$A44)*(InMoment_Data_Period>=1)*(InMoment_Data_Period<=$F44)*(InMoment_Data_Year=$G44)*InMoment_Data_Recommend*InMoment_Data_Count)/SUMIFS('Database PTD'!$P:$P,'Database PTD'!$T:$T,$A44,'Database PTD'!$R:$R,">=1",'Database PTD'!$R:$R,"<="&$F44,'Database PTD'!$S:$S,$G44) -> 0 | D44: =SUMPRODUCT((InMoment_Data_Type=$A44)*(InMoment_Data_Period>=1)*(InMoment_Data_Period<=$F44)*(InMoment_Data_Year=$G44)*InMoment_Data_Pace*InMoment_Data_Count)/SUMIFS('Database PTD'!$P:$P,'Database PTD'!$T:$T,$A44,'Database PTD'!$R:$R,">=1",'Database PTD'!$R:$R,"<="&$F44,'Database PTD'!$S:$S,$G44) -> 55.71143727 | E44: =SUMPRODUCT((InMoment_Data_Type=$A44)*(InMoment_Data_Period>=1)*(InMoment_Data_Period<=$F44)*(InMoment_Data_Year=$G44)*InMoment_Data_Food*InMoment_Data_Count)/SUMIFS('Database PTD'!$P:$P,'Database PTD'!$T:$T,$A44,'Database PTD'!$R:$R,">=1",'Database PTD'!$R:$R,"<="&$F44,'Database PTD'!$S:$S,$G44) -> 55.26783465 | F44: 8 | G44: 2016 | H44: '16 P08
A45: DFRG | B45: =SUMPRODUCT((InMoment_Data_Period>=1)*(InMoment_Data_Period<=$F45)*(InMoment_Data_Year=$G45)*InMoment_Data_Overall*InMoment_Data_Count)/SUMIFS('Database PTD'!$P:$P,'Database PTD'!$R:$R,">=1",'Database PTD'!$R:$R,"<="&$F45,'Database PTD'!$S:$S,$G45) -> 54.40481059 | C45: =SUMPRODUCT((InMoment_Data_Period>=1)*(InMoment_Data_Period<=$F45)*(InMoment_Data_Year=$G45)*InMoment_Data_Recommend*InMoment_Data_Count)/SUMIFS('Database PTD'!$P:$P,'Database PTD'!$R:$R,">=1",'Database PTD'!$R:$R,"<="&$F45,'Database PTD'!$S:$S,$G45) -> 0 | D45: =SUMPRODUCT((InMoment_Data_Period>=1)*(InMoment_Data_Period<=$F45)*(InMoment_Data_Year=$G45)*InMoment_Data_Pace*InMoment_Data_Count)/SUMIFS('Database PTD'!$P:$P,'Database PTD'!$R:$R,">=1",'Database PTD'!$R:$R,"<="&$F45,'Database PTD'!$S:$S,$G45) -> 56.25632789 | E45: =SUMPRODUCT((InMoment_Data_Period>=1)*(InMoment_Data_Period<=$F45)*(InMoment_Data_Year=$G45)*InMoment_Data_Food*InMoment_Data_Count)/SUMIFS('Database PTD'!$P:$P,'Database PTD'!$R:$R,">=1",'Database PTD'!$R:$R,"<="&$F45,'Database PTD'!$S:$S,$G45) -> 57.61131771 | F45: 8 | G45: 2016 | H45: '16 P08
A46: DFDE | B46: =SUMPRODUCT((InMoment_Data_Type=$A46)*(InMoment_Data_Period>=1)*(InMoment_Data_Period<=$F46)*(InMoment_Data_Year=$G46)*InMoment_Data_Overall*InMoment_Data_Count)/SUMIFS('Database PTD'!$P:$P,'Database PTD'!$T:$T,$A46,'Database PTD'!$R:$R,">=1",'Database PTD'!$R:$R,"<="&$F46,'Database PTD'!$S:$S,$G46) -> 54.8486915 | C46: =SUMPRODUCT((InMoment_Data_Type=$A46)*(InMoment_Data_Period>=1)*(InMoment_Data_Period<=$F46)*(InMoment_Data_Year=$G46)*InMoment_Data_Recommend*InMoment_Data_Count)/SUMIFS('Database PTD'!$P:$P,'Database PTD'!$T:$T,$A46,'Database PTD'!$R:$R,">=1",'Database PTD'!$R:$R,"<="&$F46,'Database PTD'!$S:$S,$G46) -> 0 | D46: =SUMPRODUCT((InMoment_Data_Type=$A46)*(InMoment_Data_Period>=1)*(InMoment_Data_Period<=$F46)*(InMoment_Data_Year=$G46)*InMoment_Data_Pace*InMoment_Data_Count)/SUMIFS('Database PTD'!$P:$P,'Database PTD'!$T:$T,$A46,'Database PTD'!$R:$R,">=1",'Database PTD'!$R:$R,"<="&$F46,'Database PTD'!$S:$S,$G46) -> 56.65435562 | E46: =SUMPRODUCT((InMoment_Data_Type=$A46)*(InMoment_Data_Period>=1)*(InMoment_Data_Period<=$F46)*(InMoment_Data_Year=$G46)*InMoment_Data_Food*InMoment_Data_Count)/SUMIFS('Database PTD'!$P:$P,'Database PTD'!$T:$T,$A46,'Database PTD'!$R:$R,">=1",'Database PTD'!$R:$R,"<="&$F46,'Database PTD'!$S:$S,$G46) -> 59.73576154 | F46: 9 | G46: 2016 | H46: '16 P09
A47: SULL | B47: =SUMPRODUCT((InMoment_Data_Type=$A47)*(InMoment_Data_Period>=1)*(InMoment_Data_Period<=$F47)*(InMoment_Data_Year=$G47)*InMoment_Data_Overall*InMoment_Data_Count)/SUMIFS('Database PTD'!$P:$P,'Database PTD'!$T:$T,$A47,'Database PTD'!$R:$R,">=1",'Database PTD'!$R:$R,"<="&$F47,'Database PTD'!$S:$S,$G47) -> 55.25327185 | C47: =SUMPRODUCT((InMoment_Data_Type=$A47)*(InMoment_Data_Period>=1)*(InMoment_Data_Period<=$F47)*(InMoment_Data_Year=$G47)*InMoment_Data_Recommend*InMoment_Data_Count)/SUMIFS('Database PTD'!$P:$P,'Database PTD'!$T:$T,$A47,'Database PTD'!$R:$R,">=1",'Database PTD'!$R:$R,"<="&$F47,'Database PTD'!$S:$S,$G47) -> 0 | D47: =SUMPRODUCT((InMoment_Data_Type=$A47)*(InMoment_Data_Period>=1)*(InMoment_Data_Period<=$F47)*(InMoment_Data_Year=$G47)*InMoment_Data_Pace*InMoment_Data_Count)/SUMIFS('Database PTD'!$P:$P,'Database PTD'!$T:$T,$A47,'Database PTD'!$R:$R,">=1",'Database PTD'!$R:$R,"<="&$F47,'Database PTD'!$S:$S,$G47) -> 56.74272465 | E47: =SUMPRODUCT((InMoment_Data_Type=$A47)*(InMoment_Data_Period>=1)*(InMoment_Data_Period<=$F47)*(InMoment_Data_Year=$G47)*InMoment_Data_Food*InMoment_Data_Count)/SUMIFS('Database PTD'!$P:$P,'Database PTD'!$T:$T,$A47,'Database PTD'!$R:$R,">=1",'Database PTD'!$R:$R,"<="&$F47,'Database PTD'!$S:$S,$G47) -> 57.86550428 | F47: 9 | G47: 2016 | H47: '16 P09
A48: DFG | B48: =SUMPRODUCT((InMoment_Data_Type=$A48)*(InMoment_Data_Period>=1)*(InMoment_Data_Period<=$F48)*(InMoment_Data_Year=$G48)*InMoment_Data_Overall*InMoment_Data_Count)/SUMIFS('Database PTD'!$P:$P,'Database PTD'!$T:$T,$A48,'Database PTD'!$R:$R,">=1",'Database PTD'!$R:$R,"<="&$F48,'Database PTD'!$S:$S,$G48) -> 53.50273967 | C48: =SUMPRODUCT((InMoment_Data_Type=$A48)*(InMoment_Data_Period>=1)*(InMoment_Data_Period<=$F48)*(InMoment_Data_Year=$G48)*InMoment_Data_Recommend*InMoment_Data_Count)/SUMIFS('Database PTD'!$P:$P,'Database PTD'!$T:$T,$A48,'Database PTD'!$R:$R,">=1",'Database PTD'!$R:$R,"<="&$F48,'Database PTD'!$S:$S,$G48) -> 0 | D48: =SUMPRODUCT((InMoment_Data_Type=$A48)*(InMoment_Data_Period>=1)*(InMoment_Data_Period<=$F48)*(InMoment_Data_Year=$G48)*InMoment_Data_Pace*InMoment_Data_Count)/SUMIFS('Database PTD'!$P:$P,'Database PTD'!$T:$T,$A48,'Database PTD'!$R:$R,">=1",'Database PTD'!$R:$R,"<="&$F48,'Database PTD'!$S:$S,$G48) -> 55.84813511 | E48: =SUMPRODUCT((InMoment_Data_Type=$A48)*(InMoment_Data_Period>=1)*(InMoment_Data_Period<=$F48)*(InMoment_Data_Year=$G48)*InMoment_Data_Food*InMoment_Data_Count)/SUMIFS('Database PTD'!$P:$P,'Database PTD'!$T:$T,$A48,'Database PTD'!$R:$R,">=1",'Database PTD'!$R:$R,"<="&$F48,'Database PTD'!$S:$S,$G48) -> 55.63730622 | F48: 9 | G48: 2016 | H48: '16 P09
A49: DFRG | B49: =SUMPRODUCT((InMoment_Data_Period>=1)*(InMoment_Data_Period<=$F49)*(InMoment_Data_Year=$G49)*InMoment_Data_Overall*InMoment_Data_Count)/SUMIFS('Database PTD'!$P:$P,'Database PTD'!$R:$R,">=1",'Database PTD'!$R:$R,"<="&$F49,'Database PTD'!$S:$S,$G49) -> 54.56934979 | C49: =SUMPRODUCT((InMoment_Data_Period>=1)*(InMoment_Data_Period<=$F49)*(InMoment_Data_Year=$G49)*InMoment_Data_Recommend*InMoment_Data_Count)/SUMIFS('Database PTD'!$P:$P,'Database PTD'!$R:$R,">=1",'Database PTD'!$R:$R,"<="&$F49,'Database PTD'!$S:$S,$G49) -> 0 | D49: =SUMPRODUCT((InMoment_Data_Period>=1)*(InMoment_Data_Period<=$F49)*(InMoment_Data_Year=$G49)*InMoment_Data_Pace*InMoment_Data_Count)/SUMIFS('Database PTD'!$P:$P,'Database PTD'!$R:$R,">=1",'Database PTD'!$R:$R,"<="&$F49,'Database PTD'!$S:$S,$G49) -> 56.4398556 | E49: =SUMPRODUCT((InMoment_Data_Period>=1)*(InMoment_Data_Period<=$F49)*(InMoment_Data_Year=$G49)*InMoment_Data_Food*InMoment_Data_Count)/SUMIFS('Database PTD'!$P:$P,'Database PTD'!$R:$R,">=1",'Database PTD'!$R:$R,"<="&$F49,'Database PTD'!$S:$S,$G49) -> 57.93468304 | F49: 9 | G49: 2016 | H49: '16 P09
A50: DFDE | B50: =SUMPRODUCT((InMoment_Data_Type=$A50)*(InMoment_Data_Period>=1)*(InMoment_Data_Period<=$F50)*(InMoment_Data_Year=$G50)*InMoment_Data_Overall*InMoment_Data_Count)/SUMIFS('Database PTD'!$P:$P,'Database PTD'!$T:$T,$A50,'Database PTD'!$R:$R,">=1",'Database PTD'!$R:$R,"<="&$F50,'Database PTD'!$S:$S,$G50) -> 55.17916132 | C50: =SUMPRODUCT((InMoment_Data_Type=$A50)*(InMoment_Data_Period>=1)*(InMoment_Data_Period<=$F50)*(InMoment_Data_Year=$G50)*InMoment_Data_Recommend*InMoment_Data_Count)/SUMIFS('Database PTD'!$P:$P,'Database PTD'!$T:$T,$A50,'Database PTD'!$R:$R,">=1",'Database PTD'!$R:$R,"<="&$F50,'Database PTD'!$S:$S,$G50) -> 0 | D50: =SUMPRODUCT((InMoment_Data_Type=$A50)*(InMoment_Data_Period>=1)*(InMoment_Data_Period<=$F50)*(InMoment_Data_Year=$G50)*InMoment_Data_Pace*InMoment_Data_Count)/SUMIFS('Database PTD'!$P:$P,'Database PTD'!$T:$T,$A50,'Database PTD'!$R:$R,">=1",'Database PTD'!$R:$R,"<="&$F50,'Database PTD'!$S:$S,$G50) -> 56.81747249 | E50: =SUMPRODUCT((InMoment_Data_Type=$A50)*(InMoment_Data_Period>=1)*(InMoment_Data_Period<=$F50)*(InMoment_Data_Year=$G50)*InMoment_Data_Food*InMoment_Data_Count)/SUMIFS('Database PTD'!$P:$P,'Database PTD'!$T:$T,$A50,'Database PTD'!$R:$R,">=1",'Database PTD'!$R:$R,"<="&$F50,'Database PTD'!$S:$S,$G50) -> 59.96496675 | F50: 10 | G50: 2016 | H50: '16 P10
A51: SULL | B51: =SUMPRODUCT((InMoment_Data_Type=$A51)*(InMoment_Data_Period>=1)*(InMoment_Data_Period<=$F51)*(InMoment_Data_Year=$G51)*InMoment_Data_Overall*InMoment_Data_Count)/SUMIFS('Database PTD'!$P:$P,'Database PTD'!$T:$T,$A51,'Database PTD'!$R:$R,">=1",'Database PTD'!$R:$R,"<="&$F51,'Database PTD'!$S:$S,$G51) -> 55.15787053 | C51: =SUMPRODUCT((InMoment_Data_Type=$A51)*(InMoment_Data_Period>=1)*(InMoment_Data_Period<=$F51)*(InMoment_Data_Year=$G51)*InMoment_Data_Recommend*InMoment_Data_Count)/SUMIFS('Database PTD'!$P:$P,'Database PTD'!$T:$T,$A51,'Database PTD'!$R:$R,">=1",'Database PTD'!$R:$R,"<="&$F51,'Database PTD'!$S:$S,$G51) -> 0 | D51: =SUMPRODUCT((InMoment_Data_Type=$A51)*(InMoment_Data_Period>=1)*(InMoment_Data_Period<=$F51)*(InMoment_Data_Year=$G51)*InMoment_Data_Pace*InMoment_Data_Count)/SUMIFS('Database PTD'!$P:$P,'Database PTD'!$T:$T,$A51,'Database PTD'!$R:$R,">=1",'Database PTD'!$R:$R,"<="&$F51,'Database PTD'!$S:$S,$G51) -> 56.49161534 | E51: =SUMPRODUCT((InMoment_Data_Type=$A51)*(InMoment_Data_Period>=1)*(InMoment_Data_Period<=$F51)*(InMoment_Data_Year=$G51)*InMoment_Data_Food*InMoment_Data_Count)/SUMIFS('Database PTD'!$P:$P,'Database PTD'!$T:$T,$A51,'Database PTD'!$R:$R,">=1",'Database PTD'!$R:$R,"<="&$F51,'Database PTD'!$S:$S,$G51) -> 57.77202035 | F51: 10 | G51: 2016 | H51: '16 P10
A52: DFG | B52: =SUMPRODUCT((InMoment_Data_Type=$A52)*(InMoment_Data_Period>=1)*(InMoment_Data_Period<=$F52)*(InMoment_Data_Year=$G52)*InMoment_Data_Overall*InMoment_Data_Count)/SUMIFS('Database PTD'!$P:$P,'Database PTD'!$T:$T,$A52,'Database PTD'!$R:$R,">=1",'Database PTD'!$R:$R,"<="&$F52,'Database PTD'!$S:$S,$G52) -> 53.68190691 | C52: =SUMPRODUCT((InMoment_Data_Type=$A52)*(InMoment_Data_Period>=1)*(InMoment_Data_Period<=$F52)*(InMoment_Data_Year=$G52)*InMoment_Data_Recommend*InMoment_Data_Count)/SUMIFS('Database PTD'!$P:$P,'Database PTD'!$T:$T,$A52,'Database PTD'!$R:$R,">=1",'Database PTD'!$R:$R,"<="&$F52,'Database PTD'!$S:$S,$G52) -> 0 | D52: =SUMPRODUCT((InMoment_Data_Type=$A52)*(InMoment_Data_Period>=1)*(InMoment_Data_Period<=$F52)*(InMoment_Data_Year=$G52)*InMoment_Data_Pace*InMoment_Data_Count)/SUMIFS('Database PTD'!$P:$P,'Database PTD'!$T:$T,$A52,'Database PTD'!$R:$R,">=1",'Database PTD'!$R:$R,"<="&$F52,'Database PTD'!$S:$S,$G52) -> 56.04382022 | E52: =SUMPRODUCT((InMoment_Data_Type=$A52)*(InMoment_Data_Period>=1)*(InMoment_Data_Period<=$F52)*(InMoment_Data_Year=$G52)*InMoment_Data_Food*InMoment_Data_Count)/SUMIFS('Database PTD'!$P:$P,'Database PTD'!$T:$T,$A52,'Database PTD'!$R:$R,">=1",'Database PTD'!$R:$R,"<="&$F52,'Database PTD'!$S:$S,$G52) -> 55.88627673 | F52: 10 | G52: 2016 | H52: '16 P10
A53: DFRG | B53: =SUMPRODUCT((InMoment_Data_Period>=1)*(InMoment_Data_Period<=$F53)*(InMoment_Data_Year=$G53)*InMoment_Data_Overall*InMoment_Data_Count)/SUMIFS('Database PTD'!$P:$P,'Database PTD'!$R:$R,">=1",'Database PTD'!$R:$R,"<="&$F53,'Database PTD'!$S:$S,$G53) -> 54.72880153 | C53: =SUMPRODUCT((InMoment_Data_Period>=1)*(InMoment_Data_Period<=$F53)*(InMoment_Data_Year=$G53)*InMoment_Data_Recommend*InMoment_Data_Count)/SUMIFS('Database PTD'!$P:$P,'Database PTD'!$R:$R,">=1",'Database PTD'!$R:$R,"<="&$F53,'Database PTD'!$S:$S,$G53) -> 0 | D53: =SUMPRODUCT((InMoment_Data_Period>=1)*(InMoment_Data_Period<=$F53)*(InMoment_Data_Year=$G53)*InMoment_Data_Pace*InMoment_Data_Count)/SUMIFS('Database PTD'!$P:$P,'Database PTD'!$R:$R,">=1",'Database PTD'!$R:$R,"<="&$F53,'Database PTD'!$S:$S,$G53) -> 56.48885041 | E53: =SUMPRODUCT((InMoment_Data_Period>=1)*(InMoment_Data_Period<=$F53)*(InMoment_Data_Year=$G53)*InMoment_Data_Food*InMoment_Data_Count)/SUMIFS('Database PTD'!$P:$P,'Database PTD'!$R:$R,">=1",'Database PTD'!$R:$R,"<="&$F53,'Database PTD'!$S:$S,$G53) -> 58.08776442 | F53: 10 | G53: 2016 | H53: '16 P10
A54: DFDE | B54: =SUMPRODUCT((InMoment_Data_Type=$A54)*(InMoment_Data_Period>=1)*(InMoment_Data_Period<=$F54)*(InMoment_Data_Year=$G54)*InMoment_Data_Overall*InMoment_Data_Count)/SUMIFS('Database PTD'!$P:$P,'Database PTD'!$T:$T,$A54,'Database PTD'!$R:$R,">=1",'Database PTD'!$R:$R,"<="&$F54,'Database PTD'!$S:$S,$G54) -> 55.13608918 | C54: =SUMPRODUCT((InMoment_Data_Type=$A54)*(InMoment_Data_Period>=1)*(InMoment_Data_Period<=$F54)*(InMoment_Data_Year=$G54)*InMoment_Data_Recommend*InMoment_Data_Count)/SUMIFS('Database PTD'!$P:$P,'Database PTD'!$T:$T,$A54,'Database PTD'!$R:$R,">=1",'Database PTD'!$R:$R,"<="&$F54,'Database PTD'!$S:$S,$G54) -> 0 | D54: =SUMPRODUCT((InMoment_Data_Type=$A54)*(InMoment_Data_Period>=1)*(InMoment_Data_Period<=$F54)*(InMoment_Data_Year=$G54)*InMoment_Data_Pace*InMoment_Data_Count)/SUMIFS('Database PTD'!$P:$P,'Database PTD'!$T:$T,$A54,'Database PTD'!$R:$R,">=1",'Database PTD'!$R:$R,"<="&$F54,'Database PTD'!$S:$S,$G54) -> 56.70645732 | E54: =SUMPRODUCT((InMoment_Data_Type=$A54)*(InMoment_Data_Period>=1)*(InMoment_Data_Period<=$F54)*(InMoment_Data_Year=$G54)*InMoment_Data_Food*InMoment_Data_Count)/SUMIFS('Database PTD'!$P:$P,'Database PTD'!$T:$T,$A54,'Database PTD'!$R:$R,">=1",'Database PTD'!$R:$R,"<="&$F54,'Database PTD'!$S:$S,$G54) -> 59.89374837 | F54: 11 | G54: 2016 | H54: '16 P11
A55: SULL | B55: =SUMPRODUCT((InMoment_Data_Type=$A55)*(InMoment_Data_Period>=1)*(InMoment_Data_Period<=$F55)*(InMoment_Data_Year=$G55)*InMoment_Data_Overall*InMoment_Data_Count)/SUMIFS('Database PTD'!$P:$P,'Database PTD'!$T:$T,$A55,'Database PTD'!$R:$R,">=1",'Database PTD'!$R:$R,"<="&$F55,'Database PTD'!$S:$S,$G55) -> 55.07910105 | C55: =SUMPRODUCT((InMoment_Data_Type=$A55)*(InMoment_Data_Period>=1)*(InMoment_Data_Period<=$F55)*(InMoment_Data_Year=$G55)*InMoment_Data_Recommend*InMoment_Data_Count)/SUMIFS('Database PTD'!$P:$P,'Database PTD'!$T:$T,$A55,'Database PTD'!$R:$R,">=1",'Database PTD'!$R:$R,"<="&$F55,'Database PTD'!$S:$S,$G55) -> 0 | D55: =SUMPRODUCT((InMoment_Data_Type=$A55)*(InMoment_Data_Period>=1)*(InMoment_Data_Period<=$F55)*(InMoment_Data_Year=$G55)*InMoment_Data_Pace*InMoment_Data_Count)/SUMIFS('Database PTD'!$P:$P,'Database PTD'!$T:$T,$A55,'Database PTD'!$R:$R,">=1",'Database PTD'!$R:$R,"<="&$F55,'Database PTD'!$S:$S,$G55) -> 56.48212832 | E55: =SUMPRODUCT((InMoment_Data_Type=$A55)*(InMoment_Data_Period>=1)*(InMoment_Data_Period<=$F55)*(InMoment_Data_Year=$G55)*InMoment_Data_Food*InMoment_Data_Count)/SUMIFS('Database PTD'!$P:$P,'Database PTD'!$T:$T,$A55,'Database PTD'!$R:$R,">=1",'Database PTD'!$R:$R,"<="&$F55,'Database PTD'!$S:$S,$G55) -> 57.82862 | F55: 11 | G55: 2016 | H55: '16 P11
A56: DFG | B56: =SUMPRODUCT((InMoment_Data_Type=$A56)*(InMoment_Data_Period>=1)*(InMoment_Data_Period<=$F56)*(InMoment_Data_Year=$G56)*InMoment_Data_Overall*InMoment_Data_Count)/SUMIFS('Database PTD'!$P:$P,'Database PTD'!$T:$T,$A56,'Database PTD'!$R:$R,">=1",'Database PTD'!$R:$R,"<="&$F56,'Database PTD'!$S:$S,$G56) -> 53.77900161 | C56: =SUMPRODUCT((InMoment_Data_Type=$A56)*(InMoment_Data_Period>=1)*(InMoment_Data_Period<=$F56)*(InMoment_Data_Year=$G56)*InMoment_Data_Recommend*InMoment_Data_Count)/SUMIFS('Database PTD'!$P:$P,'Database PTD'!$T:$T,$A56,'Database PTD'!$R:$R,">=1",'Database PTD'!$R:$R,"<="&$F56,'Database PTD'!$S:$S,$G56) -> 0 | D56: =SUMPRODUCT((InMoment_Data_Type=$A56)*(InMoment_Data_Period>=1)*(InMoment_Data_Period<=$F56)*(InMoment_Data_Year=$G56)*InMoment_Data_Pace*InMoment_Data_Count)/SUMIFS('Database PTD'!$P:$P,'Database PTD'!$T:$T,$A56,'Database PTD'!$R:$R,">=1",'Database PTD'!$R:$R,"<="&$F56,'Database PTD'!$S:$S,$G56) -> 56.00244851 | E56: =SUMPRODUCT((InMoment_Data_Type=$A56)*(InMoment_Data_Period>=1)*(InMoment_Data_Period<=$F56)*(InMoment_Data_Year=$G56)*InMoment_Data_Food*InMoment_Data_Count)/SUMIFS('Database PTD'!$P:$P,'Database PTD'!$T:$T,$A56,'Database PTD'!$R:$R,">=1",'Database PTD'!$R:$R,"<="&$F56,'Database PTD'!$S:$S,$G56) -> 55.90378523 | F56: 11 | G56: 2016 | H56: '16 P11
A57: DFRG | B57: =SUMPRODUCT((InMoment_Data_Period>=1)*(InMoment_Data_Period<=$F57)*(InMoment_Data_Year=$G57)*InMoment_Data_Overall*InMoment_Data_Count)/SUMIFS('Database PTD'!$P:$P,'Database PTD'!$R:$R,">=1",'Database PTD'!$R:$R,"<="&$F57,'Database PTD'!$S:$S,$G57) -> 54.71720276 | C57: =SUMPRODUCT((InMoment_Data_Period>=1)*(InMoment_Data_Period<=$F57)*(InMoment_Data_Year=$G57)*InMoment_Data_Recommend*InMoment_Data_Count)/SUMIFS('Database PTD'!$P:$P,'Database PTD'!$R:$R,">=1",'Database PTD'!$R:$R,"<="&$F57,'Database PTD'!$S:$S,$G57) -> 0 | D57: =SUMPRODUCT((InMoment_Data_Period>=1)*(InMoment_Data_Period<=$F57)*(InMoment_Data_Year=$G57)*InMoment_Data_Pace*InMoment_Data_Count)/SUMIFS('Database PTD'!$P:$P,'Database PTD'!$R:$R,">=1",'Database PTD'!$R:$R,"<="&$F57,'Database PTD'!$S:$S,$G57) -> 56.42870624 | E57: =SUMPRODUCT((InMoment_Data_Period>=1)*(InMoment_Data_Period<=$F57)*(InMoment_Data_Year=$G57)*InMoment_Data_Food*InMoment_Data_Count)/SUMIFS('Database PTD'!$P:$P,'Database PTD'!$R:$R,">=1",'Database PTD'!$R:$R,"<="&$F57,'Database PTD'!$S:$S,$G57) -> 58.07324881 | F57: 11 | G57: 2016 | H57: '16 P11
A58: DFDE | B58: =SUMPRODUCT((InMoment_Data_Type=$A58)*(InMoment_Data_Period>=1)*(InMoment_Data_Period<=$F58)*(InMoment_Data_Year=$G58)*InMoment_Data_Overall*InMoment_Data_Count)/SUMIFS('Database PTD'!$P:$P,'Database PTD'!$T:$T,$A58,'Database PTD'!$R:$R,">=1",'Database PTD'!$R:$R,"<="&$F58,'Database PTD'!$S:$S,$G58) -> 55.08896628 | C58: =SUMPRODUCT((InMoment_Data_Type=$A58)*(InMoment_Data_Period>=1)*(InMoment_Data_Period<=$F58)*(InMoment_Data_Year=$G58)*InMoment_Data_Recommend*InMoment_Data_Count)/SUMIFS('Database PTD'!$P:$P,'Database PTD'!$T:$T,$A58,'Database PTD'!$R:$R,">=1",'Database PTD'!$R:$R,"<="&$F58,'Database PTD'!$S:$S,$G58) -> 0 | D58: =SUMPRODUCT((InMoment_Data_Type=$A58)*(InMoment_Data_Period>=1)*(InMoment_Data_Period<=$F58)*(InMoment_Data_Year=$G58)*InMoment_Data_Pace*InMoment_Data_Count)/SUMIFS('Database PTD'!$P:$P,'Database PTD'!$T:$T,$A58,'Database PTD'!$R:$R,">=1",'Database PTD'!$R:$R,"<="&$F58,'Database PTD'!$S:$S,$G58) -> 56.5419125 | E58: =SUMPRODUCT((InMoment_Data_Type=$A58)*(InMoment_Data_Period>=1)*(InMoment_Data_Period<=$F58)*(InMoment_Data_Year=$G58)*InMoment_Data_Food*InMoment_Data_Count)/SUMIFS('Database PTD'!$P:$P,'Database PTD'!$T:$T,$A58,'Database PTD'!$R:$R,">=1",'Database PTD'!$R:$R,"<="&$F58,'Database PTD'!$S:$S,$G58) -> 59.85912678 | F58: 12 | G58: 2016 | H58: '16 P12
A59: SULL | B59: =SUMPRODUCT((InMoment_Data_Type=$A59)*(InMoment_Data_Period>=1)*(InMoment_Data_Period<=$F59)*(InMoment_Data_Year=$G59)*InMoment_Data_Overall*InMoment_Data_Count)/SUMIFS('Database PTD'!$P:$P,'Database PTD'!$T:$T,$A59,'Database PTD'!$R:$R,">=1",'Database PTD'!$R:$R,"<="&$F59,'Database PTD'!$S:$S,$G59) -> 55.11436517 | C59: =SUMPRODUCT((InMoment_Data_Type=$A59)*(InMoment_Data_Period>=1)*(InMoment_Data_Period<=$F59)*(InMoment_Data_Year=$G59)*InMoment_Data_Recommend*InMoment_Data_Count)/SUMIFS('Database PTD'!$P:$P,'Database PTD'!$T:$T,$A59,'Database PTD'!$R:$R,">=1",'Database PTD'!$R:$R,"<="&$F59,'Database PTD'!$S:$S,$G59) -> 0 | D59: =SUMPRODUCT((InMoment_Data_Type=$A59)*(InMoment_Data_Period>=1)*(InMoment_Data_Period<=$F59)*(InMoment_Data_Year=$G59)*InMoment_Data_Pace*InMoment_Data_Count)/SUMIFS('Database PTD'!$P:$P,'Database PTD'!$T:$T,$A59,'Database PTD'!$R:$R,">=1",'Database PTD'!$R:$R,"<="&$F59,'Database PTD'!$S:$S,$G59) -> 56.66596674 | E59: =SUMPRODUCT((InMoment_Data_Type=$A59)*(InMoment_Data_Period>=1)*(InMoment_Data_Period<=$F59)*(InMoment_Data_Year=$G59)*InMoment_Data_Food*InMoment_Data_Count)/SUMIFS('Database PTD'!$P:$P,'Database PTD'!$T:$T,$A59,'Database PTD'!$R:$R,">=1",'Database PTD'!$R:$R,"<="&$F59,'Database PTD'!$S:$S,$G59) -> 57.83101324 | F59: 12 | G59: 2016 | H59: '16 P12
A60: DFG | B60: =SUMPRODUCT((InMoment_Data_Type=$A60)*(InMoment_Data_Period>=1)*(InMoment_Data_Period<=$F60)*(InMoment_Data_Year=$G60)*InMoment_Data_Overall*InMoment_Data_Count)/SUMIFS('Database PTD'!$P:$P,'Database PTD'!$T:$T,$A60,'Database PTD'!$R:$R,">=1",'Database PTD'!$R:$R,"<="&$F60,'Database PTD'!$S:$S,$G60) -> 53.66286479 | C60: =SUMPRODUCT((InMoment_Data_Type=$A60)*(InMoment_Data_Period>=1)*(InMoment_Data_Period<=$F60)*(InMoment_Data_Year=$G60)*InMoment_Data_Recommend*InMoment_Data_Count)/SUMIFS('Database PTD'!$P:$P,'Database PTD'!$T:$T,$A60,'Database PTD'!$R:$R,">=1",'Database PTD'!$R:$R,"<="&$F60,'Database PTD'!$S:$S,$G60) -> 0 | D60: =SUMPRODUCT((InMoment_Data_Type=$A60)*(InMoment_Data_Period>=1)*(InMoment_Data_Period<=$F60)*(InMoment_Data_Year=$G60)*InMoment_Data_Pace*InMoment_Data_Count)/SUMIFS('Database PTD'!$P:$P,'Database PTD'!$T:$T,$A60,'Database PTD'!$R:$R,">=1",'Database PTD'!$R:$R,"<="&$F60,'Database PTD'!$S:$S,$G60) -> 55.83243205 | E60: =SUMPRODUCT((InMoment_Data_Type=$A60)*(InMoment_Data_Period>=1)*(InMoment_Data_Period<=$F60)*(InMoment_Data_Year=$G60)*InMoment_Data_Food*InMoment_Data_Count)/SUMIFS('Database PTD'!$P:$P,'Database PTD'!$T:$T,$A60,'Database PTD'!$R:$R,">=1",'Database PTD'!$R:$R,"<="&$F60,'Database PTD'!$S:$S,$G60) -> 55.80553016 | F60: 12 | G60: 2016 | H60: '16 P12
A61: DFRG | B61: =SUMPRODUCT((InMoment_Data_Period>=1)*(InMoment_Data_Period<=$F61)*(InMoment_Data_Year=$G61)*InMoment_Data_Overall*InMoment_Data_Count)/SUMIFS('Database PTD'!$P:$P,'Database PTD'!$R:$R,">=1",'Database PTD'!$R:$R,"<="&$F61,'Database PTD'!$S:$S,$G61) -> 54.67396178 | C61: =SUMPRODUCT((InMoment_Data_Period>=1)*(InMoment_Data_Period<=$F61)*(InMoment_Data_Year=$G61)*InMoment_Data_Recommend*InMoment_Data_Count)/SUMIFS('Database PTD'!$P:$P,'Database PTD'!$R:$R,">=1",'Database PTD'!$R:$R,"<="&$F61,'Database PTD'!$S:$S,$G61) -> 0 | D61: =SUMPRODUCT((InMoment_Data_Period>=1)*(InMoment_Data_Period<=$F61)*(InMoment_Data_Year=$G61)*InMoment_Data_Pace*InMoment_Data_Count)/SUMIFS('Database PTD'!$P:$P,'Database PTD'!$R:$R,">=1",'Database PTD'!$R:$R,"<="&$F61,'Database PTD'!$S:$S,$G61) -> 56.37014553 | E61: =SUMPRODUCT((InMoment_Data_Period>=1)*(InMoment_Data_Period<=$F61)*(InMoment_Data_Year=$G61)*InMoment_Data_Food*InMoment_Data_Count)/SUMIFS('Database PTD'!$P:$P,'Database PTD'!$R:$R,">=1",'Database PTD'!$R:$R,"<="&$F61,'Database PTD'!$S:$S,$G61) -> 58.02545694 | F61: 12 | G61: 2016 | H61: '16 P12
A62: DFDE | B62: =SUMPRODUCT((InMoment_Data_Type=$A62)*(InMoment_Data_Period>=1)*(InMoment_Data_Period<=$F62)*(InMoment_Data_Year=$G62)*InMoment_Data_Overall*InMoment_Data_Count)/SUMIFS('Database PTD'!$P:$P,'Database PTD'!$T:$T,$A62,'Database PTD'!$R:$R,">=1",'Database PTD'!$R:$R,"<="&$F62,'Database PTD'!$S:$S,$G62) -> 54.95240084 | C62: =SUMPRODUCT((InMoment_Data_Type=$A62)*(InMoment_Data_Period>=1)*(InMoment_Data_Period<=$F62)*(InMoment_Data_Year=$G62)*InMoment_Data_Recommend*InMoment_Data_Count)/SUMIFS('Database PTD'!$P:$P,'Database PTD'!$T:$T,$A62,'Database PTD'!$R:$R,">=1",'Database PTD'!$R:$R,"<="&$F62,'Database PTD'!$S:$S,$G62) -> 0 | D62: =SUMPRODUCT((InMoment_Data_Type=$A62)*(InMoment_Data_Period>=1)*(InMoment_Data_Period<=$F62)*(InMoment_Data_Year=$G62)*InMoment_Data_Pace*InMoment_Data_Count)/SUMIFS('Database PTD'!$P:$P,'Database PTD'!$T:$T,$A62,'Database PTD'!$R:$R,">=1",'Database PTD'!$R:$R,"<="&$F62,'Database PTD'!$S:$S,$G62) -> 56.29845275 | E62: =SUMPRODUCT((InMoment_Data_Type=$A62)*(InMoment_Data_Period>=1)*(InMoment_Data_Period<=$F62)*(InMoment_Data_Year=$G62)*InMoment_Data_Food*InMoment_Data_Count)/SUMIFS('Database PTD'!$P:$P,'Database PTD'!$T:$T,$A62,'Database PTD'!$R:$R,">=1",'Database PTD'!$R:$R,"<="&$F62,'Database PTD'!$S:$S,$G62) -> 59.75316139 | F62: 13 | G62: 2016 | H62: '16 P13
A63: SULL | B63: =SUMPRODUCT((InMoment_Data_Type=$A63)*(InMoment_Data_Period>=1)*(InMoment_Data_Period<=$F63)*(InMoment_Data_Year=$G63)*InMoment_Data_Overall*InMoment_Data_Count)/SUMIFS('Database PTD'!$P:$P,'Database PTD'!$T:$T,$A63,'Database PTD'!$R:$R,">=1",'Database PTD'!$R:$R,"<="&$F63,'Database PTD'!$S:$S,$G63) -> 55.18988139 | C63: =SUMPRODUCT((InMoment_Data_Type=$A63)*(InMoment_Data_Period>=1)*(InMoment_Data_Period<=$F63)*(InMoment_Data_Year=$G63)*InMoment_Data_Recommend*InMoment_Data_Count)/SUMIFS('Database PTD'!$P:$P,'Database PTD'!$T:$T,$A63,'Database PTD'!$R:$R,">=1",'Database PTD'!$R:$R,"<="&$F63,'Database PTD'!$S:$S,$G63) -> 0 | D63: =SUMPRODUCT((InMoment_Data_Type=$A63)*(InMoment_Data_Period>=1)*(InMoment_Data_Period<=$F63)*(InMoment_Data_Year=$G63)*InMoment_Data_Pace*InMoment_Data_Count)/SUMIFS('Database PTD'!$P:$P,'Database PTD'!$T:$T,$A63,'Database PTD'!$R:$R,">=1",'Database PTD'!$R:$R,"<="&$F63,'Database PTD'!$S:$S,$G63) -> 56.63269077 | E63: =SUMPRODUCT((InMoment_Data_Type=$A63)*(InMoment_Data_Period>=1)*(InMoment_Data_Period<=$F63)*(InMoment_Data_Year=$G63)*InMoment_Data_Food*InMoment_Data_Count)/SUMIFS('Database PTD'!$P:$P,'Database PTD'!$T:$T,$A63,'Database PTD'!$R:$R,">=1",'Database PTD'!$R:$R,"<="&$F63,'Database PTD'!$S:$S,$G63) -> 57.8911503 | F63: 13 | G63: 2016 | H63: '16 P13
A64: DFG | B64: =SUMPRODUCT((InMoment_Data_Type=$A64)*(InMoment_Data_Period>=1)*(InMoment_Data_Period<=$F64)*(InMoment_Data_Year=$G64)*InMoment_Data_Overall*InMoment_Data_Count)/SUMIFS('Database PTD'!$P:$P,'Database PTD'!$T:$T,$A64,'Database PTD'!$R:$R,">=1",'Database PTD'!$R:$R,"<="&$F64,'Database PTD'!$S:$S,$G64) -> 53.59845144 | C64: =SUMPRODUCT((InMoment_Data_Type=$A64)*(InMoment_Data_Period>=1)*(InMoment_Data_Period<=$F64)*(InMoment_Data_Year=$G64)*InMoment_Data_Recommend*InMoment_Data_Count)/SUMIFS('Database PTD'!$P:$P,'Database PTD'!$T:$T,$A64,'Database PTD'!$R:$R,">=1",'Database PTD'!$R:$R,"<="&$F64,'Database PTD'!$S:$S,$G64) -> 0 | D64: =SUMPRODUCT((InMoment_Data_Type=$A64)*(InMoment_Data_Period>=1)*(InMoment_Data_Period<=$F64)*(InMoment_Data_Year=$G64)*InMoment_Data_Pace*InMoment_Data_Count)/SUMIFS('Database PTD'!$P:$P,'Database PTD'!$T:$T,$A64,'Database PTD'!$R:$R,">=1",'Database PTD'!$R:$R,"<="&$F64,'Database PTD'!$S:$S,$G64) -> 55.78593575 | E64: =SUMPRODUCT((InMoment_Data_Type=$A64)*(InMoment_Data_Period>=1)*(InMoment_Data_Period<=$F64)*(InMoment_Data_Year=$G64)*InMoment_Data_Food*InMoment_Data_Count)/SUMIFS('Database PTD'!$P:$P,'Database PTD'!$T:$T,$A64,'Database PTD'!$R:$R,">=1",'Database PTD'!$R:$R,"<="&$F64,'Database PTD'!$S:$S,$G64) -> 55.96855709 | F64: 13 | G64: 2016 | H64: '16 P13
A65: DFRG | B65: =SUMPRODUCT((InMoment_Data_Period>=1)*(InMoment_Data_Period<=$F65)*(InMoment_Data_Year=$G65)*InMoment_Data_Overall*InMoment_Data_Count)/SUMIFS('Database PTD'!$P:$P,'Database PTD'!$R:$R,">=1",'Database PTD'!$R:$R,"<="&$F65,'Database PTD'!$S:$S,$G65) -> 54.62056352 | C65: =SUMPRODUCT((InMoment_Data_Period>=1)*(InMoment_Data_Period<=$F65)*(InMoment_Data_Year=$G65)*InMoment_Data_Recommend*InMoment_Data_Count)/SUMIFS('Database PTD'!$P:$P,'Database PTD'!$R:$R,">=1",'Database PTD'!$R:$R,"<="&$F65,'Database PTD'!$S:$S,$G65) -> 0 | D65: =SUMPRODUCT((InMoment_Data_Period>=1)*(InMoment_Data_Period<=$F65)*(InMoment_Data_Year=$G65)*InMoment_Data_Pace*InMoment_Data_Count)/SUMIFS('Database PTD'!$P:$P,'Database PTD'!$R:$R,">=1",'Database PTD'!$R:$R,"<="&$F65,'Database PTD'!$S:$S,$G65) -> 56.24876532 | E65: =SUMPRODUCT((InMoment_Data_Period>=1)*(InMoment_Data_Period<=$F65)*(InMoment_Data_Year=$G65)*InMoment_Data_Food*InMoment_Data_Count)/SUMIFS('Database PTD'!$P:$P,'Database PTD'!$R:$R,">=1",'Database PTD'!$R:$R,"<="&$F65,'Database PTD'!$S:$S,$G65) -> 58.04075191 | F65: 13 | G65: 2016 | H65: '16 P13
A66: DFDE | B66: =SUMPRODUCT((InMoment_Data_Type=$A66)*(InMoment_Data_Period>=1)*(InMoment_Data_Period<=$F66)*(InMoment_Data_Year=$G66)*InMoment_Data_Overall*InMoment_Data_Count)/SUMIFS('Database PTD'!$P:$P,'Database PTD'!$T:$T,$A66,'Database PTD'!$R:$R,">=1",'Database PTD'!$R:$R,"<="&$F66,'Database PTD'!$S:$S,$G66) -> 53.32800221 | C66: =SUMPRODUCT((InMoment_Data_Type=$A66)*(InMoment_Data_Period>=1)*(InMoment_Data_Period<=$F66)*(InMoment_Data_Year=$G66)*InMoment_Data_Recommend*InMoment_Data_Count)/SUMIFS('Database PTD'!$P:$P,'Database PTD'!$T:$T,$A66,'Database PTD'!$R:$R,">=1",'Database PTD'!$R:$R,"<="&$F66,'Database PTD'!$S:$S,$G66) -> 0 | D66: =SUMPRODUCT((InMoment_Data_Type=$A66)*(InMoment_Data_Period>=1)*(InMoment_Data_Period<=$F66)*(InMoment_Data_Year=$G66)*InMoment_Data_Pace*InMoment_Data_Count)/SUMIFS('Database PTD'!$P:$P,'Database PTD'!$T:$T,$A66,'Database PTD'!$R:$R,">=1",'Database PTD'!$R:$R,"<="&$F66,'Database PTD'!$S:$S,$G66) -> 54.42447409 | E66: =SUMPRODUCT((InMoment_Data_Type=$A66)*(InMoment_Data_Period>=1)*(InMoment_Data_Period<=$F66)*(InMoment_Data_Year=$G66)*InMoment_Data_Food*InMoment_Data_Count)/SUMIFS('Database PTD'!$P:$P,'Database PTD'!$T:$T,$A66,'Database PTD'!$R:$R,">=1",'Database PTD'!$R:$R,"<="&$F66,'Database PTD'!$S:$S,$G66) -> 57.69098677 | F66: 1 | G66: 2017 | H66: ="'"&MID(G66,3,2)&" P"&IF(F66<10,"0","")&F66 -> '17 P01
A67: SULL | B67: =SUMPRODUCT((InMoment_Data_Type=$A67)*(InMoment_Data_Period>=1)*(InMoment_Data_Period<=$F67)*(InMoment_Data_Year=$G67)*InMoment_Data_Overall*InMoment_Data_Count)/SUMIFS('Database PTD'!$P:$P,'Database PTD'!$T:$T,$A67,'Database PTD'!$R:$R,">=1",'Database PTD'!$R:$R,"<="&$F67,'Database PTD'!$S:$S,$G67) -> 52.65297923 | C67: =SUMPRODUCT((InMoment_Data_Type=$A67)*(InMoment_Data_Period>=1)*(InMoment_Data_Period<=$F67)*(InMoment_Data_Year=$G67)*InMoment_Data_Recommend*InMoment_Data_Count)/SUMIFS('Database PTD'!$P:$P,'Database PTD'!$T:$T,$A67,'Database PTD'!$R:$R,">=1",'Database PTD'!$R:$R,"<="&$F67,'Database PTD'!$S:$S,$G67) -> 0 | D67: =SUMPRODUCT((InMoment_Data_Type=$A67)*(InMoment_Data_Period>=1)*(InMoment_Data_Period<=$F67)*(InMoment_Data_Year=$G67)*InMoment_Data_Pace*InMoment_Data_Count)/SUMIFS('Database PTD'!$P:$P,'Database PTD'!$T:$T,$A67,'Database PTD'!$R:$R,">=1",'Database PTD'!$R:$R,"<="&$F67,'Database PTD'!$S:$S,$G67) -> 54.83833828 | E67: =SUMPRODUCT((InMoment_Data_Type=$A67)*(InMoment_Data_Period>=1)*(InMoment_Data_Period<=$F67)*(InMoment_Data_Year=$G67)*InMoment_Data_Food*InMoment_Data_Count)/SUMIFS('Database PTD'!$P:$P,'Database PTD'!$T:$T,$A67,'Database PTD'!$R:$R,">=1",'Database PTD'!$R:$R,"<="&$F67,'Database PTD'!$S:$S,$G67) -> 55.50709199 | F67: 1 | G67: 2017 | H67: '17 P01
A68: DFG | B68: =SUMPRODUCT((InMoment_Data_Type=$A68)*(InMoment_Data_Period>=1)*(InMoment_Data_Period<=$F68)*(InMoment_Data_Year=$G68)*InMoment_Data_Overall*InMoment_Data_Count)/SUMIFS('Database PTD'!$P:$P,'Database PTD'!$T:$T,$A68,'Database PTD'!$R:$R,">=1",'Database PTD'!$R:$R,"<="&$F68,'Database PTD'!$S:$S,$G68) -> 53.73999861 | C68: =SUMPRODUCT((InMoment_Data_Type=$A68)*(InMoment_Data_Period>=1)*(InMoment_Data_Period<=$F68)*(InMoment_Data_Year=$G68)*InMoment_Data_Recommend*InMoment_Data_Count)/SUMIFS('Database PTD'!$P:$P,'Database PTD'!$T:$T,$A68,'Database PTD'!$R:$R,">=1",'Database PTD'!$R:$R,"<="&$F68,'Database PTD'!$S:$S,$G68) -> 0 | D68: =SUMPRODUCT((InMoment_Data_Type=$A68)*(InMoment_Data_Period>=1)*(InMoment_Data_Period<=$F68)*(InMoment_Data_Year=$G68)*InMoment_Data_Pace*InMoment_Data_Count)/SUMIFS('Database PTD'!$P:$P,'Database PTD'!$T:$T,$A68,'Database PTD'!$R:$R,">=1",'Database PTD'!$R:$R,"<="&$F68,'Database PTD'!$S:$S,$G68) -> 55.51450416 | E68: =SUMPRODUCT((InMoment_Data_Type=$A68)*(InMoment_Data_Period>=1)*(InMoment_Data_Period<=$F68)*(InMoment_Data_Year=$G68)*InMoment_Data_Food*InMoment_Data_Count)/SUMIFS('Database PTD'!$P:$P,'Database PTD'!$T:$T,$A68,'Database PTD'!$R:$R,">=1",'Database PTD'!$R:$R,"<="&$F68,'Database PTD'!$S:$S,$G68) -> 56.72735734 | F68: 1 | G68: 2017 | H68: '17 P01
A69: DFRG | B69: =SUMPRODUCT((InMoment_Data_Period>=1)*(InMoment_Data_Period<=$F69)*(InMoment_Data_Year=$G69)*InMoment_Data_Overall*InMoment_Data_Count)/SUMIFS('Database PTD'!$P:$P,'Database PTD'!$R:$R,">=1",'Database PTD'!$R:$R,"<="&$F69,'Database PTD'!$S:$S,$G69) -> 53.25961138 | C69: =SUMPRODUCT((InMoment_Data_Period>=1)*(InMoment_Data_Period<=$F69)*(InMoment_Data_Year=$G69)*InMoment_Data_Recommend*InMoment_Data_Count)/SUMIFS('Database PTD'!$P:$P,'Database PTD'!$R:$R,">=1",'Database PTD'!$R:$R,"<="&$F69,'Database PTD'!$S:$S,$G69) -> 0 | D69: =SUMPRODUCT((InMoment_Data_Period>=1)*(InMoment_Data_Period<=$F69)*(InMoment_Data_Year=$G69)*InMoment_Data_Pace*InMoment_Data_Count)/SUMIFS('Database PTD'!$P:$P,'Database PTD'!$R:$R,">=1",'Database PTD'!$R:$R,"<="&$F69,'Database PTD'!$S:$S,$G69) -> 54.88732523 | E69: =SUMPRODUCT((InMoment_Data_Period>=1)*(InMoment_Data_Period<=$F69)*(InMoment_Data_Year=$G69)*InMoment_Data_Food*InMoment_Data_Count)/SUMIFS('Database PTD'!$P:$P,'Database PTD'!$R:$R,">=1",'Database PTD'!$R:$R,"<="&$F69,'Database PTD'!$S:$S,$G69) -> 56.74974251 | F69: 1 | G69: 2017 | H69: '17 P01
A70: DFDE | B70: =SUMPRODUCT((InMoment_Data_Type=$A70)*(InMoment_Data_Period>=1)*(InMoment_Data_Period<=$F70)*(InMoment_Data_Year=$G70)*InMoment_Data_Overall*InMoment_Data_Count)/SUMIFS('Database PTD'!$P:$P,'Database PTD'!$T:$T,$A70,'Database PTD'!$R:$R,">=1",'Database PTD'!$R:$R,"<="&$F70,'Database PTD'!$S:$S,$G70) -> 52.55486321 | C70: =SUMPRODUCT((InMoment_Data_Type=$A70)*(InMoment_Data_Period>=1)*(InMoment_Data_Period<=$F70)*(InMoment_Data_Year=$G70)*InMoment_Data_Recommend*InMoment_Data_Count)/SUMIFS('Database PTD'!$P:$P,'Database PTD'!$T:$T,$A70,'Database PTD'!$R:$R,">=1",'Database PTD'!$R:$R,"<="&$F70,'Database PTD'!$S:$S,$G70) -> 0 | D70: =SUMPRODUCT((InMoment_Data_Type=$A70)*(InMoment_Data_Period>=1)*(InMoment_Data_Period<=$F70)*(InMoment_Data_Year=$G70)*InMoment_Data_Pace*InMoment_Data_Count)/SUMIFS('Database PTD'!$P:$P,'Database PTD'!$T:$T,$A70,'Database PTD'!$R:$R,">=1",'Database PTD'!$R:$R,"<="&$F70,'Database PTD'!$S:$S,$G70) -> 53.48826185 | E70: =SUMPRODUCT((InMoment_Data_Type=$A70)*(InMoment_Data_Period>=1)*(InMoment_Data_Period<=$F70)*(InMoment_Data_Year=$G70)*InMoment_Data_Food*InMoment_Data_Count)/SUMIFS('Database PTD'!$P:$P,'Database PTD'!$T:$T,$A70,'Database PTD'!$R:$R,">=1",'Database PTD'!$R:$R,"<="&$F70,'Database PTD'!$S:$S,$G70) -> 58.36578847 | F70: =IF(F66=13,1,F66+1) -> 2 | G70: =IF(F66=13,G66+1,G66) -> 2017 | H70: '17 P02
A71: SULL | B71: =SUMPRODUCT((InMoment_Data_Type=$A71)*(InMoment_Data_Period>=1)*(InMoment_Data_Period<=$F71)*(InMoment_Data_Year=$G71)*InMoment_Data_Overall*InMoment_Data_Count)/SUMIFS('Database PTD'!$P:$P,'Database PTD'!$T:$T,$A71,'Database PTD'!$R:$R,">=1",'Database PTD'!$R:$R,"<="&$F71,'Database PTD'!$S:$S,$G71) -> 52.38976032 | C71: =SUMPRODUCT((InMoment_Data_Type=$A71)*(InMoment_Data_Period>=1)*(InMoment_Data_Period<=$F71)*(InMoment_Data_Year=$G71)*InMoment_Data_Recommend*InMoment_Data_Count)/SUMIFS('Database PTD'!$P:$P,'Database PTD'!$T:$T,$A71,'Database PTD'!$R:$R,">=1",'Database PTD'!$R:$R,"<="&$F71,'Database PTD'!$S:$S,$G71) -> 0 | D71: =SUMPRODUCT((InMoment_Data_Type=$A71)*(InMoment_Data_Period>=1)*(InMoment_Data_Period<=$F71)*(InMoment_Data_Year=$G71)*InMoment_Data_Pace*InMoment_Data_Count)/SUMIFS('Database PTD'!$P:$P,'Database PTD'!$T:$T,$A71,'Database PTD'!$R:$R,">=1",'Database PTD'!$R:$R,"<="&$F71,'Database PTD'!$S:$S,$G71) -> 54.05959648 | E71: =SUMPRODUCT((InMoment_Data_Type=$A71)*(InMoment_Data_Period>=1)*(InMoment_Data_Period<=$F71)*(InMoment_Data_Year=$G71)*InMoment_Data_Food*InMoment_Data_Count)/SUMIFS('Database PTD'!$P:$P,'Database PTD'!$T:$T,$A71,'Database PTD'!$R:$R,">=1",'Database PTD'!$R:$R,"<="&$F71,'Database PTD'!$S:$S,$G71) -> 55.39026879 | F71: 2 | G71: 2017 | H71: '17 P02
A72: DFG | B72: =SUMPRODUCT((InMoment_Data_Type=$A72)*(InMoment_Data_Period>=1)*(InMoment_Data_Period<=$F72)*(InMoment_Data_Year=$G72)*InMoment_Data_Overall*InMoment_Data_Count)/SUMIFS('Database PTD'!$P:$P,'Database PTD'!$T:$T,$A72,'Database PTD'!$R:$R,">=1",'Database PTD'!$R:$R,"<="&$F72,'Database PTD'!$S:$S,$G72) -> 51.74328159 | C72: =SUMPRODUCT((InMoment_Data_Type=$A72)*(InMoment_Data_Period>=1)*(InMoment_Data_Period<=$F72)*(InMoment_Data_Year=$G72)*InMoment_Data_Recommend*InMoment_Data_Count)/SUMIFS('Database PTD'!$P:$P,'Database PTD'!$T:$T,$A72,'Database PTD'!$R:$R,">=1",'Database PTD'!$R:$R,"<="&$F72,'Database PTD'!$S:$S,$G72) -> 0 | D72: =SUMPRODUCT((InMoment_Data_Type=$A72)*(InMoment_Data_Period>=1)*(InMoment_Data_Period<=$F72)*(InMoment_Data_Year=$G72)*InMoment_Data_Pace*InMoment_Data_Count)/SUMIFS('Database PTD'!$P:$P,'Database PTD'!$T:$T,$A72,'Database PTD'!$R:$R,">=1",'Database PTD'!$R:$R,"<="&$F72,'Database PTD'!$S:$S,$G72) -> 54.56182191 | E72: =SUMPRODUCT((InMoment_Data_Type=$A72)*(InMoment_Data_Period>=1)*(InMoment_Data_Period<=$F72)*(InMoment_Data_Year=$G72)*InMoment_Data_Food*InMoment_Data_Count)/SUMIFS('Database PTD'!$P:$P,'Database PTD'!$T:$T,$A72,'Database PTD'!$R:$R,">=1",'Database PTD'!$R:$R,"<="&$F72,'Database PTD'!$S:$S,$G72) -> 54.18216263 | F72: 2 | G72: 2017 | H72: '17 P02
A73: DFRG | B73: =SUMPRODUCT((InMoment_Data_Period>=1)*(InMoment_Data_Period<=$F73)*(InMoment_Data_Year=$G73)*InMoment_Data_Overall*InMoment_Data_Count)/SUMIFS('Database PTD'!$P:$P,'Database PTD'!$R:$R,">=1",'Database PTD'!$R:$R,"<="&$F73,'Database PTD'!$S:$S,$G73) -> 52.26526018 | C73: =SUMPRODUCT((InMoment_Data_Period>=1)*(InMoment_Data_Period<=$F73)*(InMoment_Data_Year=$G73)*InMoment_Data_Recommend*InMoment_Data_Count)/SUMIFS('Database PTD'!$P:$P,'Database PTD'!$R:$R,">=1",'Database PTD'!$R:$R,"<="&$F73,'Database PTD'!$S:$S,$G73) -> 0 | D73: =SUMPRODUCT((InMoment_Data_Period>=1)*(InMoment_Data_Period<=$F73)*(InMoment_Data_Year=$G73)*InMoment_Data_Pace*InMoment_Data_Count)/SUMIFS('Database PTD'!$P:$P,'Database PTD'!$R:$R,">=1",'Database PTD'!$R:$R,"<="&$F73,'Database PTD'!$S:$S,$G73) -> 53.97535654 | E73: =SUMPRODUCT((InMoment_Data_Period>=1)*(InMoment_Data_Period<=$F73)*(InMoment_Data_Year=$G73)*InMoment_Data_Food*InMoment_Data_Count)/SUMIFS('Database PTD'!$P:$P,'Database PTD'!$R:$R,">=1",'Database PTD'!$R:$R,"<="&$F73,'Database PTD'!$S:$S,$G73) -> 56.24685834 | F73: 2 | G73: 2017 | H73: '17 P02
A74: DFDE | B74: =SUMPRODUCT((InMoment_Data_Type=$A74)*(InMoment_Data_Period>=1)*(InMoment_Data_Period<=$F74)*(InMoment_Data_Year=$G74)*InMoment_Data_Overall*InMoment_Data_Count)/SUMIFS('Database PTD'!$P:$P,'Database PTD'!$T:$T,$A74,'Database PTD'!$R:$R,">=1",'Database PTD'!$R:$R,"<="&$F74,'Database PTD'!$S:$S,$G74) -> 53.91309365 | C74: =SUMPRODUCT((InMoment_Data_Type=$A74)*(InMoment_Data_Period>=1)*(InMoment_Data_Period<=$F74)*(InMoment_Data_Year=$G74)*InMoment_Data_Recommend*InMoment_Data_Count)/SUMIFS('Database PTD'!$P:$P,'Database PTD'!$T:$T,$A74,'Database PTD'!$R:$R,">=1",'Database PTD'!$R:$R,"<="&$F74,'Database PTD'!$S:$S,$G74) -> 0 | D74: =SUMPRODUCT((InMoment_Data_Type=$A74)*(InMoment_Data_Period>=1)*(InMoment_Data_Period<=$F74)*(InMoment_Data_Year=$G74)*InMoment_Data_Pace*InMoment_Data_Count)/SUMIFS('Database PTD'!$P:$P,'Database PTD'!$T:$T,$A74,'Database PTD'!$R:$R,">=1",'Database PTD'!$R:$R,"<="&$F74,'Database PTD'!$S:$S,$G74) -> 54.7452087 | E74: =SUMPRODUCT((InMoment_Data_Type=$A74)*(InMoment_Data_Period>=1)*(InMoment_Data_Period<=$F74)*(InMoment_Data_Year=$G74)*InMoment_Data_Food*InMoment_Data_Count)/SUMIFS('Database PTD'!$P:$P,'Database PTD'!$T:$T,$A74,'Database PTD'!$R:$R,">=1",'Database PTD'!$R:$R,"<="&$F74,'Database PTD'!$S:$S,$G74) -> 59.07582427 | F74: 3 | G74: 2017 | H74: '17 P03
A75: SULL | B75: =SUMPRODUCT((InMoment_Data_Type=$A75)*(InMoment_Data_Period>=1)*(InMoment_Data_Period<=$F75)*(InMoment_Data_Year=$G75)*InMoment_Data_Overall*InMoment_Data_Count)/SUMIFS('Database PTD'!$P:$P,'Database PTD'!$T:$T,$A75,'Database PTD'!$R:$R,">=1",'Database PTD'!$R:$R,"<="&$F75,'Database PTD'!$S:$S,$G75) -> 54.65937305 | C75: =SUMPRODUCT((InMoment_Data_Type=$A75)*(InMoment_Data_Period>=1)*(InMoment_Data_Period<=$F75)*(InMoment_Data_Year=$G75)*InMoment_Data_Recommend*InMoment_Data_Count)/SUMIFS('Database PTD'!$P:$P,'Database PTD'!$T:$T,$A75,'Database PTD'!$R:$R,">=1",'Database PTD'!$R:$R,"<="&$F75,'Database PTD'!$S:$S,$G75) -> 0 | D75: =SUMPRODUCT((InMoment_Data_Type=$A75)*(InMoment_Data_Period>=1)*(InMoment_Data_Period<=$F75)*(InMoment_Data_Year=$G75)*InMoment_Data_Pace*InMoment_Data_Count)/SUMIFS('Database PTD'!$P:$P,'Database PTD'!$T:$T,$A75,'Database PTD'!$R:$R,">=1",'Database PTD'!$R:$R,"<="&$F75,'Database PTD'!$S:$S,$G75) -> 56.58652766 | E75: =SUMPRODUCT((InMoment_Data_Type=$A75)*(InMoment_Data_Period>=1)*(InMoment_Data_Period<=$F75)*(InMoment_Data_Year=$G75)*InMoment_Data_Food*InMoment_Data_Count)/SUMIFS('Database PTD'!$P:$P,'Database PTD'!$T:$T,$A75,'Database PTD'!$R:$R,">=1",'Database PTD'!$R:$R,"<="&$F75,'Database PTD'!$S:$S,$G75) -> 57.33386288 | F75: 3 | G75: 2017 | H75: '17 P03
A76: DFG | B76: =SUMPRODUCT((InMoment_Data_Type=$A76)*(InMoment_Data_Period>=1)*(InMoment_Data_Period<=$F76)*(InMoment_Data_Year=$G76)*InMoment_Data_Overall*InMoment_Data_Count)/SUMIFS('Database PTD'!$P:$P,'Database PTD'!$T:$T,$A76,'Database PTD'!$R:$R,">=1",'Database PTD'!$R:$R,"<="&$F76,'Database PTD'!$S:$S,$G76) -> 55.61311905 | C76: =SUMPRODUCT((InMoment_Data_Type=$A76)*(InMoment_Data_Period>=1)*(InMoment_Data_Period<=$F76)*(InMoment_Data_Year=$G76)*InMoment_Data_Recommend*InMoment_Data_Count)/SUMIFS('Database PTD'!$P:$P,'Database PTD'!$T:$T,$A76,'Database PTD'!$R:$R,">=1",'Database PTD'!$R:$R,"<="&$F76,'Database PTD'!$S:$S,$G76) -> 0 | D76: =SUMPRODUCT((InMoment_Data_Type=$A76)*(InMoment_Data_Period>=1)*(InMoment_Data_Period<=$F76)*(InMoment_Data_Year=$G76)*InMoment_Data_Pace*InMoment_Data_Count)/SUMIFS('Database PTD'!$P:$P,'Database PTD'!$T:$T,$A76,'Database PTD'!$R:$R,">=1",'Database PTD'!$R:$R,"<="&$F76,'Database PTD'!$S:$S,$G76) -> 57.74162114 | E76: =SUMPRODUCT((InMoment_Data_Type=$A76)*(InMoment_Data_Period>=1)*(InMoment_Data_Period<=$F76)*(InMoment_Data_Year=$G76)*InMoment_Data_Food*InMoment_Data_Count)/SUMIFS('Database PTD'!$P:$P,'Database PTD'!$T:$T,$A76,'Database PTD'!$R:$R,">=1",'Database PTD'!$R:$R,"<="&$F76,'Database PTD'!$S:$S,$G76) -> 57.43896241 | F76: 3 | G76: 2017 | H76: '17 P03
A77: DFRG | B77: =SUMPRODUCT((InMoment_Data_Period>=1)*(InMoment_Data_Period<=$F77)*(InMoment_Data_Year=$G77)*InMoment_Data_Overall*InMoment_Data_Count)/SUMIFS('Database PTD'!$P:$P,'Database PTD'!$R:$R,">=1",'Database PTD'!$R:$R,"<="&$F77,'Database PTD'!$S:$S,$G77) -> 54.6805178 | C77: =SUMPRODUCT((InMoment_Data_Period>=1)*(InMoment_Data_Period<=$F77)*(InMoment_Data_Year=$G77)*InMoment_Data_Recommend*InMoment_Data_Count)/SUMIFS('Database PTD'!$P:$P,'Database PTD'!$R:$R,">=1",'Database PTD'!$R:$R,"<="&$F77,'Database PTD'!$S:$S,$G77) -> 0 | D77: =SUMPRODUCT((InMoment_Data_Period>=1)*(InMoment_Data_Period<=$F77)*(InMoment_Data_Year=$G77)*InMoment_Data_Pace*InMoment_Data_Count)/SUMIFS('Database PTD'!$P:$P,'Database PTD'!$R:$R,">=1",'Database PTD'!$R:$R,"<="&$F77,'Database PTD'!$S:$S,$G77) -> 56.24898601 | E77: =SUMPRODUCT((InMoment_Data_Period>=1)*(InMoment_Data_Period<=$F77)*(InMoment_Data_Year=$G77)*InMoment_Data_Food*InMoment_Data_Count)/SUMIFS('Database PTD'!$P:$P,'Database PTD'!$R:$R,">=1",'Database PTD'!$R:$R,"<="&$F77,'Database PTD'!$S:$S,$G77) -> 58.04282215 | F77: 3 | G77: 2017 | H77: '17 P03
A78: DFDE | B78: =SUMPRODUCT((InMoment_Data_Type=$A78)*(InMoment_Data_Period>=1)*(InMoment_Data_Period<=$F78)*(InMoment_Data_Year=$G78)*InMoment_Data_Overall*InMoment_Data_Count)/SUMIFS('Database PTD'!$P:$P,'Database PTD'!$T:$T,$A78,'Database PTD'!$R:$R,">=1",'Database PTD'!$R:$R,"<="&$F78,'Database PTD'!$S:$S,$G78) -> 55.29424082 | C78: =SUMPRODUCT((InMoment_Data_Type=$A78)*(InMoment_Data_Period>=1)*(InMoment_Data_Period<=$F78)*(InMoment_Data_Year=$G78)*InMoment_Data_Recommend*InMoment_Data_Count)/SUMIFS('Database PTD'!$P:$P,'Database PTD'!$T:$T,$A78,'Database PTD'!$R:$R,">=1",'Database PTD'!$R:$R,"<="&$F78,'Database PTD'!$S:$S,$G78) -> 0 | D78: =SUMPRODUCT((InMoment_Data_Type=$A78)*(InMoment_Data_Period>=1)*(InMoment_Data_Period<=$F78)*(InMoment_Data_Year=$G78)*InMoment_Data_Pace*InMoment_Data_Count)/SUMIFS('Database PTD'!$P:$P,'Database PTD'!$T:$T,$A78,'Database PTD'!$R:$R,">=1",'Database PTD'!$R:$R,"<="&$F78,'Database PTD'!$S:$S,$G78) -> 56.04399537 | E78: =SUMPRODUCT((InMoment_Data_Type=$A78)*(InMoment_Data_Period>=1)*(InMoment_Data_Period<=$F78)*(InMoment_Data_Year=$G78)*InMoment_Data_Food*InMoment_Data_Count)/SUMIFS('Database PTD'!$P:$P,'Database PTD'!$T:$T,$A78,'Database PTD'!$R:$R,">=1",'Database PTD'!$R:$R,"<="&$F78,'Database PTD'!$S:$S,$G78) -> 60.11012844 | F78: 4 | G78: 2017 | H78: '17 P04
A79: SULL | B79: =SUMPRODUCT((InMoment_Data_Type=$A79)*(InMoment_Data_Period>=1)*(InMoment_Data_Period<=$F79)*(InMoment_Data_Year=$G79)*InMoment_Data_Overall*InMoment_Data_Count)/SUMIFS('Database PTD'!$P:$P,'Database PTD'!$T:$T,$A79,'Database PTD'!$R:$R,">=1",'Database PTD'!$R:$R,"<="&$F79,'Database PTD'!$S:$S,$G79) -> 59.72553672 | C79: =SUMPRODUCT((InMoment_Data_Type=$A79)*(InMoment_Data_Period>=1)*(InMoment_Data_Period<=$F79)*(InMoment_Data_Year=$G79)*InMoment_Data_Recommend*InMoment_Data_Count)/SUMIFS('Database PTD'!$P:$P,'Database PTD'!$T:$T,$A79,'Database PTD'!$R:$R,">=1",'Database PTD'!$R:$R,"<="&$F79,'Database PTD'!$S:$S,$G79) -> 0 | D79: =SUMPRODUCT((InMoment_Data_Type=$A79)*(InMoment_Data_Period>=1)*(InMoment_Data_Period<=$F79)*(InMoment_Data_Year=$G79)*InMoment_Data_Pace*InMoment_Data_Count)/SUMIFS('Database PTD'!$P:$P,'Database PTD'!$T:$T,$A79,'Database PTD'!$R:$R,">=1",'Database PTD'!$R:$R,"<="&$F79,'Database PTD'!$S:$S,$G79) -> 61.01016629 | E79: =SUMPRODUCT((InMoment_Data_Type=$A79)*(InMoment_Data_Period>=1)*(InMoment_Data_Period<=$F79)*(InMoment_Data_Year=$G79)*InMoment_Data_Food*InMoment_Data_Count)/SUMIFS('Database PTD'!$P:$P,'Database PTD'!$T:$T,$A79,'Database PTD'!$R:$R,">=1",'Database PTD'!$R:$R,"<="&$F79,'Database PTD'!$S:$S,$G79) -> 62.20956487 | F79: 4 | G79: 2017 | H79: '17 P04
A80: DFG | B80: =SUMPRODUCT((InMoment_Data_Type=$A80)*(InMoment_Data_Period>=1)*(InMoment_Data_Period<=$F80)*(InMoment_Data_Year=$G80)*InMoment_Data_Overall*InMoment_Data_Count)/SUMIFS('Database PTD'!$P:$P,'Database PTD'!$T:$T,$A80,'Database PTD'!$R:$R,">=1",'Database PTD'!$R:$R,"<="&$F80,'Database PTD'!$S:$S,$G80) -> 59.51927665 | C80: =SUMPRODUCT((InMoment_Data_Type=$A80)*(InMoment_Data_Period>=1)*(InMoment_Data_Period<=$F80)*(InMoment_Data_Year=$G80)*InMoment_Data_Recommend*InMoment_Data_Count)/SUMIFS('Database PTD'!$P:$P,'Database PTD'!$T:$T,$A80,'Database PTD'!$R:$R,">=1",'Database PTD'!$R:$R,"<="&$F80,'Database PTD'!$S:$S,$G80) -> 0 | D80: =SUMPRODUCT((InMoment_Data_Type=$A80)*(InMoment_Data_Period>=1)*(InMoment_Data_Period<=$F80)*(InMoment_Data_Year=$G80)*InMoment_Data_Pace*InMoment_Data_Count)/SUMIFS('Database PTD'!$P:$P,'Database PTD'!$T:$T,$A80,'Database PTD'!$R:$R,">=1",'Database PTD'!$R:$R,"<="&$F80,'Database PTD'!$S:$S,$G80) -> 61.1646351 | E80: =SUMPRODUCT((InMoment_Data_Type=$A80)*(InMoment_Data_Period>=1)*(InMoment_Data_Period<=$F80)*(InMoment_Data_Year=$G80)*InMoment_Data_Food*InMoment_Data_Count)/SUMIFS('Database PTD'!$P:$P,'Database PTD'!$T:$T,$A80,'Database PTD'!$R:$R,">=1",'Database PTD'!$R:$R,"<="&$F80,'Database PTD'!$S:$S,$G80) -> 60.48390529 | F80: 4 | G80: 2017 | H80: '17 P04
A81: DFRG | B81: =SUMPRODUCT((InMoment_Data_Period>=1)*(InMoment_Data_Period<=$F81)*(InMoment_Data_Year=$G81)*InMoment_Data_Overall*InMoment_Data_Count)/SUMIFS('Database PTD'!$P:$P,'Database PTD'!$R:$R,">=1",'Database PTD'!$R:$R,"<="&$F81,'Database PTD'!$S:$S,$G81) -> 58.12002312 | C81: =SUMPRODUCT((InMoment_Data_Period>=1)*(InMoment_Data_Period<=$F81)*(InMoment_Data_Year=$G81)*InMoment_Data_Recommend*InMoment_Data_Count)/SUMIFS('Database PTD'!$P:$P,'Database PTD'!$R:$R,">=1",'Database PTD'!$R:$R,"<="&$F81,'Database PTD'!$S:$S,$G81) -> 0 | D81: =SUMPRODUCT((InMoment_Data_Period>=1)*(InMoment_Data_Period<=$F81)*(InMoment_Data_Year=$G81)*InMoment_Data_Pace*InMoment_Data_Count)/SUMIFS('Database PTD'!$P:$P,'Database PTD'!$R:$R,">=1",'Database PTD'!$R:$R,"<="&$F81,'Database PTD'!$S:$S,$G81) -> 59.35128916 | E81: =SUMPRODUCT((InMoment_Data_Period>=1)*(InMoment_Data_Period<=$F81)*(InMoment_Data_Year=$G81)*InMoment_Data_Food*InMoment_Data_Count)/SUMIFS('Database PTD'!$P:$P,'Database PTD'!$R:$R,">=1",'Database PTD'!$R:$R,"<="&$F81,'Database PTD'!$S:$S,$G81) -> 60.85608683 | F81: 4 | G81: 2017 | H81: '17 P04
A82: DFDE | B82: =SUMPRODUCT((InMoment_Data_Type=$A82)*(InMoment_Data_Period>=1)*(InMoment_Data_Period<=$F82)*(InMoment_Data_Year=$G82)*InMoment_Data_Overall*InMoment_Data_Count)/SUMIFS('Database PTD'!$P:$P,'Database PTD'!$T:$T,$A82,'Database PTD'!$R:$R,">=1",'Database PTD'!$R:$R,"<="&$F82,'Database PTD'!$S:$S,$G82) -> 55.78839211 | C82: =SUMPRODUCT((InMoment_Data_Type=$A82)*(InMoment_Data_Period>=1)*(InMoment_Data_Period<=$F82)*(InMoment_Data_Year=$G82)*InMoment_Data_Recommend*InMoment_Data_Count)/SUMIFS('Database PTD'!$P:$P,'Database PTD'!$T:$T,$A82,'Database PTD'!$R:$R,">=1",'Database PTD'!$R:$R,"<="&$F82,'Database PTD'!$S:$S,$G82) -> 0 | D82: =SUMPRODUCT((InMoment_Data_Type=$A82)*(InMoment_Data_Period>=1)*(InMoment_Data_Period<=$F82)*(InMoment_Data_Year=$G82)*InMoment_Data_Pace*InMoment_Data_Count)/SUMIFS('Database PTD'!$P:$P,'Database PTD'!$T:$T,$A82,'Database PTD'!$R:$R,">=1",'Database PTD'!$R:$R,"<="&$F82,'Database PTD'!$S:$S,$G82) -> 56.11888208 | E82: =SUMPRODUCT((InMoment_Data_Type=$A82)*(InMoment_Data_Period>=1)*(InMoment_Data_Period<=$F82)*(InMoment_Data_Year=$G82)*InMoment_Data_Food*InMoment_Data_Count)/SUMIFS('Database PTD'!$P:$P,'Database PTD'!$T:$T,$A82,'Database PTD'!$R:$R,">=1",'Database PTD'!$R:$R,"<="&$F82,'Database PTD'!$S:$S,$G82) -> 60.30207736 | F82: 5 | G82: 2017 | H82: '17 P05
A83: SULL | B83: =SUMPRODUCT((InMoment_Data_Type=$A83)*(InMoment_Data_Period>=1)*(InMoment_Data_Period<=$F83)*(InMoment_Data_Year=$G83)*InMoment_Data_Overall*InMoment_Data_Count)/SUMIFS('Database PTD'!$P:$P,'Database PTD'!$T:$T,$A83,'Database PTD'!$R:$R,">=1",'Database PTD'!$R:$R,"<="&$F83,'Database PTD'!$S:$S,$G83) -> 58.75369141 | C83: =SUMPRODUCT((InMoment_Data_Type=$A83)*(InMoment_Data_Period>=1)*(InMoment_Data_Period<=$F83)*(InMoment_Data_Year=$G83)*InMoment_Data_Recommend*InMoment_Data_Count)/SUMIFS('Database PTD'!$P:$P,'Database PTD'!$T:$T,$A83,'Database PTD'!$R:$R,">=1",'Database PTD'!$R:$R,"<="&$F83,'Database PTD'!$S:$S,$G83) -> 0 | D83: =SUMPRODUCT((InMoment_Data_Type=$A83)*(InMoment_Data_Period>=1)*(InMoment_Data_Period<=$F83)*(InMoment_Data_Year=$G83)*InMoment_Data_Pace*InMoment_Data_Count)/SUMIFS('Database PTD'!$P:$P,'Database PTD'!$T:$T,$A83,'Database PTD'!$R:$R,">=1",'Database PTD'!$R:$R,"<="&$F83,'Database PTD'!$S:$S,$G83) -> 60.28489903 | E83: =SUMPRODUCT((InMoment_Data_Type=$A83)*(InMoment_Data_Period>=1)*(InMoment_Data_Period<=$F83)*(InMoment_Data_Year=$G83)*InMoment_Data_Food*InMoment_Data_Count)/SUMIFS('Database PTD'!$P:$P,'Database PTD'!$T:$T,$A83,'Database PTD'!$R:$R,">=1",'Database PTD'!$R:$R,"<="&$F83,'Database PTD'!$S:$S,$G83) -> 61.31028132 | F83: 5 | G83: 2017 | H83: '17 P05
A84: DFG | B84: =SUMPRODUCT((InMoment_Data_Type=$A84)*(InMoment_Data_Period>=1)*(InMoment_Data_Period<=$F84)*(InMoment_Data_Year=$G84)*InMoment_Data_Overall*InMoment_Data_Count)/SUMIFS('Database PTD'!$P:$P,'Database PTD'!$T:$T,$A84,'Database PTD'!$R:$R,">=1",'Database PTD'!$R:$R,"<="&$F84,'Database PTD'!$S:$S,$G84) -> 59.17756923 | C84: =SUMPRODUCT((InMoment_Data_Type=$A84)*(InMoment_Data_Period>=1)*(InMoment_Data_Period<=$F84)*(InMoment_Data_Year=$G84)*InMoment_Data_Recommend*InMoment_Data_Count)/SUMIFS('Database PTD'!$P:$P,'Database PTD'!$T:$T,$A84,'Database PTD'!$R:$R,">=1",'Database PTD'!$R:$R,"<="&$F84,'Database PTD'!$S:$S,$G84) -> 0 | D84: =SUMPRODUCT((InMoment_Data_Type=$A84)*(InMoment_Data_Period>=1)*(InMoment_Data_Period<=$F84)*(InMoment_Data_Year=$G84)*InMoment_Data_Pace*InMoment_Data_Count)/SUMIFS('Database PTD'!$P:$P,'Database PTD'!$T:$T,$A84,'Database PTD'!$R:$R,">=1",'Database PTD'!$R:$R,"<="&$F84,'Database PTD'!$S:$S,$G84) -> 60.67106819 | E84: =SUMPRODUCT((InMoment_Data_Type=$A84)*(InMoment_Data_Period>=1)*(InMoment_Data_Period<=$F84)*(InMoment_Data_Year=$G84)*InMoment_Data_Food*InMoment_Data_Count)/SUMIFS('Database PTD'!$P:$P,'Database PTD'!$T:$T,$A84,'Database PTD'!$R:$R,">=1",'Database PTD'!$R:$R,"<="&$F84,'Database PTD'!$S:$S,$G84) -> 60.12403597 | F84: 5 | G84: 2017 | H84: '17 P05
A85: DFRG | B85: =SUMPRODUCT((InMoment_Data_Period>=1)*(InMoment_Data_Period<=$F85)*(InMoment_Data_Year=$G85)*InMoment_Data_Overall*InMoment_Data_Count)/SUMIFS('Database PTD'!$P:$P,'Database PTD'!$R:$R,">=1",'Database PTD'!$R:$R,"<="&$F85,'Database PTD'!$S:$S,$G85) -> 57.87906796 | C85: =SUMPRODUCT((InMoment_Data_Period>=1)*(InMoment_Data_Period<=$F85)*(InMoment_Data_Year=$G85)*InMoment_Data_Recommend*InMoment_Data_Count)/SUMIFS('Database PTD'!$P:$P,'Database PTD'!$R:$R,">=1",'Database PTD'!$R:$R,"<="&$F85,'Database PTD'!$S:$S,$G85) -> 0 | D85: =SUMPRODUCT((InMoment_Data_Period>=1)*(InMoment_Data_Period<=$F85)*(InMoment_Data_Year=$G85)*InMoment_Data_Pace*InMoment_Data_Count)/SUMIFS('Database PTD'!$P:$P,'Database PTD'!$R:$R,">=1",'Database PTD'!$R:$R,"<="&$F85,'Database PTD'!$S:$S,$G85) -> 58.97896498 | E85: =SUMPRODUCT((InMoment_Data_Period>=1)*(InMoment_Data_Period<=$F85)*(InMoment_Data_Year=$G85)*InMoment_Data_Food*InMoment_Data_Count)/SUMIFS('Database PTD'!$P:$P,'Database PTD'!$R:$R,">=1",'Database PTD'!$R:$R,"<="&$F85,'Database PTD'!$S:$S,$G85) -> 60.5225975 | F85: 5 | G85: 2017 | H85: '17 P05
A86: DFDE | B86: =SUMPRODUCT((InMoment_Data_Type=$A86)*(InMoment_Data_Period>=1)*(InMoment_Data_Period<=$F86)*(InMoment_Data_Year=$G86)*InMoment_Data_Overall*InMoment_Data_Count)/SUMIFS('Database PTD'!$P:$P,'Database PTD'!$T:$T,$A86,'Database PTD'!$R:$R,">=1",'Database PTD'!$R:$R,"<="&$F86,'Database PTD'!$S:$S,$G86) -> 55.74960816 | C86: =SUMPRODUCT((InMoment_Data_Type=$A86)*(InMoment_Data_Period>=1)*(InMoment_Data_Period<=$F86)*(InMoment_Data_Year=$G86)*InMoment_Data_Recommend*InMoment_Data_Count)/SUMIFS('Database PTD'!$P:$P,'Database PTD'!$T:$T,$A86,'Database PTD'!$R:$R,">=1",'Database PTD'!$R:$R,"<="&$F86,'Database PTD'!$S:$S,$G86) -> 7.498738901 | D86: =SUMPRODUCT((InMoment_Data_Type=$A86)*(InMoment_Data_Period>=1)*(InMoment_Data_Period<=$F86)*(InMoment_Data_Year=$G86)*InMoment_Data_Pace*InMoment_Data_Count)/SUMIFS('Database PTD'!$P:$P,'Database PTD'!$T:$T,$A86,'Database PTD'!$R:$R,">=1",'Database PTD'!$R:$R,"<="&$F86,'Database PTD'!$S:$S,$G86) -> 56.19789503 | E86: =SUMPRODUCT((InMoment_Data_Type=$A86)*(InMoment_Data_Period>=1)*(InMoment_Data_Period<=$F86)*(InMoment_Data_Year=$G86)*InMoment_Data_Food*InMoment_Data_Count)/SUMIFS('Database PTD'!$P:$P,'Database PTD'!$T:$T,$A86,'Database PTD'!$R:$R,">=1",'Database PTD'!$R:$R,"<="&$F86,'Database PTD'!$S:$S,$G86) -> 60.12839616 | F86: 6 | G86: 2017 | H86: '17 P06
A87: SULL | B87: =SUMPRODUCT((InMoment_Data_Type=$A87)*(InMoment_Data_Period>=1)*(InMoment_Data_Period<=$F87)*(InMoment_Data_Year=$G87)*InMoment_Data_Overall*InMoment_Data_Count)/SUMIFS('Database PTD'!$P:$P,'Database PTD'!$T:$T,$A87,'Database PTD'!$R:$R,">=1",'Database PTD'!$R:$R,"<="&$F87,'Database PTD'!$S:$S,$G87) -> 58.75184571 | C87: =SUMPRODUCT((InMoment_Data_Type=$A87)*(InMoment_Data_Period>=1)*(InMoment_Data_Period<=$F87)*(InMoment_Data_Year=$G87)*InMoment_Data_Recommend*InMoment_Data_Count)/SUMIFS('Database PTD'!$P:$P,'Database PTD'!$T:$T,$A87,'Database PTD'!$R:$R,">=1",'Database PTD'!$R:$R,"<="&$F87,'Database PTD'!$S:$S,$G87) -> 6.355508333 | D87: =SUMPRODUCT((InMoment_Data_Type=$A87)*(InMoment_Data_Period>=1)*(InMoment_Data_Period<=$F87)*(InMoment_Data_Year=$G87)*InMoment_Data_Pace*InMoment_Data_Count)/SUMIFS('Database PTD'!$P:$P,'Database PTD'!$T:$T,$A87,'Database PTD'!$R:$R,">=1",'Database PTD'!$R:$R,"<="&$F87,'Database PTD'!$S:$S,$G87) -> 60.30514024 | E87: =SUMPRODUCT((InMoment_Data_Type=$A87)*(InMoment_Data_Period>=1)*(InMoment_Data_Period<=$F87)*(InMoment_Data_Year=$G87)*InMoment_Data_Food*InMoment_Data_Count)/SUMIFS('Database PTD'!$P:$P,'Database PTD'!$T:$T,$A87,'Database PTD'!$R:$R,">=1",'Database PTD'!$R:$R,"<="&$F87,'Database PTD'!$S:$S,$G87) -> 61.10625214 | F87: 6 | G87: 2017 | H87: '17 P06
A88: DFG | B88: =SUMPRODUCT((InMoment_Data_Type=$A88)*(InMoment_Data_Period>=1)*(InMoment_Data_Period<=$F88)*(InMoment_Data_Year=$G88)*InMoment_Data_Overall*InMoment_Data_Count)/SUMIFS('Database PTD'!$P:$P,'Database PTD'!$T:$T,$A88,'Database PTD'!$R:$R,">=1",'Database PTD'!$R:$R,"<="&$F88,'Database PTD'!$S:$S,$G88) -> 59.03054598 | C88: =SUMPRODUCT((InMoment_Data_Type=$A88)*(InMoment_Data_Period>=1)*(InMoment_Data_Period<=$F88)*(InMoment_Data_Year=$G88)*InMoment_Data_Recommend*InMoment_Data_Count)/SUMIFS('Database PTD'!$P:$P,'Database PTD'!$T:$T,$A88,'Database PTD'!$R:$R,">=1",'Database PTD'!$R:$R,"<="&$F88,'Database PTD'!$S:$S,$G88) -> 5.868577613 | D88: =SUMPRODUCT((InMoment_Data_Type=$A88)*(InMoment_Data_Period>=1)*(InMoment_Data_Period<=$F88)*(InMoment_Data_Year=$G88)*InMoment_Data_Pace*InMoment_Data_Count)/SUMIFS('Database PTD'!$P:$P,'Database PTD'!$T:$T,$A88,'Database PTD'!$R:$R,">=1",'Database PTD'!$R:$R,"<="&$F88,'Database PTD'!$S:$S,$G88) -> 60.60679426 | E88: =SUMPRODUCT((InMoment_Data_Type=$A88)*(InMoment_Data_Period>=1)*(InMoment_Data_Period<=$F88)*(InMoment_Data_Year=$G88)*InMoment_Data_Food*InMoment_Data_Count)/SUMIFS('Database PTD'!$P:$P,'Database PTD'!$T:$T,$A88,'Database PTD'!$R:$R,">=1",'Database PTD'!$R:$R,"<="&$F88,'Database PTD'!$S:$S,$G88) -> 60.14919611 | F88: 6 | G88: 2017 | H88: '17 P06
A89: DFRG | B89: =SUMPRODUCT((InMoment_Data_Period>=1)*(InMoment_Data_Period<=$F89)*(InMoment_Data_Year=$G89)*InMoment_Data_Overall*InMoment_Data_Count)/SUMIFS('Database PTD'!$P:$P,'Database PTD'!$R:$R,">=1",'Database PTD'!$R:$R,"<="&$F89,'Database PTD'!$S:$S,$G89) -> 57.78317606 | C89: =SUMPRODUCT((InMoment_Data_Period>=1)*(InMoment_Data_Period<=$F89)*(InMoment_Data_Year=$G89)*InMoment_Data_Recommend*InMoment_Data_Count)/SUMIFS('Database PTD'!$P:$P,'Database PTD'!$R:$R,">=1",'Database PTD'!$R:$R,"<="&$F89,'Database PTD'!$S:$S,$G89) -> 6.586428054 | D89: =SUMPRODUCT((InMoment_Data_Period>=1)*(InMoment_Data_Period<=$F89)*(InMoment_Data_Year=$G89)*InMoment_Data_Pace*InMoment_Data_Count)/SUMIFS('Database PTD'!$P:$P,'Database PTD'!$R:$R,">=1",'Database PTD'!$R:$R,"<="&$F89,'Database PTD'!$S:$S,$G89) -> 58.95109725 | E89: =SUMPRODUCT((InMoment_Data_Period>=1)*(InMoment_Data_Period<=$F89)*(InMoment_Data_Year=$G89)*InMoment_Data_Food*InMoment_Data_Count)/SUMIFS('Database PTD'!$P:$P,'Database PTD'!$R:$R,">=1",'Database PTD'!$R:$R,"<="&$F89,'Database PTD'!$S:$S,$G89) -> 60.41118008 | F89: 6 | G89: 2017 | H89: '17 P06
A90: DFDE | B90: =SUMPRODUCT((InMoment_Data_Type=$A90)*(InMoment_Data_Period>=1)*(InMoment_Data_Period<=$F90)*(InMoment_Data_Year=$G90)*InMoment_Data_Overall*InMoment_Data_Count)/SUMIFS('Database PTD'!$P:$P,'Database PTD'!$T:$T,$A90,'Database PTD'!$R:$R,">=1",'Database PTD'!$R:$R,"<="&$F90,'Database PTD'!$S:$S,$G90) -> 56.20855875 | C90: =SUMPRODUCT((InMoment_Data_Type=$A90)*(InMoment_Data_Period>=1)*(InMoment_Data_Period<=$F90)*(InMoment_Data_Year=$G90)*InMoment_Data_Recommend*InMoment_Data_Count)/SUMIFS('Database PTD'!$P:$P,'Database PTD'!$T:$T,$A90,'Database PTD'!$R:$R,">=1",'Database PTD'!$R:$R,"<="&$F90,'Database PTD'!$S:$S,$G90) -> 14.01520627 | D90: =SUMPRODUCT((InMoment_Data_Type=$A90)*(InMoment_Data_Period>=1)*(InMoment_Data_Period<=$F90)*(InMoment_Data_Year=$G90)*InMoment_Data_Pace*InMoment_Data_Count)/SUMIFS('Database PTD'!$P:$P,'Database PTD'!$T:$T,$A90,'Database PTD'!$R:$R,">=1",'Database PTD'!$R:$R,"<="&$F90,'Database PTD'!$S:$S,$G90) -> 56.92542575 | E90: =SUMPRODUCT((InMoment_Data_Type=$A90)*(InMoment_Data_Period>=1)*(InMoment_Data_Period<=$F90)*(InMoment_Data_Year=$G90)*InMoment_Data_Food*InMoment_Data_Count)/SUMIFS('Database PTD'!$P:$P,'Database PTD'!$T:$T,$A90,'Database PTD'!$R:$R,">=1",'Database PTD'!$R:$R,"<="&$F90,'Database PTD'!$S:$S,$G90) -> 60.4438032 | F90: 7 | G90: 2017 | H90: '17 P07
A91: SULL | B91: =SUMPRODUCT((InMoment_Data_Type=$A91)*(InMoment_Data_Period>=1)*(InMoment_Data_Period<=$F91)*(InMoment_Data_Year=$G91)*InMoment_Data_Overall*InMoment_Data_Count)/SUMIFS('Database PTD'!$P:$P,'Database PTD'!$T:$T,$A91,'Database PTD'!$R:$R,">=1",'Database PTD'!$R:$R,"<="&$F91,'Database PTD'!$S:$S,$G91) -> 58.56938036 | C91: =SUMPRODUCT((InMoment_Data_Type=$A91)*(InMoment_Data_Period>=1)*(InMoment_Data_Period<=$F91)*(InMoment_Data_Year=$G91)*InMoment_Data_Recommend*InMoment_Data_Count)/SUMIFS('Database PTD'!$P:$P,'Database PTD'!$T:$T,$A91,'Database PTD'!$R:$R,">=1",'Database PTD'!$R:$R,"<="&$F91,'Database PTD'!$S:$S,$G91) -> 10.99174292 | D91: =SUMPRODUCT((InMoment_Data_Type=$A91)*(InMoment_Data_Period>=1)*(InMoment_Data_Period<=$F91)*(InMoment_Data_Year=$G91)*InMoment_Data_Pace*InMoment_Data_Count)/SUMIFS('Database PTD'!$P:$P,'Database PTD'!$T:$T,$A91,'Database PTD'!$R:$R,">=1",'Database PTD'!$R:$R,"<="&$F91,'Database PTD'!$S:$S,$G91) -> 60.12206968 | E91: =SUMPRODUCT((InMoment_Data_Type=$A91)*(InMoment_Data_Period>=1)*(InMoment_Data_Period<=$F91)*(InMoment_Data_Year=$G91)*InMoment_Data_Food*InMoment_Data_Count)/SUMIFS('Database PTD'!$P:$P,'Database PTD'!$T:$T,$A91,'Database PTD'!$R:$R,">=1",'Database PTD'!$R:$R,"<="&$F91,'Database PTD'!$S:$S,$G91) -> 60.84000472 | F91: 7 | G91: 2017 | H91: '17 P07
A92: DFG | B92: =SUMPRODUCT((InMoment_Data_Type=$A92)*(InMoment_Data_Period>=1)*(InMoment_Data_Period<=$F92)*(InMoment_Data_Year=$G92)*InMoment_Data_Overall*InMoment_Data_Count)/SUMIFS('Database PTD'!$P:$P,'Database PTD'!$T:$T,$A92,'Database PTD'!$R:$R,">=1",'Database PTD'!$R:$R,"<="&$F92,'Database PTD'!$S:$S,$G92) -> 59.29996216 | C92: =SUMPRODUCT((InMoment_Data_Type=$A92)*(InMoment_Data_Period>=1)*(InMoment_Data_Period<=$F92)*(InMoment_Data_Year=$G92)*InMoment_Data_Recommend*InMoment_Data_Count)/SUMIFS('Database PTD'!$P:$P,'Database PTD'!$T:$T,$A92,'Database PTD'!$R:$R,">=1",'Database PTD'!$R:$R,"<="&$F92,'Database PTD'!$S:$S,$G92) -> 12.55062414 | D92: =SUMPRODUCT((InMoment_Data_Type=$A92)*(InMoment_Data_Period>=1)*(InMoment_Data_Period<=$F92)*(InMoment_Data_Year=$G92)*InMoment_Data_Pace*InMoment_Data_Count)/SUMIFS('Database PTD'!$P:$P,'Database PTD'!$T:$T,$A92,'Database PTD'!$R:$R,">=1",'Database PTD'!$R:$R,"<="&$F92,'Database PTD'!$S:$S,$G92) -> 60.90049816 | E92: =SUMPRODUCT((InMoment_Data_Type=$A92)*(InMoment_Data_Period>=1)*(InMoment_Data_Period<=$F92)*(InMoment_Data_Year=$G92)*InMoment_Data_Food*InMoment_Data_Count)/SUMIFS('Database PTD'!$P:$P,'Database PTD'!$T:$T,$A92,'Database PTD'!$R:$R,">=1",'Database PTD'!$R:$R,"<="&$F92,'Database PTD'!$S:$S,$G92) -> 60.41291059 | F92: 7 | G92: 2017 | H92: '17 P07
A93: DFRG | B93: =SUMPRODUCT((InMoment_Data_Period>=1)*(InMoment_Data_Period<=$F93)*(InMoment_Data_Year=$G93)*InMoment_Data_Overall*InMoment_Data_Count)/SUMIFS('Database PTD'!$P:$P,'Database PTD'!$R:$R,">=1",'Database PTD'!$R:$R,"<="&$F93,'Database PTD'!$S:$S,$G93) -> 57.98940493 | C93: =SUMPRODUCT((InMoment_Data_Period>=1)*(InMoment_Data_Period<=$F93)*(InMoment_Data_Year=$G93)*InMoment_Data_Recommend*InMoment_Data_Count)/SUMIFS('Database PTD'!$P:$P,'Database PTD'!$R:$R,">=1",'Database PTD'!$R:$R,"<="&$F93,'Database PTD'!$S:$S,$G93) -> 12.65055597 | D93: =SUMPRODUCT((InMoment_Data_Period>=1)*(InMoment_Data_Period<=$F93)*(InMoment_Data_Year=$G93)*InMoment_Data_Pace*InMoment_Data_Count)/SUMIFS('Database PTD'!$P:$P,'Database PTD'!$R:$R,">=1",'Database PTD'!$R:$R,"<="&$F93,'Database PTD'!$S:$S,$G93) -> 59.25934694 | E93: =SUMPRODUCT((InMoment_Data_Period>=1)*(InMoment_Data_Period<=$F93)*(InMoment_Data_Year=$G93)*InMoment_Data_Food*InMoment_Data_Count)/SUMIFS('Database PTD'!$P:$P,'Database PTD'!$R:$R,">=1",'Database PTD'!$R:$R,"<="&$F93,'Database PTD'!$S:$S,$G93) -> 60.54080721 | F93: 7 | G93: 2017 | H93: '17 P07
A94: DFDE | B94: =SUMPRODUCT((InMoment_Data_Type=$A94)*(InMoment_Data_Period>=1)*(InMoment_Data_Period<=$F94)*(InMoment_Data_Year=$G94)*InMoment_Data_Overall*InMoment_Data_Count)/SUMIFS('Database PTD'!$P:$P,'Database PTD'!$T:$T,$A94,'Database PTD'!$R:$R,">=1",'Database PTD'!$R:$R,"<="&$F94,'Database PTD'!$S:$S,$G94) -> 56.02092867 | C94: =SUMPRODUCT((InMoment_Data_Type=$A94)*(InMoment_Data_Period>=1)*(InMoment_Data_Period<=$F94)*(InMoment_Data_Year=$G94)*InMoment_Data_Recommend*InMoment_Data_Count)/SUMIFS('Database PTD'!$P:$P,'Database PTD'!$T:$T,$A94,'Database PTD'!$R:$R,">=1",'Database PTD'!$R:$R,"<="&$F94,'Database PTD'!$S:$S,$G94) -> 18.78946534 | D94: =SUMPRODUCT((InMoment_Data_Type=$A94)*(InMoment_Data_Period>=1)*(InMoment_Data_Period<=$F94)*(InMoment_Data_Year=$G94)*InMoment_Data_Pace*InMoment_Data_Count)/SUMIFS('Database PTD'!$P:$P,'Database PTD'!$T:$T,$A94,'Database PTD'!$R:$R,">=1",'Database PTD'!$R:$R,"<="&$F94,'Database PTD'!$S:$S,$G94) -> 56.84746091 | E94: =SUMPRODUCT((InMoment_Data_Type=$A94)*(InMoment_Data_Period>=1)*(InMoment_Data_Period<=$F94)*(InMoment_Data_Year=$G94)*InMoment_Data_Food*InMoment_Data_Count)/SUMIFS('Database PTD'!$P:$P,'Database PTD'!$T:$T,$A94,'Database PTD'!$R:$R,">=1",'Database PTD'!$R:$R,"<="&$F94,'Database PTD'!$S:$S,$G94) -> 60.19135078 | F94: 8 | G94: 2017 | H94: '17 P08
A95: SULL | B95: =SUMPRODUCT((InMoment_Data_Type=$A95)*(InMoment_Data_Period>=1)*(InMoment_Data_Period<=$F95)*(InMoment_Data_Year=$G95)*InMoment_Data_Overall*InMoment_Data_Count)/SUMIFS('Database PTD'!$P:$P,'Database PTD'!$T:$T,$A95,'Database PTD'!$R:$R,">=1",'Database PTD'!$R:$R,"<="&$F95,'Database PTD'!$S:$S,$G95) -> 58.89585604 | C95: =SUMPRODUCT((InMoment_Data_Type=$A95)*(InMoment_Data_Period>=1)*(InMoment_Data_Period<=$F95)*(InMoment_Data_Year=$G95)*InMoment_Data_Recommend*InMoment_Data_Count)/SUMIFS('Database PTD'!$P:$P,'Database PTD'!$T:$T,$A95,'Database PTD'!$R:$R,">=1",'Database PTD'!$R:$R,"<="&$F95,'Database PTD'!$S:$S,$G95) -> 15.70463277 | D95: =SUMPRODUCT((InMoment_Data_Type=$A95)*(InMoment_Data_Period>=1)*(InMoment_Data_Period<=$F95)*(InMoment_Data_Year=$G95)*InMoment_Data_Pace*InMoment_Data_Count)/SUMIFS('Database PTD'!$P:$P,'Database PTD'!$T:$T,$A95,'Database PTD'!$R:$R,">=1",'Database PTD'!$R:$R,"<="&$F95,'Database PTD'!$S:$S,$G95) -> 60.52555693 | E95: =SUMPRODUCT((InMoment_Data_Type=$A95)*(InMoment_Data_Period>=1)*(InMoment_Data_Period<=$F95)*(InMoment_Data_Year=$G95)*InMoment_Data_Food*InMoment_Data_Count)/SUMIFS('Database PTD'!$P:$P,'Database PTD'!$T:$T,$A95,'Database PTD'!$R:$R,">=1",'Database PTD'!$R:$R,"<="&$F95,'Database PTD'!$S:$S,$G95) -> 61.1670961 | F95: 8 | G95: 2017 | H95: '17 P08
A96: DFG | B96: =SUMPRODUCT((InMoment_Data_Type=$A96)*(InMoment_Data_Period>=1)*(InMoment_Data_Period<=$F96)*(InMoment_Data_Year=$G96)*InMoment_Data_Overall*InMoment_Data_Count)/SUMIFS('Database PTD'!$P:$P,'Database PTD'!$T:$T,$A96,'Database PTD'!$R:$R,">=1",'Database PTD'!$R:$R,"<="&$F96,'Database PTD'!$S:$S,$G96) -> 59.26847469 | C96: =SUMPRODUCT((InMoment_Data_Type=$A96)*(InMoment_Data_Period>=1)*(InMoment_Data_Period<=$F96)*(InMoment_Data_Year=$G96)*InMoment_Data_Recommend*InMoment_Data_Count)/SUMIFS('Database PTD'!$P:$P,'Database PTD'!$T:$T,$A96,'Database PTD'!$R:$R,">=1",'Database PTD'!$R:$R,"<="&$F96,'Database PTD'!$S:$S,$G96) -> 16.70714929 | D96: =SUMPRODUCT((InMoment_Data_Type=$A96)*(InMoment_Data_Period>=1)*(InMoment_Data_Period<=$F96)*(InMoment_Data_Year=$G96)*InMoment_Data_Pace*InMoment_Data_Count)/SUMIFS('Database PTD'!$P:$P,'Database PTD'!$T:$T,$A96,'Database PTD'!$R:$R,">=1",'Database PTD'!$R:$R,"<="&$F96,'Database PTD'!$S:$S,$G96) -> 60.79151796 | E96: =SUMPRODUCT((InMoment_Data_Type=$A96)*(InMoment_Data_Period>=1)*(InMoment_Data_Period<=$F96)*(InMoment_Data_Year=$G96)*InMoment_Data_Food*InMoment_Data_Count)/SUMIFS('Database PTD'!$P:$P,'Database PTD'!$T:$T,$A96,'Database PTD'!$R:$R,">=1",'Database PTD'!$R:$R,"<="&$F96,'Database PTD'!$S:$S,$G96) -> 60.31643646 | F96: 8 | G96: 2017 | H96: '17 P08
A97: DFRG | B97: =SUMPRODUCT((InMoment_Data_Period>=1)*(InMoment_Data_Period<=$F97)*(InMoment_Data_Year=$G97)*InMoment_Data_Overall*InMoment_Data_Count)/SUMIFS('Database PTD'!$P:$P,'Database PTD'!$R:$R,">=1",'Database PTD'!$R:$R,"<="&$F97,'Database PTD'!$S:$S,$G97) -> 57.97716973 | C97: =SUMPRODUCT((InMoment_Data_Period>=1)*(InMoment_Data_Period<=$F97)*(InMoment_Data_Year=$G97)*InMoment_Data_Recommend*InMoment_Data_Count)/SUMIFS('Database PTD'!$P:$P,'Database PTD'!$R:$R,">=1",'Database PTD'!$R:$R,"<="&$F97,'Database PTD'!$S:$S,$G97) -> 17.19875686 | D97: =SUMPRODUCT((InMoment_Data_Period>=1)*(InMoment_Data_Period<=$F97)*(InMoment_Data_Year=$G97)*InMoment_Data_Pace*InMoment_Data_Count)/SUMIFS('Database PTD'!$P:$P,'Database PTD'!$R:$R,">=1",'Database PTD'!$R:$R,"<="&$F97,'Database PTD'!$S:$S,$G97) -> 59.273816 | E97: =SUMPRODUCT((InMoment_Data_Period>=1)*(InMoment_Data_Period<=$F97)*(InMoment_Data_Year=$G97)*InMoment_Data_Food*InMoment_Data_Count)/SUMIFS('Database PTD'!$P:$P,'Database PTD'!$R:$R,">=1",'Database PTD'!$R:$R,"<="&$F97,'Database PTD'!$S:$S,$G97) -> 60.50107791 | F97: 8 | G97: 2017 | H97: '17 P08
A98: DFDE | B98: =SUMPRODUCT((InMoment_Data_Type=$A98)*(InMoment_Data_Period>=1)*(InMoment_Data_Period<=$F98)*(InMoment_Data_Year=$G98)*InMoment_Data_Overall*InMoment_Data_Count)/SUMIFS('Database PTD'!$P:$P,'Database PTD'!$T:$T,$A98,'Database PTD'!$R:$R,">=1",'Database PTD'!$R:$R,"<="&$F98,'Database PTD'!$S:$S,$G98) -> 55.76344714 | C98: =SUMPRODUCT((InMoment_Data_Type=$A98)*(InMoment_Data_Period>=1)*(InMoment_Data_Period<=$F98)*(InMoment_Data_Year=$G98)*InMoment_Data_Recommend*InMoment_Data_Count)/SUMIFS('Database PTD'!$P:$P,'Database PTD'!$T:$T,$A98,'Database PTD'!$R:$R,">=1",'Database PTD'!$R:$R,"<="&$F98,'Database PTD'!$S:$S,$G98) -> 22.32161477 | D98: =SUMPRODUCT((InMoment_Data_Type=$A98)*(InMoment_Data_Period>=1)*(InMoment_Data_Period<=$F98)*(InMoment_Data_Year=$G98)*InMoment_Data_Pace*InMoment_Data_Count)/SUMIFS('Database PTD'!$P:$P,'Database PTD'!$T:$T,$A98,'Database PTD'!$R:$R,">=1",'Database PTD'!$R:$R,"<="&$F98,'Database PTD'!$S:$S,$G98) -> 56.64921673 | E98: =SUMPRODUCT((InMoment_Data_Type=$A98)*(InMoment_Data_Period>=1)*(InMoment_Data_Period<=$F98)*(InMoment_Data_Year=$G98)*InMoment_Data_Food*InMoment_Data_Count)/SUMIFS('Database PTD'!$P:$P,'Database PTD'!$T:$T,$A98,'Database PTD'!$R:$R,">=1",'Database PTD'!$R:$R,"<="&$F98,'Database PTD'!$S:$S,$G98) -> 59.95654432 | F98: 9 | G98: 2017 | H98: ="'"&MID(G98,3,2)&" P"&IF(F98<10,"0","")&F98 -> '17 P09
A99: SULL | B99: =SUMPRODUCT((InMoment_Data_Type=$A99)*(InMoment_Data_Period>=1)*(InMoment_Data_Period<=$F99)*(InMoment_Data_Year=$G99)*InMoment_Data_Overall*InMoment_Data_Count)/SUMIFS('Database PTD'!$P:$P,'Database PTD'!$T:$T,$A99,'Database PTD'!$R:$R,">=1",'Database PTD'!$R:$R,"<="&$F99,'Database PTD'!$S:$S,$G99) -> 58.73177674 | C99: =SUMPRODUCT((InMoment_Data_Type=$A99)*(InMoment_Data_Period>=1)*(InMoment_Data_Period<=$F99)*(InMoment_Data_Year=$G99)*InMoment_Data_Recommend*InMoment_Data_Count)/SUMIFS('Database PTD'!$P:$P,'Database PTD'!$T:$T,$A99,'Database PTD'!$R:$R,">=1",'Database PTD'!$R:$R,"<="&$F99,'Database PTD'!$S:$S,$G99) -> 19.23675514 | D99: =SUMPRODUCT((InMoment_Data_Type=$A99)*(InMoment_Data_Period>=1)*(InMoment_Data_Period<=$F99)*(InMoment_Data_Year=$G99)*InMoment_Data_Pace*InMoment_Data_Count)/SUMIFS('Database PTD'!$P:$P,'Database PTD'!$T:$T,$A99,'Database PTD'!$R:$R,">=1",'Database PTD'!$R:$R,"<="&$F99,'Database PTD'!$S:$S,$G99) -> 60.41767978 | E99: =SUMPRODUCT((InMoment_Data_Type=$A99)*(InMoment_Data_Period>=1)*(InMoment_Data_Period<=$F99)*(InMoment_Data_Year=$G99)*InMoment_Data_Food*InMoment_Data_Count)/SUMIFS('Database PTD'!$P:$P,'Database PTD'!$T:$T,$A99,'Database PTD'!$R:$R,">=1",'Database PTD'!$R:$R,"<="&$F99,'Database PTD'!$S:$S,$G99) -> 60.96410539 | F99: 9 | G99: 2017 | H99: '17 P09
